Workbook

Sheet Contents
C2: Contents
F3: Colour Codes | K3: File Name: | M3: =IFERROR(File_name(),"") -> 
C4: LCOE Summary | G4: Inputs | I4: 1234567890
D5: Fixed Costs | G5: Section Titles | I5: TITLE ROW | K5: Last Save Date | M5: =IFERROR(lastsaved(),"") -> 
D6: Variable Costs | G6: Sum Column | I6: 1000000000
D7: Carrying Charge Rate Inputs | G7: True or 1 | I7: =1=1 -> TRUE | K7: Last Save By | M7: =IFERROR(last_save_by(),"") -> 
D8: Titles | G8: False or 0 | I8: =1=2 -> FALSE
G9: Other Sheet Links | I9: |||||||||||||||||||
C10: Financial Model
D11: Timing Assumptions
D12: Operating Assumptions
D13: Financing
D14: Project Cash Flow
D15: Cash Flow for Valuation with Operations
D16: Project Valuation
D17: Financing
D18: Funding of Debt
D19: Debt Repayment
C21: Carrying Charge
D22: Summary
D23: Assumptions for Computing Carrying Charge Rates
D24: Construction Analyisis - Monthly Periods with S-Curve and Allocate the Total Construction Cost
D25: Replacement and Decommissioning -- Costs that are Spread over the Operating Project Life by Moving to Current Values
D26: Tax Depreciation Shield - Compute from the Capital Cost Including IDC and Spread the Benefit over the Entire Operating Period
D27: Computation of Level Payment in Real Terms
D28: Real Payment and First Year Carrying Charge -- EBITDA/Intital Investment
D29: Project Finance Analysis to Prove that the Carrying Charge Rate Really Produces Prices that Result in Target Return and Target Capital Structure
D30: Debt Schedule for Project Finance Model with Repayment Designed to Keep Constant Capital Structure
D31: Financial Statements
D32: Financial Ratios
D33: Graphs
C35: Carrying Charge Analysis
D36: Debt financing
C38: Solar Variation
C41: Performance Ratio
C43: Wind Gross and Net
C46: P Values
C48: Power Curve
C50: Chart1

Sheet LCOE Summary
D2: Code Number | E2: 9
F4: 1 | G4: 2 | H4: 3 | I4: 4 | J4: 5 | K4: 6 | L4: 7 | M4: 8 | N4: 9 | O4: 10 | P4: 11 | Q4: 12 | R4: 13 | S4: codes
D5: =INDEX(F5:Q5,$E$2) -> Battery Back-Up | F5: Solar Power in Nepal | G5: Solar Power in Saudi with tracking | H5: Solar Power in Saudi | I5: Offshore wind in Amalia | J5: Offshore wind NEW | K5: Onshore wind in Scotland | L5: Onshore wind in US | M5: Rooftop in Nepal | N5: Battery Back-Up | O5: Rooftop in Nepal with batteries | P5: Nuclear Plant | Q5: Natural gas plant | R5: Diesel Plant
A6: Fixed Costs
B7: Cost per kW | C7: USD/kW | D7: =INDEX(F7:QQ7,$E$2) -> 0 | F7: 700 | G7: 700 | H7: 600 | I7: 5000 | J7: 3000 | K7: 1500 | L7: 2000 | M7: 700 | P7: 6000 | Q7: 800 | R7: 800
B8: Shorage Hours | C8: hrs | N8: 4
B9: Base Battery Cost | C9: USD/kWh | N9: 80
B10: Adder for DOD | C10: % | N10: 0.1
B11: Cost per kWh | C11: USD/kWh | N11: =N9*(1+N10) -> 88
B12: Total Cost | C12: USD/kW | D12: =INDEX(F12:QQ12,$E$2) -> 352 | F12: =F7 -> 700 | G12: =G7 -> 700 | H12: 600 | I12: 5000 | J12: 3000 | K12: 1500 | L12: 2000 | M12: 700 | N12: =N8*N11 -> 352 | P12: =P7 -> 6000 | Q12: 800 | R12: 900
B13: CCR (One time to Annual) | C13: % | D13: ='Carrying Charge'!F2 -> 0.0742803692 | F13: 0.09427529397 | G13: 0.05105561689 | H13: 0.05098189895 | I13: 0.04381545837 | J13: 0.04381545837 | K13: 0.04855131384 | L13: 0.04855131384 | M13: 0.05839165443 | N13: =ccr_computed -> 0.0742803692 | O13: 0 | P13: 0.03190978893 | Q13: 0.04855131384 | R13: 0 | S13: ccr
B14: Capital Cost per kWy | C14: USD/kWy | D14: =INDEX(F14:Q14,$E$2) -> 26.14668996 | F14: =F12*F13 -> 65.99270578 | G14: =G12*G13 -> 35.73893182 | H14: 30.58913937 | I14: 219.0772918 | J14: 131.4463751 | K14: 72.82697076 | L14: 97.10262769 | M14: 40.8741581 | N14: 26.14668996 | O14: =M14+N14 -> 67.02084806 | P14: 191.4587336 | Q14: 38.84105107 | R14: 0
B16: Capacity Factor | C16: % | D16: -0.1 | F16: 0.18 | G16: 0.24 | H16: 0.22 | I16: 0.45 | J16: 0.55 | K16: 0.4 | L16: 0.5 | M16: 0.22 | N16: -0.1 | O16: =M16*(1+N16) -> 0.198 | P16: 0.85 | Q16: 0.8 | R16: 0.8
B18: Capital Cost per MWH | C18: USD/MWh | D18: 0 | F18: =F14*1000/(8760*F16) -> 41.85229945 | G18: =G14*1000/(8760*G16) -> 16.99911141 | H18: 15.87232221 | I18: 55.57516282 | J18: 27.28235266 | K18: 20.78395284 | L18: 22.1695497 | M18: 21.20908992 | O18: 38.64031183 | P18: 25.71296449 | Q18: 5.542387425 | R18: =R14*1000/(8760*R16) -> 0
B19: O&M per kWy | C19: USD/kWy | D19: 0.5 | F19: 12 | G19: 6 | H19: 7 | I19: 150 | J19: 80 | K19: 35 | L19: 85 | M19: 7 | N19: 0.5 | O19: =M19+N19*N8 -> 9 | P19: 100 | Q19: 15 | R19: 15
B20: O&M per MWh | C20: USD/MWh | D20: 0 | F20: =(F19*1000)/(8760*F16) -> 7.610350076 | G20: 2.853881279 | H20: 3.632212536 | I20: 38.05175038 | J20: 16.60440017 | K20: 9.988584475 | L20: =(L19*1000)/(8760*L16) -> 19.40639269 | M20: 3.632212536 | O20: =O19*1000/(8760*O16) -> 5.188875052 | P20: 13.43002955 | Q20: 2.140410959 | R20: 2.140410959
B21: LCOE per MWh Before Fuel | C21: USD/MWh | D21: 0 | F21: =F18+F20 -> 49.46264953 | G21: =G18+G20 -> 19.85299268 | H21: =H18+H20 -> 19.50453475 | I21: =I20+I18 -> 93.6269132 | J21: =J20+J18 -> 43.88675282 | K21: =K20+K18 -> 30.77253732 | L21: =L20+L18 -> 41.57594239 | M21: 24.84130246 | N21: 0 | O21: 43.82918688 | P21: 39.14299404 | Q21: 7.682798384 | R21: 2.140410959
A23: Variable Costs
B24: Fuel price | C24: USD/mmbtu | D24: =INDEX(F24:Q24,$E$2) -> 0 | P24: 10 | Q24: 8 | R24: 18
B25: Efficiency | C25: mmbtu/MWh | D25: =INDEX(F25:Q25,$E$2) -> 0 | P25: 1 | Q25: 6.7 | R25: 10
B26: Fuel cost | C26: USD/MWh | D26: 0 | P26: =P24*P25 -> 10 | Q26: =Q24*Q25 -> 53.6 | R26: =R24*R25 -> 180
B27: Variable cost | C27: USD/MWh | D27: 0 | P27: 10 | Q27: 7 | R27: 5
B28: Total Variable Cost | C28: USD/MWh | Q28: =Q26+Q27 -> 60.6 | R28: =R26+R27 -> 185
B29: Total LCOE | C29: USD/MWh | D29: 0 | F29: =F21 -> 49.46264953 | G29: 19.85299268 | H29: 19.50453475 | I29: 93.6269132 | J29: 43.88675282 | K29: 30.77253732 | L29: 41.57594239 | M29: 24.84130246 | O29: 43.82918688 | P29: 39.14299404 | Q29: =Q21+Q28 -> 68.28279838 | R29: =R21+R28 -> 187.140411
A32: Carrying Charge Rate Inputs
B33: Plant Life | D33: =INDEX(F33:Q33,$E$2) -> 20 | F33: 25 | G33: 30 | H33: 30 | I33: 35 | J33: 35 | K33: 30 | L33: 30 | M33: 30 | N33: 20 | P33: 60 | Q33: 30 | R33: 20
B34: Construction Period | D34: 1 | F34: 1 | G34: 7 | H34: 6 | I34: 30 | J34: 30 | K34: 18 | L34: 18 | M34: 5 | N34: 1 | P34: 70 | Q34: 18 | R34: 18
B35: Equity Target IRR | D35: 0.08 | F35: 0.1 | G35: 0.08 | H35: 0.08 | I35: 0.08 | J35: 0.08 | K35: 0.08 | L35: 0.08 | M35: 0.08 | N35: 0.08 | O35: 0.08 | P35: 0.08 | Q35: 0.08 | R35: 0.08
B36: Base Interest Rate | D36: 0.0225 | F36: 0 | G36: 0.0225 | H36: 0.0225 | I36: 0.0225 | J36: 0.0225 | K36: 0.0225 | L36: 0.0225 | M36: 0.0225 | N36: 0.0225 | O36: 0.0225 | P36: 0.0225 | Q36: 0.0225 | R36: 0.0225
B37: Credit Spread | D37: 0.014 | F37: 0 | G37: 0.014 | H37: 0.014 | I37: 0.014 | J37: 0.014 | K37: 0.014 | L37: 0.014 | M37: 0.014 | N37: 0.014 | O37: 0.014 | P37: 0.014 | Q37: 0.014 | R37: 0.014
B38: Inflation Rate | D38: =INDEX(F38:Q38,$E$2) -> 0.02 | F38: 0.02 | G38: 0.02 | H38: 0.02 | I38: 0.02 | J38: 0.02 | K38: 0.02 | L38: 0.02 | M38: 0.02 | N38: 0.02 | O38: 0.02 | P38: 0.02 | Q38: 0.02 | R38: 0.02
B39: Degradation Rate | D39: 0.01 | F39: 0 | G39: 0.005 | H39: 0.005 | I39: 0 | J39: 0 | K39: 0 | L39: 0 | M39: 0.005 | N39: 0.01 | O39: 0.005 | P39: 0 | Q39: 0 | R39: 0
B40: Debt Percent | D40: 0.85 | F40: 0 | G40: 0.85 | H40: 0.85 | I40: 0.85 | J40: 0.85 | K40: 0.85 | L40: 0.85 | M40: 0.85 | N40: 0.85 | O40: 0.85 | P40: 0.85 | Q40: 0.85 | R40: 0.85
B41: Tax Rate | D41: 0.25 | F41: 0 | G41: 0.25 | H41: 0.25 | I41: 0.25 | J41: 0.25 | K41: 0.25 | L41: 0.25 | M41: 0.25 | N41: 0.25 | O41: 0.25 | P41: 0.25 | Q41: 0.25 | R41: 0.25
B42: Tax Life | D42: 8 | F42: 25 | G42: 25 | H42: 35 | I42: 35 | J42: 35 | K42: 30 | L42: 30 | M42: 25 | N42: 8 | P42: 60 | Q42: 30 | R42: 30
D44: =PMT(D45,D33,-1) -> 0.09755598102 | F44: =PMT(F35,F33,-1) -> 0.1101680722
D45: =ccr_computed -> 0.0742803692
A47: Titles
B48: =TRANSPOSE(F5:Q5) -> Solar Power in Nepal
B49: Solar Power in Saudi with tracking
B50: Solar Power in Saudi
B51: Offshore wind in Amalia
B52: Offshore wind NEW
B53: Onshore wind in Scotland
B54: Onshore wind in US
B55: Rooftop in Nepal
B56: Battery Back-Up
B57: Rooftop in Nepal with batteries
B58: Nuclear Plant
B59: Natural gas plant

Sheet Carrying Charge
A2: Summary | E2: Carrying Charge | F2: ='Carrying Charge'!F163 -> 0.0742803692 | G2: IRR | H2: =E151 -> 0.03524870574 | I2: WACC | J2: =M56 -> 0.03526875 | K2: Equity IRR | L2: =F261 -> 0.07995266616 | M2: Equity Cost | N2: =F26 -> 0.08
B4: Period (Long Enough for Nuclear Plant) | H4: 0 | I4: =H4+1 -> 1 | J4: =I4+1 -> 2 | K4: 3 | L4: 4 | M4: 5 | N4: 6 | O4: 7 | P4: 8 | Q4: 9 | R4: 10 | S4: 11 | T4: 12 | U4: 13 | V4: 14 | W4: 15 | X4: 16 | Y4: 17 | Z4: 18 | AA4: 19 | AB4: 20 | AC4: 21 | AD4: 22 | AE4: 23 | AF4: 24 | AG4: 25 | AH4: 26 | AI4: 27 | AJ4: 28 | AK4: 29 | AL4: 30 | AM4: 31 | AN4: 32 | AO4: 33 | AP4: 34 | AQ4: 35 | AR4: 36 | AS4: 37 | AT4: 38 | AU4: 39 | AV4: 40 | AW4: 41 | AX4: 42 | AY4: 43 | AZ4: 44 | BA4: 45 | BB4: 46 | BC4: 47 | BD4: 48 | BE4: 49 | BF4: 50 | BG4: 51 | BH4: 52 | BI4: 53 | BJ4: 54 | BK4: 55 | BL4: 56 | BM4: 57 | BN4: 58 | BO4: 59 | BP4: 60 | BQ4: 61 | BR4: 62 | BS4: 63 | BT4: 64 | BU4: 65 | BV4: =BU4+1 -> 66 | BW4: 67 | BX4: 68 | BY4: 69 | BZ4: 70 | CA4: 71 | CB4: 72 | CC4: 73 | CD4: 74 | CE4: 75 | CF4: 76 | CG4: 77 | CH4: 78 | CI4: 79 | CJ4: 80 | CK4: 81 | CL4: 82 | CM4: 83 | CN4: 84 | CO4: 85 | CP4: 86 | CQ4: 87 | CR4: 88 | CS4: 89 | CT4: 90 | CU4: 91 | CV4: 92 | CW4: 93 | CX4: 94 | CY4: 95 | CZ4: 96 | DA4: 97 | DB4: 98 | DC4: 99 | DD4: 100 | DE4: 101 | DF4: 102 | DG4: 103 | DH4: 104 | DI4: 105 | DJ4: 106 | DK4: 107 | DL4: 108 | DM4: 109 | DN4: 110 | DO4: 111 | DP4: 112 | DQ4: 113 | DR4: 114 | DS4: 115 | DT4: 116 | DU4: 117 | DV4: 118 | DW4: 119 | DX4: 120 | DY4: 121 | DZ4: 122 | EA4: 123 | EB4: 124 | EC4: 125 | ED4: 126 | EE4: 127 | EF4: 128 | EG4: 129 | EH4: =EG4+1 -> 130 | EI4: 131 | EJ4: 132 | EK4: 133 | EL4: 134 | EM4: 135 | EN4: 136 | EO4: 137 | EP4: 138 | EQ4: 139 | ER4: 140 | ES4: 141 | ET4: 142 | EU4: 143 | EV4: 144 | EW4: 145 | EX4: 146 | EY4: 147 | EZ4: 148 | FA4: 149 | FB4: 150 | FC4: 151 | FD4: 152 | FE4: 153 | FF4: 154 | FG4: 155 | FH4: 156 | FI4: 157 | FJ4: 158 | FK4: 159 | FL4: 160 | FM4: 161 | FN4: 162 | FO4: 163 | FP4: 164 | FQ4: 165 | FR4: 166 | FS4: 167 | FT4: 168 | FU4: 169 | FV4: 170 | FW4: 171 | FX4: 172 | FY4: 173 | FZ4: 174 | GA4: 175 | GB4: 176 | GC4: 177 | GD4: 178 | GE4: 179 | GF4: 180 | GG4: 181 | GH4: 182 | GI4: 183 | GJ4: 184 | GK4: 185 | GL4: 186 | GM4: 187 | GN4: 188 | GO4: 189 | GP4: 190 | GQ4: 191 | GR4: 192 | GS4: 193 | GT4: =GS4+1 -> 194 | GU4: 195 | GV4: 196 | GW4: 197 | GX4: 198 | GY4: 199 | GZ4: 200 | HA4: 201 | HB4: 202 | HC4: 203 | HD4: 204 | HE4: 205 | HF4: 206 | HG4: 207 | HH4: 208 | HI4: 209 | HJ4: 210 | HK4: 211 | HL4: 212 | HM4: 213 | HN4: 214 | HO4: 215 | HP4: 216 | HQ4: 217 | HR4: 218 | HS4: 219 | HT4: 220 | HU4: 221 | HV4: 222 | HW4: 223 | HX4: 224 | HY4: 225 | HZ4: 226 | IA4: 227 | IB4: 228 | IC4: 229 | ID4: 230 | IE4: 231 | IF4: 232 | IG4: 233 | IH4: 234 | II4: 235 | IJ4: 236 | IK4: 237 | IL4: 238 | IM4: 239 | IN4: 240 | IO4: 241 | IP4: 242 | IQ4: 243 | IR4: 244 | IS4: 245 | IT4: 246 | IU4: 247 | IV4: 248 | IW4: 249 | IX4: 250 | IY4: 251 | IZ4: 252 | JA4: 253 | JB4: 254 | JC4: 255 | JD4: 256 | JE4: 257 | JF4: =JE4+1 -> 258 | JG4: 259 | JH4: 260 | JI4: 261 | JJ4: 262 | JK4: 263 | JL4: 264 | JM4: 265 | JN4: 266 | JO4: 267 | JP4: 268 | JQ4: 269 | JR4: 270 | JS4: 271 | JT4: 272 | JU4: 273 | JV4: 274 | JW4: 275 | JX4: 276 | JY4: 277 | JZ4: 278 | KA4: 279 | KB4: 280 | KC4: 281 | KD4: 282 | KE4: 283 | KF4: 284 | KG4: 285 | KH4: 286 | KI4: 287 | KJ4: 288 | KK4: 289 | KL4: 290 | KM4: 291 | KN4: 292 | KO4: 293 | KP4: 294 | KQ4: 295 | KR4: 296 | KS4: 297 | KT4: 298 | KU4: 299 | KV4: 300 | KW4: 301 | KX4: 302 | KY4: 303 | KZ4: 304 | LA4: 305 | LB4: 306 | LC4: 307 | LD4: 308 | LE4: 309 | LF4: 310 | LG4: 311 | LH4: 312 | LI4: 313 | LJ4: 314 | LK4: 315 | LL4: 316 | LM4: 317 | LN4: 318 | LO4: 319 | LP4: 320 | LQ4: 321 | LR4: =LQ4+1 -> 322 | LS4: 323 | LT4: 324 | LU4: 325 | LV4: 326 | LW4: 327 | LX4: 328 | LY4: 329 | LZ4: 330 | MA4: 331 | MB4: 332 | MC4: 333 | MD4: 334 | ME4: 335 | MF4: 336 | MG4: 337 | MH4: 338 | MI4: 339 | MJ4: 340 | MK4: 341 | ML4: 342 | MM4: 343 | MN4: 344 | MO4: 345 | MP4: 346 | MQ4: 347 | MR4: 348 | MS4: 349 | MT4: 350 | MU4: 351 | MV4: 352 | MW4: 353 | MX4: 354 | MY4: 355 | MZ4: 356 | NA4: 357 | NB4: 358 | NC4: 359 | ND4: 360 | NE4: 361 | NF4: 362 | NG4: 363 | NH4: 364 | NI4: 365 | NJ4: 366 | NK4: 367 | NL4: 368 | NM4: 369 | NN4: 370 | NO4: 371 | NP4: 372 | NQ4: 373 | NR4: 374 | NS4: 375 | NT4: 376 | NU4: 377 | NV4: 378 | NW4: 379 | NX4: 380 | NY4: 381 | NZ4: 382 | OA4: 383 | OB4: 384 | OC4: 385 | OD4: =OC4+1 -> 386 | OE4: 387 | OF4: 388 | OG4: 389 | OH4: 390 | OI4: 391 | OJ4: 392 | OK4: 393 | OL4: 394 | OM4: 395 | ON4: 396 | OO4: 397 | OP4: 398 | OQ4: 399 | OR4: 400 | OS4: 401 | OT4: 402 | OU4: 403 | OV4: 404 | OW4: 405 | OX4: 406 | OY4: 407 | OZ4: 408 | PA4: 409 | PB4: 410 | PC4: 411 | PD4: 412 | PE4: 413 | PF4: 414 | PG4: 415 | PH4: 416 | PI4: 417 | PJ4: 418 | PK4: 419 | PL4: 420 | PM4: 421 | PN4: 422 | PO4: 423 | PP4: 424 | PQ4: 425 | PR4: 426 | PS4: 427 | PT4: 428 | PU4: 429 | PV4: 430 | PW4: 431 | PX4: 432 | PY4: 433 | PZ4: 434 | QA4: 435 | QB4: 436 | QC4: 437 | QD4: 438 | QE4: 439 | QF4: 440 | QG4: 441 | QH4: 442 | QI4: 443 | QJ4: 444 | QK4: 445 | QL4: 446 | QM4: 447 | QN4: 448 | QO4: 449 | QP4: =QO4+1 -> 450 | QQ4: 451 | QR4: 452 | QS4: 453 | QT4: 454 | QU4: 455 | QV4: 456 | QW4: 457 | QX4: 458 | QY4: 459 | QZ4: 460 | RA4: 461 | RB4: 462 | RC4: 463 | RD4: 464 | RE4: 465 | RF4: 466 | RG4: 467 | RH4: 468 | RI4: 469 | RJ4: 470 | RK4: 471 | RL4: 472 | RM4: 473 | RN4: 474 | RO4: 475 | RP4: 476 | RQ4: 477 | RR4: 478 | RS4: 479 | RT4: 480 | RU4: 481 | RV4: 482 | RW4: 483 | RX4: 484 | RY4: 485 | RZ4: 486 | SA4: 487 | SB4: 488 | SC4: 489 | SD4: 490 | SE4: 491 | SF4: 492 | SG4: 493 | SH4: 494 | SI4: 495 | SJ4: 496 | SK4: 497 | SL4: 498 | SM4: 499 | SN4: 500 | SO4: 501 | SP4: 502 | SQ4: 503 | SR4: 504 | SS4: 505 | ST4: 506 | SU4: 507 | SV4: 508 | SW4: 509 | SX4: 510 | SY4: 511 | SZ4: 512 | TA4: 513 | TB4: =TA4+1 -> 514 | TC4: 515 | TD4: 516 | TE4: 517 | TF4: 518 | TG4: 519 | TH4: 520 | TI4: 521 | TJ4: 522 | TK4: 523 | TL4: 524 | TM4: 525 | TN4: 526 | TO4: 527 | TP4: 528 | TQ4: 529 | TR4: 530 | TS4: 531 | TT4: 532 | TU4: 533 | TV4: 534 | TW4: 535 | TX4: 536 | TY4: 537 | TZ4: 538 | UA4: 539 | UB4: 540 | UC4: 541 | UD4: 542 | UE4: 543 | UF4: 544 | UG4: 545 | UH4: 546 | UI4: 547 | UJ4: 548 | UK4: 549 | UL4: 550 | UM4: 551 | UN4: 552 | UO4: 553 | UP4: 554 | UQ4: 555 | UR4: 556 | US4: =UR4+1 -> 557 | UT4: =US4+1 -> 558 | UU4: =UT4+1 -> 559 | UV4: =UU4+1 -> 560 | UW4: 561 | UX4: 562 | UY4: 563 | UZ4: 564 | VA4: 565 | VB4: 566 | VC4: 567 | VD4: 568 | VE4: 569 | VF4: 570 | VG4: 571 | VH4: 572 | VI4: 573 | VJ4: 574 | VK4: 575 | VL4: 576 | VM4: 577 | VN4: 578 | VO4: 579 | VP4: 580 | VQ4: 581 | VR4: 582 | VS4: 583 | VT4: 584 | VU4: 585 | VV4: 586 | VW4: 587 | VX4: 588 | VY4: 589 | VZ4: 590 | WA4: 591 | WB4: 592 | WC4: 593 | WD4: 594 | WE4: 595 | WF4: 596 | WG4: 597 | WH4: 598 | WI4: 599 | WJ4: 600 | WK4: 601 | WL4: 602 | WM4: 603 | WN4: 604 | WO4: 605 | WP4: 606 | WQ4: 607 | WR4: 608 | WS4: 609 | WT4: 610 | WU4: 611 | WV4: 612 | WW4: 613 | WX4: 614 | WY4: 615 | WZ4: 616 | XA4: 617 | XB4: 618 | XC4: 619 | XD4: 620 | XE4: 621 | XF4: 622 | XG4: 623 | XH4: =XG4+1 -> 624 | XI4: 625 | XJ4: 626 | XK4: 627 | XL4: 628 | XM4: 629 | XN4: 630 | XO4: 631 | XP4: 632 | XQ4: 633 | XR4: 634 | XS4: 635 | XT4: 636 | XU4: 637 | XV4: 638 | XW4: 639 | XX4: 640 | XY4: 641 | XZ4: 642 | YA4: 643 | YB4: 644 | YC4: 645 | YD4: 646 | YE4: 647 | YF4: 648 | YG4: 649 | YH4: 650 | YI4: 651 | YJ4: 652 | YK4: 653 | YL4: 654 | YM4: 655 | YN4: 656 | YO4: 657 | YP4: 658 | YQ4: 659 | YR4: 660 | YS4: 661 | YT4: 662 | YU4: 663 | YV4: 664 | YW4: 665 | YX4: 666 | YY4: 667 | YZ4: 668 | ZA4: 669 | ZB4: 670 | ZC4: 671 | ZD4: 672 | ZE4: 673 | ZF4: 674 | ZG4: 675 | ZH4: 676 | ZI4: 677 | ZJ4: 678 | ZK4: 679 | ZL4: 680 | ZM4: 681 | ZN4: 682 | ZO4: 683 | ZP4: 684 | ZQ4: 685 | ZR4: 686 | ZS4: 687 | ZT4: =ZS4+1 -> 688 | ZU4: =ZT4+1 -> 689 | ZV4: =ZU4+1 -> 690 | ZW4: =ZV4+1 -> 691 | ZX4: =ZW4+1 -> 692 | ZY4: 693 | ZZ4: 694 | AAA4: 695 | AAB4: 696 | AAC4: 697 | AAD4: 698 | AAE4: 699 | AAF4: 700 | AAG4: 701 | AAH4: 702 | AAI4: 703 | AAJ4: 704 | AAK4: 705 | AAL4: 706 | AAM4: 707 | AAN4: 708 | AAO4: 709 | AAP4: 710 | AAQ4: 711 | AAR4: 712 | AAS4: 713 | AAT4: 714 | AAU4: 715 | AAV4: 716 | AAW4: 717 | AAX4: 718 | AAY4: 719 | AAZ4: 720 | ABA4: 721 | ABB4: 722 | ABC4: 723 | ABD4: 724 | ABE4: 725 | ABF4: 726 | ABG4: 727 | ABH4: 728 | ABI4: 729 | ABJ4: 730 | ABK4: 731 | ABL4: 732 | ABM4: 733 | ABN4: 734 | ABO4: 735 | ABP4: 736 | ABQ4: 737 | ABR4: 738 | ABS4: 739 | ABT4: 740 | ABU4: 741 | ABV4: 742 | ABW4: 743 | ABX4: 744 | ABY4: 745 | ABZ4: 746 | ACA4: 747 | ACB4: 748 | ACC4: 749 | ACD4: 750 | ACE4: 751 | ACF4: 752 | ACG4: 753 | ACH4: 754 | ACI4: 755 | ACJ4: =ACI4+1 -> 756 | ACK4: 757 | ACL4: 758 | ACM4: 759 | ACN4: 760 | ACO4: 761 | ACP4: 762 | ACQ4: 763 | ACR4: 764 | ACS4: 765 | ACT4: 766 | ACU4: 767 | ACV4: 768 | ACW4: 769 | ACX4: 770 | ACY4: 771 | ACZ4: 772 | ADA4: 773 | ADB4: 774 | ADC4: 775 | ADD4: 776 | ADE4: 777 | ADF4: 778 | ADG4: 779 | ADH4: 780 | ADI4: 781 | ADJ4: 782 | ADK4: 783 | ADL4: 784 | ADM4: 785 | ADN4: 786 | ADO4: 787 | ADP4: 788 | ADQ4: 789 | ADR4: 790 | ADS4: 791 | ADT4: 792 | ADU4: 793 | ADV4: 794 | ADW4: 795 | ADX4: 796 | ADY4: 797 | ADZ4: 798 | AEA4: 799 | AEB4: 800 | AEC4: 801 | AED4: 802 | AEE4: 803 | AEF4: 804 | AEG4: 805 | AEH4: 806 | AEI4: 807 | AEJ4: 808 | AEK4: 809 | AEL4: 810 | AEM4: 811 | AEN4: 812 | AEO4: 813 | AEP4: 814 | AEQ4: 815 | AER4: 816 | AES4: 817 | AET4: 818 | AEU4: 819 | AEV4: =AEU4+1 -> 820 | AEW4: 821 | AEX4: 822 | AEY4: 823 | AEZ4: 824 | AFA4: 825 | AFB4: 826 | AFC4: 827 | AFD4: 828 | AFE4: 829 | AFF4: 830 | AFG4: 831 | AFH4: 832 | AFI4: 833 | AFJ4: 834 | AFK4: 835 | AFL4: 836 | AFM4: 837 | AFN4: 838 | AFO4: 839 | AFP4: 840 | AFQ4: 841 | AFR4: 842 | AFS4: 843 | AFT4: 844 | AFU4: 845 | AFV4: 846 | AFW4: 847 | AFX4: 848 | AFY4: 849 | AFZ4: 850 | AGA4: 851 | AGB4: 852 | AGC4: 853 | AGD4: 854 | AGE4: 855 | AGF4: 856 | AGG4: 857 | AGH4: 858 | AGI4: 859 | AGJ4: 860 | AGK4: 861
B5: Construction Period | E5: ='Carrying Charge'!F34 -> 1 | I5: =I4<=$E$5 -> TRUE | J5: FALSE | K5: FALSE | L5: FALSE | M5: FALSE | N5: FALSE | O5: FALSE | P5: FALSE | Q5: FALSE | R5: FALSE | S5: FALSE | T5: FALSE | U5: FALSE | V5: FALSE | W5: FALSE | X5: FALSE | Y5: FALSE | Z5: FALSE | AA5: FALSE | AB5: FALSE | AC5: FALSE | AD5: FALSE | AE5: FALSE | AF5: FALSE | AG5: FALSE | AH5: FALSE | AI5: FALSE | AJ5: FALSE | AK5: FALSE | AL5: FALSE | AM5: FALSE | AN5: FALSE | AO5: FALSE | AP5: FALSE | AQ5: FALSE | AR5: FALSE | AS5: FALSE | AT5: FALSE | AU5: FALSE | AV5: FALSE | AW5: FALSE | AX5: FALSE | AY5: FALSE | AZ5: FALSE | BA5: FALSE | BB5: FALSE | BC5: FALSE | BD5: FALSE | BE5: FALSE | BF5: FALSE | BG5: FALSE | BH5: FALSE | BI5: FALSE | BJ5: FALSE | BK5: FALSE | BL5: FALSE | BM5: FALSE | BN5: FALSE | BO5: FALSE | BP5: FALSE | BQ5: FALSE | BR5: FALSE | BS5: FALSE | BT5: FALSE | BU5: =BU4<=$E$5 -> FALSE | BV5: FALSE | BW5: FALSE | BX5: FALSE | BY5: FALSE | BZ5: FALSE | CA5: FALSE | CB5: FALSE | CC5: FALSE | CD5: FALSE | CE5: FALSE | CF5: FALSE | CG5: FALSE | CH5: FALSE | CI5: FALSE | CJ5: FALSE | CK5: FALSE | CL5: FALSE | CM5: FALSE | CN5: FALSE | CO5: FALSE | CP5: FALSE | CQ5: FALSE | CR5: FALSE | CS5: FALSE | CT5: FALSE | CU5: FALSE | CV5: FALSE | CW5: FALSE | CX5: FALSE | CY5: FALSE | CZ5: FALSE | DA5: FALSE | DB5: FALSE | DC5: FALSE | DD5: FALSE | DE5: FALSE | DF5: FALSE | DG5: FALSE | DH5: FALSE | DI5: FALSE | DJ5: FALSE | DK5: FALSE | DL5: FALSE | DM5: FALSE | DN5: FALSE | DO5: FALSE | DP5: FALSE | DQ5: FALSE | DR5: FALSE | DS5: FALSE | DT5: FALSE | DU5: FALSE | DV5: FALSE | DW5: FALSE | DX5: FALSE | DY5: FALSE | DZ5: FALSE | EA5: FALSE | EB5: FALSE | EC5: FALSE | ED5: FALSE | EE5: FALSE | EF5: FALSE | EG5: =EG4<=$E$5 -> FALSE | EH5: FALSE | EI5: FALSE | EJ5: FALSE | EK5: FALSE | EL5: FALSE | EM5: FALSE | EN5: FALSE | EO5: FALSE | EP5: FALSE | EQ5: FALSE | ER5: FALSE | ES5: FALSE | ET5: FALSE | EU5: FALSE | EV5: FALSE | EW5: FALSE | EX5: FALSE | EY5: FALSE | EZ5: FALSE | FA5: FALSE | FB5: FALSE | FC5: FALSE | FD5: FALSE | FE5: FALSE | FF5: FALSE | FG5: FALSE | FH5: FALSE | FI5: FALSE | FJ5: FALSE | FK5: FALSE | FL5: FALSE | FM5: FALSE | FN5: FALSE | FO5: FALSE | FP5: FALSE | FQ5: FALSE | FR5: FALSE | FS5: FALSE | FT5: FALSE | FU5: FALSE | FV5: FALSE | FW5: FALSE | FX5: FALSE | FY5: FALSE | FZ5: FALSE | GA5: FALSE | GB5: FALSE | GC5: FALSE | GD5: FALSE | GE5: FALSE | GF5: FALSE | GG5: FALSE | GH5: FALSE | GI5: FALSE | GJ5: FALSE | GK5: FALSE | GL5: FALSE | GM5: FALSE | GN5: FALSE | GO5: FALSE | GP5: FALSE | GQ5: FALSE | GR5: FALSE | GS5: =GS4<=$E$5 -> FALSE | GT5: FALSE | GU5: FALSE | GV5: FALSE | GW5: FALSE | GX5: FALSE | GY5: FALSE | GZ5: FALSE | HA5: FALSE | HB5: FALSE | HC5: FALSE | HD5: FALSE | HE5: FALSE | HF5: FALSE | HG5: FALSE | HH5: FALSE | HI5: FALSE | HJ5: FALSE | HK5: FALSE | HL5: FALSE | HM5: FALSE | HN5: FALSE | HO5: FALSE | HP5: FALSE | HQ5: FALSE | HR5: FALSE | HS5: FALSE | HT5: FALSE | HU5: FALSE | HV5: FALSE | HW5: FALSE | HX5: FALSE | HY5: FALSE | HZ5: FALSE | IA5: FALSE | IB5: FALSE | IC5: FALSE | ID5: FALSE | IE5: FALSE | IF5: FALSE | IG5: FALSE | IH5: FALSE | II5: FALSE | IJ5: FALSE | IK5: FALSE | IL5: FALSE | IM5: FALSE | IN5: FALSE | IO5: FALSE | IP5: FALSE | IQ5: FALSE | IR5: FALSE | IS5: FALSE | IT5: FALSE | IU5: FALSE | IV5: FALSE | IW5: FALSE | IX5: FALSE | IY5: FALSE | IZ5: FALSE | JA5: FALSE | JB5: FALSE | JC5: FALSE | JD5: FALSE | JE5: =JE4<=$E$5 -> FALSE | JF5: FALSE | JG5: FALSE | JH5: FALSE | JI5: FALSE | JJ5: FALSE | JK5: FALSE | JL5: FALSE | JM5: FALSE | JN5: FALSE | JO5: FALSE | JP5: FALSE | JQ5: FALSE | JR5: FALSE | JS5: FALSE | JT5: FALSE | JU5: FALSE | JV5: FALSE | JW5: FALSE | JX5: FALSE | JY5: FALSE | JZ5: FALSE | KA5: FALSE | KB5: FALSE | KC5: FALSE | KD5: FALSE | KE5: FALSE | KF5: FALSE | KG5: FALSE | KH5: FALSE | KI5: FALSE | KJ5: FALSE | KK5: FALSE | KL5: FALSE | KM5: FALSE | KN5: FALSE | KO5: FALSE | KP5: FALSE | KQ5: FALSE | KR5: FALSE | KS5: FALSE | KT5: FALSE | KU5: FALSE | KV5: FALSE | KW5: FALSE | KX5: FALSE | KY5: FALSE | KZ5: FALSE | LA5: FALSE | LB5: FALSE | LC5: FALSE | LD5: FALSE | LE5: FALSE | LF5: FALSE | LG5: FALSE | LH5: FALSE | LI5: FALSE | LJ5: FALSE | LK5: FALSE | LL5: FALSE | LM5: FALSE | LN5: FALSE | LO5: FALSE | LP5: FALSE | LQ5: =LQ4<=$E$5 -> FALSE | LR5: FALSE | LS5: FALSE | LT5: FALSE | LU5: FALSE | LV5: FALSE | LW5: FALSE | LX5: FALSE | LY5: FALSE | LZ5: FALSE | MA5: FALSE | MB5: FALSE | MC5: FALSE | MD5: FALSE | ME5: FALSE | MF5: FALSE | MG5: FALSE | MH5: FALSE | MI5: FALSE | MJ5: FALSE | MK5: FALSE | ML5: FALSE | MM5: FALSE | MN5: FALSE | MO5: FALSE | MP5: FALSE | MQ5: FALSE | MR5: FALSE | MS5: FALSE | MT5: FALSE | MU5: FALSE | MV5: FALSE | MW5: FALSE | MX5: FALSE | MY5: FALSE | MZ5: FALSE | NA5: FALSE | NB5: FALSE | NC5: FALSE | ND5: FALSE | NE5: FALSE | NF5: FALSE | NG5: FALSE | NH5: FALSE | NI5: FALSE | NJ5: FALSE | NK5: FALSE | NL5: FALSE | NM5: FALSE | NN5: FALSE | NO5: FALSE | NP5: FALSE | NQ5: FALSE | NR5: FALSE | NS5: FALSE | NT5: FALSE | NU5: FALSE | NV5: FALSE | NW5: FALSE | NX5: FALSE | NY5: FALSE | NZ5: FALSE | OA5: FALSE | OB5: FALSE | OC5: =OC4<=$E$5 -> FALSE | OD5: FALSE | OE5: FALSE | OF5: FALSE | OG5: FALSE | OH5: FALSE | OI5: FALSE | OJ5: FALSE | OK5: FALSE | OL5: FALSE | OM5: FALSE | ON5: FALSE | OO5: FALSE | OP5: FALSE | OQ5: FALSE | OR5: FALSE | OS5: FALSE | OT5: FALSE | OU5: FALSE | OV5: FALSE | OW5: FALSE | OX5: FALSE | OY5: FALSE | OZ5: FALSE | PA5: FALSE | PB5: FALSE | PC5: FALSE | PD5: FALSE | PE5: FALSE | PF5: FALSE | PG5: FALSE | PH5: FALSE | PI5: FALSE | PJ5: FALSE | PK5: FALSE | PL5: FALSE | PM5: FALSE | PN5: FALSE | PO5: FALSE | PP5: FALSE | PQ5: FALSE | PR5: FALSE | PS5: FALSE | PT5: FALSE | PU5: FALSE | PV5: FALSE | PW5: FALSE | PX5: FALSE | PY5: FALSE | PZ5: FALSE | QA5: FALSE | QB5: FALSE | QC5: FALSE | QD5: FALSE | QE5: FALSE | QF5: FALSE | QG5: FALSE | QH5: FALSE | QI5: FALSE | QJ5: FALSE | QK5: FALSE | QL5: FALSE | QM5: FALSE | QN5: FALSE | QO5: =QO4<=$E$5 -> FALSE | QP5: FALSE | QQ5: FALSE | QR5: FALSE | QS5: FALSE | QT5: FALSE | QU5: FALSE | QV5: FALSE | QW5: FALSE | QX5: FALSE | QY5: FALSE | QZ5: FALSE | RA5: FALSE | RB5: FALSE | RC5: FALSE | RD5: FALSE | RE5: FALSE | RF5: FALSE | RG5: FALSE | RH5: FALSE | RI5: FALSE | RJ5: FALSE | RK5: FALSE | RL5: FALSE | RM5: FALSE | RN5: FALSE | RO5: FALSE | RP5: FALSE | RQ5: FALSE | RR5: FALSE | RS5: FALSE | RT5: FALSE | RU5: FALSE | RV5: FALSE | RW5: FALSE | RX5: FALSE | RY5: FALSE | RZ5: FALSE | SA5: FALSE | SB5: FALSE | SC5: FALSE | SD5: FALSE | SE5: FALSE | SF5: FALSE | SG5: FALSE | SH5: FALSE | SI5: FALSE | SJ5: FALSE | SK5: FALSE | SL5: FALSE | SM5: FALSE | SN5: FALSE | SO5: FALSE | SP5: FALSE | SQ5: FALSE | SR5: FALSE | SS5: FALSE | ST5: FALSE | SU5: FALSE | SV5: FALSE | SW5: FALSE | SX5: FALSE | SY5: FALSE | SZ5: FALSE | TA5: =TA4<=$E$5 -> FALSE | TB5: FALSE | TC5: FALSE | TD5: FALSE | TE5: FALSE | TF5: FALSE | TG5: FALSE | TH5: FALSE | TI5: FALSE | TJ5: FALSE | TK5: FALSE | TL5: FALSE | TM5: FALSE | TN5: FALSE | TO5: FALSE | TP5: FALSE | TQ5: FALSE | TR5: FALSE | TS5: FALSE | TT5: FALSE | TU5: FALSE | TV5: FALSE | TW5: FALSE | TX5: FALSE | TY5: FALSE | TZ5: FALSE | UA5: FALSE | UB5: FALSE | UC5: FALSE | UD5: FALSE | UE5: FALSE | UF5: FALSE | UG5: FALSE | UH5: FALSE | UI5: FALSE | UJ5: FALSE | UK5: FALSE | UL5: FALSE | UM5: FALSE | UN5: FALSE | UO5: FALSE | UP5: FALSE | UQ5: FALSE | UR5: FALSE | US5: FALSE | UT5: FALSE | UU5: FALSE | UV5: FALSE | UW5: FALSE | UX5: FALSE | UY5: FALSE | UZ5: FALSE | VA5: FALSE | VB5: FALSE | VC5: FALSE | VD5: FALSE | VE5: FALSE | VF5: FALSE | VG5: FALSE | VH5: FALSE | VI5: FALSE | VJ5: FALSE | VK5: FALSE | VL5: FALSE | VM5: =VM4<=$E$5 -> FALSE | VN5: FALSE | VO5: FALSE | VP5: FALSE | VQ5: FALSE | VR5: FALSE | VS5: FALSE | VT5: FALSE | VU5: FALSE | VV5: FALSE | VW5: FALSE | VX5: FALSE | VY5: FALSE | VZ5: FALSE | WA5: FALSE | WB5: FALSE | WC5: FALSE | WD5: FALSE | WE5: FALSE | WF5: FALSE | WG5: FALSE | WH5: FALSE | WI5: FALSE | WJ5: FALSE | WK5: FALSE | WL5: FALSE | WM5: FALSE | WN5: FALSE | WO5: FALSE | WP5: FALSE | WQ5: FALSE | WR5: FALSE | WS5: FALSE | WT5: FALSE | WU5: FALSE | WV5: FALSE | WW5: FALSE | WX5: FALSE | WY5: FALSE | WZ5: FALSE | XA5: FALSE | XB5: FALSE | XC5: FALSE | XD5: FALSE | XE5: FALSE | XF5: FALSE | XG5: FALSE | XH5: FALSE | XI5: FALSE | XJ5: FALSE | XK5: FALSE | XL5: FALSE | XM5: FALSE | XN5: FALSE | XO5: FALSE | XP5: FALSE | XQ5: FALSE | XR5: FALSE | XS5: FALSE | XT5: FALSE | XU5: FALSE | XV5: FALSE | XW5: FALSE | XX5: FALSE | XY5: =XY4<=$E$5 -> FALSE | XZ5: FALSE | YA5: FALSE | YB5: FALSE | YC5: FALSE | YD5: FALSE | YE5: FALSE | YF5: FALSE | YG5: FALSE | YH5: FALSE | YI5: FALSE | YJ5: FALSE | YK5: FALSE | YL5: FALSE | YM5: FALSE | YN5: FALSE | YO5: FALSE | YP5: FALSE | YQ5: FALSE | YR5: FALSE | YS5: FALSE | YT5: FALSE | YU5: FALSE | YV5: FALSE | YW5: FALSE | YX5: FALSE | YY5: FALSE | YZ5: FALSE | ZA5: FALSE | ZB5: FALSE | ZC5: FALSE | ZD5: FALSE | ZE5: FALSE | ZF5: FALSE | ZG5: FALSE | ZH5: FALSE | ZI5: FALSE | ZJ5: FALSE | ZK5: FALSE | ZL5: FALSE | ZM5: FALSE | ZN5: FALSE | ZO5: FALSE | ZP5: FALSE | ZQ5: FALSE | ZR5: FALSE | ZS5: FALSE | ZT5: FALSE | ZU5: FALSE | ZV5: FALSE | ZW5: FALSE | ZX5: FALSE | ZY5: FALSE | ZZ5: FALSE | AAA5: FALSE | AAB5: FALSE | AAC5: FALSE | AAD5: FALSE | AAE5: FALSE | AAF5: FALSE | AAG5: FALSE | AAH5: FALSE | AAI5: FALSE | AAJ5: FALSE | AAK5: =AAK4<=$E$5 -> FALSE | AAL5: FALSE | AAM5: FALSE | AAN5: FALSE | AAO5: FALSE | AAP5: FALSE | AAQ5: FALSE | AAR5: FALSE | AAS5: FALSE | AAT5: FALSE | AAU5: FALSE | AAV5: FALSE | AAW5: FALSE | AAX5: FALSE | AAY5: FALSE | AAZ5: FALSE | ABA5: FALSE | ABB5: FALSE | ABC5: FALSE | ABD5: FALSE | ABE5: FALSE | ABF5: FALSE | ABG5: FALSE | ABH5: FALSE | ABI5: FALSE | ABJ5: FALSE | ABK5: FALSE | ABL5: FALSE | ABM5: FALSE | ABN5: FALSE | ABO5: FALSE | ABP5: FALSE | ABQ5: FALSE | ABR5: FALSE | ABS5: FALSE | ABT5: FALSE | ABU5: FALSE | ABV5: FALSE | ABW5: FALSE | ABX5: FALSE | ABY5: FALSE | ABZ5: FALSE | ACA5: FALSE | ACB5: FALSE | ACC5: FALSE | ACD5: FALSE | ACE5: FALSE | ACF5: FALSE | ACG5: FALSE | ACH5: FALSE | ACI5: FALSE | ACJ5: FALSE | ACK5: FALSE | ACL5: FALSE | ACM5: FALSE | ACN5: FALSE | ACO5: FALSE | ACP5: FALSE | ACQ5: FALSE | ACR5: FALSE | ACS5: FALSE | ACT5: FALSE | ACU5: FALSE | ACV5: FALSE | ACW5: =ACW4<=$E$5 -> FALSE | ACX5: FALSE | ACY5: FALSE | ACZ5: FALSE | ADA5: FALSE | ADB5: FALSE | ADC5: FALSE | ADD5: FALSE | ADE5: FALSE | ADF5: FALSE | ADG5: FALSE | ADH5: FALSE | ADI5: FALSE | ADJ5: FALSE | ADK5: FALSE | ADL5: FALSE | ADM5: FALSE | ADN5: FALSE | ADO5: FALSE | ADP5: FALSE | ADQ5: FALSE | ADR5: FALSE | ADS5: FALSE | ADT5: FALSE | ADU5: FALSE | ADV5: FALSE | ADW5: FALSE | ADX5: FALSE | ADY5: FALSE | ADZ5: FALSE | AEA5: FALSE | AEB5: FALSE | AEC5: FALSE | AED5: FALSE | AEE5: FALSE | AEF5: FALSE | AEG5: FALSE | AEH5: FALSE | AEI5: FALSE | AEJ5: FALSE | AEK5: FALSE | AEL5: FALSE | AEM5: FALSE | AEN5: FALSE | AEO5: FALSE | AEP5: FALSE | AEQ5: FALSE | AER5: FALSE | AES5: FALSE | AET5: FALSE | AEU5: FALSE | AEV5: FALSE | AEW5: FALSE | AEX5: FALSE | AEY5: FALSE | AEZ5: FALSE | AFA5: FALSE | AFB5: FALSE | AFC5: FALSE | AFD5: FALSE | AFE5: FALSE | AFF5: FALSE | AFG5: FALSE | AFH5: FALSE | AFI5: =AFI4<=$E$5 -> FALSE | AFJ5: FALSE | AFK5: FALSE | AFL5: FALSE | AFM5: FALSE | AFN5: FALSE | AFO5: FALSE | AFP5: FALSE | AFQ5: FALSE | AFR5: FALSE | AFS5: FALSE | AFT5: FALSE | AFU5: FALSE | AFV5: FALSE | AFW5: FALSE | AFX5: FALSE | AFY5: FALSE | AFZ5: FALSE | AGA5: FALSE | AGB5: FALSE | AGC5: FALSE | AGD5: FALSE | AGE5: FALSE | AGF5: FALSE | AGG5: FALSE | AGH5: FALSE | AGI5: FALSE | AGJ5: FALSE | AGK5: FALSE
B6: Months per Period/Construction and Operation | E6: ='Carrying Charge'!F15 -> 1 | F6: ='Carrying Charge'!F16 -> 12 | H6: 1 | I6: =IF(I5,$E$6,$F$6) -> 1 | J6: 12 | K6: 12 | L6: 12 | M6: 12 | N6: 12 | O6: 12 | P6: 12 | Q6: 12 | R6: 12 | S6: 12 | T6: 12 | U6: 12 | V6: 12 | W6: 12 | X6: 12 | Y6: 12 | Z6: 12 | AA6: 12 | AB6: 12 | AC6: 12 | AD6: 12 | AE6: 12 | AF6: 12 | AG6: 12 | AH6: 12 | AI6: 12 | AJ6: 12 | AK6: 12 | AL6: 12 | AM6: 12 | AN6: 12 | AO6: 12 | AP6: 12 | AQ6: 12 | AR6: 12 | AS6: 12 | AT6: 12 | AU6: 12 | AV6: 12 | AW6: 12 | AX6: 12 | AY6: 12 | AZ6: 12 | BA6: 12 | BB6: 12 | BC6: 12 | BD6: 12 | BE6: 12 | BF6: 12 | BG6: 12 | BH6: 12 | BI6: 12 | BJ6: 12 | BK6: 12 | BL6: 12 | BM6: 12 | BN6: 12 | BO6: 12 | BP6: 12 | BQ6: 12 | BR6: 12 | BS6: 12 | BT6: 12 | BU6: =IF(BU5,$E$6,$F$6) -> 12 | BV6: 12 | BW6: 12 | BX6: 12 | BY6: 12 | BZ6: 12 | CA6: 12 | CB6: 12 | CC6: 12 | CD6: 12 | CE6: 12 | CF6: 12 | CG6: 12 | CH6: 12 | CI6: 12 | CJ6: 12 | CK6: 12 | CL6: 12 | CM6: 12 | CN6: 12 | CO6: 12 | CP6: 12 | CQ6: 12 | CR6: 12 | CS6: 12 | CT6: 12 | CU6: 12 | CV6: 12 | CW6: 12 | CX6: 12 | CY6: 12 | CZ6: 12 | DA6: 12 | DB6: 12 | DC6: 12 | DD6: 12 | DE6: 12 | DF6: 12 | DG6: 12 | DH6: 12 | DI6: 12 | DJ6: 12 | DK6: 12 | DL6: 12 | DM6: 12 | DN6: 12 | DO6: 12 | DP6: 12 | DQ6: 12 | DR6: 12 | DS6: 12 | DT6: 12 | DU6: 12 | DV6: 12 | DW6: 12 | DX6: 12 | DY6: 12 | DZ6: 12 | EA6: 12 | EB6: 12 | EC6: 12 | ED6: 12 | EE6: 12 | EF6: 12 | EG6: =IF(EG5,$E$6,$F$6) -> 12 | EH6: 12 | EI6: 12 | EJ6: 12 | EK6: 12 | EL6: 12 | EM6: 12 | EN6: 12 | EO6: 12 | EP6: 12 | EQ6: 12 | ER6: 12 | ES6: 12 | ET6: 12 | EU6: 12 | EV6: 12 | EW6: 12 | EX6: 12 | EY6: 12 | EZ6: 12 | FA6: 12 | FB6: 12 | FC6: 12 | FD6: 12 | FE6: 12 | FF6: 12 | FG6: 12 | FH6: 12 | FI6: 12 | FJ6: 12 | FK6: 12 | FL6: 12 | FM6: 12 | FN6: 12 | FO6: 12 | FP6: 12 | FQ6: 12 | FR6: 12 | FS6: 12 | FT6: 12 | FU6: 12 | FV6: 12 | FW6: 12 | FX6: 12 | FY6: 12 | FZ6: 12 | GA6: 12 | GB6: 12 | GC6: 12 | GD6: 12 | GE6: 12 | GF6: 12 | GG6: 12 | GH6: 12 | GI6: 12 | GJ6: 12 | GK6: 12 | GL6: 12 | GM6: 12 | GN6: 12 | GO6: 12 | GP6: 12 | GQ6: 12 | GR6: 12 | GS6: =IF(GS5,$E$6,$F$6) -> 12 | GT6: 12 | GU6: 12 | GV6: 12 | GW6: 12 | GX6: 12 | GY6: 12 | GZ6: 12 | HA6: 12 | HB6: 12 | HC6: 12 | HD6: 12 | HE6: 12 | HF6: 12 | HG6: 12 | HH6: 12 | HI6: 12 | HJ6: 12 | HK6: 12 | HL6: 12 | HM6: 12 | HN6: 12 | HO6: 12 | HP6: 12 | HQ6: 12 | HR6: 12 | HS6: 12 | HT6: 12 | HU6: 12 | HV6: 12 | HW6: 12 | HX6: 12 | HY6: 12 | HZ6: 12 | IA6: 12 | IB6: 12 | IC6: 12 | ID6: 12 | IE6: 12 | IF6: 12 | IG6: 12 | IH6: 12 | II6: 12 | IJ6: 12 | IK6: 12 | IL6: 12 | IM6: 12 | IN6: 12 | IO6: 12 | IP6: 12 | IQ6: 12 | IR6: 12 | IS6: 12 | IT6: 12 | IU6: 12 | IV6: 12 | IW6: 12 | IX6: 12 | IY6: 12 | IZ6: 12 | JA6: 12 | JB6: 12 | JC6: 12 | JD6: 12 | JE6: =IF(JE5,$E$6,$F$6) -> 12 | JF6: 12 | JG6: 12 | JH6: 12 | JI6: 12 | JJ6: 12 | JK6: 12 | JL6: 12 | JM6: 12 | JN6: 12 | JO6: 12 | JP6: 12 | JQ6: 12 | JR6: 12 | JS6: 12 | JT6: 12 | JU6: 12 | JV6: 12 | JW6: 12 | JX6: 12 | JY6: 12 | JZ6: 12 | KA6: 12 | KB6: 12 | KC6: 12 | KD6: 12 | KE6: 12 | KF6: 12 | KG6: 12 | KH6: 12 | KI6: 12 | KJ6: 12 | KK6: 12 | KL6: 12 | KM6: 12 | KN6: 12 | KO6: 12 | KP6: 12 | KQ6: 12 | KR6: 12 | KS6: 12 | KT6: 12 | KU6: 12 | KV6: 12 | KW6: 12 | KX6: 12 | KY6: 12 | KZ6: 12 | LA6: 12 | LB6: 12 | LC6: 12 | LD6: 12 | LE6: 12 | LF6: 12 | LG6: 12 | LH6: 12 | LI6: 12 | LJ6: 12 | LK6: 12 | LL6: 12 | LM6: 12 | LN6: 12 | LO6: 12 | LP6: 12 | LQ6: =IF(LQ5,$E$6,$F$6) -> 12 | LR6: 12 | LS6: 12 | LT6: 12 | LU6: 12 | LV6: 12 | LW6: 12 | LX6: 12 | LY6: 12 | LZ6: 12 | MA6: 12 | MB6: 12 | MC6: 12 | MD6: 12 | ME6: 12 | MF6: 12 | MG6: 12 | MH6: 12 | MI6: 12 | MJ6: 12 | MK6: 12 | ML6: 12 | MM6: 12 | MN6: 12 | MO6: 12 | MP6: 12 | MQ6: 12 | MR6: 12 | MS6: 12 | MT6: 12 | MU6: 12 | MV6: 12 | MW6: 12 | MX6: 12 | MY6: 12 | MZ6: 12 | NA6: 12 | NB6: 12 | NC6: 12 | ND6: 12 | NE6: 12 | NF6: 12 | NG6: 12 | NH6: 12 | NI6: 12 | NJ6: 12 | NK6: 12 | NL6: 12 | NM6: 12 | NN6: 12 | NO6: 12 | NP6: 12 | NQ6: 12 | NR6: 12 | NS6: 12 | NT6: 12 | NU6: 12 | NV6: 12 | NW6: 12 | NX6: 12 | NY6: 12 | NZ6: 12 | OA6: 12 | OB6: 12 | OC6: =IF(OC5,$E$6,$F$6) -> 12 | OD6: 12 | OE6: 12 | OF6: 12 | OG6: 12 | OH6: 12 | OI6: 12 | OJ6: 12 | OK6: 12 | OL6: 12 | OM6: 12 | ON6: 12 | OO6: 12 | OP6: 12 | OQ6: 12 | OR6: 12 | OS6: 12 | OT6: 12 | OU6: 12 | OV6: 12 | OW6: 12 | OX6: 12 | OY6: 12 | OZ6: 12 | PA6: 12 | PB6: 12 | PC6: 12 | PD6: 12 | PE6: 12 | PF6: 12 | PG6: 12 | PH6: 12 | PI6: 12 | PJ6: 12 | PK6: 12 | PL6: 12 | PM6: 12 | PN6: 12 | PO6: 12 | PP6: 12 | PQ6: 12 | PR6: 12 | PS6: 12 | PT6: 12 | PU6: 12 | PV6: 12 | PW6: 12 | PX6: 12 | PY6: 12 | PZ6: 12 | QA6: 12 | QB6: 12 | QC6: 12 | QD6: 12 | QE6: 12 | QF6: 12 | QG6: 12 | QH6: 12 | QI6: 12 | QJ6: 12 | QK6: 12 | QL6: 12 | QM6: 12 | QN6: 12 | QO6: =IF(QO5,$E$6,$F$6) -> 12 | QP6: 12 | QQ6: 12 | QR6: 12 | QS6: 12 | QT6: 12 | QU6: 12 | QV6: 12 | QW6: 12 | QX6: 12 | QY6: 12 | QZ6: 12 | RA6: 12 | RB6: 12 | RC6: 12 | RD6: 12 | RE6: 12 | RF6: 12 | RG6: 12 | RH6: 12 | RI6: 12 | RJ6: 12 | RK6: 12 | RL6: 12 | RM6: 12 | RN6: 12 | RO6: 12 | RP6: 12 | RQ6: 12 | RR6: 12 | RS6: 12 | RT6: 12 | RU6: 12 | RV6: 12 | RW6: 12 | RX6: 12 | RY6: 12 | RZ6: 12 | SA6: 12 | SB6: 12 | SC6: 12 | SD6: 12 | SE6: 12 | SF6: 12 | SG6: 12 | SH6: 12 | SI6: 12 | SJ6: 12 | SK6: 12 | SL6: 12 | SM6: 12 | SN6: 12 | SO6: 12 | SP6: 12 | SQ6: 12 | SR6: 12 | SS6: 12 | ST6: 12 | SU6: 12 | SV6: 12 | SW6: 12 | SX6: 12 | SY6: 12 | SZ6: 12 | TA6: =IF(TA5,$E$6,$F$6) -> 12 | TB6: 12 | TC6: 12 | TD6: 12 | TE6: 12 | TF6: 12 | TG6: 12 | TH6: 12 | TI6: 12 | TJ6: 12 | TK6: 12 | TL6: 12 | TM6: 12 | TN6: 12 | TO6: 12 | TP6: 12 | TQ6: 12 | TR6: 12 | TS6: 12 | TT6: 12 | TU6: 12 | TV6: 12 | TW6: 12 | TX6: 12 | TY6: 12 | TZ6: 12 | UA6: 12 | UB6: 12 | UC6: 12 | UD6: 12 | UE6: 12 | UF6: 12 | UG6: 12 | UH6: 12 | UI6: 12 | UJ6: 12 | UK6: 12 | UL6: 12 | UM6: 12 | UN6: 12 | UO6: 12 | UP6: 12 | UQ6: 12 | UR6: 12 | US6: 12 | UT6: 12 | UU6: 12 | UV6: 12 | UW6: 12 | UX6: 12 | UY6: 12 | UZ6: 12 | VA6: 12 | VB6: 12 | VC6: 12 | VD6: 12 | VE6: 12 | VF6: 12 | VG6: 12 | VH6: 12 | VI6: 12 | VJ6: 12 | VK6: 12 | VL6: 12 | VM6: =IF(VM5,$E$6,$F$6) -> 12 | VN6: 12 | VO6: 12 | VP6: 12 | VQ6: 12 | VR6: 12 | VS6: 12 | VT6: 12 | VU6: 12 | VV6: 12 | VW6: 12 | VX6: 12 | VY6: 12 | VZ6: 12 | WA6: 12 | WB6: 12 | WC6: 12 | WD6: 12 | WE6: 12 | WF6: 12 | WG6: 12 | WH6: 12 | WI6: 12 | WJ6: 12 | WK6: 12 | WL6: 12 | WM6: 12 | WN6: 12 | WO6: 12 | WP6: 12 | WQ6: 12 | WR6: 12 | WS6: 12 | WT6: 12 | WU6: 12 | WV6: 12 | WW6: 12 | WX6: 12 | WY6: 12 | WZ6: 12 | XA6: 12 | XB6: 12 | XC6: 12 | XD6: 12 | XE6: 12 | XF6: 12 | XG6: 12 | XH6: 12 | XI6: 12 | XJ6: 12 | XK6: 12 | XL6: 12 | XM6: 12 | XN6: 12 | XO6: 12 | XP6: 12 | XQ6: 12 | XR6: 12 | XS6: 12 | XT6: 12 | XU6: 12 | XV6: 12 | XW6: 12 | XX6: 12 | XY6: =IF(XY5,$E$6,$F$6) -> 12 | XZ6: 12 | YA6: 12 | YB6: 12 | YC6: 12 | YD6: 12 | YE6: 12 | YF6: 12 | YG6: 12 | YH6: 12 | YI6: 12 | YJ6: 12 | YK6: 12 | YL6: 12 | YM6: 12 | YN6: 12 | YO6: 12 | YP6: 12 | YQ6: 12 | YR6: 12 | YS6: 12 | YT6: 12 | YU6: 12 | YV6: 12 | YW6: 12 | YX6: 12 | YY6: 12 | YZ6: 12 | ZA6: 12 | ZB6: 12 | ZC6: 12 | ZD6: 12 | ZE6: 12 | ZF6: 12 | ZG6: 12 | ZH6: 12 | ZI6: 12 | ZJ6: 12 | ZK6: 12 | ZL6: 12 | ZM6: 12 | ZN6: 12 | ZO6: 12 | ZP6: 12 | ZQ6: 12 | ZR6: 12 | ZS6: 12 | ZT6: 12 | ZU6: 12 | ZV6: 12 | ZW6: 12 | ZX6: 12 | ZY6: 12 | ZZ6: 12 | AAA6: 12 | AAB6: 12 | AAC6: 12 | AAD6: 12 | AAE6: 12 | AAF6: 12 | AAG6: 12 | AAH6: 12 | AAI6: 12 | AAJ6: 12 | AAK6: =IF(AAK5,$E$6,$F$6) -> 12 | AAL6: 12 | AAM6: 12 | AAN6: 12 | AAO6: 12 | AAP6: 12 | AAQ6: 12 | AAR6: 12 | AAS6: 12 | AAT6: 12 | AAU6: 12 | AAV6: 12 | AAW6: 12 | AAX6: 12 | AAY6: 12 | AAZ6: 12 | ABA6: 12 | ABB6: 12 | ABC6: 12 | ABD6: 12 | ABE6: 12 | ABF6: 12 | ABG6: 12 | ABH6: 12 | ABI6: 12 | ABJ6: 12 | ABK6: 12 | ABL6: 12 | ABM6: 12 | ABN6: 12 | ABO6: 12 | ABP6: 12 | ABQ6: 12 | ABR6: 12 | ABS6: 12 | ABT6: 12 | ABU6: 12 | ABV6: 12 | ABW6: 12 | ABX6: 12 | ABY6: 12 | ABZ6: 12 | ACA6: 12 | ACB6: 12 | ACC6: 12 | ACD6: 12 | ACE6: 12 | ACF6: 12 | ACG6: 12 | ACH6: 12 | ACI6: 12 | ACJ6: 12 | ACK6: 12 | ACL6: 12 | ACM6: 12 | ACN6: 12 | ACO6: 12 | ACP6: 12 | ACQ6: 12 | ACR6: 12 | ACS6: 12 | ACT6: 12 | ACU6: 12 | ACV6: 12 | ACW6: =IF(ACW5,$E$6,$F$6) -> 12 | ACX6: 12 | ACY6: 12 | ACZ6: 12 | ADA6: 12 | ADB6: 12 | ADC6: 12 | ADD6: 12 | ADE6: 12 | ADF6: 12 | ADG6: 12 | ADH6: 12 | ADI6: 12 | ADJ6: 12 | ADK6: 12 | ADL6: 12 | ADM6: 12 | ADN6: 12 | ADO6: 12 | ADP6: 12 | ADQ6: 12 | ADR6: 12 | ADS6: 12 | ADT6: 12 | ADU6: 12 | ADV6: 12 | ADW6: 12 | ADX6: 12 | ADY6: 12 | ADZ6: 12 | AEA6: 12 | AEB6: 12 | AEC6: 12 | AED6: 12 | AEE6: 12 | AEF6: 12 | AEG6: 12 | AEH6: 12 | AEI6: 12 | AEJ6: 12 | AEK6: 12 | AEL6: 12 | AEM6: 12 | AEN6: 12 | AEO6: 12 | AEP6: 12 | AEQ6: 12 | AER6: 12 | AES6: 12 | AET6: 12 | AEU6: 12 | AEV6: 12 | AEW6: 12 | AEX6: 12 | AEY6: 12 | AEZ6: 12 | AFA6: 12 | AFB6: 12 | AFC6: 12 | AFD6: 12 | AFE6: 12 | AFF6: 12 | AFG6: 12 | AFH6: 12 | AFI6: =IF(AFI5,$E$6,$F$6) -> 12 | AFJ6: 12 | AFK6: 12 | AFL6: 12 | AFM6: 12 | AFN6: 12 | AFO6: 12 | AFP6: 12 | AFQ6: 12 | AFR6: 12 | AFS6: 12 | AFT6: 12 | AFU6: 12 | AFV6: 12 | AFW6: 12 | AFX6: 12 | AFY6: 12 | AFZ6: 12 | AGA6: 12 | AGB6: 12 | AGC6: 12 | AGD6: 12 | AGE6: 12 | AGF6: 12 | AGG6: 12 | AGH6: 12 | AGI6: 12 | AGJ6: 12 | AGK6: 12
B7: Start of Period (Need for XIRR and XNPV) | E7: ='Carrying Charge'!F14 -> 2001-01-01 | H7: =E7 -> 2001-01-01 | I7: =H8+1 -> 2001-02-01 | J7: =I8+1 -> 2001-03-01 | K7: 2002-03-01 | L7: 2003-03-01 | M7: 2004-03-01 | N7: 2005-03-01 | O7: 2006-03-01 | P7: 2007-03-01 | Q7: 2008-03-01 | R7: 2009-03-01 | S7: 2010-03-01 | T7: 2011-03-01 | U7: 2012-03-01 | V7: 2013-03-01 | W7: 2014-03-01 | X7: 2015-03-01 | Y7: 2016-03-01 | Z7: 2017-03-01 | AA7: 2018-03-01 | AB7: 2019-03-01 | AC7: 2020-03-01 | AD7: 2021-03-01 | AE7: 2022-03-01 | AF7: 2023-03-01 | AG7: 2024-03-01 | AH7: 2025-03-01 | AI7: 2026-03-01 | AJ7: 2027-03-01 | AK7: 2028-03-01 | AL7: 2029-03-01 | AM7: 2030-03-01 | AN7: 2031-03-01 | AO7: 2032-03-01 | AP7: 2033-03-01 | AQ7: 2034-03-01 | AR7: 2035-03-01 | AS7: 2036-03-01 | AT7: 2037-03-01 | AU7: 2038-03-01 | AV7: 2039-03-01 | AW7: 2040-03-01 | AX7: 2041-03-01 | AY7: 2042-03-01 | AZ7: 2043-03-01 | BA7: 2044-03-01 | BB7: 2045-03-01 | BC7: 2046-03-01 | BD7: 2047-03-01 | BE7: 2048-03-01 | BF7: 2049-03-01 | BG7: 2050-03-01 | BH7: 2051-03-01 | BI7: 2052-03-01 | BJ7: 2053-03-01 | BK7: 2054-03-01 | BL7: 2055-03-01 | BM7: 2056-03-01 | BN7: 2057-03-01 | BO7: 2058-03-01 | BP7: 2059-03-01 | BQ7: 2060-03-01 | BR7: 2061-03-01 | BS7: 2062-03-01 | BT7: 2063-03-01 | BU7: 2064-03-01 | BV7: =BU8+1 -> 2065-03-01 | BW7: 2066-03-01 | BX7: 2067-03-01 | BY7: 2068-03-01 | BZ7: 2069-03-01 | CA7: 2070-03-01 | CB7: 2071-03-01 | CC7: 2072-03-01 | CD7: 2073-03-01 | CE7: 2074-03-01 | CF7: 2075-03-01 | CG7: 2076-03-01 | CH7: 2077-03-01 | CI7: 2078-03-01 | CJ7: 2079-03-01 | CK7: 2080-03-01 | CL7: 2081-03-01 | CM7: 2082-03-01 | CN7: 2083-03-01 | CO7: 2084-03-01 | CP7: 2085-03-01 | CQ7: 2086-03-01 | CR7: 2087-03-01 | CS7: 2088-03-01 | CT7: 2089-03-01 | CU7: 2090-03-01 | CV7: 2091-03-01 | CW7: 2092-03-01 | CX7: 2093-03-01 | CY7: 2094-03-01 | CZ7: 2095-03-01 | DA7: 2096-03-01 | DB7: 2097-03-01 | DC7: 2098-03-01 | DD7: 2099-03-01 | DE7: 2100-03-01 | DF7: 2101-03-01 | DG7: 2102-03-01 | DH7: 2103-03-01 | DI7: 2104-03-01 | DJ7: 2105-03-01 | DK7: 2106-03-01 | DL7: 2107-03-01 | DM7: 2108-03-01 | DN7: 2109-03-01 | DO7: 2110-03-01 | DP7: 2111-03-01 | DQ7: 2112-03-01 | DR7: 2113-03-01 | DS7: 2114-03-01 | DT7: 2115-03-01 | DU7: 2116-03-01 | DV7: 2117-03-01 | DW7: 2118-03-01 | DX7: 2119-03-01 | DY7: 2120-03-01 | DZ7: 2121-03-01 | EA7: 2122-03-01 | EB7: 2123-03-01 | EC7: 2124-03-01 | ED7: 2125-03-01 | EE7: 2126-03-01 | EF7: 2127-03-01 | EG7: 2128-03-01 | EH7: =EG8+1 -> 2129-03-01 | EI7: 2130-03-01 | EJ7: 2131-03-01 | EK7: 2132-03-01 | EL7: 2133-03-01 | EM7: 2134-03-01 | EN7: 2135-03-01 | EO7: 2136-03-01 | EP7: 2137-03-01 | EQ7: 2138-03-01 | ER7: 2139-03-01 | ES7: 2140-03-01 | ET7: 2141-03-01 | EU7: 2142-03-01 | EV7: 2143-03-01 | EW7: 2144-03-01 | EX7: 2145-03-01 | EY7: 2146-03-01 | EZ7: 2147-03-01 | FA7: 2148-03-01 | FB7: 2149-03-01 | FC7: 2150-03-01 | FD7: 2151-03-01 | FE7: 2152-03-01 | FF7: 2153-03-01 | FG7: 2154-03-01 | FH7: 2155-03-01 | FI7: 2156-03-01 | FJ7: 2157-03-01 | FK7: 2158-03-01 | FL7: 2159-03-01 | FM7: 2160-03-01 | FN7: 2161-03-01 | FO7: 2162-03-01 | FP7: 2163-03-01 | FQ7: 2164-03-01 | FR7: 2165-03-01 | FS7: 2166-03-01 | FT7: 2167-03-01 | FU7: 2168-03-01 | FV7: 2169-03-01 | FW7: 2170-03-01 | FX7: 2171-03-01 | FY7: 2172-03-01 | FZ7: 2173-03-01 | GA7: 2174-03-01 | GB7: 2175-03-01 | GC7: 2176-03-01 | GD7: 2177-03-01 | GE7: 2178-03-01 | GF7: 2179-03-01 | GG7: 2180-03-01 | GH7: 2181-03-01 | GI7: 2182-03-01 | GJ7: 2183-03-01 | GK7: 2184-03-01 | GL7: 2185-03-01 | GM7: 2186-03-01 | GN7: 2187-03-01 | GO7: 2188-03-01 | GP7: 2189-03-01 | GQ7: 2190-03-01 | GR7: 2191-03-01 | GS7: 2192-03-01 | GT7: =GS8+1 -> 2193-03-01 | GU7: 2194-03-01 | GV7: 2195-03-01 | GW7: 2196-03-01 | GX7: 2197-03-01 | GY7: 2198-03-01 | GZ7: 2199-03-01 | HA7: 2200-03-01 | HB7: 2201-03-01 | HC7: 2202-03-01 | HD7: 2203-03-01 | HE7: 2204-03-01 | HF7: 2205-03-01 | HG7: 2206-03-01 | HH7: 2207-03-01 | HI7: 2208-03-01 | HJ7: 2209-03-01 | HK7: 2210-03-01 | HL7: 2211-03-01 | HM7: 2212-03-01 | HN7: 2213-03-01 | HO7: 2214-03-01 | HP7: 2215-03-01 | HQ7: 2216-03-01 | HR7: 2217-03-01 | HS7: 2218-03-01 | HT7: 2219-03-01 | HU7: 2220-03-01 | HV7: 2221-03-01 | HW7: 2222-03-01 | HX7: 2223-03-01 | HY7: 2224-03-01 | HZ7: 2225-03-01 | IA7: 2226-03-01 | IB7: 2227-03-01 | IC7: 2228-03-01 | ID7: 2229-03-01 | IE7: 2230-03-01 | IF7: 2231-03-01 | IG7: 2232-03-01 | IH7: 2233-03-01 | II7: 2234-03-01 | IJ7: 2235-03-01 | IK7: 2236-03-01 | IL7: 2237-03-01 | IM7: 2238-03-01 | IN7: 2239-03-01 | IO7: 2240-03-01 | IP7: 2241-03-01 | IQ7: 2242-03-01 | IR7: 2243-03-01 | IS7: 2244-03-01 | IT7: 2245-03-01 | IU7: 2246-03-01 | IV7: 2247-03-01 | IW7: 2248-03-01 | IX7: 2249-03-01 | IY7: 2250-03-01 | IZ7: 2251-03-01 | JA7: 2252-03-01 | JB7: 2253-03-01 | JC7: 2254-03-01 | JD7: 2255-03-01 | JE7: 2256-03-01 | JF7: =JE8+1 -> 2257-03-01 | JG7: 2258-03-01 | JH7: 2259-03-01 | JI7: 2260-03-01 | JJ7: 2261-03-01 | JK7: 2262-03-01 | JL7: 2263-03-01 | JM7: 2264-03-01 | JN7: 2265-03-01 | JO7: 2266-03-01 | JP7: 2267-03-01 | JQ7: 2268-03-01 | JR7: 2269-03-01 | JS7: 2270-03-01 | JT7: 2271-03-01 | JU7: 2272-03-01 | JV7: 2273-03-01 | JW7: 2274-03-01 | JX7: 2275-03-01 | JY7: 2276-03-01 | JZ7: 2277-03-01 | KA7: 2278-03-01 | KB7: 2279-03-01 | KC7: 2280-03-01 | KD7: 2281-03-01 | KE7: 2282-03-01 | KF7: 2283-03-01 | KG7: 2284-03-01 | KH7: 2285-03-01 | KI7: 2286-03-01 | KJ7: 2287-03-01 | KK7: 2288-03-01 | KL7: 2289-03-01 | KM7: 2290-03-01 | KN7: 2291-03-01 | KO7: 2292-03-01 | KP7: 2293-03-01 | KQ7: 2294-03-01 | KR7: 2295-03-01 | KS7: 2296-03-01 | KT7: 2297-03-01 | KU7: 2298-03-01 | KV7: 2299-03-01 | KW7: 2300-03-01 | KX7: 2301-03-01 | KY7: 2302-03-01 | KZ7: 2303-03-01 | LA7: 2304-03-01 | LB7: 2305-03-01 | LC7: 2306-03-01 | LD7: 2307-03-01 | LE7: 2308-03-01 | LF7: 2309-03-01 | LG7: 2310-03-01 | LH7: 2311-03-01 | LI7: 2312-03-01 | LJ7: 2313-03-01 | LK7: 2314-03-01 | LL7: 2315-03-01 | LM7: 2316-03-01 | LN7: 2317-03-01 | LO7: 2318-03-01 | LP7: 2319-03-01 | LQ7: 2320-03-01 | LR7: =LQ8+1 -> 2321-03-01 | LS7: 2322-03-01 | LT7: 2323-03-01 | LU7: 2324-03-01 | LV7: 2325-03-01 | LW7: 2326-03-01 | LX7: 2327-03-01 | LY7: 2328-03-01 | LZ7: 2329-03-01 | MA7: 2330-03-01 | MB7: 2331-03-01 | MC7: 2332-03-01 | MD7: 2333-03-01 | ME7: 2334-03-01 | MF7: 2335-03-01 | MG7: 2336-03-01 | MH7: 2337-03-01 | MI7: 2338-03-01 | MJ7: 2339-03-01 | MK7: 2340-03-01 | ML7: 2341-03-01 | MM7: 2342-03-01 | MN7: 2343-03-01 | MO7: 2344-03-01 | MP7: 2345-03-01 | MQ7: 2346-03-01 | MR7: 2347-03-01 | MS7: 2348-03-01 | MT7: 2349-03-01 | MU7: 2350-03-01 | MV7: 2351-03-01 | MW7: 2352-03-01 | MX7: 2353-03-01 | MY7: 2354-03-01 | MZ7: 2355-03-01 | NA7: 2356-03-01 | NB7: 2357-03-01 | NC7: 2358-03-01 | ND7: 2359-03-01 | NE7: 2360-03-01 | NF7: 2361-03-01 | NG7: 2362-03-01 | NH7: 2363-03-01 | NI7: 2364-03-01 | NJ7: 2365-03-01 | NK7: 2366-03-01 | NL7: 2367-03-01 | NM7: 2368-03-01 | NN7: 2369-03-01 | NO7: 2370-03-01 | NP7: 2371-03-01 | NQ7: 2372-03-01 | NR7: 2373-03-01 | NS7: 2374-03-01 | NT7: 2375-03-01 | NU7: 2376-03-01 | NV7: 2377-03-01 | NW7: 2378-03-01 | NX7: 2379-03-01 | NY7: 2380-03-01 | NZ7: 2381-03-01 | OA7: 2382-03-01 | OB7: 2383-03-01 | OC7: 2384-03-01 | OD7: =OC8+1 -> 2385-03-01 | OE7: 2386-03-01 | OF7: 2387-03-01 | OG7: 2388-03-01 | OH7: 2389-03-01 | OI7: 2390-03-01 | OJ7: 2391-03-01 | OK7: 2392-03-01 | OL7: 2393-03-01 | OM7: 2394-03-01 | ON7: 2395-03-01 | OO7: 2396-03-01 | OP7: 2397-03-01 | OQ7: 2398-03-01 | OR7: 2399-03-01 | OS7: 2400-03-01 | OT7: 2401-03-01 | OU7: 2402-03-01 | OV7: 2403-03-01 | OW7: 2404-03-01 | OX7: 2405-03-01 | OY7: 2406-03-01 | OZ7: 2407-03-01 | PA7: 2408-03-01 | PB7: 2409-03-01 | PC7: 2410-03-01 | PD7: 2411-03-01 | PE7: 2412-03-01 | PF7: 2413-03-01 | PG7: 2414-03-01 | PH7: 2415-03-01 | PI7: 2416-03-01 | PJ7: 2417-03-01 | PK7: 2418-03-01 | PL7: 2419-03-01 | PM7: 2420-03-01 | PN7: 2421-03-01 | PO7: 2422-03-01 | PP7: 2423-03-01 | PQ7: 2424-03-01 | PR7: 2425-03-01 | PS7: 2426-03-01 | PT7: 2427-03-01 | PU7: 2428-03-01 | PV7: 2429-03-01 | PW7: 2430-03-01 | PX7: 2431-03-01 | PY7: 2432-03-01 | PZ7: 2433-03-01 | QA7: 2434-03-01 | QB7: 2435-03-01 | QC7: 2436-03-01 | QD7: 2437-03-01 | QE7: 2438-03-01 | QF7: 2439-03-01 | QG7: 2440-03-01 | QH7: 2441-03-01 | QI7: 2442-03-01 | QJ7: 2443-03-01 | QK7: 2444-03-01 | QL7: 2445-03-01 | QM7: 2446-03-01 | QN7: 2447-03-01 | QO7: 2448-03-01 | QP7: =QO8+1 -> 2449-03-01 | QQ7: 2450-03-01 | QR7: 2451-03-01 | QS7: 2452-03-01 | QT7: 2453-03-01 | QU7: 2454-03-01 | QV7: 2455-03-01 | QW7: 2456-03-01 | QX7: 2457-03-01 | QY7: 2458-03-01 | QZ7: 2459-03-01 | RA7: 2460-03-01 | RB7: 2461-03-01 | RC7: 2462-03-01 | RD7: 2463-03-01 | RE7: 2464-03-01 | RF7: 2465-03-01 | RG7: 2466-03-01 | RH7: 2467-03-01 | RI7: 2468-03-01 | RJ7: 2469-03-01 | RK7: 2470-03-01 | RL7: 2471-03-01 | RM7: 2472-03-01 | RN7: 2473-03-01 | RO7: 2474-03-01 | RP7: 2475-03-01 | RQ7: 2476-03-01 | RR7: 2477-03-01 | RS7: 2478-03-01 | RT7: 2479-03-01 | RU7: 2480-03-01 | RV7: 2481-03-01 | RW7: 2482-03-01 | RX7: 2483-03-01 | RY7: 2484-03-01 | RZ7: 2485-03-01 | SA7: 2486-03-01 | SB7: 2487-03-01 | SC7: 2488-03-01 | SD7: 2489-03-01 | SE7: 2490-03-01 | SF7: 2491-03-01 | SG7: 2492-03-01 | SH7: 2493-03-01 | SI7: 2494-03-01 | SJ7: 2495-03-01 | SK7: 2496-03-01 | SL7: 2497-03-01 | SM7: 2498-03-01 | SN7: 2499-03-01 | SO7: 2500-03-01 | SP7: 2501-03-01 | SQ7: 2502-03-01 | SR7: 2503-03-01 | SS7: 2504-03-01 | ST7: 2505-03-01 | SU7: 2506-03-01 | SV7: 2507-03-01 | SW7: 2508-03-01 | SX7: 2509-03-01 | SY7: 2510-03-01 | SZ7: 2511-03-01 | TA7: 2512-03-01 | TB7: =TA8+1 -> 2513-03-01 | TC7: 2514-03-01 | TD7: 2515-03-01 | TE7: 2516-03-01 | TF7: 2517-03-01 | TG7: 2518-03-01 | TH7: 2519-03-01 | TI7: 2520-03-01 | TJ7: 2521-03-01 | TK7: 2522-03-01 | TL7: 2523-03-01 | TM7: 2524-03-01 | TN7: 2525-03-01 | TO7: 2526-03-01 | TP7: 2527-03-01 | TQ7: 2528-03-01 | TR7: 2529-03-01 | TS7: 2530-03-01 | TT7: 2531-03-01 | TU7: 2532-03-01 | TV7: 2533-03-01 | TW7: 2534-03-01 | TX7: 2535-03-01 | TY7: 2536-03-01 | TZ7: 2537-03-01 | UA7: 2538-03-01 | UB7: 2539-03-01 | UC7: 2540-03-01 | UD7: 2541-03-01 | UE7: 2542-03-01 | UF7: 2543-03-01 | UG7: 2544-03-01 | UH7: 2545-03-01 | UI7: 2546-03-01 | UJ7: 2547-03-01 | UK7: 2548-03-01 | UL7: 2549-03-01 | UM7: 2550-03-01 | UN7: 2551-03-01 | UO7: 2552-03-01 | UP7: 2553-03-01 | UQ7: 2554-03-01 | UR7: 2555-03-01 | US7: 2556-03-01 | UT7: 2557-03-01 | UU7: 2558-03-01 | UV7: 2559-03-01 | UW7: 2560-03-01 | UX7: 2561-03-01 | UY7: 2562-03-01 | UZ7: 2563-03-01 | VA7: 2564-03-01 | VB7: 2565-03-01 | VC7: 2566-03-01 | VD7: 2567-03-01 | VE7: 2568-03-01 | VF7: 2569-03-01 | VG7: 2570-03-01 | VH7: 2571-03-01 | VI7: 2572-03-01 | VJ7: 2573-03-01 | VK7: 2574-03-01 | VL7: 2575-03-01 | VM7: 2576-03-01 | VN7: =VM8+1 -> 2577-03-01 | VO7: 2578-03-01 | VP7: 2579-03-01 | VQ7: 2580-03-01 | VR7: 2581-03-01 | VS7: 2582-03-01 | VT7: 2583-03-01 | VU7: 2584-03-01 | VV7: 2585-03-01 | VW7: 2586-03-01 | VX7: 2587-03-01 | VY7: 2588-03-01 | VZ7: 2589-03-01 | WA7: 2590-03-01 | WB7: 2591-03-01 | WC7: 2592-03-01 | WD7: 2593-03-01 | WE7: 2594-03-01 | WF7: 2595-03-01 | WG7: 2596-03-01 | WH7: 2597-03-01 | WI7: 2598-03-01 | WJ7: 2599-03-01 | WK7: 2600-03-01 | WL7: 2601-03-01 | WM7: 2602-03-01 | WN7: 2603-03-01 | WO7: 2604-03-01 | WP7: 2605-03-01 | WQ7: 2606-03-01 | WR7: 2607-03-01 | WS7: 2608-03-01 | WT7: 2609-03-01 | WU7: 2610-03-01 | WV7: 2611-03-01 | WW7: 2612-03-01 | WX7: 2613-03-01 | WY7: 2614-03-01 | WZ7: 2615-03-01 | XA7: 2616-03-01 | XB7: 2617-03-01 | XC7: 2618-03-01 | XD7: 2619-03-01 | XE7: 2620-03-01 | XF7: 2621-03-01 | XG7: 2622-03-01 | XH7: 2623-03-01 | XI7: 2624-03-01 | XJ7: 2625-03-01 | XK7: 2626-03-01 | XL7: 2627-03-01 | XM7: 2628-03-01 | XN7: 2629-03-01 | XO7: 2630-03-01 | XP7: 2631-03-01 | XQ7: 2632-03-01 | XR7: 2633-03-01 | XS7: 2634-03-01 | XT7: 2635-03-01 | XU7: 2636-03-01 | XV7: 2637-03-01 | XW7: 2638-03-01 | XX7: 2639-03-01 | XY7: 2640-03-01 | XZ7: =XY8+1 -> 2641-03-01 | YA7: 2642-03-01 | YB7: 2643-03-01 | YC7: 2644-03-01 | YD7: 2645-03-01 | YE7: 2646-03-01 | YF7: 2647-03-01 | YG7: 2648-03-01 | YH7: 2649-03-01 | YI7: 2650-03-01 | YJ7: 2651-03-01 | YK7: 2652-03-01 | YL7: 2653-03-01 | YM7: 2654-03-01 | YN7: 2655-03-01 | YO7: 2656-03-01 | YP7: 2657-03-01 | YQ7: 2658-03-01 | YR7: 2659-03-01 | YS7: 2660-03-01 | YT7: 2661-03-01 | YU7: 2662-03-01 | YV7: 2663-03-01 | YW7: 2664-03-01 | YX7: 2665-03-01 | YY7: 2666-03-01 | YZ7: 2667-03-01 | ZA7: 2668-03-01 | ZB7: 2669-03-01 | ZC7: 2670-03-01 | ZD7: 2671-03-01 | ZE7: 2672-03-01 | ZF7: 2673-03-01 | ZG7: 2674-03-01 | ZH7: 2675-03-01 | ZI7: 2676-03-01 | ZJ7: 2677-03-01 | ZK7: 2678-03-01 | ZL7: 2679-03-01 | ZM7: 2680-03-01 | ZN7: 2681-03-01 | ZO7: 2682-03-01 | ZP7: 2683-03-01 | ZQ7: 2684-03-01 | ZR7: 2685-03-01 | ZS7: 2686-03-01 | ZT7: 2687-03-01 | ZU7: 2688-03-01 | ZV7: 2689-03-01 | ZW7: 2690-03-01 | ZX7: 2691-03-01 | ZY7: 2692-03-01 | ZZ7: 2693-03-01 | AAA7: 2694-03-01 | AAB7: 2695-03-01 | AAC7: 2696-03-01 | AAD7: 2697-03-01 | AAE7: 2698-03-01 | AAF7: 2699-03-01 | AAG7: 2700-03-01 | AAH7: 2701-03-01 | AAI7: 2702-03-01 | AAJ7: 2703-03-01 | AAK7: 2704-03-01 | AAL7: =AAK8+1 -> 2705-03-01 | AAM7: 2706-03-01 | AAN7: 2707-03-01 | AAO7: 2708-03-01 | AAP7: 2709-03-01 | AAQ7: 2710-03-01 | AAR7: 2711-03-01 | AAS7: 2712-03-01 | AAT7: 2713-03-01 | AAU7: 2714-03-01 | AAV7: 2715-03-01 | AAW7: 2716-03-01 | AAX7: 2717-03-01 | AAY7: 2718-03-01 | AAZ7: 2719-03-01 | ABA7: 2720-03-01 | ABB7: 2721-03-01 | ABC7: 2722-03-01 | ABD7: 2723-03-01 | ABE7: 2724-03-01 | ABF7: 2725-03-01 | ABG7: 2726-03-01 | ABH7: 2727-03-01 | ABI7: 2728-03-01 | ABJ7: 2729-03-01 | ABK7: 2730-03-01 | ABL7: 2731-03-01 | ABM7: 2732-03-01 | ABN7: 2733-03-01 | ABO7: 2734-03-01 | ABP7: 2735-03-01 | ABQ7: 2736-03-01 | ABR7: 2737-03-01 | ABS7: 2738-03-01 | ABT7: 2739-03-01 | ABU7: 2740-03-01 | ABV7: 2741-03-01 | ABW7: 2742-03-01 | ABX7: 2743-03-01 | ABY7: 2744-03-01 | ABZ7: 2745-03-01 | ACA7: 2746-03-01 | ACB7: 2747-03-01 | ACC7: 2748-03-01 | ACD7: 2749-03-01 | ACE7: 2750-03-01 | ACF7: 2751-03-01 | ACG7: 2752-03-01 | ACH7: 2753-03-01 | ACI7: 2754-03-01 | ACJ7: 2755-03-01 | ACK7: 2756-03-01 | ACL7: 2757-03-01 | ACM7: 2758-03-01 | ACN7: 2759-03-01 | ACO7: 2760-03-01 | ACP7: 2761-03-01 | ACQ7: 2762-03-01 | ACR7: 2763-03-01 | ACS7: 2764-03-01 | ACT7: 2765-03-01 | ACU7: 2766-03-01 | ACV7: 2767-03-01 | ACW7: 2768-03-01 | ACX7: =ACW8+1 -> 2769-03-01 | ACY7: 2770-03-01 | ACZ7: 2771-03-01 | ADA7: 2772-03-01 | ADB7: 2773-03-01 | ADC7: 2774-03-01 | ADD7: 2775-03-01 | ADE7: 2776-03-01 | ADF7: 2777-03-01 | ADG7: 2778-03-01 | ADH7: 2779-03-01 | ADI7: 2780-03-01 | ADJ7: 2781-03-01 | ADK7: 2782-03-01 | ADL7: 2783-03-01 | ADM7: 2784-03-01 | ADN7: 2785-03-01 | ADO7: 2786-03-01 | ADP7: 2787-03-01 | ADQ7: 2788-03-01 | ADR7: 2789-03-01 | ADS7: 2790-03-01 | ADT7: 2791-03-01 | ADU7: 2792-03-01 | ADV7: 2793-03-01 | ADW7: 2794-03-01 | ADX7: 2795-03-01 | ADY7: 2796-03-01 | ADZ7: 2797-03-01 | AEA7: 2798-03-01 | AEB7: 2799-03-01 | AEC7: 2800-03-01 | AED7: 2801-03-01 | AEE7: 2802-03-01 | AEF7: 2803-03-01 | AEG7: 2804-03-01 | AEH7: 2805-03-01 | AEI7: 2806-03-01 | AEJ7: 2807-03-01 | AEK7: 2808-03-01 | AEL7: 2809-03-01 | AEM7: 2810-03-01 | AEN7: 2811-03-01 | AEO7: 2812-03-01 | AEP7: 2813-03-01 | AEQ7: 2814-03-01 | AER7: 2815-03-01 | AES7: 2816-03-01 | AET7: 2817-03-01 | AEU7: 2818-03-01 | AEV7: 2819-03-01 | AEW7: 2820-03-01 | AEX7: 2821-03-01 | AEY7: 2822-03-01 | AEZ7: 2823-03-01 | AFA7: 2824-03-01 | AFB7: 2825-03-01 | AFC7: 2826-03-01 | AFD7: 2827-03-01 | AFE7: 2828-03-01 | AFF7: 2829-03-01 | AFG7: 2830-03-01 | AFH7: 2831-03-01 | AFI7: 2832-03-01 | AFJ7: =AFI8+1 -> 2833-03-01 | AFK7: 2834-03-01 | AFL7: 2835-03-01 | AFM7: 2836-03-01 | AFN7: 2837-03-01 | AFO7: 2838-03-01 | AFP7: 2839-03-01 | AFQ7: 2840-03-01 | AFR7: 2841-03-01 | AFS7: 2842-03-01 | AFT7: 2843-03-01 | AFU7: 2844-03-01 | AFV7: 2845-03-01 | AFW7: 2846-03-01 | AFX7: 2847-03-01 | AFY7: 2848-03-01 | AFZ7: 2849-03-01 | AGA7: 2850-03-01 | AGB7: 2851-03-01 | AGC7: 2852-03-01 | AGD7: 2853-03-01 | AGE7: 2854-03-01 | AGF7: 2855-03-01 | AGG7: 2856-03-01 | AGH7: 2857-03-01 | AGI7: 2858-03-01 | AGJ7: 2859-03-01 | AGK7: 2860-03-01
B8: End of Period (Makes Presentation clearer) | H8: =EOMONTH(H7,H6-1) -> 2001-01-31 | I8: =EOMONTH(I7,I6-1) -> 2001-02-28 | J8: =EOMONTH(J7,J6-1) -> 2002-02-28 | K8: 2003-02-28 | L8: 2004-02-29 | M8: 2005-02-28 | N8: 2006-02-28 | O8: 2007-02-28 | P8: 2008-02-29 | Q8: 2009-02-28 | R8: 2010-02-28 | S8: 2011-02-28 | T8: 2012-02-29 | U8: 2013-02-28 | V8: 2014-02-28 | W8: 2015-02-28 | X8: 2016-02-29 | Y8: 2017-02-28 | Z8: 2018-02-28 | AA8: 2019-02-28 | AB8: 2020-02-29 | AC8: 2021-02-28 | AD8: 2022-02-28 | AE8: 2023-02-28 | AF8: 2024-02-29 | AG8: 2025-02-28 | AH8: 2026-02-28 | AI8: 2027-02-28 | AJ8: 2028-02-29 | AK8: 2029-02-28 | AL8: 2030-02-28 | AM8: 2031-02-28 | AN8: 2032-02-29 | AO8: 2033-02-28 | AP8: 2034-02-28 | AQ8: 2035-02-28 | AR8: 2036-02-29 | AS8: 2037-02-28 | AT8: 2038-02-28 | AU8: 2039-02-28 | AV8: 2040-02-29 | AW8: 2041-02-28 | AX8: 2042-02-28 | AY8: 2043-02-28 | AZ8: 2044-02-29 | BA8: 2045-02-28 | BB8: 2046-02-28 | BC8: 2047-02-28 | BD8: 2048-02-29 | BE8: 2049-02-28 | BF8: 2050-02-28 | BG8: 2051-02-28 | BH8: 2052-02-29 | BI8: 2053-02-28 | BJ8: 2054-02-28 | BK8: 2055-02-28 | BL8: 2056-02-29 | BM8: 2057-02-28 | BN8: 2058-02-28 | BO8: 2059-02-28 | BP8: 2060-02-29 | BQ8: 2061-02-28 | BR8: 2062-02-28 | BS8: 2063-02-28 | BT8: 2064-02-29 | BU8: 2065-02-28 | BV8: =EOMONTH(BV7,BV6-1) -> 2066-02-28 | BW8: 2067-02-28 | BX8: 2068-02-29 | BY8: 2069-02-28 | BZ8: 2070-02-28 | CA8: 2071-02-28 | CB8: 2072-02-29 | CC8: 2073-02-28 | CD8: 2074-02-28 | CE8: 2075-02-28 | CF8: 2076-02-29 | CG8: 2077-02-28 | CH8: 2078-02-28 | CI8: 2079-02-28 | CJ8: 2080-02-29 | CK8: 2081-02-28 | CL8: 2082-02-28 | CM8: 2083-02-28 | CN8: 2084-02-29 | CO8: 2085-02-28 | CP8: 2086-02-28 | CQ8: 2087-02-28 | CR8: 2088-02-29 | CS8: 2089-02-28 | CT8: 2090-02-28 | CU8: 2091-02-28 | CV8: 2092-02-29 | CW8: 2093-02-28 | CX8: 2094-02-28 | CY8: 2095-02-28 | CZ8: 2096-02-29 | DA8: 2097-02-28 | DB8: 2098-02-28 | DC8: 2099-02-28 | DD8: 2100-02-28 | DE8: 2101-02-28 | DF8: 2102-02-28 | DG8: 2103-02-28 | DH8: 2104-02-29 | DI8: 2105-02-28 | DJ8: 2106-02-28 | DK8: 2107-02-28 | DL8: 2108-02-29 | DM8: 2109-02-28 | DN8: 2110-02-28 | DO8: 2111-02-28 | DP8: 2112-02-29 | DQ8: 2113-02-28 | DR8: 2114-02-28 | DS8: 2115-02-28 | DT8: 2116-02-29 | DU8: 2117-02-28 | DV8: 2118-02-28 | DW8: 2119-02-28 | DX8: 2120-02-29 | DY8: 2121-02-28 | DZ8: 2122-02-28 | EA8: 2123-02-28 | EB8: 2124-02-29 | EC8: 2125-02-28 | ED8: 2126-02-28 | EE8: 2127-02-28 | EF8: 2128-02-29 | EG8: 2129-02-28 | EH8: =EOMONTH(EH7,EH6-1) -> 2130-02-28 | EI8: 2131-02-28 | EJ8: 2132-02-29 | EK8: 2133-02-28 | EL8: 2134-02-28 | EM8: 2135-02-28 | EN8: 2136-02-29 | EO8: 2137-02-28 | EP8: 2138-02-28 | EQ8: 2139-02-28 | ER8: 2140-02-29 | ES8: 2141-02-28 | ET8: 2142-02-28 | EU8: 2143-02-28 | EV8: 2144-02-29 | EW8: 2145-02-28 | EX8: 2146-02-28 | EY8: 2147-02-28 | EZ8: 2148-02-29 | FA8: 2149-02-28 | FB8: 2150-02-28 | FC8: 2151-02-28 | FD8: 2152-02-29 | FE8: 2153-02-28 | FF8: 2154-02-28 | FG8: 2155-02-28 | FH8: 2156-02-29 | FI8: 2157-02-28 | FJ8: 2158-02-28 | FK8: 2159-02-28 | FL8: 2160-02-29 | FM8: 2161-02-28 | FN8: 2162-02-28 | FO8: 2163-02-28 | FP8: 2164-02-29 | FQ8: 2165-02-28 | FR8: 2166-02-28 | FS8: 2167-02-28 | FT8: 2168-02-29 | FU8: 2169-02-28 | FV8: 2170-02-28 | FW8: 2171-02-28 | FX8: 2172-02-29 | FY8: 2173-02-28 | FZ8: 2174-02-28 | GA8: 2175-02-28 | GB8: 2176-02-29 | GC8: 2177-02-28 | GD8: 2178-02-28 | GE8: 2179-02-28 | GF8: 2180-02-29 | GG8: 2181-02-28 | GH8: 2182-02-28 | GI8: 2183-02-28 | GJ8: 2184-02-29 | GK8: 2185-02-28 | GL8: 2186-02-28 | GM8: 2187-02-28 | GN8: 2188-02-29 | GO8: 2189-02-28 | GP8: 2190-02-28 | GQ8: 2191-02-28 | GR8: 2192-02-29 | GS8: 2193-02-28 | GT8: =EOMONTH(GT7,GT6-1) -> 2194-02-28 | GU8: 2195-02-28 | GV8: 2196-02-29 | GW8: 2197-02-28 | GX8: 2198-02-28 | GY8: 2199-02-28 | GZ8: 2200-02-28 | HA8: 2201-02-28 | HB8: 2202-02-28 | HC8: 2203-02-28 | HD8: 2204-02-29 | HE8: 2205-02-28 | HF8: 2206-02-28 | HG8: 2207-02-28 | HH8: 2208-02-29 | HI8: 2209-02-28 | HJ8: 2210-02-28 | HK8: 2211-02-28 | HL8: 2212-02-29 | HM8: 2213-02-28 | HN8: 2214-02-28 | HO8: 2215-02-28 | HP8: 2216-02-29 | HQ8: 2217-02-28 | HR8: 2218-02-28 | HS8: 2219-02-28 | HT8: 2220-02-29 | HU8: 2221-02-28 | HV8: 2222-02-28 | HW8: 2223-02-28 | HX8: 2224-02-29 | HY8: 2225-02-28 | HZ8: 2226-02-28 | IA8: 2227-02-28 | IB8: 2228-02-29 | IC8: 2229-02-28 | ID8: 2230-02-28 | IE8: 2231-02-28 | IF8: 2232-02-29 | IG8: 2233-02-28 | IH8: 2234-02-28 | II8: 2235-02-28 | IJ8: 2236-02-29 | IK8: 2237-02-28 | IL8: 2238-02-28 | IM8: 2239-02-28 | IN8: 2240-02-29 | IO8: 2241-02-28 | IP8: 2242-02-28 | IQ8: 2243-02-28 | IR8: 2244-02-29 | IS8: 2245-02-28 | IT8: 2246-02-28 | IU8: 2247-02-28 | IV8: 2248-02-29 | IW8: 2249-02-28 | IX8: 2250-02-28 | IY8: 2251-02-28 | IZ8: 2252-02-29 | JA8: 2253-02-28 | JB8: 2254-02-28 | JC8: 2255-02-28 | JD8: 2256-02-29 | JE8: 2257-02-28 | JF8: =EOMONTH(JF7,JF6-1) -> 2258-02-28 | JG8: 2259-02-28 | JH8: 2260-02-29 | JI8: 2261-02-28 | JJ8: 2262-02-28 | JK8: 2263-02-28 | JL8: 2264-02-29 | JM8: 2265-02-28 | JN8: 2266-02-28 | JO8: 2267-02-28 | JP8: 2268-02-29 | JQ8: 2269-02-28 | JR8: 2270-02-28 | JS8: 2271-02-28 | JT8: 2272-02-29 | JU8: 2273-02-28 | JV8: 2274-02-28 | JW8: 2275-02-28 | JX8: 2276-02-29 | JY8: 2277-02-28 | JZ8: 2278-02-28 | KA8: 2279-02-28 | KB8: 2280-02-29 | KC8: 2281-02-28 | KD8: 2282-02-28 | KE8: 2283-02-28 | KF8: 2284-02-29 | KG8: 2285-02-28 | KH8: 2286-02-28 | KI8: 2287-02-28 | KJ8: 2288-02-29 | KK8: 2289-02-28 | KL8: 2290-02-28 | KM8: 2291-02-28 | KN8: 2292-02-29 | KO8: 2293-02-28 | KP8: 2294-02-28 | KQ8: 2295-02-28 | KR8: 2296-02-29 | KS8: 2297-02-28 | KT8: 2298-02-28 | KU8: 2299-02-28 | KV8: 2300-02-28 | KW8: 2301-02-28 | KX8: 2302-02-28 | KY8: 2303-02-28 | KZ8: 2304-02-29 | LA8: 2305-02-28 | LB8: 2306-02-28 | LC8: 2307-02-28 | LD8: 2308-02-29 | LE8: 2309-02-28 | LF8: 2310-02-28 | LG8: 2311-02-28 | LH8: 2312-02-29 | LI8: 2313-02-28 | LJ8: 2314-02-28 | LK8: 2315-02-28 | LL8: 2316-02-29 | LM8: 2317-02-28 | LN8: 2318-02-28 | LO8: 2319-02-28 | LP8: 2320-02-29 | LQ8: 2321-02-28 | LR8: =EOMONTH(LR7,LR6-1) -> 2322-02-28 | LS8: 2323-02-28 | LT8: 2324-02-29 | LU8: 2325-02-28 | LV8: 2326-02-28 | LW8: 2327-02-28 | LX8: 2328-02-29 | LY8: 2329-02-28 | LZ8: 2330-02-28 | MA8: 2331-02-28 | MB8: 2332-02-29 | MC8: 2333-02-28 | MD8: 2334-02-28 | ME8: 2335-02-28 | MF8: 2336-02-29 | MG8: 2337-02-28 | MH8: 2338-02-28 | MI8: 2339-02-28 | MJ8: 2340-02-29 | MK8: 2341-02-28 | ML8: 2342-02-28 | MM8: 2343-02-28 | MN8: 2344-02-29 | MO8: 2345-02-28 | MP8: 2346-02-28 | MQ8: 2347-02-28 | MR8: 2348-02-29 | MS8: 2349-02-28 | MT8: 2350-02-28 | MU8: 2351-02-28 | MV8: 2352-02-29 | MW8: 2353-02-28 | MX8: 2354-02-28 | MY8: 2355-02-28 | MZ8: 2356-02-29 | NA8: 2357-02-28 | NB8: 2358-02-28 | NC8: 2359-02-28 | ND8: 2360-02-29 | NE8: 2361-02-28 | NF8: 2362-02-28 | NG8: 2363-02-28 | NH8: 2364-02-29 | NI8: 2365-02-28 | NJ8: 2366-02-28 | NK8: 2367-02-28 | NL8: 2368-02-29 | NM8: 2369-02-28 | NN8: 2370-02-28 | NO8: 2371-02-28 | NP8: 2372-02-29 | NQ8: 2373-02-28 | NR8: 2374-02-28 | NS8: 2375-02-28 | NT8: 2376-02-29 | NU8: 2377-02-28 | NV8: 2378-02-28 | NW8: 2379-02-28 | NX8: 2380-02-29 | NY8: 2381-02-28 | NZ8: 2382-02-28 | OA8: 2383-02-28 | OB8: 2384-02-29 | OC8: 2385-02-28 | OD8: =EOMONTH(OD7,OD6-1) -> 2386-02-28 | OE8: 2387-02-28 | OF8: 2388-02-29 | OG8: 2389-02-28 | OH8: 2390-02-28 | OI8: 2391-02-28 | OJ8: 2392-02-29 | OK8: 2393-02-28 | OL8: 2394-02-28 | OM8: 2395-02-28 | ON8: 2396-02-29 | OO8: 2397-02-28 | OP8: 2398-02-28 | OQ8: 2399-02-28 | OR8: 2400-02-29 | OS8: 2401-02-28 | OT8: 2402-02-28 | OU8: 2403-02-28 | OV8: 2404-02-29 | OW8: 2405-02-28 | OX8: 2406-02-28 | OY8: 2407-02-28 | OZ8: 2408-02-29 | PA8: 2409-02-28 | PB8: 2410-02-28 | PC8: 2411-02-28 | PD8: 2412-02-29 | PE8: 2413-02-28 | PF8: 2414-02-28 | PG8: 2415-02-28 | PH8: 2416-02-29 | PI8: 2417-02-28 | PJ8: 2418-02-28 | PK8: 2419-02-28 | PL8: 2420-02-29 | PM8: 2421-02-28 | PN8: 2422-02-28 | PO8: 2423-02-28 | PP8: 2424-02-29 | PQ8: 2425-02-28 | PR8: 2426-02-28 | PS8: 2427-02-28 | PT8: 2428-02-29 | PU8: 2429-02-28 | PV8: 2430-02-28 | PW8: 2431-02-28 | PX8: 2432-02-29 | PY8: 2433-02-28 | PZ8: 2434-02-28 | QA8: 2435-02-28 | QB8: 2436-02-29 | QC8: 2437-02-28 | QD8: 2438-02-28 | QE8: 2439-02-28 | QF8: 2440-02-29 | QG8: 2441-02-28 | QH8: 2442-02-28 | QI8: 2443-02-28 | QJ8: 2444-02-29 | QK8: 2445-02-28 | QL8: 2446-02-28 | QM8: 2447-02-28 | QN8: 2448-02-29 | QO8: 2449-02-28 | QP8: =EOMONTH(QP7,QP6-1) -> 2450-02-28 | QQ8: 2451-02-28 | QR8: 2452-02-29 | QS8: 2453-02-28 | QT8: 2454-02-28 | QU8: 2455-02-28 | QV8: 2456-02-29 | QW8: 2457-02-28 | QX8: 2458-02-28 | QY8: 2459-02-28 | QZ8: 2460-02-29 | RA8: 2461-02-28 | RB8: 2462-02-28 | RC8: 2463-02-28 | RD8: 2464-02-29 | RE8: 2465-02-28 | RF8: 2466-02-28 | RG8: 2467-02-28 | RH8: 2468-02-29 | RI8: 2469-02-28 | RJ8: 2470-02-28 | RK8: 2471-02-28 | RL8: 2472-02-29 | RM8: 2473-02-28 | RN8: 2474-02-28 | RO8: 2475-02-28 | RP8: 2476-02-29 | RQ8: 2477-02-28 | RR8: 2478-02-28 | RS8: 2479-02-28 | RT8: 2480-02-29 | RU8: 2481-02-28 | RV8: 2482-02-28 | RW8: 2483-02-28 | RX8: 2484-02-29 | RY8: 2485-02-28 | RZ8: 2486-02-28 | SA8: 2487-02-28 | SB8: 2488-02-29 | SC8: 2489-02-28 | SD8: 2490-02-28 | SE8: 2491-02-28 | SF8: 2492-02-29 | SG8: 2493-02-28 | SH8: 2494-02-28 | SI8: 2495-02-28 | SJ8: 2496-02-29 | SK8: 2497-02-28 | SL8: 2498-02-28 | SM8: 2499-02-28 | SN8: 2500-02-28 | SO8: 2501-02-28 | SP8: 2502-02-28 | SQ8: 2503-02-28 | SR8: 2504-02-29 | SS8: 2505-02-28 | ST8: 2506-02-28 | SU8: 2507-02-28 | SV8: 2508-02-29 | SW8: 2509-02-28 | SX8: 2510-02-28 | SY8: 2511-02-28 | SZ8: 2512-02-29 | TA8: 2513-02-28 | TB8: =EOMONTH(TB7,TB6-1) -> 2514-02-28 | TC8: 2515-02-28 | TD8: 2516-02-29 | TE8: 2517-02-28 | TF8: 2518-02-28 | TG8: 2519-02-28 | TH8: 2520-02-29 | TI8: 2521-02-28 | TJ8: 2522-02-28 | TK8: 2523-02-28 | TL8: 2524-02-29 | TM8: 2525-02-28 | TN8: 2526-02-28 | TO8: 2527-02-28 | TP8: 2528-02-29 | TQ8: 2529-02-28 | TR8: 2530-02-28 | TS8: 2531-02-28 | TT8: 2532-02-29 | TU8: 2533-02-28 | TV8: 2534-02-28 | TW8: 2535-02-28 | TX8: 2536-02-29 | TY8: 2537-02-28 | TZ8: 2538-02-28 | UA8: 2539-02-28 | UB8: 2540-02-29 | UC8: 2541-02-28 | UD8: 2542-02-28 | UE8: 2543-02-28 | UF8: 2544-02-29 | UG8: 2545-02-28 | UH8: 2546-02-28 | UI8: 2547-02-28 | UJ8: 2548-02-29 | UK8: 2549-02-28 | UL8: 2550-02-28 | UM8: 2551-02-28 | UN8: 2552-02-29 | UO8: 2553-02-28 | UP8: 2554-02-28 | UQ8: 2555-02-28 | UR8: 2556-02-29 | US8: 2557-02-28 | UT8: 2558-02-28 | UU8: 2559-02-28 | UV8: 2560-02-29 | UW8: 2561-02-28 | UX8: 2562-02-28 | UY8: 2563-02-28 | UZ8: 2564-02-29 | VA8: 2565-02-28 | VB8: 2566-02-28 | VC8: 2567-02-28 | VD8: 2568-02-29 | VE8: 2569-02-28 | VF8: 2570-02-28 | VG8: 2571-02-28 | VH8: 2572-02-29 | VI8: 2573-02-28 | VJ8: 2574-02-28 | VK8: 2575-02-28 | VL8: 2576-02-29 | VM8: 2577-02-28 | VN8: =EOMONTH(VN7,VN6-1) -> 2578-02-28 | VO8: 2579-02-28 | VP8: 2580-02-29 | VQ8: 2581-02-28 | VR8: 2582-02-28 | VS8: 2583-02-28 | VT8: 2584-02-29 | VU8: 2585-02-28 | VV8: 2586-02-28 | VW8: 2587-02-28 | VX8: 2588-02-29 | VY8: 2589-02-28 | VZ8: 2590-02-28 | WA8: 2591-02-28 | WB8: 2592-02-29 | WC8: 2593-02-28 | WD8: 2594-02-28 | WE8: 2595-02-28 | WF8: 2596-02-29 | WG8: 2597-02-28 | WH8: 2598-02-28 | WI8: 2599-02-28 | WJ8: 2600-02-28 | WK8: 2601-02-28 | WL8: 2602-02-28 | WM8: 2603-02-28 | WN8: 2604-02-29 | WO8: 2605-02-28 | WP8: 2606-02-28 | WQ8: 2607-02-28 | WR8: 2608-02-29 | WS8: 2609-02-28 | WT8: 2610-02-28 | WU8: 2611-02-28 | WV8: 2612-02-29 | WW8: 2613-02-28 | WX8: 2614-02-28 | WY8: 2615-02-28 | WZ8: 2616-02-29 | XA8: 2617-02-28 | XB8: 2618-02-28 | XC8: 2619-02-28 | XD8: 2620-02-29 | XE8: 2621-02-28 | XF8: 2622-02-28 | XG8: 2623-02-28 | XH8: 2624-02-29 | XI8: 2625-02-28 | XJ8: 2626-02-28 | XK8: 2627-02-28 | XL8: 2628-02-29 | XM8: 2629-02-28 | XN8: 2630-02-28 | XO8: 2631-02-28 | XP8: 2632-02-29 | XQ8: 2633-02-28 | XR8: 2634-02-28 | XS8: 2635-02-28 | XT8: 2636-02-29 | XU8: 2637-02-28 | XV8: 2638-02-28 | XW8: 2639-02-28 | XX8: 2640-02-29 | XY8: 2641-02-28 | XZ8: =EOMONTH(XZ7,XZ6-1) -> 2642-02-28 | YA8: 2643-02-28 | YB8: 2644-02-29 | YC8: 2645-02-28 | YD8: 2646-02-28 | YE8: 2647-02-28 | YF8: 2648-02-29 | YG8: 2649-02-28 | YH8: 2650-02-28 | YI8: 2651-02-28 | YJ8: 2652-02-29 | YK8: 2653-02-28 | YL8: 2654-02-28 | YM8: 2655-02-28 | YN8: 2656-02-29 | YO8: 2657-02-28 | YP8: 2658-02-28 | YQ8: 2659-02-28 | YR8: 2660-02-29 | YS8: 2661-02-28 | YT8: 2662-02-28 | YU8: 2663-02-28 | YV8: 2664-02-29 | YW8: 2665-02-28 | YX8: 2666-02-28 | YY8: 2667-02-28 | YZ8: 2668-02-29 | ZA8: 2669-02-28 | ZB8: 2670-02-28 | ZC8: 2671-02-28 | ZD8: 2672-02-29 | ZE8: 2673-02-28 | ZF8: 2674-02-28 | ZG8: 2675-02-28 | ZH8: 2676-02-29 | ZI8: 2677-02-28 | ZJ8: 2678-02-28 | ZK8: 2679-02-28 | ZL8: 2680-02-29 | ZM8: 2681-02-28 | ZN8: 2682-02-28 | ZO8: 2683-02-28 | ZP8: 2684-02-29 | ZQ8: 2685-02-28 | ZR8: 2686-02-28 | ZS8: 2687-02-28 | ZT8: 2688-02-29 | ZU8: 2689-02-28 | ZV8: 2690-02-28 | ZW8: 2691-02-28 | ZX8: 2692-02-29 | ZY8: 2693-02-28 | ZZ8: 2694-02-28 | AAA8: 2695-02-28 | AAB8: 2696-02-29 | AAC8: 2697-02-28 | AAD8: 2698-02-28 | AAE8: 2699-02-28 | AAF8: 2700-02-28 | AAG8: 2701-02-28 | AAH8: 2702-02-28 | AAI8: 2703-02-28 | AAJ8: 2704-02-29 | AAK8: 2705-02-28 | AAL8: =EOMONTH(AAL7,AAL6-1) -> 2706-02-28 | AAM8: 2707-02-28 | AAN8: 2708-02-29 | AAO8: 2709-02-28 | AAP8: 2710-02-28 | AAQ8: 2711-02-28 | AAR8: 2712-02-29 | AAS8: 2713-02-28 | AAT8: 2714-02-28 | AAU8: 2715-02-28 | AAV8: 2716-02-29 | AAW8: 2717-02-28 | AAX8: 2718-02-28 | AAY8: 2719-02-28 | AAZ8: 2720-02-29 | ABA8: 2721-02-28 | ABB8: 2722-02-28 | ABC8: 2723-02-28 | ABD8: 2724-02-29 | ABE8: 2725-02-28 | ABF8: 2726-02-28 | ABG8: 2727-02-28 | ABH8: 2728-02-29 | ABI8: 2729-02-28 | ABJ8: 2730-02-28 | ABK8: 2731-02-28 | ABL8: 2732-02-29 | ABM8: 2733-02-28 | ABN8: 2734-02-28 | ABO8: 2735-02-28 | ABP8: 2736-02-29 | ABQ8: 2737-02-28 | ABR8: 2738-02-28 | ABS8: 2739-02-28 | ABT8: 2740-02-29 | ABU8: 2741-02-28 | ABV8: 2742-02-28 | ABW8: 2743-02-28 | ABX8: 2744-02-29 | ABY8: 2745-02-28 | ABZ8: 2746-02-28 | ACA8: 2747-02-28 | ACB8: 2748-02-29 | ACC8: 2749-02-28 | ACD8: 2750-02-28 | ACE8: 2751-02-28 | ACF8: 2752-02-29 | ACG8: 2753-02-28 | ACH8: 2754-02-28 | ACI8: 2755-02-28 | ACJ8: 2756-02-29 | ACK8: 2757-02-28 | ACL8: 2758-02-28 | ACM8: 2759-02-28 | ACN8: 2760-02-29 | ACO8: 2761-02-28 | ACP8: 2762-02-28 | ACQ8: 2763-02-28 | ACR8: 2764-02-29 | ACS8: 2765-02-28 | ACT8: 2766-02-28 | ACU8: 2767-02-28 | ACV8: 2768-02-29 | ACW8: 2769-02-28 | ACX8: =EOMONTH(ACX7,ACX6-1) -> 2770-02-28 | ACY8: 2771-02-28 | ACZ8: 2772-02-29 | ADA8: 2773-02-28 | ADB8: 2774-02-28 | ADC8: 2775-02-28 | ADD8: 2776-02-29 | ADE8: 2777-02-28 | ADF8: 2778-02-28 | ADG8: 2779-02-28 | ADH8: 2780-02-29 | ADI8: 2781-02-28 | ADJ8: 2782-02-28 | ADK8: 2783-02-28 | ADL8: 2784-02-29 | ADM8: 2785-02-28 | ADN8: 2786-02-28 | ADO8: 2787-02-28 | ADP8: 2788-02-29 | ADQ8: 2789-02-28 | ADR8: 2790-02-28 | ADS8: 2791-02-28 | ADT8: 2792-02-29 | ADU8: 2793-02-28 | ADV8: 2794-02-28 | ADW8: 2795-02-28 | ADX8: 2796-02-29 | ADY8: 2797-02-28 | ADZ8: 2798-02-28 | AEA8: 2799-02-28 | AEB8: 2800-02-29 | AEC8: 2801-02-28 | AED8: 2802-02-28 | AEE8: 2803-02-28 | AEF8: 2804-02-29 | AEG8: 2805-02-28 | AEH8: 2806-02-28 | AEI8: 2807-02-28 | AEJ8: 2808-02-29 | AEK8: 2809-02-28 | AEL8: 2810-02-28 | AEM8: 2811-02-28 | AEN8: 2812-02-29 | AEO8: 2813-02-28 | AEP8: 2814-02-28 | AEQ8: 2815-02-28 | AER8: 2816-02-29 | AES8: 2817-02-28 | AET8: 2818-02-28 | AEU8: 2819-02-28 | AEV8: 2820-02-29 | AEW8: 2821-02-28 | AEX8: 2822-02-28 | AEY8: 2823-02-28 | AEZ8: 2824-02-29 | AFA8: 2825-02-28 | AFB8: 2826-02-28 | AFC8: 2827-02-28 | AFD8: 2828-02-29 | AFE8: 2829-02-28 | AFF8: 2830-02-28 | AFG8: 2831-02-28 | AFH8: 2832-02-29 | AFI8: 2833-02-28 | AFJ8: =EOMONTH(AFJ7,AFJ6-1) -> 2834-02-28 | AFK8: 2835-02-28 | AFL8: 2836-02-29 | AFM8: 2837-02-28 | AFN8: 2838-02-28 | AFO8: 2839-02-28 | AFP8: 2840-02-29 | AFQ8: 2841-02-28 | AFR8: 2842-02-28 | AFS8: 2843-02-28 | AFT8: 2844-02-29 | AFU8: 2845-02-28 | AFV8: 2846-02-28 | AFW8: 2847-02-28 | AFX8: 2848-02-29 | AFY8: 2849-02-28 | AFZ8: 2850-02-28 | AGA8: 2851-02-28 | AGB8: 2852-02-29 | AGC8: 2853-02-28 | AGD8: 2854-02-28 | AGE8: 2855-02-28 | AGF8: 2856-02-29 | AGG8: 2857-02-28 | AGH8: 2858-02-28 | AGI8: 2859-02-28 | AGJ8: 2860-02-29 | AGK8: 2861-02-28
B9: Operating Period (COD) | E9: =EDATE(E7,E5+E6) -> 2001-03-01 | F9: ='Carrying Charge'!F46 -> 2021-03-01 | G9: =COUNTIF(H9:AGK9,TRUE) -> 20 | I9: =AND(I7>=$E$9,I7<$F$9) -> FALSE | J9: =AND(J7>=$E$9,J7<$F$9) -> TRUE | K9: TRUE | L9: TRUE | M9: TRUE | N9: TRUE | O9: TRUE | P9: TRUE | Q9: TRUE | R9: TRUE | S9: TRUE | T9: TRUE | U9: TRUE | V9: TRUE | W9: TRUE | X9: TRUE | Y9: TRUE | Z9: TRUE | AA9: TRUE | AB9: TRUE | AC9: TRUE | AD9: FALSE | AE9: FALSE | AF9: FALSE | AG9: FALSE | AH9: FALSE | AI9: FALSE | AJ9: FALSE | AK9: FALSE | AL9: FALSE | AM9: FALSE | AN9: FALSE | AO9: FALSE | AP9: FALSE | AQ9: FALSE | AR9: FALSE | AS9: FALSE | AT9: FALSE | AU9: FALSE | AV9: FALSE | AW9: FALSE | AX9: FALSE | AY9: FALSE | AZ9: FALSE | BA9: FALSE | BB9: FALSE | BC9: FALSE | BD9: FALSE | BE9: FALSE | BF9: FALSE | BG9: FALSE | BH9: FALSE | BI9: FALSE | BJ9: FALSE | BK9: FALSE | BL9: FALSE | BM9: FALSE | BN9: FALSE | BO9: FALSE | BP9: FALSE | BQ9: FALSE | BR9: FALSE | BS9: FALSE | BT9: FALSE | BU9: FALSE | BV9: =AND(BV7>=$E$9,BV7<$F$9) -> FALSE | BW9: FALSE | BX9: FALSE | BY9: FALSE | BZ9: FALSE | CA9: FALSE | CB9: FALSE | CC9: FALSE | CD9: FALSE | CE9: FALSE | CF9: FALSE | CG9: FALSE | CH9: FALSE | CI9: FALSE | CJ9: FALSE | CK9: FALSE | CL9: FALSE | CM9: FALSE | CN9: FALSE | CO9: FALSE | CP9: FALSE | CQ9: FALSE | CR9: FALSE | CS9: FALSE | CT9: FALSE | CU9: FALSE | CV9: FALSE | CW9: FALSE | CX9: FALSE | CY9: FALSE | CZ9: FALSE | DA9: FALSE | DB9: FALSE | DC9: FALSE | DD9: FALSE | DE9: FALSE | DF9: FALSE | DG9: FALSE | DH9: FALSE | DI9: FALSE | DJ9: FALSE | DK9: FALSE | DL9: FALSE | DM9: FALSE | DN9: FALSE | DO9: FALSE | DP9: FALSE | DQ9: FALSE | DR9: FALSE | DS9: FALSE | DT9: FALSE | DU9: FALSE | DV9: FALSE | DW9: FALSE | DX9: FALSE | DY9: FALSE | DZ9: FALSE | EA9: FALSE | EB9: FALSE | EC9: FALSE | ED9: FALSE | EE9: FALSE | EF9: FALSE | EG9: FALSE | EH9: =AND(EH7>=$E$9,EH7<$F$9) -> FALSE | EI9: FALSE | EJ9: FALSE | EK9: FALSE | EL9: FALSE | EM9: FALSE | EN9: FALSE | EO9: FALSE | EP9: FALSE | EQ9: FALSE | ER9: FALSE | ES9: FALSE | ET9: FALSE | EU9: FALSE | EV9: FALSE | EW9: FALSE | EX9: FALSE | EY9: FALSE | EZ9: FALSE | FA9: FALSE | FB9: FALSE | FC9: FALSE | FD9: FALSE | FE9: FALSE | FF9: FALSE | FG9: FALSE | FH9: FALSE | FI9: FALSE | FJ9: FALSE | FK9: FALSE | FL9: FALSE | FM9: FALSE | FN9: FALSE | FO9: FALSE | FP9: FALSE | FQ9: FALSE | FR9: FALSE | FS9: FALSE | FT9: FALSE | FU9: FALSE | FV9: FALSE | FW9: FALSE | FX9: FALSE | FY9: FALSE | FZ9: FALSE | GA9: FALSE | GB9: FALSE | GC9: FALSE | GD9: FALSE | GE9: FALSE | GF9: FALSE | GG9: FALSE | GH9: FALSE | GI9: FALSE | GJ9: FALSE | GK9: FALSE | GL9: FALSE | GM9: FALSE | GN9: FALSE | GO9: FALSE | GP9: FALSE | GQ9: FALSE | GR9: FALSE | GS9: FALSE | GT9: =AND(GT7>=$E$9,GT7<$F$9) -> FALSE | GU9: FALSE | GV9: FALSE | GW9: FALSE | GX9: FALSE | GY9: FALSE | GZ9: FALSE | HA9: FALSE | HB9: FALSE | HC9: FALSE | HD9: FALSE | HE9: FALSE | HF9: FALSE | HG9: FALSE | HH9: FALSE | HI9: FALSE | HJ9: FALSE | HK9: FALSE | HL9: FALSE | HM9: FALSE | HN9: FALSE | HO9: FALSE | HP9: FALSE | HQ9: FALSE | HR9: FALSE | HS9: FALSE | HT9: FALSE | HU9: FALSE | HV9: FALSE | HW9: FALSE | HX9: FALSE | HY9: FALSE | HZ9: FALSE | IA9: FALSE | IB9: FALSE | IC9: FALSE | ID9: FALSE | IE9: FALSE | IF9: FALSE | IG9: FALSE | IH9: FALSE | II9: FALSE | IJ9: FALSE | IK9: FALSE | IL9: FALSE | IM9: FALSE | IN9: FALSE | IO9: FALSE | IP9: FALSE | IQ9: FALSE | IR9: FALSE | IS9: FALSE | IT9: FALSE | IU9: FALSE | IV9: FALSE | IW9: FALSE | IX9: FALSE | IY9: FALSE | IZ9: FALSE | JA9: FALSE | JB9: FALSE | JC9: FALSE | JD9: FALSE | JE9: FALSE | JF9: =AND(JF7>=$E$9,JF7<$F$9) -> FALSE | JG9: FALSE | JH9: FALSE | JI9: FALSE | JJ9: FALSE | JK9: FALSE | JL9: FALSE | JM9: FALSE | JN9: FALSE | JO9: FALSE | JP9: FALSE | JQ9: FALSE | JR9: FALSE | JS9: FALSE | JT9: FALSE | JU9: FALSE | JV9: FALSE | JW9: FALSE | JX9: FALSE | JY9: FALSE | JZ9: FALSE | KA9: FALSE | KB9: FALSE | KC9: FALSE | KD9: FALSE | KE9: FALSE | KF9: FALSE | KG9: FALSE | KH9: FALSE | KI9: FALSE | KJ9: FALSE | KK9: FALSE | KL9: FALSE | KM9: FALSE | KN9: FALSE | KO9: FALSE | KP9: FALSE | KQ9: FALSE | KR9: FALSE | KS9: FALSE | KT9: FALSE | KU9: FALSE | KV9: FALSE | KW9: FALSE | KX9: FALSE | KY9: FALSE | KZ9: FALSE | LA9: FALSE | LB9: FALSE | LC9: FALSE | LD9: FALSE | LE9: FALSE | LF9: FALSE | LG9: FALSE | LH9: FALSE | LI9: FALSE | LJ9: FALSE | LK9: FALSE | LL9: FALSE | LM9: FALSE | LN9: FALSE | LO9: FALSE | LP9: FALSE | LQ9: FALSE | LR9: =AND(LR7>=$E$9,LR7<$F$9) -> FALSE | LS9: FALSE | LT9: FALSE | LU9: FALSE | LV9: FALSE | LW9: FALSE | LX9: FALSE | LY9: FALSE | LZ9: FALSE | MA9: FALSE | MB9: FALSE | MC9: FALSE | MD9: FALSE | ME9: FALSE | MF9: FALSE | MG9: FALSE | MH9: FALSE | MI9: FALSE | MJ9: FALSE | MK9: FALSE | ML9: FALSE | MM9: FALSE | MN9: FALSE | MO9: FALSE | MP9: FALSE | MQ9: FALSE | MR9: FALSE | MS9: FALSE | MT9: FALSE | MU9: FALSE | MV9: FALSE | MW9: FALSE | MX9: FALSE | MY9: FALSE | MZ9: FALSE | NA9: FALSE | NB9: FALSE | NC9: FALSE | ND9: FALSE | NE9: FALSE | NF9: FALSE | NG9: FALSE | NH9: FALSE | NI9: FALSE | NJ9: FALSE | NK9: FALSE | NL9: FALSE | NM9: FALSE | NN9: FALSE | NO9: FALSE | NP9: FALSE | NQ9: FALSE | NR9: FALSE | NS9: FALSE | NT9: FALSE | NU9: FALSE | NV9: FALSE | NW9: FALSE | NX9: FALSE | NY9: FALSE | NZ9: FALSE | OA9: FALSE | OB9: FALSE | OC9: FALSE | OD9: =AND(OD7>=$E$9,OD7<$F$9) -> FALSE | OE9: FALSE | OF9: FALSE | OG9: FALSE | OH9: FALSE | OI9: FALSE | OJ9: FALSE | OK9: FALSE | OL9: FALSE | OM9: FALSE | ON9: FALSE | OO9: FALSE | OP9: FALSE | OQ9: FALSE | OR9: FALSE | OS9: FALSE | OT9: FALSE | OU9: FALSE | OV9: FALSE | OW9: FALSE | OX9: FALSE | OY9: FALSE | OZ9: FALSE | PA9: FALSE | PB9: FALSE | PC9: FALSE | PD9: FALSE | PE9: FALSE | PF9: FALSE | PG9: FALSE | PH9: FALSE | PI9: FALSE | PJ9: FALSE | PK9: FALSE | PL9: FALSE | PM9: FALSE | PN9: FALSE | PO9: FALSE | PP9: FALSE | PQ9: FALSE | PR9: FALSE | PS9: FALSE | PT9: FALSE | PU9: FALSE | PV9: FALSE | PW9: FALSE | PX9: FALSE | PY9: FALSE | PZ9: FALSE | QA9: FALSE | QB9: FALSE | QC9: FALSE | QD9: FALSE | QE9: FALSE | QF9: FALSE | QG9: FALSE | QH9: FALSE | QI9: FALSE | QJ9: FALSE | QK9: FALSE | QL9: FALSE | QM9: FALSE | QN9: FALSE | QO9: FALSE | QP9: =AND(QP7>=$E$9,QP7<$F$9) -> FALSE | QQ9: FALSE | QR9: FALSE | QS9: FALSE | QT9: FALSE | QU9: FALSE | QV9: FALSE | QW9: FALSE | QX9: FALSE | QY9: FALSE | QZ9: FALSE | RA9: FALSE | RB9: FALSE | RC9: FALSE | RD9: FALSE | RE9: FALSE | RF9: FALSE | RG9: FALSE | RH9: FALSE | RI9: FALSE | RJ9: FALSE | RK9: FALSE | RL9: FALSE | RM9: FALSE | RN9: FALSE | RO9: FALSE | RP9: FALSE | RQ9: FALSE | RR9: FALSE | RS9: FALSE | RT9: FALSE | RU9: FALSE | RV9: FALSE | RW9: FALSE | RX9: FALSE | RY9: FALSE | RZ9: FALSE | SA9: FALSE | SB9: FALSE | SC9: FALSE | SD9: FALSE | SE9: FALSE | SF9: FALSE | SG9: FALSE | SH9: FALSE | SI9: FALSE | SJ9: FALSE | SK9: FALSE | SL9: FALSE | SM9: FALSE | SN9: FALSE | SO9: FALSE | SP9: FALSE | SQ9: FALSE | SR9: FALSE | SS9: FALSE | ST9: FALSE | SU9: FALSE | SV9: FALSE | SW9: FALSE | SX9: FALSE | SY9: FALSE | SZ9: FALSE | TA9: FALSE | TB9: =AND(TB7>=$E$9,TB7<$F$9) -> FALSE | TC9: FALSE | TD9: FALSE | TE9: FALSE | TF9: FALSE | TG9: FALSE | TH9: FALSE | TI9: FALSE | TJ9: FALSE | TK9: FALSE | TL9: FALSE | TM9: FALSE | TN9: FALSE | TO9: FALSE | TP9: FALSE | TQ9: FALSE | TR9: FALSE | TS9: FALSE | TT9: FALSE | TU9: FALSE | TV9: FALSE | TW9: FALSE | TX9: FALSE | TY9: FALSE | TZ9: FALSE | UA9: FALSE | UB9: FALSE | UC9: FALSE | UD9: FALSE | UE9: FALSE | UF9: FALSE | UG9: FALSE | UH9: FALSE | UI9: FALSE | UJ9: FALSE | UK9: FALSE | UL9: FALSE | UM9: FALSE | UN9: FALSE | UO9: FALSE | UP9: FALSE | UQ9: FALSE | UR9: FALSE | US9: FALSE | UT9: FALSE | UU9: FALSE | UV9: FALSE | UW9: FALSE | UX9: FALSE | UY9: FALSE | UZ9: FALSE | VA9: FALSE | VB9: FALSE | VC9: FALSE | VD9: FALSE | VE9: FALSE | VF9: FALSE | VG9: FALSE | VH9: FALSE | VI9: FALSE | VJ9: FALSE | VK9: FALSE | VL9: FALSE | VM9: FALSE | VN9: =AND(VN7>=$E$9,VN7<$F$9) -> FALSE | VO9: FALSE | VP9: FALSE | VQ9: FALSE | VR9: FALSE | VS9: FALSE | VT9: FALSE | VU9: FALSE | VV9: FALSE | VW9: FALSE | VX9: FALSE | VY9: FALSE | VZ9: FALSE | WA9: FALSE | WB9: FALSE | WC9: FALSE | WD9: FALSE | WE9: FALSE | WF9: FALSE | WG9: FALSE | WH9: FALSE | WI9: FALSE | WJ9: FALSE | WK9: FALSE | WL9: FALSE | WM9: FALSE | WN9: FALSE | WO9: FALSE | WP9: FALSE | WQ9: FALSE | WR9: FALSE | WS9: FALSE | WT9: FALSE | WU9: FALSE | WV9: FALSE | WW9: FALSE | WX9: FALSE | WY9: FALSE | WZ9: FALSE | XA9: FALSE | XB9: FALSE | XC9: FALSE | XD9: FALSE | XE9: FALSE | XF9: FALSE | XG9: FALSE | XH9: FALSE | XI9: FALSE | XJ9: FALSE | XK9: FALSE | XL9: FALSE | XM9: FALSE | XN9: FALSE | XO9: FALSE | XP9: FALSE | XQ9: FALSE | XR9: FALSE | XS9: FALSE | XT9: FALSE | XU9: FALSE | XV9: FALSE | XW9: FALSE | XX9: FALSE | XY9: FALSE | XZ9: =AND(XZ7>=$E$9,XZ7<$F$9) -> FALSE | YA9: FALSE | YB9: FALSE | YC9: FALSE | YD9: FALSE | YE9: FALSE | YF9: FALSE | YG9: FALSE | YH9: FALSE | YI9: FALSE | YJ9: FALSE | YK9: FALSE | YL9: FALSE | YM9: FALSE | YN9: FALSE | YO9: FALSE | YP9: FALSE | YQ9: FALSE | YR9: FALSE | YS9: FALSE | YT9: FALSE | YU9: FALSE | YV9: FALSE | YW9: FALSE | YX9: FALSE | YY9: FALSE | YZ9: FALSE | ZA9: FALSE | ZB9: FALSE | ZC9: FALSE | ZD9: FALSE | ZE9: FALSE | ZF9: FALSE | ZG9: FALSE | ZH9: FALSE | ZI9: FALSE | ZJ9: FALSE | ZK9: FALSE | ZL9: FALSE | ZM9: FALSE | ZN9: FALSE | ZO9: FALSE | ZP9: FALSE | ZQ9: FALSE | ZR9: FALSE | ZS9: FALSE | ZT9: FALSE | ZU9: FALSE | ZV9: FALSE | ZW9: FALSE | ZX9: FALSE | ZY9: FALSE | ZZ9: FALSE | AAA9: FALSE | AAB9: FALSE | AAC9: FALSE | AAD9: FALSE | AAE9: FALSE | AAF9: FALSE | AAG9: FALSE | AAH9: FALSE | AAI9: FALSE | AAJ9: FALSE | AAK9: FALSE | AAL9: =AND(AAL7>=$E$9,AAL7<$F$9) -> FALSE | AAM9: FALSE | AAN9: FALSE | AAO9: FALSE | AAP9: FALSE | AAQ9: FALSE | AAR9: FALSE | AAS9: FALSE | AAT9: FALSE | AAU9: FALSE | AAV9: FALSE | AAW9: FALSE | AAX9: FALSE | AAY9: FALSE | AAZ9: FALSE | ABA9: FALSE | ABB9: FALSE | ABC9: FALSE | ABD9: FALSE | ABE9: FALSE | ABF9: FALSE | ABG9: FALSE | ABH9: FALSE | ABI9: FALSE | ABJ9: FALSE | ABK9: FALSE | ABL9: FALSE | ABM9: FALSE | ABN9: FALSE | ABO9: FALSE | ABP9: FALSE | ABQ9: FALSE | ABR9: FALSE | ABS9: FALSE | ABT9: FALSE | ABU9: FALSE | ABV9: FALSE | ABW9: FALSE | ABX9: FALSE | ABY9: FALSE | ABZ9: FALSE | ACA9: FALSE | ACB9: FALSE | ACC9: FALSE | ACD9: FALSE | ACE9: FALSE | ACF9: FALSE | ACG9: FALSE | ACH9: FALSE | ACI9: FALSE | ACJ9: FALSE | ACK9: FALSE | ACL9: FALSE | ACM9: FALSE | ACN9: FALSE | ACO9: FALSE | ACP9: FALSE | ACQ9: FALSE | ACR9: FALSE | ACS9: FALSE | ACT9: FALSE | ACU9: FALSE | ACV9: FALSE | ACW9: FALSE | ACX9: =AND(ACX7>=$E$9,ACX7<$F$9) -> FALSE | ACY9: FALSE | ACZ9: FALSE | ADA9: FALSE | ADB9: FALSE | ADC9: FALSE | ADD9: FALSE | ADE9: FALSE | ADF9: FALSE | ADG9: FALSE | ADH9: FALSE | ADI9: FALSE | ADJ9: FALSE | ADK9: FALSE | ADL9: FALSE | ADM9: FALSE | ADN9: FALSE | ADO9: FALSE | ADP9: FALSE | ADQ9: FALSE | ADR9: FALSE | ADS9: FALSE | ADT9: FALSE | ADU9: FALSE | ADV9: FALSE | ADW9: FALSE | ADX9: FALSE | ADY9: FALSE | ADZ9: FALSE | AEA9: FALSE | AEB9: FALSE | AEC9: FALSE | AED9: FALSE | AEE9: FALSE | AEF9: FALSE | AEG9: FALSE | AEH9: FALSE | AEI9: FALSE | AEJ9: FALSE | AEK9: FALSE | AEL9: FALSE | AEM9: FALSE | AEN9: FALSE | AEO9: FALSE | AEP9: FALSE | AEQ9: FALSE | AER9: FALSE | AES9: FALSE | AET9: FALSE | AEU9: FALSE | AEV9: FALSE | AEW9: FALSE | AEX9: FALSE | AEY9: FALSE | AEZ9: FALSE | AFA9: FALSE | AFB9: FALSE | AFC9: FALSE | AFD9: FALSE | AFE9: FALSE | AFF9: FALSE | AFG9: FALSE | AFH9: FALSE | AFI9: FALSE | AFJ9: =AND(AFJ7>=$E$9,AFJ7<$F$9) -> FALSE | AFK9: FALSE | AFL9: FALSE | AFM9: FALSE | AFN9: FALSE | AFO9: FALSE | AFP9: FALSE | AFQ9: FALSE | AFR9: FALSE | AFS9: FALSE | AFT9: FALSE | AFU9: FALSE | AFV9: FALSE | AFW9: FALSE | AFX9: FALSE | AFY9: FALSE | AFZ9: FALSE | AGA9: FALSE | AGB9: FALSE | AGC9: FALSE | AGD9: FALSE | AGE9: FALSE | AGF9: FALSE | AGG9: FALSE | AGH9: FALSE | AGI9: FALSE | AGJ9: FALSE | AGK9: FALSE
B10: Plant Age | I10: =H10+I9 -> 0 | J10: 1 | K10: 2 | L10: 3 | M10: 4 | N10: 5 | O10: 6 | P10: 7 | Q10: 8 | R10: 9 | S10: 10 | T10: 11 | U10: 12 | V10: 13 | W10: 14 | X10: 15 | Y10: 16 | Z10: 17 | AA10: 18 | AB10: 19 | AC10: 20 | AD10: 20 | AE10: 20 | AF10: 20 | AG10: 20 | AH10: 20 | AI10: 20 | AJ10: 20 | AK10: 20 | AL10: 20 | AM10: 20 | AN10: 20 | AO10: 20 | AP10: 20 | AQ10: 20 | AR10: 20 | AS10: 20 | AT10: 20 | AU10: 20 | AV10: 20 | AW10: 20 | AX10: 20 | AY10: 20 | AZ10: 20 | BA10: 20 | BB10: 20 | BC10: 20 | BD10: 20 | BE10: 20 | BF10: 20 | BG10: 20 | BH10: 20 | BI10: 20 | BJ10: 20 | BK10: 20 | BL10: 20 | BM10: 20 | BN10: 20 | BO10: 20 | BP10: 20 | BQ10: 20 | BR10: 20 | BS10: 20 | BT10: 20 | BU10: =BT10+BU9 -> 20 | BV10: 20 | BW10: 20 | BX10: 20 | BY10: 20 | BZ10: 20 | CA10: 20 | CB10: 20 | CC10: 20 | CD10: 20 | CE10: 20 | CF10: 20 | CG10: 20 | CH10: 20 | CI10: 20 | CJ10: 20 | CK10: 20 | CL10: 20 | CM10: 20 | CN10: 20 | CO10: 20 | CP10: 20 | CQ10: 20 | CR10: 20 | CS10: 20 | CT10: 20 | CU10: 20 | CV10: 20 | CW10: 20 | CX10: 20 | CY10: 20 | CZ10: 20 | DA10: 20 | DB10: 20 | DC10: 20 | DD10: 20 | DE10: 20 | DF10: 20 | DG10: 20 | DH10: 20 | DI10: 20 | DJ10: 20 | DK10: 20 | DL10: 20 | DM10: 20 | DN10: 20 | DO10: 20 | DP10: 20 | DQ10: 20 | DR10: 20 | DS10: 20 | DT10: 20 | DU10: 20 | DV10: 20 | DW10: 20 | DX10: 20 | DY10: 20 | DZ10: 20 | EA10: 20 | EB10: 20 | EC10: 20 | ED10: 20 | EE10: 20 | EF10: 20 | EG10: =EF10+EG9 -> 20 | EH10: 20 | EI10: 20 | EJ10: 20 | EK10: 20 | EL10: 20 | EM10: 20 | EN10: 20 | EO10: 20 | EP10: 20 | EQ10: 20 | ER10: 20 | ES10: 20 | ET10: 20 | EU10: 20 | EV10: 20 | EW10: 20 | EX10: 20 | EY10: 20 | EZ10: 20 | FA10: 20 | FB10: 20 | FC10: 20 | FD10: 20 | FE10: 20 | FF10: 20 | FG10: 20 | FH10: 20 | FI10: 20 | FJ10: 20 | FK10: 20 | FL10: 20 | FM10: 20 | FN10: 20 | FO10: 20 | FP10: 20 | FQ10: 20 | FR10: 20 | FS10: 20 | FT10: 20 | FU10: 20 | FV10: 20 | FW10: 20 | FX10: 20 | FY10: 20 | FZ10: 20 | GA10: 20 | GB10: 20 | GC10: 20 | GD10: 20 | GE10: 20 | GF10: 20 | GG10: 20 | GH10: 20 | GI10: 20 | GJ10: 20 | GK10: 20 | GL10: 20 | GM10: 20 | GN10: 20 | GO10: 20 | GP10: 20 | GQ10: 20 | GR10: 20 | GS10: =GR10+GS9 -> 20 | GT10: 20 | GU10: 20 | GV10: 20 | GW10: 20 | GX10: 20 | GY10: 20 | GZ10: 20 | HA10: 20 | HB10: 20 | HC10: 20 | HD10: 20 | HE10: 20 | HF10: 20 | HG10: 20 | HH10: 20 | HI10: 20 | HJ10: 20 | HK10: 20 | HL10: 20 | HM10: 20 | HN10: 20 | HO10: 20 | HP10: 20 | HQ10: 20 | HR10: 20 | HS10: 20 | HT10: 20 | HU10: 20 | HV10: 20 | HW10: 20 | HX10: 20 | HY10: 20 | HZ10: 20 | IA10: 20 | IB10: 20 | IC10: 20 | ID10: 20 | IE10: 20 | IF10: 20 | IG10: 20 | IH10: 20 | II10: 20 | IJ10: 20 | IK10: 20 | IL10: 20 | IM10: 20 | IN10: 20 | IO10: 20 | IP10: 20 | IQ10: 20 | IR10: 20 | IS10: 20 | IT10: 20 | IU10: 20 | IV10: 20 | IW10: 20 | IX10: 20 | IY10: 20 | IZ10: 20 | JA10: 20 | JB10: 20 | JC10: 20 | JD10: 20 | JE10: =JD10+JE9 -> 20 | JF10: 20 | JG10: 20 | JH10: 20 | JI10: 20 | JJ10: 20 | JK10: 20 | JL10: 20 | JM10: 20 | JN10: 20 | JO10: 20 | JP10: 20 | JQ10: 20 | JR10: 20 | JS10: 20 | JT10: 20 | JU10: 20 | JV10: 20 | JW10: 20 | JX10: 20 | JY10: 20 | JZ10: 20 | KA10: 20 | KB10: 20 | KC10: 20 | KD10: 20 | KE10: 20 | KF10: 20 | KG10: 20 | KH10: 20 | KI10: 20 | KJ10: 20 | KK10: 20 | KL10: 20 | KM10: 20 | KN10: 20 | KO10: 20 | KP10: 20 | KQ10: 20 | KR10: 20 | KS10: 20 | KT10: 20 | KU10: 20 | KV10: 20 | KW10: 20 | KX10: 20 | KY10: 20 | KZ10: 20 | LA10: 20 | LB10: 20 | LC10: 20 | LD10: 20 | LE10: 20 | LF10: 20 | LG10: 20 | LH10: 20 | LI10: 20 | LJ10: 20 | LK10: 20 | LL10: 20 | LM10: 20 | LN10: 20 | LO10: 20 | LP10: 20 | LQ10: =LP10+LQ9 -> 20 | LR10: 20 | LS10: 20 | LT10: 20 | LU10: 20 | LV10: 20 | LW10: 20 | LX10: 20 | LY10: 20 | LZ10: 20 | MA10: 20 | MB10: 20 | MC10: 20 | MD10: 20 | ME10: 20 | MF10: 20 | MG10: 20 | MH10: 20 | MI10: 20 | MJ10: 20 | MK10: 20 | ML10: 20 | MM10: 20 | MN10: 20 | MO10: 20 | MP10: 20 | MQ10: 20 | MR10: 20 | MS10: 20 | MT10: 20 | MU10: 20 | MV10: 20 | MW10: 20 | MX10: 20 | MY10: 20 | MZ10: 20 | NA10: 20 | NB10: 20 | NC10: 20 | ND10: 20 | NE10: 20 | NF10: 20 | NG10: 20 | NH10: 20 | NI10: 20 | NJ10: 20 | NK10: 20 | NL10: 20 | NM10: 20 | NN10: 20 | NO10: 20 | NP10: 20 | NQ10: 20 | NR10: 20 | NS10: 20 | NT10: 20 | NU10: 20 | NV10: 20 | NW10: 20 | NX10: 20 | NY10: 20 | NZ10: 20 | OA10: 20 | OB10: 20 | OC10: =OB10+OC9 -> 20 | OD10: 20 | OE10: 20 | OF10: 20 | OG10: 20 | OH10: 20 | OI10: 20 | OJ10: 20 | OK10: 20 | OL10: 20 | OM10: 20 | ON10: 20 | OO10: 20 | OP10: 20 | OQ10: 20 | OR10: 20 | OS10: 20 | OT10: 20 | OU10: 20 | OV10: 20 | OW10: 20 | OX10: 20 | OY10: 20 | OZ10: 20 | PA10: 20 | PB10: 20 | PC10: 20 | PD10: 20 | PE10: 20 | PF10: 20 | PG10: 20 | PH10: 20 | PI10: 20 | PJ10: 20 | PK10: 20 | PL10: 20 | PM10: 20 | PN10: 20 | PO10: 20 | PP10: 20 | PQ10: 20 | PR10: 20 | PS10: 20 | PT10: 20 | PU10: 20 | PV10: 20 | PW10: 20 | PX10: 20 | PY10: 20 | PZ10: 20 | QA10: 20 | QB10: 20 | QC10: 20 | QD10: 20 | QE10: 20 | QF10: 20 | QG10: 20 | QH10: 20 | QI10: 20 | QJ10: 20 | QK10: 20 | QL10: 20 | QM10: 20 | QN10: 20 | QO10: =QN10+QO9 -> 20 | QP10: 20 | QQ10: 20 | QR10: 20 | QS10: 20 | QT10: 20 | QU10: 20 | QV10: 20 | QW10: 20 | QX10: 20 | QY10: 20 | QZ10: 20 | RA10: 20 | RB10: 20 | RC10: 20 | RD10: 20 | RE10: 20 | RF10: 20 | RG10: 20 | RH10: 20 | RI10: 20 | RJ10: 20 | RK10: 20 | RL10: 20 | RM10: 20 | RN10: 20 | RO10: 20 | RP10: 20 | RQ10: 20 | RR10: 20 | RS10: 20 | RT10: 20 | RU10: 20 | RV10: 20 | RW10: 20 | RX10: 20 | RY10: 20 | RZ10: 20 | SA10: 20 | SB10: 20 | SC10: 20 | SD10: 20 | SE10: 20 | SF10: 20 | SG10: 20 | SH10: 20 | SI10: 20 | SJ10: 20 | SK10: 20 | SL10: 20 | SM10: 20 | SN10: 20 | SO10: 20 | SP10: 20 | SQ10: 20 | SR10: 20 | SS10: 20 | ST10: 20 | SU10: 20 | SV10: 20 | SW10: 20 | SX10: 20 | SY10: 20 | SZ10: 20 | TA10: =SZ10+TA9 -> 20 | TB10: 20 | TC10: 20 | TD10: 20 | TE10: 20 | TF10: 20 | TG10: 20 | TH10: 20 | TI10: 20 | TJ10: 20 | TK10: 20 | TL10: 20 | TM10: 20 | TN10: 20 | TO10: 20 | TP10: 20 | TQ10: 20 | TR10: 20 | TS10: 20 | TT10: 20 | TU10: 20 | TV10: 20 | TW10: 20 | TX10: 20 | TY10: 20 | TZ10: 20 | UA10: 20 | UB10: 20 | UC10: 20 | UD10: 20 | UE10: 20 | UF10: 20 | UG10: 20 | UH10: 20 | UI10: 20 | UJ10: 20 | UK10: 20 | UL10: 20 | UM10: 20 | UN10: 20 | UO10: 20 | UP10: 20 | UQ10: 20 | UR10: 20 | US10: 20 | UT10: 20 | UU10: 20 | UV10: 20 | UW10: 20 | UX10: 20 | UY10: 20 | UZ10: 20 | VA10: 20 | VB10: 20 | VC10: 20 | VD10: 20 | VE10: 20 | VF10: 20 | VG10: 20 | VH10: 20 | VI10: 20 | VJ10: 20 | VK10: 20 | VL10: 20 | VM10: =VL10+VM9 -> 20 | VN10: 20 | VO10: 20 | VP10: 20 | VQ10: 20 | VR10: 20 | VS10: 20 | VT10: 20 | VU10: 20 | VV10: 20 | VW10: 20 | VX10: 20 | VY10: 20 | VZ10: 20 | WA10: 20 | WB10: 20 | WC10: 20 | WD10: 20 | WE10: 20 | WF10: 20 | WG10: 20 | WH10: 20 | WI10: 20 | WJ10: 20 | WK10: 20 | WL10: 20 | WM10: 20 | WN10: 20 | WO10: 20 | WP10: 20 | WQ10: 20 | WR10: 20 | WS10: 20 | WT10: 20 | WU10: 20 | WV10: 20 | WW10: 20 | WX10: 20 | WY10: 20 | WZ10: 20 | XA10: 20 | XB10: 20 | XC10: 20 | XD10: 20 | XE10: 20 | XF10: 20 | XG10: 20 | XH10: 20 | XI10: 20 | XJ10: 20 | XK10: 20 | XL10: 20 | XM10: 20 | XN10: 20 | XO10: 20 | XP10: 20 | XQ10: 20 | XR10: 20 | XS10: 20 | XT10: 20 | XU10: 20 | XV10: 20 | XW10: 20 | XX10: 20 | XY10: =XX10+XY9 -> 20 | XZ10: 20 | YA10: 20 | YB10: 20 | YC10: 20 | YD10: 20 | YE10: 20 | YF10: 20 | YG10: 20 | YH10: 20 | YI10: 20 | YJ10: 20 | YK10: 20 | YL10: 20 | YM10: 20 | YN10: 20 | YO10: 20 | YP10: 20 | YQ10: 20 | YR10: 20 | YS10: 20 | YT10: 20 | YU10: 20 | YV10: 20 | YW10: 20 | YX10: 20 | YY10: 20 | YZ10: 20 | ZA10: 20 | ZB10: 20 | ZC10: 20 | ZD10: 20 | ZE10: 20 | ZF10: 20 | ZG10: 20 | ZH10: 20 | ZI10: 20 | ZJ10: 20 | ZK10: 20 | ZL10: 20 | ZM10: 20 | ZN10: 20 | ZO10: 20 | ZP10: 20 | ZQ10: 20 | ZR10: 20 | ZS10: 20 | ZT10: 20 | ZU10: 20 | ZV10: 20 | ZW10: 20 | ZX10: 20 | ZY10: 20 | ZZ10: 20 | AAA10: 20 | AAB10: 20 | AAC10: 20 | AAD10: 20 | AAE10: 20 | AAF10: 20 | AAG10: 20 | AAH10: 20 | AAI10: 20 | AAJ10: 20 | AAK10: =AAJ10+AAK9 -> 20 | AAL10: 20 | AAM10: 20 | AAN10: 20 | AAO10: 20 | AAP10: 20 | AAQ10: 20 | AAR10: 20 | AAS10: 20 | AAT10: 20 | AAU10: 20 | AAV10: 20 | AAW10: 20 | AAX10: 20 | AAY10: 20 | AAZ10: 20 | ABA10: 20 | ABB10: 20 | ABC10: 20 | ABD10: 20 | ABE10: 20 | ABF10: 20 | ABG10: 20 | ABH10: 20 | ABI10: 20 | ABJ10: 20 | ABK10: 20 | ABL10: 20 | ABM10: 20 | ABN10: 20 | ABO10: 20 | ABP10: 20 | ABQ10: 20 | ABR10: 20 | ABS10: 20 | ABT10: 20 | ABU10: 20 | ABV10: 20 | ABW10: 20 | ABX10: 20 | ABY10: 20 | ABZ10: 20 | ACA10: 20 | ACB10: 20 | ACC10: 20 | ACD10: 20 | ACE10: 20 | ACF10: 20 | ACG10: 20 | ACH10: 20 | ACI10: 20 | ACJ10: 20 | ACK10: 20 | ACL10: 20 | ACM10: 20 | ACN10: 20 | ACO10: 20 | ACP10: 20 | ACQ10: 20 | ACR10: 20 | ACS10: 20 | ACT10: 20 | ACU10: 20 | ACV10: 20 | ACW10: =ACV10+ACW9 -> 20 | ACX10: 20 | ACY10: 20 | ACZ10: 20 | ADA10: 20 | ADB10: 20 | ADC10: 20 | ADD10: 20 | ADE10: 20 | ADF10: 20 | ADG10: 20 | ADH10: 20 | ADI10: 20 | ADJ10: 20 | ADK10: 20 | ADL10: 20 | ADM10: 20 | ADN10: 20 | ADO10: 20 | ADP10: 20 | ADQ10: 20 | ADR10: 20 | ADS10: 20 | ADT10: 20 | ADU10: 20 | ADV10: 20 | ADW10: 20 | ADX10: 20 | ADY10: 20 | ADZ10: 20 | AEA10: 20 | AEB10: 20 | AEC10: 20 | AED10: 20 | AEE10: 20 | AEF10: 20 | AEG10: 20 | AEH10: 20 | AEI10: 20 | AEJ10: 20 | AEK10: 20 | AEL10: 20 | AEM10: 20 | AEN10: 20 | AEO10: 20 | AEP10: 20 | AEQ10: 20 | AER10: 20 | AES10: 20 | AET10: 20 | AEU10: 20 | AEV10: 20 | AEW10: 20 | AEX10: 20 | AEY10: 20 | AEZ10: 20 | AFA10: 20 | AFB10: 20 | AFC10: 20 | AFD10: 20 | AFE10: 20 | AFF10: 20 | AFG10: 20 | AFH10: 20 | AFI10: =AFH10+AFI9 -> 20 | AFJ10: 20 | AFK10: 20 | AFL10: 20 | AFM10: 20 | AFN10: 20 | AFO10: 20 | AFP10: 20 | AFQ10: 20 | AFR10: 20 | AFS10: 20 | AFT10: 20 | AFU10: 20 | AFV10: 20 | AFW10: 20 | AFX10: 20 | AFY10: 20 | AFZ10: 20 | AGA10: 20 | AGB10: 20 | AGC10: 20 | AGD10: 20 | AGE10: 20 | AGF10: 20 | AGG10: 20 | AGH10: 20 | AGI10: 20 | AGJ10: 20 | AGK10: 20
A12: Assumptions for Computing Carrying Charge Rates | O12: Amount | P12: Percent
B13: Timing Assumptions | I13: Initial Required Payment | K13: =F160 -> 74.2803692 | M13: Premium to Equity
C14: Start Date | E14: Date | F14: 2001-01-01 | I14: Overnight Cost | K14: =F33 -> 1000 | M14: Premium to Debt
C15: Months in Period for Construction Period | E15: Months | F15: 1 | I15: Level Payment with Inflation | K15: =K13/K14 -> 0.0742803692 | M15: Total Premium
C16: Months in Period for Operating Period | E16: Months | F16: 12
B18: Inflation Rate
C19: Inflation Rate | E19: % p.a. | F19: ='LCOE Summary'!D38 -> 0.02 | M19: Cost | N19: 1290
C20: Degradation Rate | E20: % p.a. | F20: ='LCOE Summary'!D39 -> 0.01
C21: Net Inflation Rate | F21: =(1+F19)*(1-F20)-1 -> 0.0098
C22: Periodic Inflation Rate - Construction | E22: % p.p. | F22: =IF(F15=1,0,(1+F21)^(F15/12)-1) -> 0
C23: Periodic Inflation Rate - Operation | E23: % p.p. | F23: =(1+F21)^(F16/12)-1 -> 0.0098
B25: Returns and Capital Structure | M25: Capacity Factor | N25: 0.35
C26: Equity Return | E26: % p.a. | F26: ='LCOE Summary'!D35 -> 0.08 | M26: CCR | N26: =F2 -> 0.0742803692
C27: Base Rate (e.g. LIBOR) | E27: % p.a. | F27: ='LCOE Summary'!D36 -> 0.0225 | M27: Fixed Cost | N27: =N26*N19 -> 95.82167627
C28: Credit Spread | E28: % p.a. | F28: ='LCOE Summary'!D37 -> 0.014 | M28: Fixed O&M | N28: 12.4
C29: Total Interest Rate | E29: % p.a. | F29: =F27+F28 -> 0.0365 | M29: Total Fixed | N29: =N27+N28 -> 108.2216763
C30: Debt Percent | E30: % | F30: ='LCOE Summary'!D40 -> 0.85 | M30: Per MWH | N30: =N29*1000/(8760*N25) -> 35.29735038
B32: Construction | M32: Var O&M | N32: 0.0166
C33: Overnight Construction Cost | E33: Currency | F33: 1000 | M33: per MWH | N33: =N32*1000 -> 16.6
C34: Construction Months | E34: Months | F34: ='LCOE Summary'!D34 -> 1 | M34: per kW-yt | N34: =N32*(8760*N25) -> 50.8956
C35: End of Construction Period | E35: Date | F35: =EDATE(F14,F34) -> 2001-02-01
C36: Mean for S-Curve (Multiplied by Construction Months) | E36: % | F36: 0.5
C37: Mean Month of Construction for S-Curve Analysis | E37: Month | F37: =F36*F34 -> 0.5
C38: Standard Deviation for S-Curve (Multiply by Mean) | E38: % | F38: 7
C39: Standard Deviation of S-Curve | E39: Months | F39: =F37/F38 -> 0.07142857143
B41: Operating Period | M41: LCOE | N41: =N33+N30 -> 51.89735038
C42: Operating Years | E42: Years | F42: ='LCOE Summary'!D33 -> 20
C43: Operating Months | E43: Months | F43: =F42*12 -> 240
C44: Operating Periods | E44: Periods | F44: =F42*12/F16 -> 20
C45: COD | E45: Date | F45: =EDATE(F14,F34+F15) -> 2001-03-01
C46: Decomissioning | E46: Date | F46: =EDATE(F45,F43) -> 2021-03-01
B48: Replacement Capital Expenditures and Decomissioning
C49: Replacement Cost | E49: Currency | F49: 0
C50: Replacement Percent | E50: % | F50: =IF(F33,F49/F33) -> 0
C51: Replacement Year | E51: Year | F51: 15
C52: Replacement Period | E52: Month | F52: =F51*12 -> 180 | L52: =F59 -> 0.25
C53: Replacement Date | E53: Date | F53: =EDATE(F45,F52) -> 2016-03-01 | J53: Percent | K53: Pre-tax Cost | L53: After-tax | M53: WACC | N53: Debt Cost | O53: Risk Free | P53: Equity
I54: Debt | J54: =F30 -> 0.85 | K54: =F29 -> 0.0365 | L54: =K54*(1-L52) -> 0.027375 | M54: =L54*J54 -> 0.02326875
C55: Decomissioning Cost (Residual as Negative) | E55: Currency | F55: 0 | I55: Equity | J55: =1-J54 -> 0.15 | K55: =F26 -> 0.08 | L55: =K55 -> 0.08 | M55: =L55*J55 -> 0.012
C56: Decommissioning Percent | E56: % | F56: =IF(F33,F55/F33) -> 0 | I56: Total | J56: =SUM(J54:J55) -> 1 | M56: =SUM(M54:M55) -> 0.03526875 | O56: =F27 -> 0.0225 | P56: =K55 -> 0.08
I57: Periodic WACC - Construction | M57: =(1+M56)^($F$15/12)-1 -> 0.002892596745 | N57: =(1+K54)^($F$15/12)-1 -> 0.002991938013 | O57: =(1+O56)^($F$15/12)-1 -> 0.001855937535 | P57: =(1+P56)^($F$15/12)-1 -> 0.00643403011
B58: Taxes | I58: Periodic WACC - Operation | M58: =(1+M56)^($F$16/12)-1 -> 0.03526875 | N58: =(1+K54)^($F$16/12)-1 -> 0.0365 | O58: =(1+O56)^($F$15/12)-1 -> 0.001855937535 | P58: =(1+P56)^($F$16/12)-1 -> 0.08
C59: Income Tax Rate | E59: % | F59: ='LCOE Summary'!D41 -> 0.25 | G59: 21 | I59: Real WACC - Construction | M59: =(1+M57)/(1+F22)-1 -> 0.002892596745
C60: Tax Depreciation Life - Base Plant | E60: Years | F60: 25 | I60: Real WACC - Operation | M60: =(1+M58)/(1+F23)-1 -> 0.02522157853
C61: Tax Depreciation Factor | E61: VDB | F61: 1
C62: Apply Depreciation | E62: Switch | F62: TRUE
C63: Year | E63: Year | I63: 0 | J63: 1 | K63: 2 | L63: 3 | M63: 4 | N63: 5 | O63: 6 | P63: 7 | Q63: 8 | R63: 9 | S63: 10 | T63: 11 | U63: 12 | V63: 13 | W63: 14 | X63: 15 | Y63: 16 | Z63: 17 | AA63: 18 | AB63: 19 | AC63: 20 | AD63: 21 | AE63: 22 | AF63: 23 | AG63: 24 | AH63: 25 | AI63: 26 | AJ63: 27 | AK63: 28 | AL63: 29 | AM63: 30 | AN63: 31 | AO63: 32 | AP63: 33 | AQ63: 34 | AR63: 35 | AS63: 36 | AT63: 37 | AU63: 38 | AV63: 39 | AW63: 40 | AX63: 41 | AY63: 42 | AZ63: 43 | BA63: 44 | BB63: 45 | BC63: 46 | BD63: 47 | BE63: 48 | BF63: 49 | BG63: 50 | BH63: 51
C64: Annual Depreciation Rate - Base Plant | E64: % p.a. | H64: =F62 -> TRUE | J64: =IFERROR(VDB(1,0,$F$60,I63,J63,$F$61),0)*$H$64 -> 0.04 | K64: =IFERROR(VDB(1,0,$F$60,J63,K63,$F$61),0)*$H$64 -> 0.04 | L64: 0.04 | M64: 0.04 | N64: 0.04 | O64: 0.04 | P64: 0.04 | Q64: 0.04 | R64: 0.04 | S64: 0.04 | T64: 0.04 | U64: 0.04 | V64: 0.04 | W64: 0.04 | X64: 0.04 | Y64: 0.04 | Z64: 0.04 | AA64: 0.04 | AB64: 0.04 | AC64: 0.04 | AD64: 0.04 | AE64: 0.04 | AF64: 0.04 | AG64: 0.04 | AH64: 0.04 | AI64: 0 | AJ64: 0 | AK64: 0 | AL64: 0 | AM64: 0 | AN64: 0 | AO64: 0 | AP64: 0 | AQ64: 0 | AR64: 0 | AS64: 0 | AT64: 0 | AU64: 0 | AV64: 0 | AW64: 0 | AX64: 0 | AY64: 0 | AZ64: 0 | BA64: 0 | BB64: 0 | BC64: 0 | BD64: 0 | BE64: 0 | BF64: 0 | BG64: 0 | BH64: 0
C65: Periodic Depreciation - Base Plant | E65: % p.p. | F65: ='Carrying Charge'!F16 -> 12 | J65: =J64/12*$F$65 -> 0.04 | K65: 0.04 | L65: 0.04 | M65: 0.04 | N65: 0.04 | O65: 0.04 | P65: 0.04 | Q65: 0.04 | R65: 0.04 | S65: 0.04 | T65: 0.04 | U65: 0.04 | V65: 0.04 | W65: 0.04 | X65: 0.04 | Y65: 0.04 | Z65: 0.04 | AA65: 0.04 | AB65: 0.04 | AC65: 0.04 | AD65: 0.04 | AE65: 0.04 | AF65: 0.04 | AG65: 0.04 | AH65: 0.04 | AI65: 0 | AJ65: 0 | AK65: 0 | AL65: 0 | AM65: 0 | AN65: 0 | AO65: 0 | AP65: 0 | AQ65: 0 | AR65: 0 | AS65: 0 | AT65: 0 | AU65: 0 | AV65: 0 | AW65: 0 | AX65: 0 | AY65: 0 | AZ65: 0 | BA65: 0 | BB65: 0 | BC65: 0 | BD65: 0 | BE65: 0 | BF65: 0 | BG65: 0 | BH65: 0
C66: Replacement Remaining Life | E66: Years | F66: =F42-F51 -> 5
C67: Replacement Depreciation Life | E67: Years | F67: =MIN(F66,F60) -> 5
C68: Annual Depreciation Rate - Base Plant | E68: % p.a. | H68: =F62 -> TRUE | J68: =IFERROR(VDB(1,0,$F$67,I63,J63,$F$61),0)*$H$68 -> 0.2 | K68: =IFERROR(VDB(1,0,$F$67,J63,K63,$F$61),0)*$H$68 -> 0.2 | L68: 0.2 | M68: 0.2 | N68: 0.2 | O68: 0 | P68: 0 | Q68: 0 | R68: 0 | S68: 0 | T68: 0 | U68: 0 | V68: 0 | W68: 0 | X68: 0 | Y68: 0 | Z68: 0 | AA68: 0 | AB68: 0 | AC68: 0 | AD68: 0 | AE68: 0 | AF68: 0 | AG68: 0 | AH68: 0 | AI68: 0 | AJ68: 0 | AK68: 0 | AL68: 0 | AM68: 0 | AN68: 0 | AO68: 0 | AP68: 0 | AQ68: 0 | AR68: 0 | AS68: 0 | AT68: 0 | AU68: 0 | AV68: 0 | AW68: 0 | AX68: 0 | AY68: 0 | AZ68: 0 | BA68: 0 | BB68: 0 | BC68: 0 | BD68: 0 | BE68: 0 | BF68: 0 | BG68: 0 | BH68: 0
C69: Periodic Depreciation - Base Plant | E69: % p.p. | F69: ='Carrying Charge'!F65 -> 12 | J69: =J68/12*$F$69 -> 0.2 | K69: =K68/12*$F$69 -> 0.2 | L69: 0.2 | M69: 0.2 | N69: 0.2 | O69: 0 | P69: 0 | Q69: 0 | R69: 0 | S69: 0 | T69: 0 | U69: 0 | V69: 0 | W69: 0 | X69: 0 | Y69: 0 | Z69: 0 | AA69: 0 | AB69: 0 | AC69: 0 | AD69: 0 | AE69: 0 | AF69: 0 | AG69: 0 | AH69: 0 | AI69: 0 | AJ69: 0 | AK69: 0 | AL69: 0 | AM69: 0 | AN69: 0 | AO69: 0 | AP69: 0 | AQ69: 0 | AR69: 0 | AS69: 0 | AT69: 0 | AU69: 0 | AV69: 0 | AW69: 0 | AX69: 0 | AY69: 0 | AZ69: 0 | BA69: 0 | BB69: 0 | BC69: 0 | BD69: 0 | BE69: 0 | BF69: 0 | BG69: 0 | BH69: 0
A71: Construction Analyisis - Monthly Periods with S-Curve and Allocate the Total Construction Cost
B72: Normal on Construction Period | E72: % | F72: ='Carrying Charge'!F37 -> 0.5 | G72: ='Carrying Charge'!F39 -> 0.07142857143 | I72: =IFERROR(_xlfn.NORM.DIST(I4,$F$72,$G$72,0)*I5,0) -> 1.278860857e-10 | J72: =IFERROR(_xlfn.NORM.DIST(J4,$F$72,$G$72,0)*J5,0) -> 0 | K72: 0 | L72: 0 | M72: 0 | N72: 0 | O72: 0 | P72: 0 | Q72: 0 | R72: 0 | S72: 0 | T72: 0 | U72: 0 | V72: 0 | W72: 0 | X72: 0 | Y72: 0 | Z72: 0 | AA72: 0 | AB72: 0 | AC72: 0 | AD72: 0 | AE72: 0 | AF72: 0 | AG72: 0 | AH72: 0 | AI72: 0 | AJ72: 0 | AK72: 0 | AL72: 0 | AM72: 0 | AN72: 0 | AO72: 0 | AP72: 0 | AQ72: 0 | AR72: 0 | AS72: 0 | AT72: 0 | AU72: 0 | AV72: 0 | AW72: 0 | AX72: 0 | AY72: 0 | AZ72: 0 | BA72: 0 | BB72: 0 | BC72: 0 | BD72: 0 | BE72: 0 | BF72: 0 | BG72: 0 | BH72: 0 | BI72: 0 | BJ72: 0 | BK72: 0 | BL72: 0 | BM72: 0 | BN72: 0 | BO72: 0 | BP72: 0 | BQ72: 0 | BR72: 0 | BS72: 0 | BT72: 0 | BU72: 0 | BV72: =IFERROR(_xlfn.NORM.DIST(BV4,$F$72,$G$72,0)*BV5,0) -> 0 | BW72: 0 | BX72: 0 | BY72: 0 | BZ72: 0 | CA72: 0 | CB72: 0 | CC72: 0 | CD72: 0 | CE72: 0 | CF72: 0 | CG72: 0 | CH72: 0 | CI72: 0 | CJ72: 0 | CK72: 0 | CL72: 0 | CM72: 0 | CN72: 0 | CO72: 0 | CP72: 0 | CQ72: 0 | CR72: 0 | CS72: 0 | CT72: 0 | CU72: 0 | CV72: 0 | CW72: 0 | CX72: 0 | CY72: 0 | CZ72: 0 | DA72: 0 | DB72: 0 | DC72: 0 | DD72: 0 | DE72: 0 | DF72: 0 | DG72: 0 | DH72: 0 | DI72: 0 | DJ72: 0 | DK72: 0 | DL72: 0 | DM72: 0 | DN72: 0 | DO72: 0 | DP72: 0 | DQ72: 0 | DR72: 0 | DS72: 0 | DT72: 0 | DU72: 0 | DV72: 0 | DW72: 0 | DX72: 0 | DY72: 0 | DZ72: 0 | EA72: 0 | EB72: 0 | EC72: 0 | ED72: 0 | EE72: 0 | EF72: 0 | EG72: 0 | EH72: =IFERROR(_xlfn.NORM.DIST(EH4,$F$72,$G$72,0)*EH5,0) -> 0 | EI72: 0 | EJ72: 0 | EK72: 0 | EL72: 0 | EM72: 0 | EN72: 0 | EO72: 0 | EP72: 0 | EQ72: 0 | ER72: 0 | ES72: 0 | ET72: 0 | EU72: 0 | EV72: 0 | EW72: 0 | EX72: 0 | EY72: 0 | EZ72: 0 | FA72: 0 | FB72: 0 | FC72: 0 | FD72: 0 | FE72: 0 | FF72: 0 | FG72: 0 | FH72: 0 | FI72: 0 | FJ72: 0 | FK72: 0 | FL72: 0 | FM72: 0 | FN72: 0 | FO72: 0 | FP72: 0 | FQ72: 0 | FR72: 0 | FS72: 0 | FT72: 0 | FU72: 0 | FV72: 0 | FW72: 0 | FX72: 0 | FY72: 0 | FZ72: 0 | GA72: 0 | GB72: 0 | GC72: 0 | GD72: 0 | GE72: 0 | GF72: 0 | GG72: 0 | GH72: 0 | GI72: 0 | GJ72: 0 | GK72: 0 | GL72: 0 | GM72: 0 | GN72: 0 | GO72: 0 | GP72: 0 | GQ72: 0 | GR72: 0 | GS72: 0 | GT72: =IFERROR(_xlfn.NORM.DIST(GT4,$F$72,$G$72,0)*GT5,0) -> 0 | GU72: 0 | GV72: 0 | GW72: 0 | GX72: 0 | GY72: 0 | GZ72: 0 | HA72: 0 | HB72: 0 | HC72: 0 | HD72: 0 | HE72: 0 | HF72: 0 | HG72: 0 | HH72: 0 | HI72: 0 | HJ72: 0 | HK72: 0 | HL72: 0 | HM72: 0 | HN72: 0 | HO72: 0 | HP72: 0 | HQ72: 0 | HR72: 0 | HS72: 0 | HT72: 0 | HU72: 0 | HV72: 0 | HW72: 0 | HX72: 0 | HY72: 0 | HZ72: 0 | IA72: 0 | IB72: 0 | IC72: 0 | ID72: 0 | IE72: 0 | IF72: 0 | IG72: 0 | IH72: 0 | II72: 0 | IJ72: 0 | IK72: 0 | IL72: 0 | IM72: 0 | IN72: 0 | IO72: 0 | IP72: 0 | IQ72: 0 | IR72: 0 | IS72: 0 | IT72: 0 | IU72: 0 | IV72: 0 | IW72: 0 | IX72: 0 | IY72: 0 | IZ72: 0 | JA72: 0 | JB72: 0 | JC72: 0 | JD72: 0 | JE72: 0 | JF72: =IFERROR(_xlfn.NORM.DIST(JF4,$F$72,$G$72,0)*JF5,0) -> 0 | JG72: 0 | JH72: 0 | JI72: 0 | JJ72: 0 | JK72: 0 | JL72: 0 | JM72: 0 | JN72: 0 | JO72: 0 | JP72: 0 | JQ72: 0 | JR72: 0 | JS72: 0 | JT72: 0 | JU72: 0 | JV72: 0 | JW72: 0 | JX72: 0 | JY72: 0 | JZ72: 0 | KA72: 0 | KB72: 0 | KC72: 0 | KD72: 0 | KE72: 0 | KF72: 0 | KG72: 0 | KH72: 0 | KI72: 0 | KJ72: 0 | KK72: 0 | KL72: 0 | KM72: 0 | KN72: 0 | KO72: 0 | KP72: 0 | KQ72: 0 | KR72: 0 | KS72: 0 | KT72: 0 | KU72: 0 | KV72: 0 | KW72: 0 | KX72: 0 | KY72: 0 | KZ72: 0 | LA72: 0 | LB72: 0 | LC72: 0 | LD72: 0 | LE72: 0 | LF72: 0 | LG72: 0 | LH72: 0 | LI72: 0 | LJ72: 0 | LK72: 0 | LL72: 0 | LM72: 0 | LN72: 0 | LO72: 0 | LP72: 0 | LQ72: 0 | LR72: =IFERROR(_xlfn.NORM.DIST(LR4,$F$72,$G$72,0)*LR5,0) -> 0 | LS72: 0 | LT72: 0 | LU72: 0 | LV72: 0 | LW72: 0 | LX72: 0 | LY72: 0 | LZ72: 0 | MA72: 0 | MB72: 0 | MC72: 0 | MD72: 0 | ME72: 0 | MF72: 0 | MG72: 0 | MH72: 0 | MI72: 0 | MJ72: 0 | MK72: 0 | ML72: 0 | MM72: 0 | MN72: 0 | MO72: 0 | MP72: 0 | MQ72: 0 | MR72: 0 | MS72: 0 | MT72: 0 | MU72: 0 | MV72: 0 | MW72: 0 | MX72: 0 | MY72: 0 | MZ72: 0 | NA72: 0 | NB72: 0 | NC72: 0 | ND72: 0 | NE72: 0 | NF72: 0 | NG72: 0 | NH72: 0 | NI72: 0 | NJ72: 0 | NK72: 0 | NL72: 0 | NM72: 0 | NN72: 0 | NO72: 0 | NP72: 0 | NQ72: 0 | NR72: 0 | NS72: 0 | NT72: 0 | NU72: 0 | NV72: 0 | NW72: 0 | NX72: 0 | NY72: 0 | NZ72: 0 | OA72: 0 | OB72: 0 | OC72: 0 | OD72: =IFERROR(_xlfn.NORM.DIST(OD4,$F$72,$G$72,0)*OD5,0) -> 0 | OE72: 0 | OF72: 0 | OG72: 0 | OH72: 0 | OI72: 0 | OJ72: 0 | OK72: 0 | OL72: 0 | OM72: 0 | ON72: 0 | OO72: 0 | OP72: 0 | OQ72: 0 | OR72: 0 | OS72: 0 | OT72: 0 | OU72: 0 | OV72: 0 | OW72: 0 | OX72: 0 | OY72: 0 | OZ72: 0 | PA72: 0 | PB72: 0 | PC72: 0 | PD72: 0 | PE72: 0 | PF72: 0 | PG72: 0 | PH72: 0 | PI72: 0 | PJ72: 0 | PK72: 0 | PL72: 0 | PM72: 0 | PN72: 0 | PO72: 0 | PP72: 0 | PQ72: 0 | PR72: 0 | PS72: 0 | PT72: 0 | PU72: 0 | PV72: 0 | PW72: 0 | PX72: 0 | PY72: 0 | PZ72: 0 | QA72: 0 | QB72: 0 | QC72: 0 | QD72: 0 | QE72: 0 | QF72: 0 | QG72: 0 | QH72: 0 | QI72: 0 | QJ72: 0 | QK72: 0 | QL72: 0 | QM72: 0 | QN72: 0 | QO72: 0 | QP72: =IFERROR(_xlfn.NORM.DIST(QP4,$F$72,$G$72,0)*QP5,0) -> 0 | QQ72: 0 | QR72: 0 | QS72: 0 | QT72: 0 | QU72: 0 | QV72: 0 | QW72: 0 | QX72: 0 | QY72: 0 | QZ72: 0 | RA72: 0 | RB72: 0 | RC72: 0 | RD72: 0 | RE72: 0 | RF72: 0 | RG72: 0 | RH72: 0 | RI72: 0 | RJ72: 0 | RK72: 0 | RL72: 0 | RM72: 0 | RN72: 0 | RO72: 0 | RP72: 0 | RQ72: 0 | RR72: 0 | RS72: 0 | RT72: 0 | RU72: 0 | RV72: 0 | RW72: 0 | RX72: 0 | RY72: 0 | RZ72: 0 | SA72: 0 | SB72: 0 | SC72: 0 | SD72: 0 | SE72: 0 | SF72: 0 | SG72: 0 | SH72: 0 | SI72: 0 | SJ72: 0 | SK72: 0 | SL72: 0 | SM72: 0 | SN72: 0 | SO72: 0 | SP72: 0 | SQ72: 0 | SR72: 0 | SS72: 0 | ST72: 0 | SU72: 0 | SV72: 0 | SW72: 0 | SX72: 0 | SY72: 0 | SZ72: 0 | TA72: 0 | TB72: =IFERROR(_xlfn.NORM.DIST(TB4,$F$72,$G$72,0)*TB5,0) -> 0 | TC72: 0 | TD72: 0 | TE72: 0 | TF72: 0 | TG72: 0 | TH72: 0 | TI72: 0 | TJ72: 0 | TK72: 0 | TL72: 0 | TM72: 0 | TN72: 0 | TO72: 0 | TP72: 0 | TQ72: 0 | TR72: 0 | TS72: 0 | TT72: 0 | TU72: 0 | TV72: 0 | TW72: 0 | TX72: 0 | TY72: 0 | TZ72: 0 | UA72: 0 | UB72: 0 | UC72: 0 | UD72: 0 | UE72: 0 | UF72: 0 | UG72: 0 | UH72: 0 | UI72: 0 | UJ72: 0 | UK72: 0 | UL72: 0 | UM72: 0 | UN72: 0 | UO72: 0 | UP72: 0 | UQ72: 0 | UR72: 0 | US72: 0 | UT72: 0 | UU72: 0 | UV72: 0 | UW72: 0 | UX72: 0 | UY72: 0 | UZ72: 0 | VA72: 0 | VB72: 0 | VC72: 0 | VD72: 0 | VE72: 0 | VF72: 0 | VG72: 0 | VH72: 0 | VI72: 0 | VJ72: 0 | VK72: 0 | VL72: 0 | VM72: 0 | VN72: =IFERROR(_xlfn.NORM.DIST(VN4,$F$72,$G$72,0)*VN5,0) -> 0 | VO72: 0 | VP72: 0 | VQ72: 0 | VR72: 0 | VS72: 0 | VT72: 0 | VU72: 0 | VV72: 0 | VW72: 0 | VX72: 0 | VY72: 0 | VZ72: 0 | WA72: 0 | WB72: 0 | WC72: 0 | WD72: 0 | WE72: 0 | WF72: 0 | WG72: 0 | WH72: 0 | WI72: 0 | WJ72: 0 | WK72: 0 | WL72: 0 | WM72: 0 | WN72: 0 | WO72: 0 | WP72: 0 | WQ72: 0 | WR72: 0 | WS72: 0 | WT72: 0 | WU72: 0 | WV72: 0 | WW72: 0 | WX72: 0 | WY72: 0 | WZ72: 0 | XA72: 0 | XB72: 0 | XC72: 0 | XD72: 0 | XE72: 0 | XF72: 0 | XG72: 0 | XH72: 0 | XI72: 0 | XJ72: 0 | XK72: 0 | XL72: 0 | XM72: 0 | XN72: 0 | XO72: 0 | XP72: 0 | XQ72: 0 | XR72: 0 | XS72: 0 | XT72: 0 | XU72: 0 | XV72: 0 | XW72: 0 | XX72: 0 | XY72: 0 | XZ72: =IFERROR(_xlfn.NORM.DIST(XZ4,$F$72,$G$72,0)*XZ5,0) -> 0 | YA72: 0 | YB72: 0 | YC72: 0 | YD72: 0 | YE72: 0 | YF72: 0 | YG72: 0 | YH72: 0 | YI72: 0 | YJ72: 0 | YK72: 0 | YL72: 0 | YM72: 0 | YN72: 0 | YO72: 0 | YP72: 0 | YQ72: 0 | YR72: 0 | YS72: 0 | YT72: 0 | YU72: 0 | YV72: 0 | YW72: 0 | YX72: 0 | YY72: 0 | YZ72: 0 | ZA72: 0 | ZB72: 0 | ZC72: 0 | ZD72: 0 | ZE72: 0 | ZF72: 0 | ZG72: 0 | ZH72: 0 | ZI72: 0 | ZJ72: 0 | ZK72: 0 | ZL72: 0 | ZM72: 0 | ZN72: 0 | ZO72: 0 | ZP72: 0 | ZQ72: 0 | ZR72: 0 | ZS72: 0 | ZT72: 0 | ZU72: 0 | ZV72: 0 | ZW72: 0 | ZX72: 0 | ZY72: 0 | ZZ72: 0 | AAA72: 0 | AAB72: 0 | AAC72: 0 | AAD72: 0 | AAE72: 0 | AAF72: 0 | AAG72: 0 | AAH72: 0 | AAI72: 0 | AAJ72: 0 | AAK72: 0 | AAL72: =IFERROR(_xlfn.NORM.DIST(AAL4,$F$72,$G$72,0)*AAL5,0) -> 0 | AAM72: 0 | AAN72: 0 | AAO72: 0 | AAP72: 0 | AAQ72: 0 | AAR72: 0 | AAS72: 0 | AAT72: 0 | AAU72: 0 | AAV72: 0 | AAW72: 0 | AAX72: 0 | AAY72: 0 | AAZ72: 0 | ABA72: 0 | ABB72: 0 | ABC72: 0 | ABD72: 0 | ABE72: 0 | ABF72: 0 | ABG72: 0 | ABH72: 0 | ABI72: 0 | ABJ72: 0 | ABK72: 0 | ABL72: 0 | ABM72: 0 | ABN72: 0 | ABO72: 0 | ABP72: 0 | ABQ72: 0 | ABR72: 0 | ABS72: 0 | ABT72: 0 | ABU72: 0 | ABV72: 0 | ABW72: 0 | ABX72: 0 | ABY72: 0 | ABZ72: 0 | ACA72: 0 | ACB72: 0 | ACC72: 0 | ACD72: 0 | ACE72: 0 | ACF72: 0 | ACG72: 0 | ACH72: 0 | ACI72: 0 | ACJ72: 0 | ACK72: 0 | ACL72: 0 | ACM72: 0 | ACN72: 0 | ACO72: 0 | ACP72: 0 | ACQ72: 0 | ACR72: 0 | ACS72: 0 | ACT72: 0 | ACU72: 0 | ACV72: 0 | ACW72: 0 | ACX72: =IFERROR(_xlfn.NORM.DIST(ACX4,$F$72,$G$72,0)*ACX5,0) -> 0 | ACY72: 0 | ACZ72: 0 | ADA72: 0 | ADB72: 0 | ADC72: 0 | ADD72: 0 | ADE72: 0 | ADF72: 0 | ADG72: 0 | ADH72: 0 | ADI72: 0 | ADJ72: 0 | ADK72: 0 | ADL72: 0 | ADM72: 0 | ADN72: 0 | ADO72: 0 | ADP72: 0 | ADQ72: 0 | ADR72: 0 | ADS72: 0 | ADT72: 0 | ADU72: 0 | ADV72: 0 | ADW72: 0 | ADX72: 0 | ADY72: 0 | ADZ72: 0 | AEA72: 0 | AEB72: 0 | AEC72: 0 | AED72: 0 | AEE72: 0 | AEF72: 0 | AEG72: 0 | AEH72: 0 | AEI72: 0 | AEJ72: 0 | AEK72: 0 | AEL72: 0 | AEM72: 0 | AEN72: 0 | AEO72: 0 | AEP72: 0 | AEQ72: 0 | AER72: 0 | AES72: 0 | AET72: 0 | AEU72: 0 | AEV72: 0 | AEW72: 0 | AEX72: 0 | AEY72: 0 | AEZ72: 0 | AFA72: 0 | AFB72: 0 | AFC72: 0 | AFD72: 0 | AFE72: 0 | AFF72: 0 | AFG72: 0 | AFH72: 0 | AFI72: 0 | AFJ72: =IFERROR(_xlfn.NORM.DIST(AFJ4,$F$72,$G$72,0)*AFJ5,0) -> 0 | AFK72: 0 | AFL72: 0 | AFM72: 0 | AFN72: 0 | AFO72: 0 | AFP72: 0 | AFQ72: 0 | AFR72: 0 | AFS72: 0 | AFT72: 0 | AFU72: 0 | AFV72: 0 | AFW72: 0 | AFX72: 0 | AFY72: 0 | AFZ72: 0 | AGA72: 0 | AGB72: 0 | AGC72: 0 | AGD72: 0 | AGE72: 0 | AGF72: 0 | AGG72: 0 | AGH72: 0 | AGI72: 0 | AGJ72: 0 | AGK72: 0
B73: S-Curve from Normalised | E73: % | F73: =SUM(I72:KV72) -> 1.278860857e-10 | I73: =I72/$F$73 -> 1 | J73: 0 | K73: 0 | L73: 0 | M73: 0 | N73: 0 | O73: 0 | P73: 0 | Q73: 0 | R73: 0 | S73: 0 | T73: 0 | U73: 0 | V73: 0 | W73: 0 | X73: 0 | Y73: 0 | Z73: 0 | AA73: 0 | AB73: 0 | AC73: 0 | AD73: 0 | AE73: 0 | AF73: 0 | AG73: 0 | AH73: 0 | AI73: 0 | AJ73: 0 | AK73: 0 | AL73: 0 | AM73: 0 | AN73: 0 | AO73: 0 | AP73: 0 | AQ73: 0 | AR73: 0 | AS73: 0 | AT73: 0 | AU73: 0 | AV73: 0 | AW73: 0 | AX73: 0 | AY73: 0 | AZ73: 0 | BA73: 0 | BB73: 0 | BC73: 0 | BD73: 0 | BE73: 0 | BF73: 0 | BG73: 0 | BH73: 0 | BI73: 0 | BJ73: 0 | BK73: 0 | BL73: 0 | BM73: 0 | BN73: 0 | BO73: 0 | BP73: 0 | BQ73: 0 | BR73: 0 | BS73: 0 | BT73: 0 | BU73: =BU72/$F$73 -> 0 | BV73: 0 | BW73: 0 | BX73: 0 | BY73: 0 | BZ73: 0 | CA73: 0 | CB73: 0 | CC73: 0 | CD73: 0 | CE73: 0 | CF73: 0 | CG73: 0 | CH73: 0 | CI73: 0 | CJ73: 0 | CK73: 0 | CL73: 0 | CM73: 0 | CN73: 0 | CO73: 0 | CP73: 0 | CQ73: 0 | CR73: 0 | CS73: 0 | CT73: 0 | CU73: 0 | CV73: 0 | CW73: 0 | CX73: 0 | CY73: 0 | CZ73: 0 | DA73: 0 | DB73: 0 | DC73: 0 | DD73: 0 | DE73: 0 | DF73: 0 | DG73: 0 | DH73: 0 | DI73: 0 | DJ73: 0 | DK73: 0 | DL73: 0 | DM73: 0 | DN73: 0 | DO73: 0 | DP73: 0 | DQ73: 0 | DR73: 0 | DS73: 0 | DT73: 0 | DU73: 0 | DV73: 0 | DW73: 0 | DX73: 0 | DY73: 0 | DZ73: 0 | EA73: 0 | EB73: 0 | EC73: 0 | ED73: 0 | EE73: 0 | EF73: 0 | EG73: =EG72/$F$73 -> 0 | EH73: 0 | EI73: 0 | EJ73: 0 | EK73: 0 | EL73: 0 | EM73: 0 | EN73: 0 | EO73: 0 | EP73: 0 | EQ73: 0 | ER73: 0 | ES73: 0 | ET73: 0 | EU73: 0 | EV73: 0 | EW73: 0 | EX73: 0 | EY73: 0 | EZ73: 0 | FA73: 0 | FB73: 0 | FC73: 0 | FD73: 0 | FE73: 0 | FF73: 0 | FG73: 0 | FH73: 0 | FI73: 0 | FJ73: 0 | FK73: 0 | FL73: 0 | FM73: 0 | FN73: 0 | FO73: 0 | FP73: 0 | FQ73: 0 | FR73: 0 | FS73: 0 | FT73: 0 | FU73: 0 | FV73: 0 | FW73: 0 | FX73: 0 | FY73: 0 | FZ73: 0 | GA73: 0 | GB73: 0 | GC73: 0 | GD73: 0 | GE73: 0 | GF73: 0 | GG73: 0 | GH73: 0 | GI73: 0 | GJ73: 0 | GK73: 0 | GL73: 0 | GM73: 0 | GN73: 0 | GO73: 0 | GP73: 0 | GQ73: 0 | GR73: 0 | GS73: =GS72/$F$73 -> 0 | GT73: 0 | GU73: 0 | GV73: 0 | GW73: 0 | GX73: 0 | GY73: 0 | GZ73: 0 | HA73: 0 | HB73: 0 | HC73: 0 | HD73: 0 | HE73: 0 | HF73: 0 | HG73: 0 | HH73: 0 | HI73: 0 | HJ73: 0 | HK73: 0 | HL73: 0 | HM73: 0 | HN73: 0 | HO73: 0 | HP73: 0 | HQ73: 0 | HR73: 0 | HS73: 0 | HT73: 0 | HU73: 0 | HV73: 0 | HW73: 0 | HX73: 0 | HY73: 0 | HZ73: 0 | IA73: 0 | IB73: 0 | IC73: 0 | ID73: 0 | IE73: 0 | IF73: 0 | IG73: 0 | IH73: 0 | II73: 0 | IJ73: 0 | IK73: 0 | IL73: 0 | IM73: 0 | IN73: 0 | IO73: 0 | IP73: 0 | IQ73: 0 | IR73: 0 | IS73: 0 | IT73: 0 | IU73: 0 | IV73: 0 | IW73: 0 | IX73: 0 | IY73: 0 | IZ73: 0 | JA73: 0 | JB73: 0 | JC73: 0 | JD73: 0 | JE73: =JE72/$F$73 -> 0 | JF73: 0 | JG73: 0 | JH73: 0 | JI73: 0 | JJ73: 0 | JK73: 0 | JL73: 0 | JM73: 0 | JN73: 0 | JO73: 0 | JP73: 0 | JQ73: 0 | JR73: 0 | JS73: 0 | JT73: 0 | JU73: 0 | JV73: 0 | JW73: 0 | JX73: 0 | JY73: 0 | JZ73: 0 | KA73: 0 | KB73: 0 | KC73: 0 | KD73: 0 | KE73: 0 | KF73: 0 | KG73: 0 | KH73: 0 | KI73: 0 | KJ73: 0 | KK73: 0 | KL73: 0 | KM73: 0 | KN73: 0 | KO73: 0 | KP73: 0 | KQ73: 0 | KR73: 0 | KS73: 0 | KT73: 0 | KU73: 0 | KV73: 0 | KW73: 0 | KX73: 0 | KY73: 0 | KZ73: 0 | LA73: 0 | LB73: 0 | LC73: 0 | LD73: 0 | LE73: 0 | LF73: 0 | LG73: 0 | LH73: 0 | LI73: 0 | LJ73: 0 | LK73: 0 | LL73: 0 | LM73: 0 | LN73: 0 | LO73: 0 | LP73: 0 | LQ73: =LQ72/$F$73 -> 0 | LR73: 0 | LS73: 0 | LT73: 0 | LU73: 0 | LV73: 0 | LW73: 0 | LX73: 0 | LY73: 0 | LZ73: 0 | MA73: 0 | MB73: 0 | MC73: 0 | MD73: 0 | ME73: 0 | MF73: 0 | MG73: 0 | MH73: 0 | MI73: 0 | MJ73: 0 | MK73: 0 | ML73: 0 | MM73: 0 | MN73: 0 | MO73: 0 | MP73: 0 | MQ73: 0 | MR73: 0 | MS73: 0 | MT73: 0 | MU73: 0 | MV73: 0 | MW73: 0 | MX73: 0 | MY73: 0 | MZ73: 0 | NA73: 0 | NB73: 0 | NC73: 0 | ND73: 0 | NE73: 0 | NF73: 0 | NG73: 0 | NH73: 0 | NI73: 0 | NJ73: 0 | NK73: 0 | NL73: 0 | NM73: 0 | NN73: 0 | NO73: 0 | NP73: 0 | NQ73: 0 | NR73: 0 | NS73: 0 | NT73: 0 | NU73: 0 | NV73: 0 | NW73: 0 | NX73: 0 | NY73: 0 | NZ73: 0 | OA73: 0 | OB73: 0 | OC73: =OC72/$F$73 -> 0 | OD73: 0 | OE73: 0 | OF73: 0 | OG73: 0 | OH73: 0 | OI73: 0 | OJ73: 0 | OK73: 0 | OL73: 0 | OM73: 0 | ON73: 0 | OO73: 0 | OP73: 0 | OQ73: 0 | OR73: 0 | OS73: 0 | OT73: 0 | OU73: 0 | OV73: 0 | OW73: 0 | OX73: 0 | OY73: 0 | OZ73: 0 | PA73: 0 | PB73: 0 | PC73: 0 | PD73: 0 | PE73: 0 | PF73: 0 | PG73: 0 | PH73: 0 | PI73: 0 | PJ73: 0 | PK73: 0 | PL73: 0 | PM73: 0 | PN73: 0 | PO73: 0 | PP73: 0 | PQ73: 0 | PR73: 0 | PS73: 0 | PT73: 0 | PU73: 0 | PV73: 0 | PW73: 0 | PX73: 0 | PY73: 0 | PZ73: 0 | QA73: 0 | QB73: 0 | QC73: 0 | QD73: 0 | QE73: 0 | QF73: 0 | QG73: 0 | QH73: 0 | QI73: 0 | QJ73: 0 | QK73: 0 | QL73: 0 | QM73: 0 | QN73: 0 | QO73: =QO72/$F$73 -> 0 | QP73: 0 | QQ73: 0 | QR73: 0 | QS73: 0 | QT73: 0 | QU73: 0 | QV73: 0 | QW73: 0 | QX73: 0 | QY73: 0 | QZ73: 0 | RA73: 0 | RB73: 0 | RC73: 0 | RD73: 0 | RE73: 0 | RF73: 0 | RG73: 0 | RH73: 0 | RI73: 0 | RJ73: 0 | RK73: 0 | RL73: 0 | RM73: 0 | RN73: 0 | RO73: 0 | RP73: 0 | RQ73: 0 | RR73: 0 | RS73: 0 | RT73: 0 | RU73: 0 | RV73: 0 | RW73: 0 | RX73: 0 | RY73: 0 | RZ73: 0 | SA73: 0 | SB73: 0 | SC73: 0 | SD73: 0 | SE73: 0 | SF73: 0 | SG73: 0 | SH73: 0 | SI73: 0 | SJ73: 0 | SK73: 0 | SL73: 0 | SM73: 0 | SN73: 0 | SO73: 0 | SP73: 0 | SQ73: 0 | SR73: 0 | SS73: 0 | ST73: 0 | SU73: 0 | SV73: 0 | SW73: 0 | SX73: 0 | SY73: 0 | SZ73: 0 | TA73: =TA72/$F$73 -> 0 | TB73: 0 | TC73: 0 | TD73: 0 | TE73: 0 | TF73: 0 | TG73: 0 | TH73: 0 | TI73: 0 | TJ73: 0 | TK73: 0 | TL73: 0 | TM73: 0 | TN73: 0 | TO73: 0 | TP73: 0 | TQ73: 0 | TR73: 0 | TS73: 0 | TT73: 0 | TU73: 0 | TV73: 0 | TW73: 0 | TX73: 0 | TY73: 0 | TZ73: 0 | UA73: 0 | UB73: 0 | UC73: 0 | UD73: 0 | UE73: 0 | UF73: 0 | UG73: 0 | UH73: 0 | UI73: 0 | UJ73: 0 | UK73: 0 | UL73: 0 | UM73: 0 | UN73: 0 | UO73: 0 | UP73: 0 | UQ73: 0 | UR73: 0 | US73: 0 | UT73: 0 | UU73: 0 | UV73: 0 | UW73: 0 | UX73: 0 | UY73: 0 | UZ73: 0 | VA73: 0 | VB73: 0 | VC73: 0 | VD73: 0 | VE73: 0 | VF73: 0 | VG73: 0 | VH73: 0 | VI73: 0 | VJ73: 0 | VK73: 0 | VL73: 0 | VM73: =VM72/$F$73 -> 0 | VN73: 0 | VO73: 0 | VP73: 0 | VQ73: 0 | VR73: 0 | VS73: 0 | VT73: 0 | VU73: 0 | VV73: 0 | VW73: 0 | VX73: 0 | VY73: 0 | VZ73: 0 | WA73: 0 | WB73: 0 | WC73: 0 | WD73: 0 | WE73: 0 | WF73: 0 | WG73: 0 | WH73: 0 | WI73: 0 | WJ73: 0 | WK73: 0 | WL73: 0 | WM73: 0 | WN73: 0 | WO73: 0 | WP73: 0 | WQ73: 0 | WR73: 0 | WS73: 0 | WT73: 0 | WU73: 0 | WV73: 0 | WW73: 0 | WX73: 0 | WY73: 0 | WZ73: 0 | XA73: 0 | XB73: 0 | XC73: 0 | XD73: 0 | XE73: 0 | XF73: 0 | XG73: 0 | XH73: 0 | XI73: 0 | XJ73: 0 | XK73: 0 | XL73: 0 | XM73: 0 | XN73: 0 | XO73: 0 | XP73: 0 | XQ73: 0 | XR73: 0 | XS73: 0 | XT73: 0 | XU73: 0 | XV73: 0 | XW73: 0 | XX73: 0 | XY73: =XY72/$F$73 -> 0 | XZ73: 0 | YA73: 0 | YB73: 0 | YC73: 0 | YD73: 0 | YE73: 0 | YF73: 0 | YG73: 0 | YH73: 0 | YI73: 0 | YJ73: 0 | YK73: 0 | YL73: 0 | YM73: 0 | YN73: 0 | YO73: 0 | YP73: 0 | YQ73: 0 | YR73: 0 | YS73: 0 | YT73: 0 | YU73: 0 | YV73: 0 | YW73: 0 | YX73: 0 | YY73: 0 | YZ73: 0 | ZA73: 0 | ZB73: 0 | ZC73: 0 | ZD73: 0 | ZE73: 0 | ZF73: 0 | ZG73: 0 | ZH73: 0 | ZI73: 0 | ZJ73: 0 | ZK73: 0 | ZL73: 0 | ZM73: 0 | ZN73: 0 | ZO73: 0 | ZP73: 0 | ZQ73: 0 | ZR73: 0 | ZS73: 0 | ZT73: 0 | ZU73: 0 | ZV73: 0 | ZW73: 0 | ZX73: 0 | ZY73: 0 | ZZ73: 0 | AAA73: 0 | AAB73: 0 | AAC73: 0 | AAD73: 0 | AAE73: 0 | AAF73: 0 | AAG73: 0 | AAH73: 0 | AAI73: 0 | AAJ73: 0 | AAK73: =AAK72/$F$73 -> 0 | AAL73: 0 | AAM73: 0 | AAN73: 0 | AAO73: 0 | AAP73: 0 | AAQ73: 0 | AAR73: 0 | AAS73: 0 | AAT73: 0 | AAU73: 0 | AAV73: 0 | AAW73: 0 | AAX73: 0 | AAY73: 0 | AAZ73: 0 | ABA73: 0 | ABB73: 0 | ABC73: 0 | ABD73: 0 | ABE73: 0 | ABF73: 0 | ABG73: 0 | ABH73: 0 | ABI73: 0 | ABJ73: 0 | ABK73: 0 | ABL73: 0 | ABM73: 0 | ABN73: 0 | ABO73: 0 | ABP73: 0 | ABQ73: 0 | ABR73: 0 | ABS73: 0 | ABT73: 0 | ABU73: 0 | ABV73: 0 | ABW73: 0 | ABX73: 0 | ABY73: 0 | ABZ73: 0 | ACA73: 0 | ACB73: 0 | ACC73: 0 | ACD73: 0 | ACE73: 0 | ACF73: 0 | ACG73: 0 | ACH73: 0 | ACI73: 0 | ACJ73: 0 | ACK73: 0 | ACL73: 0 | ACM73: 0 | ACN73: 0 | ACO73: 0 | ACP73: 0 | ACQ73: 0 | ACR73: 0 | ACS73: 0 | ACT73: 0 | ACU73: 0 | ACV73: 0 | ACW73: =ACW72/$F$73 -> 0 | ACX73: 0 | ACY73: 0 | ACZ73: 0 | ADA73: 0 | ADB73: 0 | ADC73: 0 | ADD73: 0 | ADE73: 0 | ADF73: 0 | ADG73: 0 | ADH73: 0 | ADI73: 0 | ADJ73: 0 | ADK73: 0 | ADL73: 0 | ADM73: 0 | ADN73: 0 | ADO73: 0 | ADP73: 0 | ADQ73: 0 | ADR73: 0 | ADS73: 0 | ADT73: 0 | ADU73: 0 | ADV73: 0 | ADW73: 0 | ADX73: 0 | ADY73: 0 | ADZ73: 0 | AEA73: 0 | AEB73: 0 | AEC73: 0 | AED73: 0 | AEE73: 0 | AEF73: 0 | AEG73: 0 | AEH73: 0 | AEI73: 0 | AEJ73: 0 | AEK73: 0 | AEL73: 0 | AEM73: 0 | AEN73: 0 | AEO73: 0 | AEP73: 0 | AEQ73: 0 | AER73: 0 | AES73: 0 | AET73: 0 | AEU73: 0 | AEV73: 0 | AEW73: 0 | AEX73: 0 | AEY73: 0 | AEZ73: 0 | AFA73: 0 | AFB73: 0 | AFC73: 0 | AFD73: 0 | AFE73: 0 | AFF73: 0 | AFG73: 0 | AFH73: 0 | AFI73: =AFI72/$F$73 -> 0 | AFJ73: 0 | AFK73: 0 | AFL73: 0 | AFM73: 0 | AFN73: 0 | AFO73: 0 | AFP73: 0 | AFQ73: 0 | AFR73: 0 | AFS73: 0 | AFT73: 0 | AFU73: 0 | AFV73: 0 | AFW73: 0 | AFX73: 0 | AFY73: 0 | AFZ73: 0 | AGA73: 0 | AGB73: 0 | AGC73: 0 | AGD73: 0 | AGE73: 0 | AGF73: 0 | AGG73: 0 | AGH73: 0 | AGI73: 0 | AGJ73: 0 | AGK73: 0
B75: Inflation Rate | E75: % | F75: ='Carrying Charge'!F22 -> 0 | G75: ='Carrying Charge'!F23 -> 0.0098 | I75: =IF(I5,$F$75,$G$75) -> 0 | J75: 0.0098 | K75: 0.0098 | L75: 0.0098 | M75: 0.0098 | N75: 0.0098 | O75: 0.0098 | P75: 0.0098 | Q75: 0.0098 | R75: 0.0098 | S75: 0.0098 | T75: 0.0098 | U75: 0.0098 | V75: 0.0098 | W75: 0.0098 | X75: 0.0098 | Y75: 0.0098 | Z75: 0.0098 | AA75: 0.0098 | AB75: 0.0098 | AC75: 0.0098 | AD75: 0.0098 | AE75: 0.0098 | AF75: 0.0098 | AG75: 0.0098 | AH75: 0.0098 | AI75: 0.0098 | AJ75: 0.0098 | AK75: 0.0098 | AL75: 0.0098 | AM75: 0.0098 | AN75: 0.0098 | AO75: 0.0098 | AP75: 0.0098 | AQ75: 0.0098 | AR75: 0.0098 | AS75: 0.0098 | AT75: 0.0098 | AU75: 0.0098 | AV75: 0.0098 | AW75: 0.0098 | AX75: 0.0098 | AY75: 0.0098 | AZ75: 0.0098 | BA75: 0.0098 | BB75: 0.0098 | BC75: 0.0098 | BD75: 0.0098 | BE75: 0.0098 | BF75: 0.0098 | BG75: 0.0098 | BH75: 0.0098 | BI75: 0.0098 | BJ75: 0.0098 | BK75: 0.0098 | BL75: 0.0098 | BM75: 0.0098 | BN75: 0.0098 | BO75: 0.0098 | BP75: 0.0098 | BQ75: 0.0098 | BR75: 0.0098 | BS75: 0.0098 | BT75: 0.0098 | BU75: =IF(BU5,$F$75,$G$75) -> 0.0098 | BV75: 0.0098 | BW75: 0.0098 | BX75: 0.0098 | BY75: 0.0098 | BZ75: 0.0098 | CA75: 0.0098 | CB75: 0.0098 | CC75: 0.0098 | CD75: 0.0098 | CE75: 0.0098 | CF75: 0.0098 | CG75: 0.0098 | CH75: 0.0098 | CI75: 0.0098 | CJ75: 0.0098 | CK75: 0.0098 | CL75: 0.0098 | CM75: 0.0098 | CN75: 0.0098 | CO75: 0.0098 | CP75: 0.0098 | CQ75: 0.0098 | CR75: 0.0098 | CS75: 0.0098 | CT75: 0.0098 | CU75: 0.0098 | CV75: 0.0098 | CW75: 0.0098 | CX75: 0.0098 | CY75: 0.0098 | CZ75: 0.0098 | DA75: 0.0098 | DB75: 0.0098 | DC75: 0.0098 | DD75: 0.0098 | DE75: 0.0098 | DF75: 0.0098 | DG75: 0.0098 | DH75: 0.0098 | DI75: 0.0098 | DJ75: 0.0098 | DK75: 0.0098 | DL75: 0.0098 | DM75: 0.0098 | DN75: 0.0098 | DO75: 0.0098 | DP75: 0.0098 | DQ75: 0.0098 | DR75: 0.0098 | DS75: 0.0098 | DT75: 0.0098 | DU75: 0.0098 | DV75: 0.0098 | DW75: 0.0098 | DX75: 0.0098 | DY75: 0.0098 | DZ75: 0.0098 | EA75: 0.0098 | EB75: 0.0098 | EC75: 0.0098 | ED75: 0.0098 | EE75: 0.0098 | EF75: 0.0098 | EG75: =IF(EG5,$F$75,$G$75) -> 0.0098 | EH75: 0.0098 | EI75: 0.0098 | EJ75: 0.0098 | EK75: 0.0098 | EL75: 0.0098 | EM75: 0.0098 | EN75: 0.0098 | EO75: 0.0098 | EP75: 0.0098 | EQ75: 0.0098 | ER75: 0.0098 | ES75: 0.0098 | ET75: 0.0098 | EU75: 0.0098 | EV75: 0.0098 | EW75: 0.0098 | EX75: 0.0098 | EY75: 0.0098 | EZ75: 0.0098 | FA75: 0.0098 | FB75: 0.0098 | FC75: 0.0098 | FD75: 0.0098 | FE75: 0.0098 | FF75: 0.0098 | FG75: 0.0098 | FH75: 0.0098 | FI75: 0.0098 | FJ75: 0.0098 | FK75: 0.0098 | FL75: 0.0098 | FM75: 0.0098 | FN75: 0.0098 | FO75: 0.0098 | FP75: 0.0098 | FQ75: 0.0098 | FR75: 0.0098 | FS75: 0.0098 | FT75: 0.0098 | FU75: 0.0098 | FV75: 0.0098 | FW75: 0.0098 | FX75: 0.0098 | FY75: 0.0098 | FZ75: 0.0098 | GA75: 0.0098 | GB75: 0.0098 | GC75: 0.0098 | GD75: 0.0098 | GE75: 0.0098 | GF75: 0.0098 | GG75: 0.0098 | GH75: 0.0098 | GI75: 0.0098 | GJ75: 0.0098 | GK75: 0.0098 | GL75: 0.0098 | GM75: 0.0098 | GN75: 0.0098 | GO75: 0.0098 | GP75: 0.0098 | GQ75: 0.0098 | GR75: 0.0098 | GS75: =IF(GS5,$F$75,$G$75) -> 0.0098 | GT75: 0.0098 | GU75: 0.0098 | GV75: 0.0098 | GW75: 0.0098 | GX75: 0.0098 | GY75: 0.0098 | GZ75: 0.0098 | HA75: 0.0098 | HB75: 0.0098 | HC75: 0.0098 | HD75: 0.0098 | HE75: 0.0098 | HF75: 0.0098 | HG75: 0.0098 | HH75: 0.0098 | HI75: 0.0098 | HJ75: 0.0098 | HK75: 0.0098 | HL75: 0.0098 | HM75: 0.0098 | HN75: 0.0098 | HO75: 0.0098 | HP75: 0.0098 | HQ75: 0.0098 | HR75: 0.0098 | HS75: 0.0098 | HT75: 0.0098 | HU75: 0.0098 | HV75: 0.0098 | HW75: 0.0098 | HX75: 0.0098 | HY75: 0.0098 | HZ75: 0.0098 | IA75: 0.0098 | IB75: 0.0098 | IC75: 0.0098 | ID75: 0.0098 | IE75: 0.0098 | IF75: 0.0098 | IG75: 0.0098 | IH75: 0.0098 | II75: 0.0098 | IJ75: 0.0098 | IK75: 0.0098 | IL75: 0.0098 | IM75: 0.0098 | IN75: 0.0098 | IO75: 0.0098 | IP75: 0.0098 | IQ75: 0.0098 | IR75: 0.0098 | IS75: 0.0098 | IT75: 0.0098 | IU75: 0.0098 | IV75: 0.0098 | IW75: 0.0098 | IX75: 0.0098 | IY75: 0.0098 | IZ75: 0.0098 | JA75: 0.0098 | JB75: 0.0098 | JC75: 0.0098 | JD75: 0.0098 | JE75: =IF(JE5,$F$75,$G$75) -> 0.0098 | JF75: 0.0098 | JG75: 0.0098 | JH75: 0.0098 | JI75: 0.0098 | JJ75: 0.0098 | JK75: 0.0098 | JL75: 0.0098 | JM75: 0.0098 | JN75: 0.0098 | JO75: 0.0098 | JP75: 0.0098 | JQ75: 0.0098 | JR75: 0.0098 | JS75: 0.0098 | JT75: 0.0098 | JU75: 0.0098 | JV75: 0.0098 | JW75: 0.0098 | JX75: 0.0098 | JY75: 0.0098 | JZ75: 0.0098 | KA75: 0.0098 | KB75: 0.0098 | KC75: 0.0098 | KD75: 0.0098 | KE75: 0.0098 | KF75: 0.0098 | KG75: 0.0098 | KH75: 0.0098 | KI75: 0.0098 | KJ75: 0.0098 | KK75: 0.0098 | KL75: 0.0098 | KM75: 0.0098 | KN75: 0.0098 | KO75: 0.0098 | KP75: 0.0098 | KQ75: 0.0098 | KR75: 0.0098 | KS75: 0.0098 | KT75: 0.0098 | KU75: 0.0098 | KV75: 0.0098 | KW75: 0.0098 | KX75: 0.0098 | KY75: 0.0098 | KZ75: 0.0098 | LA75: 0.0098 | LB75: 0.0098 | LC75: 0.0098 | LD75: 0.0098 | LE75: 0.0098 | LF75: 0.0098 | LG75: 0.0098 | LH75: 0.0098 | LI75: 0.0098 | LJ75: 0.0098 | LK75: 0.0098 | LL75: 0.0098 | LM75: 0.0098 | LN75: 0.0098 | LO75: 0.0098 | LP75: 0.0098 | LQ75: =IF(LQ5,$F$75,$G$75) -> 0.0098 | LR75: 0.0098 | LS75: 0.0098 | LT75: 0.0098 | LU75: 0.0098 | LV75: 0.0098 | LW75: 0.0098 | LX75: 0.0098 | LY75: 0.0098 | LZ75: 0.0098 | MA75: 0.0098 | MB75: 0.0098 | MC75: 0.0098 | MD75: 0.0098 | ME75: 0.0098 | MF75: 0.0098 | MG75: 0.0098 | MH75: 0.0098 | MI75: 0.0098 | MJ75: 0.0098 | MK75: 0.0098 | ML75: 0.0098 | MM75: 0.0098 | MN75: 0.0098 | MO75: 0.0098 | MP75: 0.0098 | MQ75: 0.0098 | MR75: 0.0098 | MS75: 0.0098 | MT75: 0.0098 | MU75: 0.0098 | MV75: 0.0098 | MW75: 0.0098 | MX75: 0.0098 | MY75: 0.0098 | MZ75: 0.0098 | NA75: 0.0098 | NB75: 0.0098 | NC75: 0.0098 | ND75: 0.0098 | NE75: 0.0098 | NF75: 0.0098 | NG75: 0.0098 | NH75: 0.0098 | NI75: 0.0098 | NJ75: 0.0098 | NK75: 0.0098 | NL75: 0.0098 | NM75: 0.0098 | NN75: 0.0098 | NO75: 0.0098 | NP75: 0.0098 | NQ75: 0.0098 | NR75: 0.0098 | NS75: 0.0098 | NT75: 0.0098 | NU75: 0.0098 | NV75: 0.0098 | NW75: 0.0098 | NX75: 0.0098 | NY75: 0.0098 | NZ75: 0.0098 | OA75: 0.0098 | OB75: 0.0098 | OC75: =IF(OC5,$F$75,$G$75) -> 0.0098 | OD75: 0.0098 | OE75: 0.0098 | OF75: 0.0098 | OG75: 0.0098 | OH75: 0.0098 | OI75: 0.0098 | OJ75: 0.0098 | OK75: 0.0098 | OL75: 0.0098 | OM75: 0.0098 | ON75: 0.0098 | OO75: 0.0098 | OP75: 0.0098 | OQ75: 0.0098 | OR75: 0.0098 | OS75: 0.0098 | OT75: 0.0098 | OU75: 0.0098 | OV75: 0.0098 | OW75: 0.0098 | OX75: 0.0098 | OY75: 0.0098 | OZ75: 0.0098 | PA75: 0.0098 | PB75: 0.0098 | PC75: 0.0098 | PD75: 0.0098 | PE75: 0.0098 | PF75: 0.0098 | PG75: 0.0098 | PH75: 0.0098 | PI75: 0.0098 | PJ75: 0.0098 | PK75: 0.0098 | PL75: 0.0098 | PM75: 0.0098 | PN75: 0.0098 | PO75: 0.0098 | PP75: 0.0098 | PQ75: 0.0098 | PR75: 0.0098 | PS75: 0.0098 | PT75: 0.0098 | PU75: 0.0098 | PV75: 0.0098 | PW75: 0.0098 | PX75: 0.0098 | PY75: 0.0098 | PZ75: 0.0098 | QA75: 0.0098 | QB75: 0.0098 | QC75: 0.0098 | QD75: 0.0098 | QE75: 0.0098 | QF75: 0.0098 | QG75: 0.0098 | QH75: 0.0098 | QI75: 0.0098 | QJ75: 0.0098 | QK75: 0.0098 | QL75: 0.0098 | QM75: 0.0098 | QN75: 0.0098 | QO75: =IF(QO5,$F$75,$G$75) -> 0.0098 | QP75: 0.0098 | QQ75: 0.0098 | QR75: 0.0098 | QS75: 0.0098 | QT75: 0.0098 | QU75: 0.0098 | QV75: 0.0098 | QW75: 0.0098 | QX75: 0.0098 | QY75: 0.0098 | QZ75: 0.0098 | RA75: 0.0098 | RB75: 0.0098 | RC75: 0.0098 | RD75: 0.0098 | RE75: 0.0098 | RF75: 0.0098 | RG75: 0.0098 | RH75: 0.0098 | RI75: 0.0098 | RJ75: 0.0098 | RK75: 0.0098 | RL75: 0.0098 | RM75: 0.0098 | RN75: 0.0098 | RO75: 0.0098 | RP75: 0.0098 | RQ75: 0.0098 | RR75: 0.0098 | RS75: 0.0098 | RT75: 0.0098 | RU75: 0.0098 | RV75: 0.0098 | RW75: 0.0098 | RX75: 0.0098 | RY75: 0.0098 | RZ75: 0.0098 | SA75: 0.0098 | SB75: 0.0098 | SC75: 0.0098 | SD75: 0.0098 | SE75: 0.0098 | SF75: 0.0098 | SG75: 0.0098 | SH75: 0.0098 | SI75: 0.0098 | SJ75: 0.0098 | SK75: 0.0098 | SL75: 0.0098 | SM75: 0.0098 | SN75: 0.0098 | SO75: 0.0098 | SP75: 0.0098 | SQ75: 0.0098 | SR75: 0.0098 | SS75: 0.0098 | ST75: 0.0098 | SU75: 0.0098 | SV75: 0.0098 | SW75: 0.0098 | SX75: 0.0098 | SY75: 0.0098 | SZ75: 0.0098 | TA75: =IF(TA5,$F$75,$G$75) -> 0.0098 | TB75: 0.0098 | TC75: 0.0098 | TD75: 0.0098 | TE75: 0.0098 | TF75: 0.0098 | TG75: 0.0098 | TH75: 0.0098 | TI75: 0.0098 | TJ75: 0.0098 | TK75: 0.0098 | TL75: 0.0098 | TM75: 0.0098 | TN75: 0.0098 | TO75: 0.0098 | TP75: 0.0098 | TQ75: 0.0098 | TR75: 0.0098 | TS75: 0.0098 | TT75: 0.0098 | TU75: 0.0098 | TV75: 0.0098 | TW75: 0.0098 | TX75: 0.0098 | TY75: 0.0098 | TZ75: 0.0098 | UA75: 0.0098 | UB75: 0.0098 | UC75: 0.0098 | UD75: 0.0098 | UE75: 0.0098 | UF75: 0.0098 | UG75: 0.0098 | UH75: 0.0098 | UI75: 0.0098 | UJ75: 0.0098 | UK75: 0.0098 | UL75: 0.0098 | UM75: 0.0098 | UN75: 0.0098 | UO75: 0.0098 | UP75: 0.0098 | UQ75: 0.0098 | UR75: 0.0098 | US75: 0.0098 | UT75: 0.0098 | UU75: 0.0098 | UV75: 0.0098 | UW75: 0.0098 | UX75: 0.0098 | UY75: 0.0098 | UZ75: 0.0098 | VA75: 0.0098 | VB75: 0.0098 | VC75: 0.0098 | VD75: 0.0098 | VE75: 0.0098 | VF75: 0.0098 | VG75: 0.0098 | VH75: 0.0098 | VI75: 0.0098 | VJ75: 0.0098 | VK75: 0.0098 | VL75: 0.0098 | VM75: =IF(VM5,$F$75,$G$75) -> 0.0098 | VN75: 0.0098 | VO75: 0.0098 | VP75: 0.0098 | VQ75: 0.0098 | VR75: 0.0098 | VS75: 0.0098 | VT75: 0.0098 | VU75: 0.0098 | VV75: 0.0098 | VW75: 0.0098 | VX75: 0.0098 | VY75: 0.0098 | VZ75: 0.0098 | WA75: 0.0098 | WB75: 0.0098 | WC75: 0.0098 | WD75: 0.0098 | WE75: 0.0098 | WF75: 0.0098 | WG75: 0.0098 | WH75: 0.0098 | WI75: 0.0098 | WJ75: 0.0098 | WK75: 0.0098 | WL75: 0.0098 | WM75: 0.0098 | WN75: 0.0098 | WO75: 0.0098 | WP75: 0.0098 | WQ75: 0.0098 | WR75: 0.0098 | WS75: 0.0098 | WT75: 0.0098 | WU75: 0.0098 | WV75: 0.0098 | WW75: 0.0098 | WX75: 0.0098 | WY75: 0.0098 | WZ75: 0.0098 | XA75: 0.0098 | XB75: 0.0098 | XC75: 0.0098 | XD75: 0.0098 | XE75: 0.0098 | XF75: 0.0098 | XG75: 0.0098 | XH75: 0.0098 | XI75: 0.0098 | XJ75: 0.0098 | XK75: 0.0098 | XL75: 0.0098 | XM75: 0.0098 | XN75: 0.0098 | XO75: 0.0098 | XP75: 0.0098 | XQ75: 0.0098 | XR75: 0.0098 | XS75: 0.0098 | XT75: 0.0098 | XU75: 0.0098 | XV75: 0.0098 | XW75: 0.0098 | XX75: 0.0098 | XY75: =IF(XY5,$F$75,$G$75) -> 0.0098 | XZ75: 0.0098 | YA75: 0.0098 | YB75: 0.0098 | YC75: 0.0098 | YD75: 0.0098 | YE75: 0.0098 | YF75: 0.0098 | YG75: 0.0098 | YH75: 0.0098 | YI75: 0.0098 | YJ75: 0.0098 | YK75: 0.0098 | YL75: 0.0098 | YM75: 0.0098 | YN75: 0.0098 | YO75: 0.0098 | YP75: 0.0098 | YQ75: 0.0098 | YR75: 0.0098 | YS75: 0.0098 | YT75: 0.0098 | YU75: 0.0098 | YV75: 0.0098 | YW75: 0.0098 | YX75: 0.0098 | YY75: 0.0098 | YZ75: 0.0098 | ZA75: 0.0098 | ZB75: 0.0098 | ZC75: 0.0098 | ZD75: 0.0098 | ZE75: 0.0098 | ZF75: 0.0098 | ZG75: 0.0098 | ZH75: 0.0098 | ZI75: 0.0098 | ZJ75: 0.0098 | ZK75: 0.0098 | ZL75: 0.0098 | ZM75: 0.0098 | ZN75: 0.0098 | ZO75: 0.0098 | ZP75: 0.0098 | ZQ75: 0.0098 | ZR75: 0.0098 | ZS75: 0.0098 | ZT75: 0.0098 | ZU75: 0.0098 | ZV75: 0.0098 | ZW75: 0.0098 | ZX75: 0.0098 | ZY75: 0.0098 | ZZ75: 0.0098 | AAA75: 0.0098 | AAB75: 0.0098 | AAC75: 0.0098 | AAD75: 0.0098 | AAE75: 0.0098 | AAF75: 0.0098 | AAG75: 0.0098 | AAH75: 0.0098 | AAI75: 0.0098 | AAJ75: 0.0098 | AAK75: =IF(AAK5,$F$75,$G$75) -> 0.0098 | AAL75: 0.0098 | AAM75: 0.0098 | AAN75: 0.0098 | AAO75: 0.0098 | AAP75: 0.0098 | AAQ75: 0.0098 | AAR75: 0.0098 | AAS75: 0.0098 | AAT75: 0.0098 | AAU75: 0.0098 | AAV75: 0.0098 | AAW75: 0.0098 | AAX75: 0.0098 | AAY75: 0.0098 | AAZ75: 0.0098 | ABA75: 0.0098 | ABB75: 0.0098 | ABC75: 0.0098 | ABD75: 0.0098 | ABE75: 0.0098 | ABF75: 0.0098 | ABG75: 0.0098 | ABH75: 0.0098 | ABI75: 0.0098 | ABJ75: 0.0098 | ABK75: 0.0098 | ABL75: 0.0098 | ABM75: 0.0098 | ABN75: 0.0098 | ABO75: 0.0098 | ABP75: 0.0098 | ABQ75: 0.0098 | ABR75: 0.0098 | ABS75: 0.0098 | ABT75: 0.0098 | ABU75: 0.0098 | ABV75: 0.0098 | ABW75: 0.0098 | ABX75: 0.0098 | ABY75: 0.0098 | ABZ75: 0.0098 | ACA75: 0.0098 | ACB75: 0.0098 | ACC75: 0.0098 | ACD75: 0.0098 | ACE75: 0.0098 | ACF75: 0.0098 | ACG75: 0.0098 | ACH75: 0.0098 | ACI75: 0.0098 | ACJ75: 0.0098 | ACK75: 0.0098 | ACL75: 0.0098 | ACM75: 0.0098 | ACN75: 0.0098 | ACO75: 0.0098 | ACP75: 0.0098 | ACQ75: 0.0098 | ACR75: 0.0098 | ACS75: 0.0098 | ACT75: 0.0098 | ACU75: 0.0098 | ACV75: 0.0098 | ACW75: =IF(ACW5,$F$75,$G$75) -> 0.0098 | ACX75: 0.0098 | ACY75: 0.0098 | ACZ75: 0.0098 | ADA75: 0.0098 | ADB75: 0.0098 | ADC75: 0.0098 | ADD75: 0.0098 | ADE75: 0.0098 | ADF75: 0.0098 | ADG75: 0.0098 | ADH75: 0.0098 | ADI75: 0.0098 | ADJ75: 0.0098 | ADK75: 0.0098 | ADL75: 0.0098 | ADM75: 0.0098 | ADN75: 0.0098 | ADO75: 0.0098 | ADP75: 0.0098 | ADQ75: 0.0098 | ADR75: 0.0098 | ADS75: 0.0098 | ADT75: 0.0098 | ADU75: 0.0098 | ADV75: 0.0098 | ADW75: 0.0098 | ADX75: 0.0098 | ADY75: 0.0098 | ADZ75: 0.0098 | AEA75: 0.0098 | AEB75: 0.0098 | AEC75: 0.0098 | AED75: 0.0098 | AEE75: 0.0098 | AEF75: 0.0098 | AEG75: 0.0098 | AEH75: 0.0098 | AEI75: 0.0098 | AEJ75: 0.0098 | AEK75: 0.0098 | AEL75: 0.0098 | AEM75: 0.0098 | AEN75: 0.0098 | AEO75: 0.0098 | AEP75: 0.0098 | AEQ75: 0.0098 | AER75: 0.0098 | AES75: 0.0098 | AET75: 0.0098 | AEU75: 0.0098 | AEV75: 0.0098 | AEW75: 0.0098 | AEX75: 0.0098 | AEY75: 0.0098 | AEZ75: 0.0098 | AFA75: 0.0098 | AFB75: 0.0098 | AFC75: 0.0098 | AFD75: 0.0098 | AFE75: 0.0098 | AFF75: 0.0098 | AFG75: 0.0098 | AFH75: 0.0098 | AFI75: =IF(AFI5,$F$75,$G$75) -> 0.0098 | AFJ75: 0.0098 | AFK75: 0.0098 | AFL75: 0.0098 | AFM75: 0.0098 | AFN75: 0.0098 | AFO75: 0.0098 | AFP75: 0.0098 | AFQ75: 0.0098 | AFR75: 0.0098 | AFS75: 0.0098 | AFT75: 0.0098 | AFU75: 0.0098 | AFV75: 0.0098 | AFW75: 0.0098 | AFX75: 0.0098 | AFY75: 0.0098 | AFZ75: 0.0098 | AGA75: 0.0098 | AGB75: 0.0098 | AGC75: 0.0098 | AGD75: 0.0098 | AGE75: 0.0098 | AGF75: 0.0098 | AGG75: 0.0098 | AGH75: 0.0098 | AGI75: 0.0098 | AGJ75: 0.0098 | AGK75: 0.0098
B76: Combined Inflation Index | E76: Index | H76: 1 | I76: =H76*(1+I75) -> 1 | J76: =I76*(1+J75) -> 1.0098 | K76: 1.01969604 | L76: 1.029689061 | M76: 1.039780014 | N76: 1.049969858 | O76: 1.060259563 | P76: 1.070650106 | Q76: 1.081142477 | R76: 1.091737674 | S76: 1.102436703 | T76: 1.113240583 | U76: 1.12415034 | V76: 1.135167014 | W76: 1.14629165 | X76: 1.157525309 | Y76: 1.168869057 | Z76: 1.180323973 | AA76: 1.191891148 | AB76: 1.203571682 | AC76: 1.215366684 | AD76: 1.227277278 | AE76: 1.239304595 | AF76: 1.25144978 | AG76: 1.263713988 | AH76: 1.276098385 | AI76: 1.288604149 | AJ76: 1.30123247 | AK76: 1.313984548 | AL76: 1.326861596 | AM76: 1.33986484 | AN76: 1.352995516 | AO76: 1.366254872 | AP76: 1.379644169 | AQ76: 1.393164682 | AR76: 1.406817696 | AS76: 1.420604509 | AT76: 1.434526434 | AU76: 1.448584793 | AV76: 1.462780924 | AW76: 1.477116177 | AX76: 1.491591915 | AY76: 1.506209516 | AZ76: 1.520970369 | BA76: 1.535875879 | BB76: 1.550927463 | BC76: 1.566126552 | BD76: 1.581474592 | BE76: 1.596973043 | BF76: 1.612623379 | BG76: 1.628427088 | BH76: 1.644385673 | BI76: 1.660500653 | BJ76: 1.676773559 | BK76: 1.69320594 | BL76: 1.709799358 | BM76: 1.726555392 | BN76: 1.743475635 | BO76: 1.760561696 | BP76: 1.777815201 | BQ76: 1.79523779 | BR76: 1.81283112 | BS76: 1.830596865 | BT76: 1.848536714 | BU76: 1.866652374 | BV76: =BU76*(1+BV75) -> 1.884945567 | BW76: 1.903418034 | BX76: 1.922071531 | BY76: 1.940907832 | BZ76: 1.959928728 | CA76: 1.97913603 | CB76: 1.998531563 | CC76: 2.018117172 | CD76: 2.037894721 | CE76: 2.057866089 | CF76: 2.078033177 | CG76: 2.098397902 | CH76: 2.118962201 | CI76: 2.139728031 | CJ76: 2.160697365 | CK76: 2.1818722 | CL76: 2.203254547 | CM76: 2.224846442 | CN76: 2.246649937 | CO76: 2.268667106 | CP76: 2.290900044 | CQ76: 2.313350864 | CR76: 2.336021703 | CS76: 2.358914716 | CT76: 2.38203208 | CU76: 2.405375994 | CV76: 2.428948679 | CW76: 2.452752376 | CX76: 2.476789349 | CY76: 2.501061885 | CZ76: 2.525572291 | DA76: 2.5503229 | DB76: 2.575316064 | DC76: 2.600554162 | DD76: 2.626039592 | DE76: 2.65177478 | DF76: 2.677762173 | DG76: 2.704004243 | DH76: 2.730503484 | DI76: 2.757262418 | DJ76: 2.78428359 | DK76: 2.811569569 | DL76: 2.839122951 | DM76: 2.866946356 | DN76: 2.89504243 | DO76: 2.923413846 | DP76: 2.952063302 | DQ76: 2.980993522 | DR76: 3.010207258 | DS76: 3.03970729 | DT76: 3.069496421 | DU76: 3.099577486 | DV76: 3.129953345 | DW76: 3.160626888 | DX76: 3.191601032 | DY76: 3.222878722 | DZ76: 3.254462933 | EA76: 3.28635667 | EB76: 3.318562965 | EC76: 3.351084882 | ED76: 3.383925514 | EE76: 3.417087984 | EF76: 3.450575446 | EG76: 3.484391086 | EH76: =EG76*(1+EH75) -> 3.518538119 | EI76: 3.553019792 | EJ76: 3.587839386 | EK76: 3.623000212 | EL76: 3.658505614 | EM76: 3.694358969 | EN76: 3.730563687 | EO76: 3.767123211 | EP76: 3.804041019 | EQ76: 3.841320621 | ER76: 3.878965563 | ES76: 3.916979425 | ET76: 3.955365824 | EU76: 3.994128409 | EV76: 4.033270867 | EW76: 4.072796922 | EX76: 4.112710331 | EY76: 4.153014893 | EZ76: 4.193714439 | FA76: 4.23481284 | FB76: 4.276314006 | FC76: 4.318221883 | FD76: 4.360540458 | FE76: 4.403273754 | FF76: 4.446425837 | FG76: 4.49000081 | FH76: 4.534002818 | FI76: 4.578436046 | FJ76: 4.623304719 | FK76: 4.668613105 | FL76: 4.714365514 | FM76: 4.760566296 | FN76: 4.807219845 | FO76: 4.8543306 | FP76: 4.90190304 | FQ76: 4.949941689 | FR76: 4.998451118 | FS76: 5.047435939 | FT76: 5.096900811 | FU76: 5.146850439 | FV76: 5.197289573 | FW76: 5.248223011 | FX76: 5.299655597 | FY76: 5.351592222 | FZ76: 5.404037825 | GA76: 5.456997396 | GB76: 5.510475971 | GC76: 5.564478635 | GD76: 5.619010526 | GE76: 5.674076829 | GF76: 5.729682782 | GG76: 5.785833673 | GH76: 5.842534843 | GI76: 5.899791684 | GJ76: 5.957609643 | GK76: 6.015994217 | GL76: 6.074950961 | GM76: 6.13448548 | GN76: 6.194603438 | GO76: 6.255310552 | GP76: 6.316612595 | GQ76: 6.378515398 | GR76: 6.441024849 | GS76: 6.504146893 | GT76: =GS76*(1+GT75) -> 6.567887532 | GU76: 6.63225283 | GV76: 6.697248908 | GW76: 6.762881947 | GX76: 6.82915819 | GY76: 6.896083941 | GZ76: 6.963665563 | HA76: 7.031909486 | HB76: 7.100822199 | HC76: 7.170410256 | HD76: 7.240680277 | HE76: 7.311638943 | HF76: 7.383293005 | HG76: 7.455649277 | HH76: 7.528714639 | HI76: 7.602496043 | HJ76: 7.677000504 | HK76: 7.752235109 | HL76: 7.828207013 | HM76: 7.904923442 | HN76: 7.982391692 | HO76: 8.06061913 | HP76: 8.139613198 | HQ76: 8.219381407 | HR76: 8.299931345 | HS76: 8.381270672 | HT76: 8.463407125 | HU76: 8.546348514 | HV76: 8.63010273 | HW76: 8.714677737 | HX76: 8.800081578 | HY76: 8.886322378 | HZ76: 8.973408337 | IA76: 9.061347739 | IB76: 9.150148947 | IC76: 9.239820406 | ID76: 9.330370646 | IE76: 9.421808279 | IF76: 9.514142 | IG76: 9.607380591 | IH76: 9.701532921 | II76: 9.796607944 | IJ76: 9.892614702 | IK76: 9.989562326 | IL76: 10.08746004 | IM76: 10.18631714 | IN76: 10.28614305 | IO76: 10.38694725 | IP76: 10.48873934 | IQ76: 10.59152898 | IR76: 10.69532597 | IS76: 10.80014016 | IT76: 10.90598154 | IU76: 11.01286015 | IV76: 11.12078618 | IW76: 11.22976989 | IX76: 11.33982163 | IY76: 11.45095189 | IZ76: 11.56317121 | JA76: 11.67649029 | JB76: 11.7909199 | JC76: 11.90647091 | JD76: 12.02315433 | JE76: 12.14098124 | JF76: =JE76*(1+JF75) -> 12.25996286 | JG76: 12.38011049 | JH76: 12.50143557 | JI76: 12.62394964 | JJ76: 12.74766435 | JK76: 12.87259146 | JL76: 12.99874286 | JM76: 13.12613054 | JN76: 13.25476662 | JO76: 13.38466333 | JP76: 13.51583303 | JQ76: 13.64828819 | JR76: 13.78204142 | JS76: 13.91710542 | JT76: 14.05349306 | JU76: 14.19121729 | JV76: 14.33029122 | JW76: 14.47072807 | JX76: 14.61254121 | JY76: 14.75574411 | JZ76: 14.9003504 | KA76: 15.04637384 | KB76: 15.1938283 | KC76: 15.34272782 | KD76: 15.49308655 | KE76: 15.6449188 | KF76: 15.798239 | KG76: 15.95306174 | KH76: 16.10940175 | KI76: 16.26727389 | KJ76: 16.42669317 | KK76: 16.58767476 | KL76: 16.75023398 | KM76: 16.91438627 | KN76: 17.08014726 | KO76: 17.2475327 | KP76: 17.41655852 | KQ76: 17.58724079 | KR76: 17.75959575 | KS76: 17.93363979 | KT76: 18.10938946 | KU76: 18.28686148 | KV76: 18.46607272 | KW76: 18.64704023 | KX76: 18.82978123 | KY76: 19.01431308 | KZ76: 19.20065335 | LA76: 19.38881975 | LB76: 19.57883019 | LC76: 19.77070272 | LD76: 19.96445561 | LE76: 20.16010727 | LF76: 20.35767633 | LG76: 20.55718155 | LH76: 20.75864193 | LI76: 20.96207662 | LJ76: 21.16750497 | LK76: 21.37494652 | LL76: 21.584421 | LM76: 21.79594833 | LN76: 22.00954862 | LO76: 22.2252422 | LP76: 22.44304957 | LQ76: 22.66299145 | LR76: =LQ76*(1+LR75) -> 22.88508877 | LS76: 23.10936264 | LT76: 23.33583439 | LU76: 23.56452557 | LV76: 23.79545792 | LW76: 24.02865341 | LX76: 24.26413421 | LY76: 24.50192273 | LZ76: 24.74204157 | MA76: 24.98451358 | MB76: 25.22936181 | MC76: 25.47660956 | MD76: 25.72628033 | ME76: 25.97839788 | MF76: 26.23298618 | MG76: 26.49006944 | MH76: 26.74967212 | MI76: 27.01181891 | MJ76: 27.27653474 | MK76: 27.54384478 | ML76: 27.81377445 | MM76: 28.08634944 | MN76: 28.36159567 | MO76: 28.63953931 | MP76: 28.92020679 | MQ76: 29.20362482 | MR76: 29.48982034 | MS76: 29.77882058 | MT76: 30.07065302 | MU76: 30.36534542 | MV76: 30.66292581 | MW76: 30.96342248 | MX76: 31.26686402 | MY76: 31.57327929 | MZ76: 31.88269742 | NA76: 32.19514786 | NB76: 32.51066031 | NC76: 32.82926478 | ND76: 33.15099157 | NE76: 33.47587129 | NF76: 33.80393483 | NG76: 34.13521339 | NH76: 34.46973848 | NI76: 34.80754192 | NJ76: 35.14865583 | NK76: 35.49311266 | NL76: 35.84094516 | NM76: 36.19218642 | NN76: 36.54686985 | NO76: 36.90502918 | NP76: 37.26669846 | NQ76: 37.63191211 | NR76: 38.00070485 | NS76: 38.37311175 | NT76: 38.74916825 | NU76: 39.1289101 | NV76: 39.51237342 | NW76: 39.89959468 | NX76: 40.2906107 | NY76: 40.68545869 | NZ76: 41.08417618 | OA76: 41.48680111 | OB76: 41.89337176 | OC76: 42.3039268 | OD76: =OC76*(1+OD75) -> 42.71850529 | OE76: 43.13714664 | OF76: 43.55989068 | OG76: 43.9867776 | OH76: 44.41784802 | OI76: 44.85314294 | OJ76: 45.29270374 | OK76: 45.73657223 | OL76: 46.18479064 | OM76: 46.63740159 | ON76: 47.09444812 | OO76: 47.55597372 | OP76: 48.02202226 | OQ76: 48.49263808 | OR76: 48.96786593 | OS76: 49.44775102 | OT76: 49.93233898 | OU76: 50.4216759 | OV76: 50.91580832 | OW76: 51.41478324 | OX76: 51.91864812 | OY76: 52.42745087 | OZ76: 52.94123989 | PA76: 53.46006404 | PB76: 53.98397267 | PC76: 54.5130156 | PD76: 55.04724315 | PE76: 55.58670614 | PF76: 56.13145586 | PG76: 56.68154412 | PH76: 57.23702326 | PI76: 57.79794608 | PJ76: 58.36436595 | PK76: 58.93633674 | PL76: 59.51391284 | PM76: 60.09714919 | PN76: 60.68610125 | PO76: 61.28082504 | PP76: 61.88137713 | PQ76: 62.48781462 | PR76: 63.10019521 | PS76: 63.71857712 | PT76: 64.34301917 | PU76: 64.97358076 | PV76: 65.61032185 | PW76: 66.25330301 | PX76: 66.90258538 | PY76: 67.55823071 | PZ76: 68.22030138 | QA76: 68.88886033 | QB76: 69.56397116 | QC76: 70.24569808 | QD76: 70.93410592 | QE76: 71.62926016 | QF76: 72.33122691 | QG76: 73.04007293 | QH76: 73.75586564 | QI76: 74.47867313 | QJ76: 75.20856412 | QK76: 75.94560805 | QL76: 76.68987501 | QM76: 77.44143579 | QN76: 78.20036186 | QO76: 78.9667254 | QP76: =QO76*(1+QP75) -> 79.74059931 | QQ76: 80.52205719 | QR76: 81.31117335 | QS76: 82.10802285 | QT76: 82.91268147 | QU76: 83.72522575 | QV76: 84.54573296 | QW76: 85.37428114 | QX76: 86.2109491 | QY76: 87.0558164 | QZ76: 87.9089634 | RA76: 88.77047124 | RB76: 89.64042186 | RC76: 90.51889799 | RD76: 91.40598319 | RE76: 92.30176183 | RF76: 93.2063191 | RG76: 94.11974102 | RH76: 95.04211448 | RI76: 95.97352721 | RJ76: 96.91406777 | RK76: 97.86382564 | RL76: 98.82289113 | RM76: 99.79135546 | RN76: 100.7693107 | RO76: 101.75685 | RP76: 102.7540671 | RQ76: 103.761057 | RR76: 104.7779153 | RS76: 105.8047389 | RT76: 106.8416253 | RU76: 107.8886733 | RV76: 108.9459823 | RW76: 110.0136529 | RX76: 111.0917867 | RY76: 112.1804862 | RZ76: 113.279855 | SA76: 114.3899976 | SB76: 115.5110195 | SC76: 116.6430275 | SD76: 117.7861292 | SE76: 118.9404333 | SF76: 120.1060495 | SG76: 121.2830888 | SH76: 122.4716631 | SI76: 123.6718854 | SJ76: 124.8838698 | SK76: 126.1077318 | SL76: 127.3435875 | SM76: 128.5915547 | SN76: 129.8517519 | SO76: 131.1242991 | SP76: 132.4093172 | SQ76: 133.7069285 | SR76: 135.0172564 | SS76: 136.3404255 | ST76: 137.6765617 | SU76: 139.025792 | SV76: 140.3882448 | SW76: 141.7640496 | SX76: 143.1533373 | SY76: 144.55624 | SZ76: 145.9728911 | TA76: 147.4034255 | TB76: =TA76*(1+TB75) -> 148.847979 | TC76: 150.3066892 | TD76: 151.7796948 | TE76: 153.2671358 | TF76: 154.7691537 | TG76: 156.2858914 | TH76: 157.8174932 | TI76: 159.3641046 | TJ76: 160.9258728 | TK76: 162.5029464 | TL76: 164.0954752 | TM76: 165.7036109 | TN76: 167.3275063 | TO76: 168.9673158 | TP76: 170.6231955 | TQ76: 172.2953029 | TR76: 173.9837968 | TS76: 175.688838 | TT76: 177.4105886 | TU76: 179.1492124 | TV76: 180.9048747 | TW76: 182.6777425 | TX76: 184.4679843 | TY76: 186.2757706 | TZ76: 188.1012731 | UA76: 189.9446656 | UB76: 191.8061233 | UC76: 193.6858234 | UD76: 195.5839444 | UE76: 197.5006671 | UF76: 199.4361736 | UG76: 201.3906481 | UH76: 203.3642765 | UI76: 205.3572464 | UJ76: 207.3697474 | UK76: 209.4019709 | UL76: 211.4541102 | UM76: 213.5263605 | UN76: 215.6189188 | UO76: 217.7319842 | UP76: 219.8657577 | UQ76: 222.0204421 | UR76: 224.1962425 | US76: 226.3933656 | UT76: 228.6120206 | UU76: 230.8524184 | UV76: 233.1147721 | UW76: 235.3992969 | UX76: 237.70621 | UY76: 240.0357308 | UZ76: 242.388081 | VA76: 244.7634842 | VB76: 247.1621663 | VC76: 249.5843556 | VD76: 252.0302823 | VE76: 254.500179 | VF76: 256.9942808 | VG76: 259.5128247 | VH76: 262.0560504 | VI76: 264.6241997 | VJ76: 267.2175169 | VK76: 269.8362485 | VL76: 272.4806438 | VM76: 275.1509541 | VN76: =VM76*(1+VN75) -> 277.8474334 | VO76: 280.5703383 | VP76: 283.3199276 | VQ76: 286.0964629 | VR76: 288.9002082 | VS76: 291.7314303 | VT76: 294.5903983 | VU76: 297.4773842 | VV76: 300.3926625 | VW76: 303.3365106 | VX76: 306.3092084 | VY76: 309.3110387 | VZ76: 312.3422869 | WA76: 315.4032413 | WB76: 318.494193 | WC76: 321.6154361 | WD76: 324.7672674 | WE76: 327.9499866 | WF76: 331.1638965 | WG76: 334.4093027 | WH76: 337.6865138 | WI76: 340.9958417 | WJ76: 344.3376009 | WK76: 347.7121094 | WL76: 351.1196881 | WM76: 354.560661 | WN76: 358.0353555 | WO76: 361.544102 | WP76: 365.0872342 | WQ76: 368.6650891 | WR76: 372.278007 | WS76: 375.9263314 | WT76: 379.6104095 | WU76: 383.3305915 | WV76: 387.0872313 | WW76: 390.8806862 | WX76: 394.7113169 | WY76: 398.5794878 | WZ76: 402.4855668 | XA76: 406.4299253 | XB76: 410.4129386 | XC76: 414.4349854 | XD76: 418.4964482 | XE76: 422.5977134 | XF76: 426.739171 | XG76: 430.9212149 | XH76: 435.1442428 | XI76: 439.4086564 | XJ76: 443.7148612 | XK76: 448.0632669 | XL76: 452.4542869 | XM76: 456.8883389 | XN76: 461.3658446 | XO76: 465.8872299 | XP76: 470.4529247 | XQ76: 475.0633634 | XR76: 479.7189844 | XS76: 484.4202304 | XT76: 489.1675487 | XU76: 493.9613906 | XV76: 498.8022123 | XW76: 503.690474 | XX76: 508.6266406 | XY76: 513.6111817 | XZ76: =XY76*(1+XZ75) -> 518.6445713 | YA76: 523.7272881 | YB76: 528.8598155 | YC76: 534.0426417 | YD76: 539.2762596 | YE76: 544.5611669 | YF76: 549.8978663 | YG76: 555.2868654 | YH76: 560.7286767 | YI76: 566.2238177 | YJ76: 571.7728112 | YK76: 577.3761847 | YL76: 583.0344713 | YM76: 588.7482091 | YN76: 594.5179416 | YO76: 600.3442174 | YP76: 606.2275907 | YQ76: 612.1686211 | YR76: 618.1678736 | YS76: 624.2259188 | YT76: 630.3433328 | YU76: 636.5206974 | YV76: 642.7586003 | YW76: 649.0576346 | YX76: 655.4183994 | YY76: 661.8414997 | YZ76: 668.3275464 | ZA76: 674.8771563 | ZB76: 681.4909525 | ZC76: 688.1695638 | ZD76: 694.9136255 | ZE76: 701.7237791 | ZF76: 708.6006721 | ZG76: 715.5449587 | ZH76: 722.5572993 | ZI76: 729.6383608 | ZJ76: 736.7888168 | ZK76: 744.0093472 | ZL76: 751.3006388 | ZM76: 758.663385 | ZN76: 766.0982862 | ZO76: 773.6060494 | ZP76: 781.1873887 | ZQ76: 788.8430251 | ZR76: 796.5736867 | ZS76: 804.3801089 | ZT76: 812.2630339 | ZU76: 820.2232117 | ZV76: 828.2613991 | ZW76: 836.3783609 | ZX76: 844.5748688 | ZY76: 852.8517025 | ZZ76: 861.2096492 | AAA76: 869.6495037 | AAB76: 878.1720689 | AAC76: 886.7781552 | AAD76: 895.4685811 | AAE76: 904.2441732 | AAF76: 913.1057661 | AAG76: 922.0542026 | AAH76: 931.0903338 | AAI76: 940.215019 | AAJ76: 949.4291262 | AAK76: 958.7335317 | AAL76: =AAK76*(1+AAL75) -> 968.1291203 | AAM76: 977.6167856 | AAN76: 987.1974301 | AAO76: 996.871965 | AAP76: 1006.64131 | AAQ76: 1016.506395 | AAR76: 1026.468158 | AAS76: 1036.527546 | AAT76: 1046.685516 | AAU76: 1056.943034 | AAV76: 1067.301075 | AAW76: 1077.760626 | AAX76: 1088.32268 | AAY76: 1098.988242 | AAZ76: 1109.758327 | ABA76: 1120.633959 | ABB76: 1131.616172 | ABC76: 1142.70601 | ABD76: 1153.904529 | ABE76: 1165.212793 | ABF76: 1176.631879 | ABG76: 1188.162871 | ABH76: 1199.806867 | ABI76: 1211.564975 | ABJ76: 1223.438311 | ABK76: 1235.428007 | ABL76: 1247.535201 | ABM76: 1259.761046 | ABN76: 1272.106704 | ABO76: 1284.57335 | ABP76: 1297.162169 | ABQ76: 1309.874358 | ABR76: 1322.711127 | ABS76: 1335.673696 | ABT76: 1348.763298 | ABU76: 1361.981178 | ABV76: 1375.328594 | ABW76: 1388.806814 | ABX76: 1402.417121 | ABY76: 1416.160809 | ABZ76: 1430.039185 | ACA76: 1444.053569 | ACB76: 1458.205294 | ACC76: 1472.495706 | ACD76: 1486.926164 | ACE76: 1501.49804 | ACF76: 1516.212721 | ACG76: 1531.071605 | ACH76: 1546.076107 | ACI76: 1561.227653 | ACJ76: 1576.527684 | ACK76: 1591.977655 | ACL76: 1607.579036 | ACM76: 1623.333311 | ACN76: 1639.241977 | ACO76: 1655.306549 | ACP76: 1671.528553 | ACQ76: 1687.909533 | ACR76: 1704.451046 | ACS76: 1721.154666 | ACT76: 1738.021982 | ACU76: 1755.054597 | ACV76: 1772.254133 | ACW76: 1789.622223 | ACX76: =ACW76*(1+ACX75) -> 1807.160521 | ACY76: 1824.870694 | ACZ76: 1842.754427 | ADA76: 1860.81342 | ADB76: 1879.049392 | ADC76: 1897.464076 | ADD76: 1916.059224 | ADE76: 1934.836604 | ADF76: 1953.798003 | ADG76: 1972.945223 | ADH76: 1992.280086 | ADI76: 2011.804431 | ADJ76: 2031.520115 | ADK76: 2051.429012 | ADL76: 2071.533016 | ADM76: 2091.83404 | ADN76: 2112.334013 | ADO76: 2133.034887 | ADP76: 2153.938628 | ADQ76: 2175.047227 | ADR76: 2196.36269 | ADS76: 2217.887044 | ADT76: 2239.622337 | ADU76: 2261.570636 | ADV76: 2283.734028 | ADW76: 2306.114622 | ADX76: 2328.714545 | ADY76: 2351.535948 | ADZ76: 2374.581 | AEA76: 2397.851894 | AEB76: 2421.350842 | AEC76: 2445.080081 | AED76: 2469.041865 | AEE76: 2493.238476 | AEF76: 2517.672213 | AEG76: 2542.3454 | AEH76: 2567.260385 | AEI76: 2592.419537 | AEJ76: 2617.825248 | AEK76: 2643.479936 | AEL76: 2669.386039 | AEM76: 2695.546022 | AEN76: 2721.962374 | AEO76: 2748.637605 | AEP76: 2775.574253 | AEQ76: 2802.774881 | AER76: 2830.242075 | AES76: 2857.978447 | AET76: 2885.986636 | AEU76: 2914.269305 | AEV76: 2942.829144 | AEW76: 2971.66887 | AEX76: 3000.791225 | AEY76: 3030.198979 | AEZ76: 3059.894929 | AFA76: 3089.881899 | AFB76: 3120.162742 | AFC76: 3150.740336 | AFD76: 3181.617592 | AFE76: 3212.797444 | AFF76: 3244.282859 | AFG76: 3276.076831 | AFH76: 3308.182384 | AFI76: 3340.602571 | AFJ76: =AFI76*(1+AFJ75) -> 3373.340477 | AFK76: 3406.399213 | AFL76: 3439.781926 | AFM76: 3473.491788 | AFN76: 3507.532008 | AFO76: 3541.905822 | AFP76: 3576.616499 | AFQ76: 3611.66734 | AFR76: 3647.06168 | AFS76: 3682.802885 | AFT76: 3718.894353 | AFU76: 3755.339518 | AFV76: 3792.141845 | AFW76: 3829.304835 | AFX76: 3866.832022 | AFY76: 3904.726976 | AFZ76: 3942.993301 | AGA76: 3981.634635 | AGB76: 4020.654654 | AGC76: 4060.05707 | AGD76: 4099.845629 | AGE76: 4140.024117 | AGF76: 4180.596353 | AGG76: 4221.566197 | AGH76: 4262.937546 | AGI76: 4304.714334 | AGJ76: 4346.900534 | AGK76: 4389.50016
B77: Inflation Index from COD | E77: Index
B79: Initial Construction without Inflation and Return | E79: Currency | F79: ='Carrying Charge'!F33 -> 1000 | I79: =$F$79*I73 -> 1000 | J79: 0 | K79: 0 | L79: 0 | M79: 0 | N79: 0 | O79: 0 | P79: 0 | Q79: 0 | R79: 0 | S79: 0 | T79: 0 | U79: 0 | V79: 0 | W79: 0 | X79: 0 | Y79: 0 | Z79: 0 | AA79: 0 | AB79: 0 | AC79: 0 | AD79: 0 | AE79: 0 | AF79: 0 | AG79: 0 | AH79: 0 | AI79: 0 | AJ79: 0 | AK79: 0 | AL79: 0 | AM79: 0 | AN79: 0 | AO79: 0 | AP79: 0 | AQ79: 0 | AR79: 0 | AS79: 0 | AT79: 0 | AU79: 0 | AV79: 0 | AW79: 0 | AX79: 0 | AY79: 0 | AZ79: 0 | BA79: 0 | BB79: 0 | BC79: 0 | BD79: 0 | BE79: 0 | BF79: 0 | BG79: 0 | BH79: 0 | BI79: 0 | BJ79: 0 | BK79: 0 | BL79: 0 | BM79: 0 | BN79: 0 | BO79: 0 | BP79: 0 | BQ79: 0 | BR79: 0 | BS79: 0 | BT79: 0 | BU79: =$F$79*BU73 -> 0 | BV79: 0 | BW79: 0 | BX79: 0 | BY79: 0 | BZ79: 0 | CA79: 0 | CB79: 0 | CC79: 0 | CD79: 0 | CE79: 0 | CF79: 0 | CG79: 0 | CH79: 0 | CI79: 0 | CJ79: 0 | CK79: 0 | CL79: 0 | CM79: 0 | CN79: 0 | CO79: 0 | CP79: 0 | CQ79: 0 | CR79: 0 | CS79: 0 | CT79: 0 | CU79: 0 | CV79: 0 | CW79: 0 | CX79: 0 | CY79: 0 | CZ79: 0 | DA79: 0 | DB79: 0 | DC79: 0 | DD79: 0 | DE79: 0 | DF79: 0 | DG79: 0 | DH79: 0 | DI79: 0 | DJ79: 0 | DK79: 0 | DL79: 0 | DM79: 0 | DN79: 0 | DO79: 0 | DP79: 0 | DQ79: 0 | DR79: 0 | DS79: 0 | DT79: 0 | DU79: 0 | DV79: 0 | DW79: 0 | DX79: 0 | DY79: 0 | DZ79: 0 | EA79: 0 | EB79: 0 | EC79: 0 | ED79: 0 | EE79: 0 | EF79: 0 | EG79: =$F$79*EG73 -> 0 | EH79: 0 | EI79: 0 | EJ79: 0 | EK79: 0 | EL79: 0 | EM79: 0 | EN79: 0 | EO79: 0 | EP79: 0 | EQ79: 0 | ER79: 0 | ES79: 0 | ET79: 0 | EU79: 0 | EV79: 0 | EW79: 0 | EX79: 0 | EY79: 0 | EZ79: 0 | FA79: 0 | FB79: 0 | FC79: 0 | FD79: 0 | FE79: 0 | FF79: 0 | FG79: 0 | FH79: 0 | FI79: 0 | FJ79: 0 | FK79: 0 | FL79: 0 | FM79: 0 | FN79: 0 | FO79: 0 | FP79: 0 | FQ79: 0 | FR79: 0 | FS79: 0 | FT79: 0 | FU79: 0 | FV79: 0 | FW79: 0 | FX79: 0 | FY79: 0 | FZ79: 0 | GA79: 0 | GB79: 0 | GC79: 0 | GD79: 0 | GE79: 0 | GF79: 0 | GG79: 0 | GH79: 0 | GI79: 0 | GJ79: 0 | GK79: 0 | GL79: 0 | GM79: 0 | GN79: 0 | GO79: 0 | GP79: 0 | GQ79: 0 | GR79: 0 | GS79: =$F$79*GS73 -> 0 | GT79: 0 | GU79: 0 | GV79: 0 | GW79: 0 | GX79: 0 | GY79: 0 | GZ79: 0 | HA79: 0 | HB79: 0 | HC79: 0 | HD79: 0 | HE79: 0 | HF79: 0 | HG79: 0 | HH79: 0 | HI79: 0 | HJ79: 0 | HK79: 0 | HL79: 0 | HM79: 0 | HN79: 0 | HO79: 0 | HP79: 0 | HQ79: 0 | HR79: 0 | HS79: 0 | HT79: 0 | HU79: 0 | HV79: 0 | HW79: 0 | HX79: 0 | HY79: 0 | HZ79: 0 | IA79: 0 | IB79: 0 | IC79: 0 | ID79: 0 | IE79: 0 | IF79: 0 | IG79: 0 | IH79: 0 | II79: 0 | IJ79: 0 | IK79: 0 | IL79: 0 | IM79: 0 | IN79: 0 | IO79: 0 | IP79: 0 | IQ79: 0 | IR79: 0 | IS79: 0 | IT79: 0 | IU79: 0 | IV79: 0 | IW79: 0 | IX79: 0 | IY79: 0 | IZ79: 0 | JA79: 0 | JB79: 0 | JC79: 0 | JD79: 0 | JE79: =$F$79*JE73 -> 0 | JF79: 0 | JG79: 0 | JH79: 0 | JI79: 0 | JJ79: 0 | JK79: 0 | JL79: 0 | JM79: 0 | JN79: 0 | JO79: 0 | JP79: 0 | JQ79: 0 | JR79: 0 | JS79: 0 | JT79: 0 | JU79: 0 | JV79: 0 | JW79: 0 | JX79: 0 | JY79: 0 | JZ79: 0 | KA79: 0 | KB79: 0 | KC79: 0 | KD79: 0 | KE79: 0 | KF79: 0 | KG79: 0 | KH79: 0 | KI79: 0 | KJ79: 0 | KK79: 0 | KL79: 0 | KM79: 0 | KN79: 0 | KO79: 0 | KP79: 0 | KQ79: 0 | KR79: 0 | KS79: 0 | KT79: 0 | KU79: 0 | KV79: 0 | KW79: 0 | KX79: 0 | KY79: 0 | KZ79: 0 | LA79: 0 | LB79: 0 | LC79: 0 | LD79: 0 | LE79: 0 | LF79: 0 | LG79: 0 | LH79: 0 | LI79: 0 | LJ79: 0 | LK79: 0 | LL79: 0 | LM79: 0 | LN79: 0 | LO79: 0 | LP79: 0 | LQ79: =$F$79*LQ73 -> 0 | LR79: 0 | LS79: 0 | LT79: 0 | LU79: 0 | LV79: 0 | LW79: 0 | LX79: 0 | LY79: 0 | LZ79: 0 | MA79: 0 | MB79: 0 | MC79: 0 | MD79: 0 | ME79: 0 | MF79: 0 | MG79: 0 | MH79: 0 | MI79: 0 | MJ79: 0 | MK79: 0 | ML79: 0 | MM79: 0 | MN79: 0 | MO79: 0 | MP79: 0 | MQ79: 0 | MR79: 0 | MS79: 0 | MT79: 0 | MU79: 0 | MV79: 0 | MW79: 0 | MX79: 0 | MY79: 0 | MZ79: 0 | NA79: 0 | NB79: 0 | NC79: 0 | ND79: 0 | NE79: 0 | NF79: 0 | NG79: 0 | NH79: 0 | NI79: 0 | NJ79: 0 | NK79: 0 | NL79: 0 | NM79: 0 | NN79: 0 | NO79: 0 | NP79: 0 | NQ79: 0 | NR79: 0 | NS79: 0 | NT79: 0 | NU79: 0 | NV79: 0 | NW79: 0 | NX79: 0 | NY79: 0 | NZ79: 0 | OA79: 0 | OB79: 0 | OC79: =$F$79*OC73 -> 0 | OD79: 0 | OE79: 0 | OF79: 0 | OG79: 0 | OH79: 0 | OI79: 0 | OJ79: 0 | OK79: 0 | OL79: 0 | OM79: 0 | ON79: 0 | OO79: 0 | OP79: 0 | OQ79: 0 | OR79: 0 | OS79: 0 | OT79: 0 | OU79: 0 | OV79: 0 | OW79: 0 | OX79: 0 | OY79: 0 | OZ79: 0 | PA79: 0 | PB79: 0 | PC79: 0 | PD79: 0 | PE79: 0 | PF79: 0 | PG79: 0 | PH79: 0 | PI79: 0 | PJ79: 0 | PK79: 0 | PL79: 0 | PM79: 0 | PN79: 0 | PO79: 0 | PP79: 0 | PQ79: 0 | PR79: 0 | PS79: 0 | PT79: 0 | PU79: 0 | PV79: 0 | PW79: 0 | PX79: 0 | PY79: 0 | PZ79: 0 | QA79: 0 | QB79: 0 | QC79: 0 | QD79: 0 | QE79: 0 | QF79: 0 | QG79: 0 | QH79: 0 | QI79: 0 | QJ79: 0 | QK79: 0 | QL79: 0 | QM79: 0 | QN79: 0 | QO79: =$F$79*QO73 -> 0 | QP79: 0 | QQ79: 0 | QR79: 0 | QS79: 0 | QT79: 0 | QU79: 0 | QV79: 0 | QW79: 0 | QX79: 0 | QY79: 0 | QZ79: 0 | RA79: 0 | RB79: 0 | RC79: 0 | RD79: 0 | RE79: 0 | RF79: 0 | RG79: 0 | RH79: 0 | RI79: 0 | RJ79: 0 | RK79: 0 | RL79: 0 | RM79: 0 | RN79: 0 | RO79: 0 | RP79: 0 | RQ79: 0 | RR79: 0 | RS79: 0 | RT79: 0 | RU79: 0 | RV79: 0 | RW79: 0 | RX79: 0 | RY79: 0 | RZ79: 0 | SA79: 0 | SB79: 0 | SC79: 0 | SD79: 0 | SE79: 0 | SF79: 0 | SG79: 0 | SH79: 0 | SI79: 0 | SJ79: 0 | SK79: 0 | SL79: 0 | SM79: 0 | SN79: 0 | SO79: 0 | SP79: 0 | SQ79: 0 | SR79: 0 | SS79: 0 | ST79: 0 | SU79: 0 | SV79: 0 | SW79: 0 | SX79: 0 | SY79: 0 | SZ79: 0 | TA79: =$F$79*TA73 -> 0 | TB79: 0 | TC79: 0 | TD79: 0 | TE79: 0 | TF79: 0 | TG79: 0 | TH79: 0 | TI79: 0 | TJ79: 0 | TK79: 0 | TL79: 0 | TM79: 0 | TN79: 0 | TO79: 0 | TP79: 0 | TQ79: 0 | TR79: 0 | TS79: 0 | TT79: 0 | TU79: 0 | TV79: 0 | TW79: 0 | TX79: 0 | TY79: 0 | TZ79: 0 | UA79: 0 | UB79: 0 | UC79: 0 | UD79: 0 | UE79: 0 | UF79: 0 | UG79: 0 | UH79: 0 | UI79: 0 | UJ79: 0 | UK79: 0 | UL79: 0 | UM79: 0 | UN79: 0 | UO79: 0 | UP79: 0 | UQ79: 0 | UR79: 0 | US79: 0 | UT79: 0 | UU79: 0 | UV79: 0 | UW79: 0 | UX79: 0 | UY79: 0 | UZ79: 0 | VA79: 0 | VB79: 0 | VC79: 0 | VD79: 0 | VE79: 0 | VF79: 0 | VG79: 0 | VH79: 0 | VI79: 0 | VJ79: 0 | VK79: 0 | VL79: 0 | VM79: =$F$79*VM73 -> 0 | VN79: 0 | VO79: 0 | VP79: 0 | VQ79: 0 | VR79: 0 | VS79: 0 | VT79: 0 | VU79: 0 | VV79: 0 | VW79: 0 | VX79: 0 | VY79: 0 | VZ79: 0 | WA79: 0 | WB79: 0 | WC79: 0 | WD79: 0 | WE79: 0 | WF79: 0 | WG79: 0 | WH79: 0 | WI79: 0 | WJ79: 0 | WK79: 0 | WL79: 0 | WM79: 0 | WN79: 0 | WO79: 0 | WP79: 0 | WQ79: 0 | WR79: 0 | WS79: 0 | WT79: 0 | WU79: 0 | WV79: 0 | WW79: 0 | WX79: 0 | WY79: 0 | WZ79: 0 | XA79: 0 | XB79: 0 | XC79: 0 | XD79: 0 | XE79: 0 | XF79: 0 | XG79: 0 | XH79: 0 | XI79: 0 | XJ79: 0 | XK79: 0 | XL79: 0 | XM79: 0 | XN79: 0 | XO79: 0 | XP79: 0 | XQ79: 0 | XR79: 0 | XS79: 0 | XT79: 0 | XU79: 0 | XV79: 0 | XW79: 0 | XX79: 0 | XY79: =$F$79*XY73 -> 0 | XZ79: 0 | YA79: 0 | YB79: 0 | YC79: 0 | YD79: 0 | YE79: 0 | YF79: 0 | YG79: 0 | YH79: 0 | YI79: 0 | YJ79: 0 | YK79: 0 | YL79: 0 | YM79: 0 | YN79: 0 | YO79: 0 | YP79: 0 | YQ79: 0 | YR79: 0 | YS79: 0 | YT79: 0 | YU79: 0 | YV79: 0 | YW79: 0 | YX79: 0 | YY79: 0 | YZ79: 0 | ZA79: 0 | ZB79: 0 | ZC79: 0 | ZD79: 0 | ZE79: 0 | ZF79: 0 | ZG79: 0 | ZH79: 0 | ZI79: 0 | ZJ79: 0 | ZK79: 0 | ZL79: 0 | ZM79: 0 | ZN79: 0 | ZO79: 0 | ZP79: 0 | ZQ79: 0 | ZR79: 0 | ZS79: 0 | ZT79: 0 | ZU79: 0 | ZV79: 0 | ZW79: 0 | ZX79: 0 | ZY79: 0 | ZZ79: 0 | AAA79: 0 | AAB79: 0 | AAC79: 0 | AAD79: 0 | AAE79: 0 | AAF79: 0 | AAG79: 0 | AAH79: 0 | AAI79: 0 | AAJ79: 0 | AAK79: =$F$79*AAK73 -> 0 | AAL79: 0 | AAM79: 0 | AAN79: 0 | AAO79: 0 | AAP79: 0 | AAQ79: 0 | AAR79: 0 | AAS79: 0 | AAT79: 0 | AAU79: 0 | AAV79: 0 | AAW79: 0 | AAX79: 0 | AAY79: 0 | AAZ79: 0 | ABA79: 0 | ABB79: 0 | ABC79: 0 | ABD79: 0 | ABE79: 0 | ABF79: 0 | ABG79: 0 | ABH79: 0 | ABI79: 0 | ABJ79: 0 | ABK79: 0 | ABL79: 0 | ABM79: 0 | ABN79: 0 | ABO79: 0 | ABP79: 0 | ABQ79: 0 | ABR79: 0 | ABS79: 0 | ABT79: 0 | ABU79: 0 | ABV79: 0 | ABW79: 0 | ABX79: 0 | ABY79: 0 | ABZ79: 0 | ACA79: 0 | ACB79: 0 | ACC79: 0 | ACD79: 0 | ACE79: 0 | ACF79: 0 | ACG79: 0 | ACH79: 0 | ACI79: 0 | ACJ79: 0 | ACK79: 0 | ACL79: 0 | ACM79: 0 | ACN79: 0 | ACO79: 0 | ACP79: 0 | ACQ79: 0 | ACR79: 0 | ACS79: 0 | ACT79: 0 | ACU79: 0 | ACV79: 0 | ACW79: =$F$79*ACW73 -> 0 | ACX79: 0 | ACY79: 0 | ACZ79: 0 | ADA79: 0 | ADB79: 0 | ADC79: 0 | ADD79: 0 | ADE79: 0 | ADF79: 0 | ADG79: 0 | ADH79: 0 | ADI79: 0 | ADJ79: 0 | ADK79: 0 | ADL79: 0 | ADM79: 0 | ADN79: 0 | ADO79: 0 | ADP79: 0 | ADQ79: 0 | ADR79: 0 | ADS79: 0 | ADT79: 0 | ADU79: 0 | ADV79: 0 | ADW79: 0 | ADX79: 0 | ADY79: 0 | ADZ79: 0 | AEA79: 0 | AEB79: 0 | AEC79: 0 | AED79: 0 | AEE79: 0 | AEF79: 0 | AEG79: 0 | AEH79: 0 | AEI79: 0 | AEJ79: 0 | AEK79: 0 | AEL79: 0 | AEM79: 0 | AEN79: 0 | AEO79: 0 | AEP79: 0 | AEQ79: 0 | AER79: 0 | AES79: 0 | AET79: 0 | AEU79: 0 | AEV79: 0 | AEW79: 0 | AEX79: 0 | AEY79: 0 | AEZ79: 0 | AFA79: 0 | AFB79: 0 | AFC79: 0 | AFD79: 0 | AFE79: 0 | AFF79: 0 | AFG79: 0 | AFH79: 0 | AFI79: =$F$79*AFI73 -> 0 | AFJ79: 0 | AFK79: 0 | AFL79: 0 | AFM79: 0 | AFN79: 0 | AFO79: 0 | AFP79: 0 | AFQ79: 0 | AFR79: 0 | AFS79: 0 | AFT79: 0 | AFU79: 0 | AFV79: 0 | AFW79: 0 | AFX79: 0 | AFY79: 0 | AFZ79: 0 | AGA79: 0 | AGB79: 0 | AGC79: 0 | AGD79: 0 | AGE79: 0 | AGF79: 0 | AGG79: 0 | AGH79: 0 | AGI79: 0 | AGJ79: 0 | AGK79: 0
B80: Construction with Inflation - Conversion of Overnight Cost | I80: =I79*I76 -> 1000 | J80: 0 | K80: 0 | L80: 0 | M80: 0 | N80: 0 | O80: 0 | P80: 0 | Q80: 0 | R80: 0 | S80: 0 | T80: 0 | U80: 0 | V80: 0 | W80: 0 | X80: 0 | Y80: 0 | Z80: 0 | AA80: 0 | AB80: 0 | AC80: 0 | AD80: 0 | AE80: 0 | AF80: 0 | AG80: 0 | AH80: 0 | AI80: 0 | AJ80: 0 | AK80: 0 | AL80: 0 | AM80: 0 | AN80: 0 | AO80: 0 | AP80: 0 | AQ80: 0 | AR80: 0 | AS80: 0 | AT80: 0 | AU80: 0 | AV80: 0 | AW80: 0 | AX80: 0 | AY80: 0 | AZ80: 0 | BA80: 0 | BB80: 0 | BC80: 0 | BD80: 0 | BE80: 0 | BF80: 0 | BG80: 0 | BH80: 0 | BI80: 0 | BJ80: 0 | BK80: 0 | BL80: 0 | BM80: 0 | BN80: 0 | BO80: 0 | BP80: 0 | BQ80: 0 | BR80: 0 | BS80: 0 | BT80: 0 | BU80: =BU79*BU76 -> 0 | BV80: 0 | BW80: 0 | BX80: 0 | BY80: 0 | BZ80: 0 | CA80: 0 | CB80: 0 | CC80: 0 | CD80: 0 | CE80: 0 | CF80: 0 | CG80: 0 | CH80: 0 | CI80: 0 | CJ80: 0 | CK80: 0 | CL80: 0 | CM80: 0 | CN80: 0 | CO80: 0 | CP80: 0 | CQ80: 0 | CR80: 0 | CS80: 0 | CT80: 0 | CU80: 0 | CV80: 0 | CW80: 0 | CX80: 0 | CY80: 0 | CZ80: 0 | DA80: 0 | DB80: 0 | DC80: 0 | DD80: 0 | DE80: 0 | DF80: 0 | DG80: 0 | DH80: 0 | DI80: 0 | DJ80: 0 | DK80: 0 | DL80: 0 | DM80: 0 | DN80: 0 | DO80: 0 | DP80: 0 | DQ80: 0 | DR80: 0 | DS80: 0 | DT80: 0 | DU80: 0 | DV80: 0 | DW80: 0 | DX80: 0 | DY80: 0 | DZ80: 0 | EA80: 0 | EB80: 0 | EC80: 0 | ED80: 0 | EE80: 0 | EF80: 0 | EG80: =EG79*EG76 -> 0 | EH80: 0 | EI80: 0 | EJ80: 0 | EK80: 0 | EL80: 0 | EM80: 0 | EN80: 0 | EO80: 0 | EP80: 0 | EQ80: 0 | ER80: 0 | ES80: 0 | ET80: 0 | EU80: 0 | EV80: 0 | EW80: 0 | EX80: 0 | EY80: 0 | EZ80: 0 | FA80: 0 | FB80: 0 | FC80: 0 | FD80: 0 | FE80: 0 | FF80: 0 | FG80: 0 | FH80: 0 | FI80: 0 | FJ80: 0 | FK80: 0 | FL80: 0 | FM80: 0 | FN80: 0 | FO80: 0 | FP80: 0 | FQ80: 0 | FR80: 0 | FS80: 0 | FT80: 0 | FU80: 0 | FV80: 0 | FW80: 0 | FX80: 0 | FY80: 0 | FZ80: 0 | GA80: 0 | GB80: 0 | GC80: 0 | GD80: 0 | GE80: 0 | GF80: 0 | GG80: 0 | GH80: 0 | GI80: 0 | GJ80: 0 | GK80: 0 | GL80: 0 | GM80: 0 | GN80: 0 | GO80: 0 | GP80: 0 | GQ80: 0 | GR80: 0 | GS80: =GS79*GS76 -> 0 | GT80: 0 | GU80: 0 | GV80: 0 | GW80: 0 | GX80: 0 | GY80: 0 | GZ80: 0 | HA80: 0 | HB80: 0 | HC80: 0 | HD80: 0 | HE80: 0 | HF80: 0 | HG80: 0 | HH80: 0 | HI80: 0 | HJ80: 0 | HK80: 0 | HL80: 0 | HM80: 0 | HN80: 0 | HO80: 0 | HP80: 0 | HQ80: 0 | HR80: 0 | HS80: 0 | HT80: 0 | HU80: 0 | HV80: 0 | HW80: 0 | HX80: 0 | HY80: 0 | HZ80: 0 | IA80: 0 | IB80: 0 | IC80: 0 | ID80: 0 | IE80: 0 | IF80: 0 | IG80: 0 | IH80: 0 | II80: 0 | IJ80: 0 | IK80: 0 | IL80: 0 | IM80: 0 | IN80: 0 | IO80: 0 | IP80: 0 | IQ80: 0 | IR80: 0 | IS80: 0 | IT80: 0 | IU80: 0 | IV80: 0 | IW80: 0 | IX80: 0 | IY80: 0 | IZ80: 0 | JA80: 0 | JB80: 0 | JC80: 0 | JD80: 0 | JE80: =JE79*JE76 -> 0 | JF80: 0 | JG80: 0 | JH80: 0 | JI80: 0 | JJ80: 0 | JK80: 0 | JL80: 0 | JM80: 0 | JN80: 0 | JO80: 0 | JP80: 0 | JQ80: 0 | JR80: 0 | JS80: 0 | JT80: 0 | JU80: 0 | JV80: 0 | JW80: 0 | JX80: 0 | JY80: 0 | JZ80: 0 | KA80: 0 | KB80: 0 | KC80: 0 | KD80: 0 | KE80: 0 | KF80: 0 | KG80: 0 | KH80: 0 | KI80: 0 | KJ80: 0 | KK80: 0 | KL80: 0 | KM80: 0 | KN80: 0 | KO80: 0 | KP80: 0 | KQ80: 0 | KR80: 0 | KS80: 0 | KT80: 0 | KU80: 0 | KV80: 0 | KW80: 0 | KX80: 0 | KY80: 0 | KZ80: 0 | LA80: 0 | LB80: 0 | LC80: 0 | LD80: 0 | LE80: 0 | LF80: 0 | LG80: 0 | LH80: 0 | LI80: 0 | LJ80: 0 | LK80: 0 | LL80: 0 | LM80: 0 | LN80: 0 | LO80: 0 | LP80: 0 | LQ80: =LQ79*LQ76 -> 0 | LR80: 0 | LS80: 0 | LT80: 0 | LU80: 0 | LV80: 0 | LW80: 0 | LX80: 0 | LY80: 0 | LZ80: 0 | MA80: 0 | MB80: 0 | MC80: 0 | MD80: 0 | ME80: 0 | MF80: 0 | MG80: 0 | MH80: 0 | MI80: 0 | MJ80: 0 | MK80: 0 | ML80: 0 | MM80: 0 | MN80: 0 | MO80: 0 | MP80: 0 | MQ80: 0 | MR80: 0 | MS80: 0 | MT80: 0 | MU80: 0 | MV80: 0 | MW80: 0 | MX80: 0 | MY80: 0 | MZ80: 0 | NA80: 0 | NB80: 0 | NC80: 0 | ND80: 0 | NE80: 0 | NF80: 0 | NG80: 0 | NH80: 0 | NI80: 0 | NJ80: 0 | NK80: 0 | NL80: 0 | NM80: 0 | NN80: 0 | NO80: 0 | NP80: 0 | NQ80: 0 | NR80: 0 | NS80: 0 | NT80: 0 | NU80: 0 | NV80: 0 | NW80: 0 | NX80: 0 | NY80: 0 | NZ80: 0 | OA80: 0 | OB80: 0 | OC80: =OC79*OC76 -> 0 | OD80: 0 | OE80: 0 | OF80: 0 | OG80: 0 | OH80: 0 | OI80: 0 | OJ80: 0 | OK80: 0 | OL80: 0 | OM80: 0 | ON80: 0 | OO80: 0 | OP80: 0 | OQ80: 0 | OR80: 0 | OS80: 0 | OT80: 0 | OU80: 0 | OV80: 0 | OW80: 0 | OX80: 0 | OY80: 0 | OZ80: 0 | PA80: 0 | PB80: 0 | PC80: 0 | PD80: 0 | PE80: 0 | PF80: 0 | PG80: 0 | PH80: 0 | PI80: 0 | PJ80: 0 | PK80: 0 | PL80: 0 | PM80: 0 | PN80: 0 | PO80: 0 | PP80: 0 | PQ80: 0 | PR80: 0 | PS80: 0 | PT80: 0 | PU80: 0 | PV80: 0 | PW80: 0 | PX80: 0 | PY80: 0 | PZ80: 0 | QA80: 0 | QB80: 0 | QC80: 0 | QD80: 0 | QE80: 0 | QF80: 0 | QG80: 0 | QH80: 0 | QI80: 0 | QJ80: 0 | QK80: 0 | QL80: 0 | QM80: 0 | QN80: 0 | QO80: =QO79*QO76 -> 0 | QP80: 0 | QQ80: 0 | QR80: 0 | QS80: 0 | QT80: 0 | QU80: 0 | QV80: 0 | QW80: 0 | QX80: 0 | QY80: 0 | QZ80: 0 | RA80: 0 | RB80: 0 | RC80: 0 | RD80: 0 | RE80: 0 | RF80: 0 | RG80: 0 | RH80: 0 | RI80: 0 | RJ80: 0 | RK80: 0 | RL80: 0 | RM80: 0 | RN80: 0 | RO80: 0 | RP80: 0 | RQ80: 0 | RR80: 0 | RS80: 0 | RT80: 0 | RU80: 0 | RV80: 0 | RW80: 0 | RX80: 0 | RY80: 0 | RZ80: 0 | SA80: 0 | SB80: 0 | SC80: 0 | SD80: 0 | SE80: 0 | SF80: 0 | SG80: 0 | SH80: 0 | SI80: 0 | SJ80: 0 | SK80: 0 | SL80: 0 | SM80: 0 | SN80: 0 | SO80: 0 | SP80: 0 | SQ80: 0 | SR80: 0 | SS80: 0 | ST80: 0 | SU80: 0 | SV80: 0 | SW80: 0 | SX80: 0 | SY80: 0 | SZ80: 0 | TA80: =TA79*TA76 -> 0 | TB80: 0 | TC80: 0 | TD80: 0 | TE80: 0 | TF80: 0 | TG80: 0 | TH80: 0 | TI80: 0 | TJ80: 0 | TK80: 0 | TL80: 0 | TM80: 0 | TN80: 0 | TO80: 0 | TP80: 0 | TQ80: 0 | TR80: 0 | TS80: 0 | TT80: 0 | TU80: 0 | TV80: 0 | TW80: 0 | TX80: 0 | TY80: 0 | TZ80: 0 | UA80: 0 | UB80: 0 | UC80: 0 | UD80: 0 | UE80: 0 | UF80: 0 | UG80: 0 | UH80: 0 | UI80: 0 | UJ80: 0 | UK80: 0 | UL80: 0 | UM80: 0 | UN80: 0 | UO80: 0 | UP80: 0 | UQ80: 0 | UR80: 0 | US80: 0 | UT80: 0 | UU80: 0 | UV80: 0 | UW80: 0 | UX80: 0 | UY80: 0 | UZ80: 0 | VA80: 0 | VB80: 0 | VC80: 0 | VD80: 0 | VE80: 0 | VF80: 0 | VG80: 0 | VH80: 0 | VI80: 0 | VJ80: 0 | VK80: 0 | VL80: 0 | VM80: =VM79*VM76 -> 0 | VN80: 0 | VO80: 0 | VP80: 0 | VQ80: 0 | VR80: 0 | VS80: 0 | VT80: 0 | VU80: 0 | VV80: 0 | VW80: 0 | VX80: 0 | VY80: 0 | VZ80: 0 | WA80: 0 | WB80: 0 | WC80: 0 | WD80: 0 | WE80: 0 | WF80: 0 | WG80: 0 | WH80: 0 | WI80: 0 | WJ80: 0 | WK80: 0 | WL80: 0 | WM80: 0 | WN80: 0 | WO80: 0 | WP80: 0 | WQ80: 0 | WR80: 0 | WS80: 0 | WT80: 0 | WU80: 0 | WV80: 0 | WW80: 0 | WX80: 0 | WY80: 0 | WZ80: 0 | XA80: 0 | XB80: 0 | XC80: 0 | XD80: 0 | XE80: 0 | XF80: 0 | XG80: 0 | XH80: 0 | XI80: 0 | XJ80: 0 | XK80: 0 | XL80: 0 | XM80: 0 | XN80: 0 | XO80: 0 | XP80: 0 | XQ80: 0 | XR80: 0 | XS80: 0 | XT80: 0 | XU80: 0 | XV80: 0 | XW80: 0 | XX80: 0 | XY80: =XY79*XY76 -> 0 | XZ80: 0 | YA80: 0 | YB80: 0 | YC80: 0 | YD80: 0 | YE80: 0 | YF80: 0 | YG80: 0 | YH80: 0 | YI80: 0 | YJ80: 0 | YK80: 0 | YL80: 0 | YM80: 0 | YN80: 0 | YO80: 0 | YP80: 0 | YQ80: 0 | YR80: 0 | YS80: 0 | YT80: 0 | YU80: 0 | YV80: 0 | YW80: 0 | YX80: 0 | YY80: 0 | YZ80: 0 | ZA80: 0 | ZB80: 0 | ZC80: 0 | ZD80: 0 | ZE80: 0 | ZF80: 0 | ZG80: 0 | ZH80: 0 | ZI80: 0 | ZJ80: 0 | ZK80: 0 | ZL80: 0 | ZM80: 0 | ZN80: 0 | ZO80: 0 | ZP80: 0 | ZQ80: 0 | ZR80: 0 | ZS80: 0 | ZT80: 0 | ZU80: 0 | ZV80: 0 | ZW80: 0 | ZX80: 0 | ZY80: 0 | ZZ80: 0 | AAA80: 0 | AAB80: 0 | AAC80: 0 | AAD80: 0 | AAE80: 0 | AAF80: 0 | AAG80: 0 | AAH80: 0 | AAI80: 0 | AAJ80: 0 | AAK80: =AAK79*AAK76 -> 0 | AAL80: 0 | AAM80: 0 | AAN80: 0 | AAO80: 0 | AAP80: 0 | AAQ80: 0 | AAR80: 0 | AAS80: 0 | AAT80: 0 | AAU80: 0 | AAV80: 0 | AAW80: 0 | AAX80: 0 | AAY80: 0 | AAZ80: 0 | ABA80: 0 | ABB80: 0 | ABC80: 0 | ABD80: 0 | ABE80: 0 | ABF80: 0 | ABG80: 0 | ABH80: 0 | ABI80: 0 | ABJ80: 0 | ABK80: 0 | ABL80: 0 | ABM80: 0 | ABN80: 0 | ABO80: 0 | ABP80: 0 | ABQ80: 0 | ABR80: 0 | ABS80: 0 | ABT80: 0 | ABU80: 0 | ABV80: 0 | ABW80: 0 | ABX80: 0 | ABY80: 0 | ABZ80: 0 | ACA80: 0 | ACB80: 0 | ACC80: 0 | ACD80: 0 | ACE80: 0 | ACF80: 0 | ACG80: 0 | ACH80: 0 | ACI80: 0 | ACJ80: 0 | ACK80: 0 | ACL80: 0 | ACM80: 0 | ACN80: 0 | ACO80: 0 | ACP80: 0 | ACQ80: 0 | ACR80: 0 | ACS80: 0 | ACT80: 0 | ACU80: 0 | ACV80: 0 | ACW80: =ACW79*ACW76 -> 0 | ACX80: 0 | ACY80: 0 | ACZ80: 0 | ADA80: 0 | ADB80: 0 | ADC80: 0 | ADD80: 0 | ADE80: 0 | ADF80: 0 | ADG80: 0 | ADH80: 0 | ADI80: 0 | ADJ80: 0 | ADK80: 0 | ADL80: 0 | ADM80: 0 | ADN80: 0 | ADO80: 0 | ADP80: 0 | ADQ80: 0 | ADR80: 0 | ADS80: 0 | ADT80: 0 | ADU80: 0 | ADV80: 0 | ADW80: 0 | ADX80: 0 | ADY80: 0 | ADZ80: 0 | AEA80: 0 | AEB80: 0 | AEC80: 0 | AED80: 0 | AEE80: 0 | AEF80: 0 | AEG80: 0 | AEH80: 0 | AEI80: 0 | AEJ80: 0 | AEK80: 0 | AEL80: 0 | AEM80: 0 | AEN80: 0 | AEO80: 0 | AEP80: 0 | AEQ80: 0 | AER80: 0 | AES80: 0 | AET80: 0 | AEU80: 0 | AEV80: 0 | AEW80: 0 | AEX80: 0 | AEY80: 0 | AEZ80: 0 | AFA80: 0 | AFB80: 0 | AFC80: 0 | AFD80: 0 | AFE80: 0 | AFF80: 0 | AFG80: 0 | AFH80: 0 | AFI80: =AFI79*AFI76 -> 0 | AFJ80: 0 | AFK80: 0 | AFL80: 0 | AFM80: 0 | AFN80: 0 | AFO80: 0 | AFP80: 0 | AFQ80: 0 | AFR80: 0 | AFS80: 0 | AFT80: 0 | AFU80: 0 | AFV80: 0 | AFW80: 0 | AFX80: 0 | AFY80: 0 | AFZ80: 0 | AGA80: 0 | AGB80: 0 | AGC80: 0 | AGD80: 0 | AGE80: 0 | AGF80: 0 | AGG80: 0 | AGH80: 0 | AGI80: 0 | AGJ80: 0 | AGK80: 0
B81: Final Period of Construction | E81: Switch | F81: =EDATE(E7,E5) -> 2001-02-01 | I81: =$F$81=I7 -> TRUE | J81: FALSE | K81: FALSE | L81: FALSE | M81: FALSE | N81: FALSE | O81: FALSE | P81: FALSE | Q81: FALSE | R81: FALSE | S81: FALSE | T81: FALSE | U81: FALSE | V81: FALSE | W81: FALSE | X81: FALSE | Y81: FALSE | Z81: FALSE | AA81: FALSE | AB81: FALSE | AC81: FALSE | AD81: FALSE | AE81: FALSE | AF81: FALSE | AG81: FALSE | AH81: FALSE | AI81: FALSE | AJ81: FALSE | AK81: FALSE | AL81: FALSE | AM81: FALSE | AN81: FALSE | AO81: FALSE | AP81: FALSE | AQ81: FALSE | AR81: FALSE | AS81: FALSE | AT81: FALSE | AU81: FALSE | AV81: FALSE | AW81: FALSE | AX81: FALSE | AY81: FALSE | AZ81: FALSE | BA81: FALSE | BB81: FALSE | BC81: FALSE | BD81: FALSE | BE81: FALSE | BF81: FALSE | BG81: FALSE | BH81: FALSE | BI81: FALSE | BJ81: FALSE | BK81: FALSE | BL81: FALSE | BM81: FALSE | BN81: FALSE | BO81: FALSE | BP81: FALSE | BQ81: FALSE | BR81: FALSE | BS81: FALSE | BT81: FALSE | BU81: =$F$81=BU7 -> FALSE | BV81: FALSE | BW81: FALSE | BX81: FALSE | BY81: FALSE | BZ81: FALSE | CA81: FALSE | CB81: FALSE | CC81: FALSE | CD81: FALSE | CE81: FALSE | CF81: FALSE | CG81: FALSE | CH81: FALSE | CI81: FALSE | CJ81: FALSE | CK81: FALSE | CL81: FALSE | CM81: FALSE | CN81: FALSE | CO81: FALSE | CP81: FALSE | CQ81: FALSE | CR81: FALSE | CS81: FALSE | CT81: FALSE | CU81: FALSE | CV81: FALSE | CW81: FALSE | CX81: FALSE | CY81: FALSE | CZ81: FALSE | DA81: FALSE | DB81: FALSE | DC81: FALSE | DD81: FALSE | DE81: FALSE | DF81: FALSE | DG81: FALSE | DH81: FALSE | DI81: FALSE | DJ81: FALSE | DK81: FALSE | DL81: FALSE | DM81: FALSE | DN81: FALSE | DO81: FALSE | DP81: FALSE | DQ81: FALSE | DR81: FALSE | DS81: FALSE | DT81: FALSE | DU81: FALSE | DV81: FALSE | DW81: FALSE | DX81: FALSE | DY81: FALSE | DZ81: FALSE | EA81: FALSE | EB81: FALSE | EC81: FALSE | ED81: FALSE | EE81: FALSE | EF81: FALSE | EG81: =$F$81=EG7 -> FALSE | EH81: FALSE | EI81: FALSE | EJ81: FALSE | EK81: FALSE | EL81: FALSE | EM81: FALSE | EN81: FALSE | EO81: FALSE | EP81: FALSE | EQ81: FALSE | ER81: FALSE | ES81: FALSE | ET81: FALSE | EU81: FALSE | EV81: FALSE | EW81: FALSE | EX81: FALSE | EY81: FALSE | EZ81: FALSE | FA81: FALSE | FB81: FALSE | FC81: FALSE | FD81: FALSE | FE81: FALSE | FF81: FALSE | FG81: FALSE | FH81: FALSE | FI81: FALSE | FJ81: FALSE | FK81: FALSE | FL81: FALSE | FM81: FALSE | FN81: FALSE | FO81: FALSE | FP81: FALSE | FQ81: FALSE | FR81: FALSE | FS81: FALSE | FT81: FALSE | FU81: FALSE | FV81: FALSE | FW81: FALSE | FX81: FALSE | FY81: FALSE | FZ81: FALSE | GA81: FALSE | GB81: FALSE | GC81: FALSE | GD81: FALSE | GE81: FALSE | GF81: FALSE | GG81: FALSE | GH81: FALSE | GI81: FALSE | GJ81: FALSE | GK81: FALSE | GL81: FALSE | GM81: FALSE | GN81: FALSE | GO81: FALSE | GP81: FALSE | GQ81: FALSE | GR81: FALSE | GS81: =$F$81=GS7 -> FALSE | GT81: FALSE | GU81: FALSE | GV81: FALSE | GW81: FALSE | GX81: FALSE | GY81: FALSE | GZ81: FALSE | HA81: FALSE | HB81: FALSE | HC81: FALSE | HD81: FALSE | HE81: FALSE | HF81: FALSE | HG81: FALSE | HH81: FALSE | HI81: FALSE | HJ81: FALSE | HK81: FALSE | HL81: FALSE | HM81: FALSE | HN81: FALSE | HO81: FALSE | HP81: FALSE | HQ81: FALSE | HR81: FALSE | HS81: FALSE | HT81: FALSE | HU81: FALSE | HV81: FALSE | HW81: FALSE | HX81: FALSE | HY81: FALSE | HZ81: FALSE | IA81: FALSE | IB81: FALSE | IC81: FALSE | ID81: FALSE | IE81: FALSE | IF81: FALSE | IG81: FALSE | IH81: FALSE | II81: FALSE | IJ81: FALSE | IK81: FALSE | IL81: FALSE | IM81: FALSE | IN81: FALSE | IO81: FALSE | IP81: FALSE | IQ81: FALSE | IR81: FALSE | IS81: FALSE | IT81: FALSE | IU81: FALSE | IV81: FALSE | IW81: FALSE | IX81: FALSE | IY81: FALSE | IZ81: FALSE | JA81: FALSE | JB81: FALSE | JC81: FALSE | JD81: FALSE | JE81: =$F$81=JE7 -> FALSE | JF81: FALSE | JG81: FALSE | JH81: FALSE | JI81: FALSE | JJ81: FALSE | JK81: FALSE | JL81: FALSE | JM81: FALSE | JN81: FALSE | JO81: FALSE | JP81: FALSE | JQ81: FALSE | JR81: FALSE | JS81: FALSE | JT81: FALSE | JU81: FALSE | JV81: FALSE | JW81: FALSE | JX81: FALSE | JY81: FALSE | JZ81: FALSE | KA81: FALSE | KB81: FALSE | KC81: FALSE | KD81: FALSE | KE81: FALSE | KF81: FALSE | KG81: FALSE | KH81: FALSE | KI81: FALSE | KJ81: FALSE | KK81: FALSE | KL81: FALSE | KM81: FALSE | KN81: FALSE | KO81: FALSE | KP81: FALSE | KQ81: FALSE | KR81: FALSE | KS81: FALSE | KT81: FALSE | KU81: FALSE | KV81: FALSE | KW81: FALSE | KX81: FALSE | KY81: FALSE | KZ81: FALSE | LA81: FALSE | LB81: FALSE | LC81: FALSE | LD81: FALSE | LE81: FALSE | LF81: FALSE | LG81: FALSE | LH81: FALSE | LI81: FALSE | LJ81: FALSE | LK81: FALSE | LL81: FALSE | LM81: FALSE | LN81: FALSE | LO81: FALSE | LP81: FALSE | LQ81: =$F$81=LQ7 -> FALSE | LR81: FALSE | LS81: FALSE | LT81: FALSE | LU81: FALSE | LV81: FALSE | LW81: FALSE | LX81: FALSE | LY81: FALSE | LZ81: FALSE | MA81: FALSE | MB81: FALSE | MC81: FALSE | MD81: FALSE | ME81: FALSE | MF81: FALSE | MG81: FALSE | MH81: FALSE | MI81: FALSE | MJ81: FALSE | MK81: FALSE | ML81: FALSE | MM81: FALSE | MN81: FALSE | MO81: FALSE | MP81: FALSE | MQ81: FALSE | MR81: FALSE | MS81: FALSE | MT81: FALSE | MU81: FALSE | MV81: FALSE | MW81: FALSE | MX81: FALSE | MY81: FALSE | MZ81: FALSE | NA81: FALSE | NB81: FALSE | NC81: FALSE | ND81: FALSE | NE81: FALSE | NF81: FALSE | NG81: FALSE | NH81: FALSE | NI81: FALSE | NJ81: FALSE | NK81: FALSE | NL81: FALSE | NM81: FALSE | NN81: FALSE | NO81: FALSE | NP81: FALSE | NQ81: FALSE | NR81: FALSE | NS81: FALSE | NT81: FALSE | NU81: FALSE | NV81: FALSE | NW81: FALSE | NX81: FALSE | NY81: FALSE | NZ81: FALSE | OA81: FALSE | OB81: FALSE | OC81: =$F$81=OC7 -> FALSE | OD81: FALSE | OE81: FALSE | OF81: FALSE | OG81: FALSE | OH81: FALSE | OI81: FALSE | OJ81: FALSE | OK81: FALSE | OL81: FALSE | OM81: FALSE | ON81: FALSE | OO81: FALSE | OP81: FALSE | OQ81: FALSE | OR81: FALSE | OS81: FALSE | OT81: FALSE | OU81: FALSE | OV81: FALSE | OW81: FALSE | OX81: FALSE | OY81: FALSE | OZ81: FALSE | PA81: FALSE | PB81: FALSE | PC81: FALSE | PD81: FALSE | PE81: FALSE | PF81: FALSE | PG81: FALSE | PH81: FALSE | PI81: FALSE | PJ81: FALSE | PK81: FALSE | PL81: FALSE | PM81: FALSE | PN81: FALSE | PO81: FALSE | PP81: FALSE | PQ81: FALSE | PR81: FALSE | PS81: FALSE | PT81: FALSE | PU81: FALSE | PV81: FALSE | PW81: FALSE | PX81: FALSE | PY81: FALSE | PZ81: FALSE | QA81: FALSE | QB81: FALSE | QC81: FALSE | QD81: FALSE | QE81: FALSE | QF81: FALSE | QG81: FALSE | QH81: FALSE | QI81: FALSE | QJ81: FALSE | QK81: FALSE | QL81: FALSE | QM81: FALSE | QN81: FALSE | QO81: =$F$81=QO7 -> FALSE | QP81: FALSE | QQ81: FALSE | QR81: FALSE | QS81: FALSE | QT81: FALSE | QU81: FALSE | QV81: FALSE | QW81: FALSE | QX81: FALSE | QY81: FALSE | QZ81: FALSE | RA81: FALSE | RB81: FALSE | RC81: FALSE | RD81: FALSE | RE81: FALSE | RF81: FALSE | RG81: FALSE | RH81: FALSE | RI81: FALSE | RJ81: FALSE | RK81: FALSE | RL81: FALSE | RM81: FALSE | RN81: FALSE | RO81: FALSE | RP81: FALSE | RQ81: FALSE | RR81: FALSE | RS81: FALSE | RT81: FALSE | RU81: FALSE | RV81: FALSE | RW81: FALSE | RX81: FALSE | RY81: FALSE | RZ81: FALSE | SA81: FALSE | SB81: FALSE | SC81: FALSE | SD81: FALSE | SE81: FALSE | SF81: FALSE | SG81: FALSE | SH81: FALSE | SI81: FALSE | SJ81: FALSE | SK81: FALSE | SL81: FALSE | SM81: FALSE | SN81: FALSE | SO81: FALSE | SP81: FALSE | SQ81: FALSE | SR81: FALSE | SS81: FALSE | ST81: FALSE | SU81: FALSE | SV81: FALSE | SW81: FALSE | SX81: FALSE | SY81: FALSE | SZ81: FALSE | TA81: =$F$81=TA7 -> FALSE | TB81: FALSE | TC81: FALSE | TD81: FALSE | TE81: FALSE | TF81: FALSE | TG81: FALSE | TH81: FALSE | TI81: FALSE | TJ81: FALSE | TK81: FALSE | TL81: FALSE | TM81: FALSE | TN81: FALSE | TO81: FALSE | TP81: FALSE | TQ81: FALSE | TR81: FALSE | TS81: FALSE | TT81: FALSE | TU81: FALSE | TV81: FALSE | TW81: FALSE | TX81: FALSE | TY81: FALSE | TZ81: FALSE | UA81: FALSE | UB81: FALSE | UC81: FALSE | UD81: FALSE | UE81: FALSE | UF81: FALSE | UG81: FALSE | UH81: FALSE | UI81: FALSE | UJ81: FALSE | UK81: FALSE | UL81: FALSE | UM81: FALSE | UN81: FALSE | UO81: FALSE | UP81: FALSE | UQ81: FALSE | UR81: FALSE | US81: FALSE | UT81: FALSE | UU81: FALSE | UV81: FALSE | UW81: FALSE | UX81: FALSE | UY81: FALSE | UZ81: FALSE | VA81: FALSE | VB81: FALSE | VC81: FALSE | VD81: FALSE | VE81: FALSE | VF81: FALSE | VG81: FALSE | VH81: FALSE | VI81: FALSE | VJ81: FALSE | VK81: FALSE | VL81: FALSE | VM81: =$F$81=VM7 -> FALSE | VN81: FALSE | VO81: FALSE | VP81: FALSE | VQ81: FALSE | VR81: FALSE | VS81: FALSE | VT81: FALSE | VU81: FALSE | VV81: FALSE | VW81: FALSE | VX81: FALSE | VY81: FALSE | VZ81: FALSE | WA81: FALSE | WB81: FALSE | WC81: FALSE | WD81: FALSE | WE81: FALSE | WF81: FALSE | WG81: FALSE | WH81: FALSE | WI81: FALSE | WJ81: FALSE | WK81: FALSE | WL81: FALSE | WM81: FALSE | WN81: FALSE | WO81: FALSE | WP81: FALSE | WQ81: FALSE | WR81: FALSE | WS81: FALSE | WT81: FALSE | WU81: FALSE | WV81: FALSE | WW81: FALSE | WX81: FALSE | WY81: FALSE | WZ81: FALSE | XA81: FALSE | XB81: FALSE | XC81: FALSE | XD81: FALSE | XE81: FALSE | XF81: FALSE | XG81: FALSE | XH81: FALSE | XI81: FALSE | XJ81: FALSE | XK81: FALSE | XL81: FALSE | XM81: FALSE | XN81: FALSE | XO81: FALSE | XP81: FALSE | XQ81: FALSE | XR81: FALSE | XS81: FALSE | XT81: FALSE | XU81: FALSE | XV81: FALSE | XW81: FALSE | XX81: FALSE | XY81: =$F$81=XY7 -> FALSE | XZ81: FALSE | YA81: FALSE | YB81: FALSE | YC81: FALSE | YD81: FALSE | YE81: FALSE | YF81: FALSE | YG81: FALSE | YH81: FALSE | YI81: FALSE | YJ81: FALSE | YK81: FALSE | YL81: FALSE | YM81: FALSE | YN81: FALSE | YO81: FALSE | YP81: FALSE | YQ81: FALSE | YR81: FALSE | YS81: FALSE | YT81: FALSE | YU81: FALSE | YV81: FALSE | YW81: FALSE | YX81: FALSE | YY81: FALSE | YZ81: FALSE | ZA81: FALSE | ZB81: FALSE | ZC81: FALSE | ZD81: FALSE | ZE81: FALSE | ZF81: FALSE | ZG81: FALSE | ZH81: FALSE | ZI81: FALSE | ZJ81: FALSE | ZK81: FALSE | ZL81: FALSE | ZM81: FALSE | ZN81: FALSE | ZO81: FALSE | ZP81: FALSE | ZQ81: FALSE | ZR81: FALSE | ZS81: FALSE | ZT81: FALSE | ZU81: FALSE | ZV81: FALSE | ZW81: FALSE | ZX81: FALSE | ZY81: FALSE | ZZ81: FALSE | AAA81: FALSE | AAB81: FALSE | AAC81: FALSE | AAD81: FALSE | AAE81: FALSE | AAF81: FALSE | AAG81: FALSE | AAH81: FALSE | AAI81: FALSE | AAJ81: FALSE | AAK81: =$F$81=AAK7 -> FALSE | AAL81: FALSE | AAM81: FALSE | AAN81: FALSE | AAO81: FALSE | AAP81: FALSE | AAQ81: FALSE | AAR81: FALSE | AAS81: FALSE | AAT81: FALSE | AAU81: FALSE | AAV81: FALSE | AAW81: FALSE | AAX81: FALSE | AAY81: FALSE | AAZ81: FALSE | ABA81: FALSE | ABB81: FALSE | ABC81: FALSE | ABD81: FALSE | ABE81: FALSE | ABF81: FALSE | ABG81: FALSE | ABH81: FALSE | ABI81: FALSE | ABJ81: FALSE | ABK81: FALSE | ABL81: FALSE | ABM81: FALSE | ABN81: FALSE | ABO81: FALSE | ABP81: FALSE | ABQ81: FALSE | ABR81: FALSE | ABS81: FALSE | ABT81: FALSE | ABU81: FALSE | ABV81: FALSE | ABW81: FALSE | ABX81: FALSE | ABY81: FALSE | ABZ81: FALSE | ACA81: FALSE | ACB81: FALSE | ACC81: FALSE | ACD81: FALSE | ACE81: FALSE | ACF81: FALSE | ACG81: FALSE | ACH81: FALSE | ACI81: FALSE | ACJ81: FALSE | ACK81: FALSE | ACL81: FALSE | ACM81: FALSE | ACN81: FALSE | ACO81: FALSE | ACP81: FALSE | ACQ81: FALSE | ACR81: FALSE | ACS81: FALSE | ACT81: FALSE | ACU81: FALSE | ACV81: FALSE | ACW81: =$F$81=ACW7 -> FALSE | ACX81: FALSE | ACY81: FALSE | ACZ81: FALSE | ADA81: FALSE | ADB81: FALSE | ADC81: FALSE | ADD81: FALSE | ADE81: FALSE | ADF81: FALSE | ADG81: FALSE | ADH81: FALSE | ADI81: FALSE | ADJ81: FALSE | ADK81: FALSE | ADL81: FALSE | ADM81: FALSE | ADN81: FALSE | ADO81: FALSE | ADP81: FALSE | ADQ81: FALSE | ADR81: FALSE | ADS81: FALSE | ADT81: FALSE | ADU81: FALSE | ADV81: FALSE | ADW81: FALSE | ADX81: FALSE | ADY81: FALSE | ADZ81: FALSE | AEA81: FALSE | AEB81: FALSE | AEC81: FALSE | AED81: FALSE | AEE81: FALSE | AEF81: FALSE | AEG81: FALSE | AEH81: FALSE | AEI81: FALSE | AEJ81: FALSE | AEK81: FALSE | AEL81: FALSE | AEM81: FALSE | AEN81: FALSE | AEO81: FALSE | AEP81: FALSE | AEQ81: FALSE | AER81: FALSE | AES81: FALSE | AET81: FALSE | AEU81: FALSE | AEV81: FALSE | AEW81: FALSE | AEX81: FALSE | AEY81: FALSE | AEZ81: FALSE | AFA81: FALSE | AFB81: FALSE | AFC81: FALSE | AFD81: FALSE | AFE81: FALSE | AFF81: FALSE | AFG81: FALSE | AFH81: FALSE | AFI81: =$F$81=AFI7 -> FALSE | AFJ81: FALSE | AFK81: FALSE | AFL81: FALSE | AFM81: FALSE | AFN81: FALSE | AFO81: FALSE | AFP81: FALSE | AFQ81: FALSE | AFR81: FALSE | AFS81: FALSE | AFT81: FALSE | AFU81: FALSE | AFV81: FALSE | AFW81: FALSE | AFX81: FALSE | AFY81: FALSE | AFZ81: FALSE | AGA81: FALSE | AGB81: FALSE | AGC81: FALSE | AGD81: FALSE | AGE81: FALSE | AGF81: FALSE | AGG81: FALSE | AGH81: FALSE | AGI81: FALSE | AGJ81: FALSE | AGK81: FALSE
B83: Construction Work Balance Including Equity and Debt Return
C84: Open Balance | E84: Currency | I84: =H88 -> 0 | J84: 0 | K84: 0 | L84: 0 | M84: 0 | N84: 0 | O84: 0 | P84: 0 | Q84: 0 | R84: 0 | S84: 0 | T84: 0 | U84: 0 | V84: 0 | W84: 0 | X84: 0 | Y84: 0 | Z84: 0 | AA84: 0 | AB84: 0 | AC84: 0 | AD84: 0 | AE84: 0 | AF84: 0 | AG84: 0 | AH84: 0 | AI84: 0 | AJ84: 0 | AK84: 0 | AL84: 0 | AM84: 0 | AN84: 0 | AO84: 0 | AP84: 0 | AQ84: 0 | AR84: 0 | AS84: 0 | AT84: 0 | AU84: 0 | AV84: 0 | AW84: 0 | AX84: 0 | AY84: 0 | AZ84: 0 | BA84: 0 | BB84: 0 | BC84: 0 | BD84: 0 | BE84: 0 | BF84: 0 | BG84: 0 | BH84: 0 | BI84: 0 | BJ84: 0 | BK84: 0 | BL84: 0 | BM84: 0 | BN84: 0 | BO84: 0 | BP84: 0 | BQ84: 0 | BR84: 0 | BS84: 0 | BT84: 0 | BU84: =BT88 -> 0 | BV84: 0 | BW84: 0 | BX84: 0 | BY84: 0 | BZ84: 0 | CA84: 0 | CB84: 0 | CC84: 0 | CD84: 0 | CE84: 0 | CF84: 0 | CG84: 0 | CH84: 0 | CI84: 0 | CJ84: 0 | CK84: 0 | CL84: 0 | CM84: 0 | CN84: 0 | CO84: 0 | CP84: 0 | CQ84: 0 | CR84: 0 | CS84: 0 | CT84: 0 | CU84: 0 | CV84: 0 | CW84: 0 | CX84: 0 | CY84: 0 | CZ84: 0 | DA84: 0 | DB84: 0 | DC84: 0 | DD84: 0 | DE84: 0 | DF84: 0 | DG84: 0 | DH84: 0 | DI84: 0 | DJ84: 0 | DK84: 0 | DL84: 0 | DM84: 0 | DN84: 0 | DO84: 0 | DP84: 0 | DQ84: 0 | DR84: 0 | DS84: 0 | DT84: 0 | DU84: 0 | DV84: 0 | DW84: 0 | DX84: 0 | DY84: 0 | DZ84: 0 | EA84: 0 | EB84: 0 | EC84: 0 | ED84: 0 | EE84: 0 | EF84: 0 | EG84: =EF88 -> 0 | EH84: 0 | EI84: 0 | EJ84: 0 | EK84: 0 | EL84: 0 | EM84: 0 | EN84: 0 | EO84: 0 | EP84: 0 | EQ84: 0 | ER84: 0 | ES84: 0 | ET84: 0 | EU84: 0 | EV84: 0 | EW84: 0 | EX84: 0 | EY84: 0 | EZ84: 0 | FA84: 0 | FB84: 0 | FC84: 0 | FD84: 0 | FE84: 0 | FF84: 0 | FG84: 0 | FH84: 0 | FI84: 0 | FJ84: 0 | FK84: 0 | FL84: 0 | FM84: 0 | FN84: 0 | FO84: 0 | FP84: 0 | FQ84: 0 | FR84: 0 | FS84: 0 | FT84: 0 | FU84: 0 | FV84: 0 | FW84: 0 | FX84: 0 | FY84: 0 | FZ84: 0 | GA84: 0 | GB84: 0 | GC84: 0 | GD84: 0 | GE84: 0 | GF84: 0 | GG84: 0 | GH84: 0 | GI84: 0 | GJ84: 0 | GK84: 0 | GL84: 0 | GM84: 0 | GN84: 0 | GO84: 0 | GP84: 0 | GQ84: 0 | GR84: 0 | GS84: =GR88 -> 0 | GT84: 0 | GU84: 0 | GV84: 0 | GW84: 0 | GX84: 0 | GY84: 0 | GZ84: 0 | HA84: 0 | HB84: 0 | HC84: 0 | HD84: 0 | HE84: 0 | HF84: 0 | HG84: 0 | HH84: 0 | HI84: 0 | HJ84: 0 | HK84: 0 | HL84: 0 | HM84: 0 | HN84: 0 | HO84: 0 | HP84: 0 | HQ84: 0 | HR84: 0 | HS84: 0 | HT84: 0 | HU84: 0 | HV84: 0 | HW84: 0 | HX84: 0 | HY84: 0 | HZ84: 0 | IA84: 0 | IB84: 0 | IC84: 0 | ID84: 0 | IE84: 0 | IF84: 0 | IG84: 0 | IH84: 0 | II84: 0 | IJ84: 0 | IK84: 0 | IL84: 0 | IM84: 0 | IN84: 0 | IO84: 0 | IP84: 0 | IQ84: 0 | IR84: 0 | IS84: 0 | IT84: 0 | IU84: 0 | IV84: 0 | IW84: 0 | IX84: 0 | IY84: 0 | IZ84: 0 | JA84: 0 | JB84: 0 | JC84: 0 | JD84: 0 | JE84: =JD88 -> 0 | JF84: 0 | JG84: 0 | JH84: 0 | JI84: 0 | JJ84: 0 | JK84: 0 | JL84: 0 | JM84: 0 | JN84: 0 | JO84: 0 | JP84: 0 | JQ84: 0 | JR84: 0 | JS84: 0 | JT84: 0 | JU84: 0 | JV84: 0 | JW84: 0 | JX84: 0 | JY84: 0 | JZ84: 0 | KA84: 0 | KB84: 0 | KC84: 0 | KD84: 0 | KE84: 0 | KF84: 0 | KG84: 0 | KH84: 0 | KI84: 0 | KJ84: 0 | KK84: 0 | KL84: 0 | KM84: 0 | KN84: 0 | KO84: 0 | KP84: 0 | KQ84: 0 | KR84: 0 | KS84: 0 | KT84: 0 | KU84: 0 | KV84: 0 | KW84: 0 | KX84: 0 | KY84: 0 | KZ84: 0 | LA84: 0 | LB84: 0 | LC84: 0 | LD84: 0 | LE84: 0 | LF84: 0 | LG84: 0 | LH84: 0 | LI84: 0 | LJ84: 0 | LK84: 0 | LL84: 0 | LM84: 0 | LN84: 0 | LO84: 0 | LP84: 0 | LQ84: =LP88 -> 0 | LR84: 0 | LS84: 0 | LT84: 0 | LU84: 0 | LV84: 0 | LW84: 0 | LX84: 0 | LY84: 0 | LZ84: 0 | MA84: 0 | MB84: 0 | MC84: 0 | MD84: 0 | ME84: 0 | MF84: 0 | MG84: 0 | MH84: 0 | MI84: 0 | MJ84: 0 | MK84: 0 | ML84: 0 | MM84: 0 | MN84: 0 | MO84: 0 | MP84: 0 | MQ84: 0 | MR84: 0 | MS84: 0 | MT84: 0 | MU84: 0 | MV84: 0 | MW84: 0 | MX84: 0 | MY84: 0 | MZ84: 0 | NA84: 0 | NB84: 0 | NC84: 0 | ND84: 0 | NE84: 0 | NF84: 0 | NG84: 0 | NH84: 0 | NI84: 0 | NJ84: 0 | NK84: 0 | NL84: 0 | NM84: 0 | NN84: 0 | NO84: 0 | NP84: 0 | NQ84: 0 | NR84: 0 | NS84: 0 | NT84: 0 | NU84: 0 | NV84: 0 | NW84: 0 | NX84: 0 | NY84: 0 | NZ84: 0 | OA84: 0 | OB84: 0 | OC84: =OB88 -> 0 | OD84: 0 | OE84: 0 | OF84: 0 | OG84: 0 | OH84: 0 | OI84: 0 | OJ84: 0 | OK84: 0 | OL84: 0 | OM84: 0 | ON84: 0 | OO84: 0 | OP84: 0 | OQ84: 0 | OR84: 0 | OS84: 0 | OT84: 0 | OU84: 0 | OV84: 0 | OW84: 0 | OX84: 0 | OY84: 0 | OZ84: 0 | PA84: 0 | PB84: 0 | PC84: 0 | PD84: 0 | PE84: 0 | PF84: 0 | PG84: 0 | PH84: 0 | PI84: 0 | PJ84: 0 | PK84: 0 | PL84: 0 | PM84: 0 | PN84: 0 | PO84: 0 | PP84: 0 | PQ84: 0 | PR84: 0 | PS84: 0 | PT84: 0 | PU84: 0 | PV84: 0 | PW84: 0 | PX84: 0 | PY84: 0 | PZ84: 0 | QA84: 0 | QB84: 0 | QC84: 0 | QD84: 0 | QE84: 0 | QF84: 0 | QG84: 0 | QH84: 0 | QI84: 0 | QJ84: 0 | QK84: 0 | QL84: 0 | QM84: 0 | QN84: 0 | QO84: =QN88 -> 0 | QP84: 0 | QQ84: 0 | QR84: 0 | QS84: 0 | QT84: 0 | QU84: 0 | QV84: 0 | QW84: 0 | QX84: 0 | QY84: 0 | QZ84: 0 | RA84: 0 | RB84: 0 | RC84: 0 | RD84: 0 | RE84: 0 | RF84: 0 | RG84: 0 | RH84: 0 | RI84: 0 | RJ84: 0 | RK84: 0 | RL84: 0 | RM84: 0 | RN84: 0 | RO84: 0 | RP84: 0 | RQ84: 0 | RR84: 0 | RS84: 0 | RT84: 0 | RU84: 0 | RV84: 0 | RW84: 0 | RX84: 0 | RY84: 0 | RZ84: 0 | SA84: 0 | SB84: 0 | SC84: 0 | SD84: 0 | SE84: 0 | SF84: 0 | SG84: 0 | SH84: 0 | SI84: 0 | SJ84: 0 | SK84: 0 | SL84: 0 | SM84: 0 | SN84: 0 | SO84: 0 | SP84: 0 | SQ84: 0 | SR84: 0 | SS84: 0 | ST84: 0 | SU84: 0 | SV84: 0 | SW84: 0 | SX84: 0 | SY84: 0 | SZ84: 0 | TA84: =SZ88 -> 0 | TB84: 0 | TC84: 0 | TD84: 0 | TE84: 0 | TF84: 0 | TG84: 0 | TH84: 0 | TI84: 0 | TJ84: 0 | TK84: 0 | TL84: 0 | TM84: 0 | TN84: 0 | TO84: 0 | TP84: 0 | TQ84: 0 | TR84: 0 | TS84: 0 | TT84: 0 | TU84: 0 | TV84: 0 | TW84: 0 | TX84: 0 | TY84: 0 | TZ84: 0 | UA84: 0 | UB84: 0 | UC84: 0 | UD84: 0 | UE84: 0 | UF84: 0 | UG84: 0 | UH84: 0 | UI84: 0 | UJ84: 0 | UK84: 0 | UL84: 0 | UM84: 0 | UN84: 0 | UO84: 0 | UP84: 0 | UQ84: 0 | UR84: 0 | US84: =UR88 -> 0 | UT84: =US88 -> 0 | UU84: =UT88 -> 0 | UV84: =UU88 -> 0 | UW84: 0 | UX84: 0 | UY84: 0 | UZ84: 0 | VA84: 0 | VB84: 0 | VC84: 0 | VD84: 0 | VE84: 0 | VF84: 0 | VG84: 0 | VH84: 0 | VI84: 0 | VJ84: 0 | VK84: 0 | VL84: 0 | VM84: 0 | VN84: 0 | VO84: 0 | VP84: 0 | VQ84: 0 | VR84: 0 | VS84: 0 | VT84: 0 | VU84: 0 | VV84: 0 | VW84: 0 | VX84: 0 | VY84: 0 | VZ84: 0 | WA84: 0 | WB84: 0 | WC84: 0 | WD84: 0 | WE84: 0 | WF84: 0 | WG84: 0 | WH84: 0 | WI84: 0 | WJ84: 0 | WK84: 0 | WL84: 0 | WM84: 0 | WN84: 0 | WO84: 0 | WP84: 0 | WQ84: 0 | WR84: 0 | WS84: 0 | WT84: 0 | WU84: 0 | WV84: 0 | WW84: 0 | WX84: 0 | WY84: 0 | WZ84: 0 | XA84: 0 | XB84: 0 | XC84: 0 | XD84: 0 | XE84: 0 | XF84: 0 | XG84: 0 | XH84: =XG88 -> 0 | XI84: 0 | XJ84: 0 | XK84: 0 | XL84: 0 | XM84: 0 | XN84: 0 | XO84: 0 | XP84: 0 | XQ84: 0 | XR84: 0 | XS84: 0 | XT84: 0 | XU84: 0 | XV84: 0 | XW84: 0 | XX84: 0 | XY84: 0 | XZ84: 0 | YA84: 0 | YB84: 0 | YC84: 0 | YD84: 0 | YE84: 0 | YF84: 0 | YG84: 0 | YH84: 0 | YI84: 0 | YJ84: 0 | YK84: 0 | YL84: 0 | YM84: 0 | YN84: 0 | YO84: 0 | YP84: 0 | YQ84: 0 | YR84: 0 | YS84: 0 | YT84: 0 | YU84: 0 | YV84: 0 | YW84: 0 | YX84: 0 | YY84: 0 | YZ84: 0 | ZA84: 0 | ZB84: 0 | ZC84: 0 | ZD84: 0 | ZE84: 0 | ZF84: 0 | ZG84: 0 | ZH84: 0 | ZI84: 0 | ZJ84: 0 | ZK84: 0 | ZL84: 0 | ZM84: 0 | ZN84: 0 | ZO84: 0 | ZP84: 0 | ZQ84: 0 | ZR84: 0 | ZS84: 0 | ZT84: =ZS88 -> 0 | ZU84: =ZT88 -> 0 | ZV84: =ZU88 -> 0 | ZW84: =ZV88 -> 0 | ZX84: =ZW88 -> 0 | ZY84: 0 | ZZ84: 0 | AAA84: 0 | AAB84: 0 | AAC84: 0 | AAD84: 0 | AAE84: 0 | AAF84: 0 | AAG84: 0 | AAH84: 0 | AAI84: 0 | AAJ84: 0 | AAK84: 0 | AAL84: 0 | AAM84: 0 | AAN84: 0 | AAO84: 0 | AAP84: 0 | AAQ84: 0 | AAR84: 0 | AAS84: 0 | AAT84: 0 | AAU84: 0 | AAV84: 0 | AAW84: 0 | AAX84: 0 | AAY84: 0 | AAZ84: 0 | ABA84: 0 | ABB84: 0 | ABC84: 0 | ABD84: 0 | ABE84: 0 | ABF84: 0 | ABG84: 0 | ABH84: 0 | ABI84: 0 | ABJ84: 0 | ABK84: 0 | ABL84: 0 | ABM84: 0 | ABN84: 0 | ABO84: 0 | ABP84: 0 | ABQ84: 0 | ABR84: 0 | ABS84: 0 | ABT84: 0 | ABU84: 0 | ABV84: 0 | ABW84: 0 | ABX84: 0 | ABY84: 0 | ABZ84: 0 | ACA84: 0 | ACB84: 0 | ACC84: 0 | ACD84: 0 | ACE84: 0 | ACF84: 0 | ACG84: 0 | ACH84: 0 | ACI84: 0 | ACJ84: =ACI88 -> 0 | ACK84: 0 | ACL84: 0 | ACM84: 0 | ACN84: 0 | ACO84: 0 | ACP84: 0 | ACQ84: 0 | ACR84: 0 | ACS84: 0 | ACT84: 0 | ACU84: 0 | ACV84: 0 | ACW84: 0 | ACX84: 0 | ACY84: 0 | ACZ84: 0 | ADA84: 0 | ADB84: 0 | ADC84: 0 | ADD84: 0 | ADE84: 0 | ADF84: 0 | ADG84: 0 | ADH84: 0 | ADI84: 0 | ADJ84: 0 | ADK84: 0 | ADL84: 0 | ADM84: 0 | ADN84: 0 | ADO84: 0 | ADP84: 0 | ADQ84: 0 | ADR84: 0 | ADS84: 0 | ADT84: 0 | ADU84: 0 | ADV84: 0 | ADW84: 0 | ADX84: 0 | ADY84: 0 | ADZ84: 0 | AEA84: 0 | AEB84: 0 | AEC84: 0 | AED84: 0 | AEE84: 0 | AEF84: 0 | AEG84: 0 | AEH84: 0 | AEI84: 0 | AEJ84: 0 | AEK84: 0 | AEL84: 0 | AEM84: 0 | AEN84: 0 | AEO84: 0 | AEP84: 0 | AEQ84: 0 | AER84: 0 | AES84: 0 | AET84: 0 | AEU84: 0 | AEV84: =AEU88 -> 0 | AEW84: 0 | AEX84: 0 | AEY84: 0 | AEZ84: 0 | AFA84: 0 | AFB84: 0 | AFC84: 0 | AFD84: 0 | AFE84: 0 | AFF84: 0 | AFG84: 0 | AFH84: 0 | AFI84: 0 | AFJ84: 0 | AFK84: 0 | AFL84: 0 | AFM84: 0 | AFN84: 0 | AFO84: 0 | AFP84: 0 | AFQ84: 0 | AFR84: 0 | AFS84: 0 | AFT84: 0 | AFU84: 0 | AFV84: 0 | AFW84: 0 | AFX84: 0 | AFY84: 0 | AFZ84: 0 | AGA84: 0 | AGB84: 0 | AGC84: 0 | AGD84: 0 | AGE84: 0 | AGF84: 0 | AGG84: 0 | AGH84: 0 | AGI84: 0 | AGJ84: 0 | AGK84: 0
C85: Add: Accrued Return (Annual and Periodic @ WACC) | E85: Currency | F85: ='Carrying Charge'!M57 -> 0.002892596745 | I85: =I84*$F$85 -> 0 | J85: =J84*$F$85 -> 0 | K85: 0 | L85: 0 | M85: 0 | N85: 0 | O85: 0 | P85: 0 | Q85: 0 | R85: 0 | S85: 0 | T85: 0 | U85: 0 | V85: 0 | W85: 0 | X85: 0 | Y85: 0 | Z85: 0 | AA85: 0 | AB85: 0 | AC85: 0 | AD85: 0 | AE85: 0 | AF85: 0 | AG85: 0 | AH85: 0 | AI85: 0 | AJ85: 0 | AK85: 0 | AL85: 0 | AM85: 0 | AN85: 0 | AO85: 0 | AP85: 0 | AQ85: 0 | AR85: 0 | AS85: 0 | AT85: 0 | AU85: 0 | AV85: 0 | AW85: 0 | AX85: 0 | AY85: 0 | AZ85: 0 | BA85: 0 | BB85: 0 | BC85: 0 | BD85: 0 | BE85: 0 | BF85: 0 | BG85: 0 | BH85: 0 | BI85: 0 | BJ85: 0 | BK85: 0 | BL85: 0 | BM85: 0 | BN85: 0 | BO85: 0 | BP85: 0 | BQ85: 0 | BR85: 0 | BS85: 0 | BT85: 0 | BU85: 0 | BV85: =BV84*$F$85 -> 0 | BW85: 0 | BX85: 0 | BY85: 0 | BZ85: 0 | CA85: 0 | CB85: 0 | CC85: 0 | CD85: 0 | CE85: 0 | CF85: 0 | CG85: 0 | CH85: 0 | CI85: 0 | CJ85: 0 | CK85: 0 | CL85: 0 | CM85: 0 | CN85: 0 | CO85: 0 | CP85: 0 | CQ85: 0 | CR85: 0 | CS85: 0 | CT85: 0 | CU85: 0 | CV85: 0 | CW85: 0 | CX85: 0 | CY85: 0 | CZ85: 0 | DA85: 0 | DB85: 0 | DC85: 0 | DD85: 0 | DE85: 0 | DF85: 0 | DG85: 0 | DH85: 0 | DI85: 0 | DJ85: 0 | DK85: 0 | DL85: 0 | DM85: 0 | DN85: 0 | DO85: 0 | DP85: 0 | DQ85: 0 | DR85: 0 | DS85: 0 | DT85: 0 | DU85: 0 | DV85: 0 | DW85: 0 | DX85: 0 | DY85: 0 | DZ85: 0 | EA85: 0 | EB85: 0 | EC85: 0 | ED85: 0 | EE85: 0 | EF85: 0 | EG85: 0 | EH85: =EH84*$F$85 -> 0 | EI85: 0 | EJ85: 0 | EK85: 0 | EL85: 0 | EM85: 0 | EN85: 0 | EO85: 0 | EP85: 0 | EQ85: 0 | ER85: 0 | ES85: 0 | ET85: 0 | EU85: 0 | EV85: 0 | EW85: 0 | EX85: 0 | EY85: 0 | EZ85: 0 | FA85: 0 | FB85: 0 | FC85: 0 | FD85: 0 | FE85: 0 | FF85: 0 | FG85: 0 | FH85: 0 | FI85: 0 | FJ85: 0 | FK85: 0 | FL85: 0 | FM85: 0 | FN85: 0 | FO85: 0 | FP85: 0 | FQ85: 0 | FR85: 0 | FS85: 0 | FT85: 0 | FU85: 0 | FV85: 0 | FW85: 0 | FX85: 0 | FY85: 0 | FZ85: 0 | GA85: 0 | GB85: 0 | GC85: 0 | GD85: 0 | GE85: 0 | GF85: 0 | GG85: 0 | GH85: 0 | GI85: 0 | GJ85: 0 | GK85: 0 | GL85: 0 | GM85: 0 | GN85: 0 | GO85: 0 | GP85: 0 | GQ85: 0 | GR85: 0 | GS85: 0 | GT85: =GT84*$F$85 -> 0 | GU85: 0 | GV85: 0 | GW85: 0 | GX85: 0 | GY85: 0 | GZ85: 0 | HA85: 0 | HB85: 0 | HC85: 0 | HD85: 0 | HE85: 0 | HF85: 0 | HG85: 0 | HH85: 0 | HI85: 0 | HJ85: 0 | HK85: 0 | HL85: 0 | HM85: 0 | HN85: 0 | HO85: 0 | HP85: 0 | HQ85: 0 | HR85: 0 | HS85: 0 | HT85: 0 | HU85: 0 | HV85: 0 | HW85: 0 | HX85: 0 | HY85: 0 | HZ85: 0 | IA85: 0 | IB85: 0 | IC85: 0 | ID85: 0 | IE85: 0 | IF85: 0 | IG85: 0 | IH85: 0 | II85: 0 | IJ85: 0 | IK85: 0 | IL85: 0 | IM85: 0 | IN85: 0 | IO85: 0 | IP85: 0 | IQ85: 0 | IR85: 0 | IS85: 0 | IT85: 0 | IU85: 0 | IV85: 0 | IW85: 0 | IX85: 0 | IY85: 0 | IZ85: 0 | JA85: 0 | JB85: 0 | JC85: 0 | JD85: 0 | JE85: 0 | JF85: =JF84*$F$85 -> 0 | JG85: 0 | JH85: 0 | JI85: 0 | JJ85: 0 | JK85: 0 | JL85: 0 | JM85: 0 | JN85: 0 | JO85: 0 | JP85: 0 | JQ85: 0 | JR85: 0 | JS85: 0 | JT85: 0 | JU85: 0 | JV85: 0 | JW85: 0 | JX85: 0 | JY85: 0 | JZ85: 0 | KA85: 0 | KB85: 0 | KC85: 0 | KD85: 0 | KE85: 0 | KF85: 0 | KG85: 0 | KH85: 0 | KI85: 0 | KJ85: 0 | KK85: 0 | KL85: 0 | KM85: 0 | KN85: 0 | KO85: 0 | KP85: 0 | KQ85: 0 | KR85: 0 | KS85: 0 | KT85: 0 | KU85: 0 | KV85: 0 | KW85: 0 | KX85: 0 | KY85: 0 | KZ85: 0 | LA85: 0 | LB85: 0 | LC85: 0 | LD85: 0 | LE85: 0 | LF85: 0 | LG85: 0 | LH85: 0 | LI85: 0 | LJ85: 0 | LK85: 0 | LL85: 0 | LM85: 0 | LN85: 0 | LO85: 0 | LP85: 0 | LQ85: 0 | LR85: =LR84*$F$85 -> 0 | LS85: 0 | LT85: 0 | LU85: 0 | LV85: 0 | LW85: 0 | LX85: 0 | LY85: 0 | LZ85: 0 | MA85: 0 | MB85: 0 | MC85: 0 | MD85: 0 | ME85: 0 | MF85: 0 | MG85: 0 | MH85: 0 | MI85: 0 | MJ85: 0 | MK85: 0 | ML85: 0 | MM85: 0 | MN85: 0 | MO85: 0 | MP85: 0 | MQ85: 0 | MR85: 0 | MS85: 0 | MT85: 0 | MU85: 0 | MV85: 0 | MW85: 0 | MX85: 0 | MY85: 0 | MZ85: 0 | NA85: 0 | NB85: 0 | NC85: 0 | ND85: 0 | NE85: 0 | NF85: 0 | NG85: 0 | NH85: 0 | NI85: 0 | NJ85: 0 | NK85: 0 | NL85: 0 | NM85: 0 | NN85: 0 | NO85: 0 | NP85: 0 | NQ85: 0 | NR85: 0 | NS85: 0 | NT85: 0 | NU85: 0 | NV85: 0 | NW85: 0 | NX85: 0 | NY85: 0 | NZ85: 0 | OA85: 0 | OB85: 0 | OC85: 0 | OD85: =OD84*$F$85 -> 0 | OE85: 0 | OF85: 0 | OG85: 0 | OH85: 0 | OI85: 0 | OJ85: 0 | OK85: 0 | OL85: 0 | OM85: 0 | ON85: 0 | OO85: 0 | OP85: 0 | OQ85: 0 | OR85: 0 | OS85: 0 | OT85: 0 | OU85: 0 | OV85: 0 | OW85: 0 | OX85: 0 | OY85: 0 | OZ85: 0 | PA85: 0 | PB85: 0 | PC85: 0 | PD85: 0 | PE85: 0 | PF85: 0 | PG85: 0 | PH85: 0 | PI85: 0 | PJ85: 0 | PK85: 0 | PL85: 0 | PM85: 0 | PN85: 0 | PO85: 0 | PP85: 0 | PQ85: 0 | PR85: 0 | PS85: 0 | PT85: 0 | PU85: 0 | PV85: 0 | PW85: 0 | PX85: 0 | PY85: 0 | PZ85: 0 | QA85: 0 | QB85: 0 | QC85: 0 | QD85: 0 | QE85: 0 | QF85: 0 | QG85: 0 | QH85: 0 | QI85: 0 | QJ85: 0 | QK85: 0 | QL85: 0 | QM85: 0 | QN85: 0 | QO85: 0 | QP85: =QP84*$F$85 -> 0 | QQ85: 0 | QR85: 0 | QS85: 0 | QT85: 0 | QU85: 0 | QV85: 0 | QW85: 0 | QX85: 0 | QY85: 0 | QZ85: 0 | RA85: 0 | RB85: 0 | RC85: 0 | RD85: 0 | RE85: 0 | RF85: 0 | RG85: 0 | RH85: 0 | RI85: 0 | RJ85: 0 | RK85: 0 | RL85: 0 | RM85: 0 | RN85: 0 | RO85: 0 | RP85: 0 | RQ85: 0 | RR85: 0 | RS85: 0 | RT85: 0 | RU85: 0 | RV85: 0 | RW85: 0 | RX85: 0 | RY85: 0 | RZ85: 0 | SA85: 0 | SB85: 0 | SC85: 0 | SD85: 0 | SE85: 0 | SF85: 0 | SG85: 0 | SH85: 0 | SI85: 0 | SJ85: 0 | SK85: 0 | SL85: 0 | SM85: 0 | SN85: 0 | SO85: 0 | SP85: 0 | SQ85: 0 | SR85: 0 | SS85: 0 | ST85: 0 | SU85: 0 | SV85: 0 | SW85: 0 | SX85: 0 | SY85: 0 | SZ85: 0 | TA85: 0 | TB85: =TB84*$F$85 -> 0 | TC85: 0 | TD85: 0 | TE85: 0 | TF85: 0 | TG85: 0 | TH85: 0 | TI85: 0 | TJ85: 0 | TK85: 0 | TL85: 0 | TM85: 0 | TN85: 0 | TO85: 0 | TP85: 0 | TQ85: 0 | TR85: 0 | TS85: 0 | TT85: 0 | TU85: 0 | TV85: 0 | TW85: 0 | TX85: 0 | TY85: 0 | TZ85: 0 | UA85: 0 | UB85: 0 | UC85: 0 | UD85: 0 | UE85: 0 | UF85: 0 | UG85: 0 | UH85: 0 | UI85: 0 | UJ85: 0 | UK85: 0 | UL85: 0 | UM85: 0 | UN85: 0 | UO85: 0 | UP85: 0 | UQ85: 0 | UR85: 0 | US85: 0 | UT85: 0 | UU85: 0 | UV85: 0 | UW85: 0 | UX85: 0 | UY85: 0 | UZ85: 0 | VA85: 0 | VB85: 0 | VC85: 0 | VD85: 0 | VE85: 0 | VF85: 0 | VG85: 0 | VH85: 0 | VI85: 0 | VJ85: 0 | VK85: 0 | VL85: 0 | VM85: 0 | VN85: =VN84*$F$85 -> 0 | VO85: 0 | VP85: 0 | VQ85: 0 | VR85: 0 | VS85: 0 | VT85: 0 | VU85: 0 | VV85: 0 | VW85: 0 | VX85: 0 | VY85: 0 | VZ85: 0 | WA85: 0 | WB85: 0 | WC85: 0 | WD85: 0 | WE85: 0 | WF85: 0 | WG85: 0 | WH85: 0 | WI85: 0 | WJ85: 0 | WK85: 0 | WL85: 0 | WM85: 0 | WN85: 0 | WO85: 0 | WP85: 0 | WQ85: 0 | WR85: 0 | WS85: 0 | WT85: 0 | WU85: 0 | WV85: 0 | WW85: 0 | WX85: 0 | WY85: 0 | WZ85: 0 | XA85: 0 | XB85: 0 | XC85: 0 | XD85: 0 | XE85: 0 | XF85: 0 | XG85: 0 | XH85: 0 | XI85: 0 | XJ85: 0 | XK85: 0 | XL85: 0 | XM85: 0 | XN85: 0 | XO85: 0 | XP85: 0 | XQ85: 0 | XR85: 0 | XS85: 0 | XT85: 0 | XU85: 0 | XV85: 0 | XW85: 0 | XX85: 0 | XY85: 0 | XZ85: =XZ84*$F$85 -> 0 | YA85: 0 | YB85: 0 | YC85: 0 | YD85: 0 | YE85: 0 | YF85: 0 | YG85: 0 | YH85: 0 | YI85: 0 | YJ85: 0 | YK85: 0 | YL85: 0 | YM85: 0 | YN85: 0 | YO85: 0 | YP85: 0 | YQ85: 0 | YR85: 0 | YS85: 0 | YT85: 0 | YU85: 0 | YV85: 0 | YW85: 0 | YX85: 0 | YY85: 0 | YZ85: 0 | ZA85: 0 | ZB85: 0 | ZC85: 0 | ZD85: 0 | ZE85: 0 | ZF85: 0 | ZG85: 0 | ZH85: 0 | ZI85: 0 | ZJ85: 0 | ZK85: 0 | ZL85: 0 | ZM85: 0 | ZN85: 0 | ZO85: 0 | ZP85: 0 | ZQ85: 0 | ZR85: 0 | ZS85: 0 | ZT85: 0 | ZU85: 0 | ZV85: 0 | ZW85: 0 | ZX85: 0 | ZY85: 0 | ZZ85: 0 | AAA85: 0 | AAB85: 0 | AAC85: 0 | AAD85: 0 | AAE85: 0 | AAF85: 0 | AAG85: 0 | AAH85: 0 | AAI85: 0 | AAJ85: 0 | AAK85: 0 | AAL85: =AAL84*$F$85 -> 0 | AAM85: 0 | AAN85: 0 | AAO85: 0 | AAP85: 0 | AAQ85: 0 | AAR85: 0 | AAS85: 0 | AAT85: 0 | AAU85: 0 | AAV85: 0 | AAW85: 0 | AAX85: 0 | AAY85: 0 | AAZ85: 0 | ABA85: 0 | ABB85: 0 | ABC85: 0 | ABD85: 0 | ABE85: 0 | ABF85: 0 | ABG85: 0 | ABH85: 0 | ABI85: 0 | ABJ85: 0 | ABK85: 0 | ABL85: 0 | ABM85: 0 | ABN85: 0 | ABO85: 0 | ABP85: 0 | ABQ85: 0 | ABR85: 0 | ABS85: 0 | ABT85: 0 | ABU85: 0 | ABV85: 0 | ABW85: 0 | ABX85: 0 | ABY85: 0 | ABZ85: 0 | ACA85: 0 | ACB85: 0 | ACC85: 0 | ACD85: 0 | ACE85: 0 | ACF85: 0 | ACG85: 0 | ACH85: 0 | ACI85: 0 | ACJ85: 0 | ACK85: 0 | ACL85: 0 | ACM85: 0 | ACN85: 0 | ACO85: 0 | ACP85: 0 | ACQ85: 0 | ACR85: 0 | ACS85: 0 | ACT85: 0 | ACU85: 0 | ACV85: 0 | ACW85: 0 | ACX85: =ACX84*$F$85 -> 0 | ACY85: 0 | ACZ85: 0 | ADA85: 0 | ADB85: 0 | ADC85: 0 | ADD85: 0 | ADE85: 0 | ADF85: 0 | ADG85: 0 | ADH85: 0 | ADI85: 0 | ADJ85: 0 | ADK85: 0 | ADL85: 0 | ADM85: 0 | ADN85: 0 | ADO85: 0 | ADP85: 0 | ADQ85: 0 | ADR85: 0 | ADS85: 0 | ADT85: 0 | ADU85: 0 | ADV85: 0 | ADW85: 0 | ADX85: 0 | ADY85: 0 | ADZ85: 0 | AEA85: 0 | AEB85: 0 | AEC85: 0 | AED85: 0 | AEE85: 0 | AEF85: 0 | AEG85: 0 | AEH85: 0 | AEI85: 0 | AEJ85: 0 | AEK85: 0 | AEL85: 0 | AEM85: 0 | AEN85: 0 | AEO85: 0 | AEP85: 0 | AEQ85: 0 | AER85: 0 | AES85: 0 | AET85: 0 | AEU85: 0 | AEV85: 0 | AEW85: 0 | AEX85: 0 | AEY85: 0 | AEZ85: 0 | AFA85: 0 | AFB85: 0 | AFC85: 0 | AFD85: 0 | AFE85: 0 | AFF85: 0 | AFG85: 0 | AFH85: 0 | AFI85: 0 | AFJ85: =AFJ84*$F$85 -> 0 | AFK85: 0 | AFL85: 0 | AFM85: 0 | AFN85: 0 | AFO85: 0 | AFP85: 0 | AFQ85: 0 | AFR85: 0 | AFS85: 0 | AFT85: 0 | AFU85: 0 | AFV85: 0 | AFW85: 0 | AFX85: 0 | AFY85: 0 | AFZ85: 0 | AGA85: 0 | AGB85: 0 | AGC85: 0 | AGD85: 0 | AGE85: 0 | AGF85: 0 | AGG85: 0 | AGH85: 0 | AGI85: 0 | AGJ85: 0 | AGK85: 0
C86: Add: Construction with Inflation from Above | E86: Currency | I86: =I80 -> 1000 | J86: =J80 -> 0 | K86: 0 | L86: 0 | M86: 0 | N86: 0 | O86: 0 | P86: 0 | Q86: 0 | R86: 0 | S86: 0 | T86: 0 | U86: 0 | V86: 0 | W86: 0 | X86: 0 | Y86: 0 | Z86: 0 | AA86: 0 | AB86: 0 | AC86: 0 | AD86: 0 | AE86: 0 | AF86: 0 | AG86: 0 | AH86: 0 | AI86: 0 | AJ86: 0 | AK86: 0 | AL86: 0 | AM86: 0 | AN86: 0 | AO86: 0 | AP86: 0 | AQ86: 0 | AR86: 0 | AS86: 0 | AT86: 0 | AU86: 0 | AV86: 0 | AW86: 0 | AX86: 0 | AY86: 0 | AZ86: 0 | BA86: 0 | BB86: 0 | BC86: 0 | BD86: 0 | BE86: 0 | BF86: 0 | BG86: 0 | BH86: 0 | BI86: 0 | BJ86: 0 | BK86: 0 | BL86: 0 | BM86: 0 | BN86: 0 | BO86: 0 | BP86: 0 | BQ86: 0 | BR86: 0 | BS86: 0 | BT86: 0 | BU86: 0 | BV86: =BV80 -> 0 | BW86: 0 | BX86: 0 | BY86: 0 | BZ86: 0 | CA86: 0 | CB86: 0 | CC86: 0 | CD86: 0 | CE86: 0 | CF86: 0 | CG86: 0 | CH86: 0 | CI86: 0 | CJ86: 0 | CK86: 0 | CL86: 0 | CM86: 0 | CN86: 0 | CO86: 0 | CP86: 0 | CQ86: 0 | CR86: 0 | CS86: 0 | CT86: 0 | CU86: 0 | CV86: 0 | CW86: 0 | CX86: 0 | CY86: 0 | CZ86: 0 | DA86: 0 | DB86: 0 | DC86: 0 | DD86: 0 | DE86: 0 | DF86: 0 | DG86: 0 | DH86: 0 | DI86: 0 | DJ86: 0 | DK86: 0 | DL86: 0 | DM86: 0 | DN86: 0 | DO86: 0 | DP86: 0 | DQ86: 0 | DR86: 0 | DS86: 0 | DT86: 0 | DU86: 0 | DV86: 0 | DW86: 0 | DX86: 0 | DY86: 0 | DZ86: 0 | EA86: 0 | EB86: 0 | EC86: 0 | ED86: 0 | EE86: 0 | EF86: 0 | EG86: 0 | EH86: =EH80 -> 0 | EI86: 0 | EJ86: 0 | EK86: 0 | EL86: 0 | EM86: 0 | EN86: 0 | EO86: 0 | EP86: 0 | EQ86: 0 | ER86: 0 | ES86: 0 | ET86: 0 | EU86: 0 | EV86: 0 | EW86: 0 | EX86: 0 | EY86: 0 | EZ86: 0 | FA86: 0 | FB86: 0 | FC86: 0 | FD86: 0 | FE86: 0 | FF86: 0 | FG86: 0 | FH86: 0 | FI86: 0 | FJ86: 0 | FK86: 0 | FL86: 0 | FM86: 0 | FN86: 0 | FO86: 0 | FP86: 0 | FQ86: 0 | FR86: 0 | FS86: 0 | FT86: 0 | FU86: 0 | FV86: 0 | FW86: 0 | FX86: 0 | FY86: 0 | FZ86: 0 | GA86: 0 | GB86: 0 | GC86: 0 | GD86: 0 | GE86: 0 | GF86: 0 | GG86: 0 | GH86: 0 | GI86: 0 | GJ86: 0 | GK86: 0 | GL86: 0 | GM86: 0 | GN86: 0 | GO86: 0 | GP86: 0 | GQ86: 0 | GR86: 0 | GS86: 0 | GT86: =GT80 -> 0 | GU86: 0 | GV86: 0 | GW86: 0 | GX86: 0 | GY86: 0 | GZ86: 0 | HA86: 0 | HB86: 0 | HC86: 0 | HD86: 0 | HE86: 0 | HF86: 0 | HG86: 0 | HH86: 0 | HI86: 0 | HJ86: 0 | HK86: 0 | HL86: 0 | HM86: 0 | HN86: 0 | HO86: 0 | HP86: 0 | HQ86: 0 | HR86: 0 | HS86: 0 | HT86: 0 | HU86: 0 | HV86: 0 | HW86: 0 | HX86: 0 | HY86: 0 | HZ86: 0 | IA86: 0 | IB86: 0 | IC86: 0 | ID86: 0 | IE86: 0 | IF86: 0 | IG86: 0 | IH86: 0 | II86: 0 | IJ86: 0 | IK86: 0 | IL86: 0 | IM86: 0 | IN86: 0 | IO86: 0 | IP86: 0 | IQ86: 0 | IR86: 0 | IS86: 0 | IT86: 0 | IU86: 0 | IV86: 0 | IW86: 0 | IX86: 0 | IY86: 0 | IZ86: 0 | JA86: 0 | JB86: 0 | JC86: 0 | JD86: 0 | JE86: 0 | JF86: =JF80 -> 0 | JG86: 0 | JH86: 0 | JI86: 0 | JJ86: 0 | JK86: 0 | JL86: 0 | JM86: 0 | JN86: 0 | JO86: 0 | JP86: 0 | JQ86: 0 | JR86: 0 | JS86: 0 | JT86: 0 | JU86: 0 | JV86: 0 | JW86: 0 | JX86: 0 | JY86: 0 | JZ86: 0 | KA86: 0 | KB86: 0 | KC86: 0 | KD86: 0 | KE86: 0 | KF86: 0 | KG86: 0 | KH86: 0 | KI86: 0 | KJ86: 0 | KK86: 0 | KL86: 0 | KM86: 0 | KN86: 0 | KO86: 0 | KP86: 0 | KQ86: 0 | KR86: 0 | KS86: 0 | KT86: 0 | KU86: 0 | KV86: 0 | KW86: 0 | KX86: 0 | KY86: 0 | KZ86: 0 | LA86: 0 | LB86: 0 | LC86: 0 | LD86: 0 | LE86: 0 | LF86: 0 | LG86: 0 | LH86: 0 | LI86: 0 | LJ86: 0 | LK86: 0 | LL86: 0 | LM86: 0 | LN86: 0 | LO86: 0 | LP86: 0 | LQ86: 0 | LR86: =LR80 -> 0 | LS86: 0 | LT86: 0 | LU86: 0 | LV86: 0 | LW86: 0 | LX86: 0 | LY86: 0 | LZ86: 0 | MA86: 0 | MB86: 0 | MC86: 0 | MD86: 0 | ME86: 0 | MF86: 0 | MG86: 0 | MH86: 0 | MI86: 0 | MJ86: 0 | MK86: 0 | ML86: 0 | MM86: 0 | MN86: 0 | MO86: 0 | MP86: 0 | MQ86: 0 | MR86: 0 | MS86: 0 | MT86: 0 | MU86: 0 | MV86: 0 | MW86: 0 | MX86: 0 | MY86: 0 | MZ86: 0 | NA86: 0 | NB86: 0 | NC86: 0 | ND86: 0 | NE86: 0 | NF86: 0 | NG86: 0 | NH86: 0 | NI86: 0 | NJ86: 0 | NK86: 0 | NL86: 0 | NM86: 0 | NN86: 0 | NO86: 0 | NP86: 0 | NQ86: 0 | NR86: 0 | NS86: 0 | NT86: 0 | NU86: 0 | NV86: 0 | NW86: 0 | NX86: 0 | NY86: 0 | NZ86: 0 | OA86: 0 | OB86: 0 | OC86: 0 | OD86: =OD80 -> 0 | OE86: 0 | OF86: 0 | OG86: 0 | OH86: 0 | OI86: 0 | OJ86: 0 | OK86: 0 | OL86: 0 | OM86: 0 | ON86: 0 | OO86: 0 | OP86: 0 | OQ86: 0 | OR86: 0 | OS86: 0 | OT86: 0 | OU86: 0 | OV86: 0 | OW86: 0 | OX86: 0 | OY86: 0 | OZ86: 0 | PA86: 0 | PB86: 0 | PC86: 0 | PD86: 0 | PE86: 0 | PF86: 0 | PG86: 0 | PH86: 0 | PI86: 0 | PJ86: 0 | PK86: 0 | PL86: 0 | PM86: 0 | PN86: 0 | PO86: 0 | PP86: 0 | PQ86: 0 | PR86: 0 | PS86: 0 | PT86: 0 | PU86: 0 | PV86: 0 | PW86: 0 | PX86: 0 | PY86: 0 | PZ86: 0 | QA86: 0 | QB86: 0 | QC86: 0 | QD86: 0 | QE86: 0 | QF86: 0 | QG86: 0 | QH86: 0 | QI86: 0 | QJ86: 0 | QK86: 0 | QL86: 0 | QM86: 0 | QN86: 0 | QO86: 0 | QP86: =QP80 -> 0 | QQ86: 0 | QR86: 0 | QS86: 0 | QT86: 0 | QU86: 0 | QV86: 0 | QW86: 0 | QX86: 0 | QY86: 0 | QZ86: 0 | RA86: 0 | RB86: 0 | RC86: 0 | RD86: 0 | RE86: 0 | RF86: 0 | RG86: 0 | RH86: 0 | RI86: 0 | RJ86: 0 | RK86: 0 | RL86: 0 | RM86: 0 | RN86: 0 | RO86: 0 | RP86: 0 | RQ86: 0 | RR86: 0 | RS86: 0 | RT86: 0 | RU86: 0 | RV86: 0 | RW86: 0 | RX86: 0 | RY86: 0 | RZ86: 0 | SA86: 0 | SB86: 0 | SC86: 0 | SD86: 0 | SE86: 0 | SF86: 0 | SG86: 0 | SH86: 0 | SI86: 0 | SJ86: 0 | SK86: 0 | SL86: 0 | SM86: 0 | SN86: 0 | SO86: 0 | SP86: 0 | SQ86: 0 | SR86: 0 | SS86: 0 | ST86: 0 | SU86: 0 | SV86: 0 | SW86: 0 | SX86: 0 | SY86: 0 | SZ86: 0 | TA86: 0 | TB86: =TB80 -> 0 | TC86: 0 | TD86: 0 | TE86: 0 | TF86: 0 | TG86: 0 | TH86: 0 | TI86: 0 | TJ86: 0 | TK86: 0 | TL86: 0 | TM86: 0 | TN86: 0 | TO86: 0 | TP86: 0 | TQ86: 0 | TR86: 0 | TS86: 0 | TT86: 0 | TU86: 0 | TV86: 0 | TW86: 0 | TX86: 0 | TY86: 0 | TZ86: 0 | UA86: 0 | UB86: 0 | UC86: 0 | UD86: 0 | UE86: 0 | UF86: 0 | UG86: 0 | UH86: 0 | UI86: 0 | UJ86: 0 | UK86: 0 | UL86: 0 | UM86: 0 | UN86: 0 | UO86: 0 | UP86: 0 | UQ86: 0 | UR86: 0 | US86: 0 | UT86: 0 | UU86: 0 | UV86: 0 | UW86: 0 | UX86: 0 | UY86: 0 | UZ86: 0 | VA86: 0 | VB86: 0 | VC86: 0 | VD86: 0 | VE86: 0 | VF86: 0 | VG86: 0 | VH86: 0 | VI86: 0 | VJ86: 0 | VK86: 0 | VL86: 0 | VM86: 0 | VN86: =VN80 -> 0 | VO86: 0 | VP86: 0 | VQ86: 0 | VR86: 0 | VS86: 0 | VT86: 0 | VU86: 0 | VV86: 0 | VW86: 0 | VX86: 0 | VY86: 0 | VZ86: 0 | WA86: 0 | WB86: 0 | WC86: 0 | WD86: 0 | WE86: 0 | WF86: 0 | WG86: 0 | WH86: 0 | WI86: 0 | WJ86: 0 | WK86: 0 | WL86: 0 | WM86: 0 | WN86: 0 | WO86: 0 | WP86: 0 | WQ86: 0 | WR86: 0 | WS86: 0 | WT86: 0 | WU86: 0 | WV86: 0 | WW86: 0 | WX86: 0 | WY86: 0 | WZ86: 0 | XA86: 0 | XB86: 0 | XC86: 0 | XD86: 0 | XE86: 0 | XF86: 0 | XG86: 0 | XH86: 0 | XI86: 0 | XJ86: 0 | XK86: 0 | XL86: 0 | XM86: 0 | XN86: 0 | XO86: 0 | XP86: 0 | XQ86: 0 | XR86: 0 | XS86: 0 | XT86: 0 | XU86: 0 | XV86: 0 | XW86: 0 | XX86: 0 | XY86: 0 | XZ86: =XZ80 -> 0 | YA86: 0 | YB86: 0 | YC86: 0 | YD86: 0 | YE86: 0 | YF86: 0 | YG86: 0 | YH86: 0 | YI86: 0 | YJ86: 0 | YK86: 0 | YL86: 0 | YM86: 0 | YN86: 0 | YO86: 0 | YP86: 0 | YQ86: 0 | YR86: 0 | YS86: 0 | YT86: 0 | YU86: 0 | YV86: 0 | YW86: 0 | YX86: 0 | YY86: 0 | YZ86: 0 | ZA86: 0 | ZB86: 0 | ZC86: 0 | ZD86: 0 | ZE86: 0 | ZF86: 0 | ZG86: 0 | ZH86: 0 | ZI86: 0 | ZJ86: 0 | ZK86: 0 | ZL86: 0 | ZM86: 0 | ZN86: 0 | ZO86: 0 | ZP86: 0 | ZQ86: 0 | ZR86: 0 | ZS86: 0 | ZT86: 0 | ZU86: 0 | ZV86: 0 | ZW86: 0 | ZX86: 0 | ZY86: 0 | ZZ86: 0 | AAA86: 0 | AAB86: 0 | AAC86: 0 | AAD86: 0 | AAE86: 0 | AAF86: 0 | AAG86: 0 | AAH86: 0 | AAI86: 0 | AAJ86: 0 | AAK86: 0 | AAL86: =AAL80 -> 0 | AAM86: 0 | AAN86: 0 | AAO86: 0 | AAP86: 0 | AAQ86: 0 | AAR86: 0 | AAS86: 0 | AAT86: 0 | AAU86: 0 | AAV86: 0 | AAW86: 0 | AAX86: 0 | AAY86: 0 | AAZ86: 0 | ABA86: 0 | ABB86: 0 | ABC86: 0 | ABD86: 0 | ABE86: 0 | ABF86: 0 | ABG86: 0 | ABH86: 0 | ABI86: 0 | ABJ86: 0 | ABK86: 0 | ABL86: 0 | ABM86: 0 | ABN86: 0 | ABO86: 0 | ABP86: 0 | ABQ86: 0 | ABR86: 0 | ABS86: 0 | ABT86: 0 | ABU86: 0 | ABV86: 0 | ABW86: 0 | ABX86: 0 | ABY86: 0 | ABZ86: 0 | ACA86: 0 | ACB86: 0 | ACC86: 0 | ACD86: 0 | ACE86: 0 | ACF86: 0 | ACG86: 0 | ACH86: 0 | ACI86: 0 | ACJ86: 0 | ACK86: 0 | ACL86: 0 | ACM86: 0 | ACN86: 0 | ACO86: 0 | ACP86: 0 | ACQ86: 0 | ACR86: 0 | ACS86: 0 | ACT86: 0 | ACU86: 0 | ACV86: 0 | ACW86: 0 | ACX86: =ACX80 -> 0 | ACY86: 0 | ACZ86: 0 | ADA86: 0 | ADB86: 0 | ADC86: 0 | ADD86: 0 | ADE86: 0 | ADF86: 0 | ADG86: 0 | ADH86: 0 | ADI86: 0 | ADJ86: 0 | ADK86: 0 | ADL86: 0 | ADM86: 0 | ADN86: 0 | ADO86: 0 | ADP86: 0 | ADQ86: 0 | ADR86: 0 | ADS86: 0 | ADT86: 0 | ADU86: 0 | ADV86: 0 | ADW86: 0 | ADX86: 0 | ADY86: 0 | ADZ86: 0 | AEA86: 0 | AEB86: 0 | AEC86: 0 | AED86: 0 | AEE86: 0 | AEF86: 0 | AEG86: 0 | AEH86: 0 | AEI86: 0 | AEJ86: 0 | AEK86: 0 | AEL86: 0 | AEM86: 0 | AEN86: 0 | AEO86: 0 | AEP86: 0 | AEQ86: 0 | AER86: 0 | AES86: 0 | AET86: 0 | AEU86: 0 | AEV86: 0 | AEW86: 0 | AEX86: 0 | AEY86: 0 | AEZ86: 0 | AFA86: 0 | AFB86: 0 | AFC86: 0 | AFD86: 0 | AFE86: 0 | AFF86: 0 | AFG86: 0 | AFH86: 0 | AFI86: 0 | AFJ86: =AFJ80 -> 0 | AFK86: 0 | AFL86: 0 | AFM86: 0 | AFN86: 0 | AFO86: 0 | AFP86: 0 | AFQ86: 0 | AFR86: 0 | AFS86: 0 | AFT86: 0 | AFU86: 0 | AFV86: 0 | AFW86: 0 | AFX86: 0 | AFY86: 0 | AFZ86: 0 | AGA86: 0 | AGB86: 0 | AGC86: 0 | AGD86: 0 | AGE86: 0 | AGF86: 0 | AGG86: 0 | AGH86: 0 | AGI86: 0 | AGJ86: 0 | AGK86: 0
C87: Less: Transferred to Plant (last month of Construction) | E87: Currency | I87: =(I84+I86+I85)*I81 -> 1000 | J87: 0 | K87: 0 | L87: 0 | M87: 0 | N87: 0 | O87: 0 | P87: 0 | Q87: 0 | R87: 0 | S87: 0 | T87: 0 | U87: 0 | V87: 0 | W87: 0 | X87: 0 | Y87: 0 | Z87: 0 | AA87: 0 | AB87: 0 | AC87: 0 | AD87: 0 | AE87: 0 | AF87: 0 | AG87: 0 | AH87: 0 | AI87: 0 | AJ87: 0 | AK87: 0 | AL87: 0 | AM87: 0 | AN87: 0 | AO87: 0 | AP87: 0 | AQ87: 0 | AR87: 0 | AS87: 0 | AT87: 0 | AU87: 0 | AV87: 0 | AW87: 0 | AX87: 0 | AY87: 0 | AZ87: 0 | BA87: 0 | BB87: 0 | BC87: 0 | BD87: 0 | BE87: 0 | BF87: 0 | BG87: 0 | BH87: 0 | BI87: 0 | BJ87: 0 | BK87: 0 | BL87: 0 | BM87: 0 | BN87: 0 | BO87: 0 | BP87: 0 | BQ87: 0 | BR87: 0 | BS87: 0 | BT87: 0 | BU87: =(BU84+BU86+BU85)*BU81 -> 0 | BV87: 0 | BW87: 0 | BX87: 0 | BY87: 0 | BZ87: 0 | CA87: 0 | CB87: 0 | CC87: 0 | CD87: 0 | CE87: 0 | CF87: 0 | CG87: 0 | CH87: 0 | CI87: 0 | CJ87: 0 | CK87: 0 | CL87: 0 | CM87: 0 | CN87: 0 | CO87: 0 | CP87: 0 | CQ87: 0 | CR87: 0 | CS87: 0 | CT87: 0 | CU87: 0 | CV87: 0 | CW87: 0 | CX87: 0 | CY87: 0 | CZ87: 0 | DA87: 0 | DB87: 0 | DC87: 0 | DD87: 0 | DE87: 0 | DF87: 0 | DG87: 0 | DH87: 0 | DI87: 0 | DJ87: 0 | DK87: 0 | DL87: 0 | DM87: 0 | DN87: 0 | DO87: 0 | DP87: 0 | DQ87: 0 | DR87: 0 | DS87: 0 | DT87: 0 | DU87: 0 | DV87: 0 | DW87: 0 | DX87: 0 | DY87: 0 | DZ87: 0 | EA87: 0 | EB87: 0 | EC87: 0 | ED87: 0 | EE87: 0 | EF87: 0 | EG87: =(EG84+EG86+EG85)*EG81 -> 0 | EH87: 0 | EI87: 0 | EJ87: 0 | EK87: 0 | EL87: 0 | EM87: 0 | EN87: 0 | EO87: 0 | EP87: 0 | EQ87: 0 | ER87: 0 | ES87: 0 | ET87: 0 | EU87: 0 | EV87: 0 | EW87: 0 | EX87: 0 | EY87: 0 | EZ87: 0 | FA87: 0 | FB87: 0 | FC87: 0 | FD87: 0 | FE87: 0 | FF87: 0 | FG87: 0 | FH87: 0 | FI87: 0 | FJ87: 0 | FK87: 0 | FL87: 0 | FM87: 0 | FN87: 0 | FO87: 0 | FP87: 0 | FQ87: 0 | FR87: 0 | FS87: 0 | FT87: 0 | FU87: 0 | FV87: 0 | FW87: 0 | FX87: 0 | FY87: 0 | FZ87: 0 | GA87: 0 | GB87: 0 | GC87: 0 | GD87: 0 | GE87: 0 | GF87: 0 | GG87: 0 | GH87: 0 | GI87: 0 | GJ87: 0 | GK87: 0 | GL87: 0 | GM87: 0 | GN87: 0 | GO87: 0 | GP87: 0 | GQ87: 0 | GR87: 0 | GS87: =(GS84+GS86+GS85)*GS81 -> 0 | GT87: 0 | GU87: 0 | GV87: 0 | GW87: 0 | GX87: 0 | GY87: 0 | GZ87: 0 | HA87: 0 | HB87: 0 | HC87: 0 | HD87: 0 | HE87: 0 | HF87: 0 | HG87: 0 | HH87: 0 | HI87: 0 | HJ87: 0 | HK87: 0 | HL87: 0 | HM87: 0 | HN87: 0 | HO87: 0 | HP87: 0 | HQ87: 0 | HR87: 0 | HS87: 0 | HT87: 0 | HU87: 0 | HV87: 0 | HW87: 0 | HX87: 0 | HY87: 0 | HZ87: 0 | IA87: 0 | IB87: 0 | IC87: 0 | ID87: 0 | IE87: 0 | IF87: 0 | IG87: 0 | IH87: 0 | II87: 0 | IJ87: 0 | IK87: 0 | IL87: 0 | IM87: 0 | IN87: 0 | IO87: 0 | IP87: 0 | IQ87: 0 | IR87: 0 | IS87: 0 | IT87: 0 | IU87: 0 | IV87: 0 | IW87: 0 | IX87: 0 | IY87: 0 | IZ87: 0 | JA87: 0 | JB87: 0 | JC87: 0 | JD87: 0 | JE87: =(JE84+JE86+JE85)*JE81 -> 0 | JF87: 0 | JG87: 0 | JH87: 0 | JI87: 0 | JJ87: 0 | JK87: 0 | JL87: 0 | JM87: 0 | JN87: 0 | JO87: 0 | JP87: 0 | JQ87: 0 | JR87: 0 | JS87: 0 | JT87: 0 | JU87: 0 | JV87: 0 | JW87: 0 | JX87: 0 | JY87: 0 | JZ87: 0 | KA87: 0 | KB87: 0 | KC87: 0 | KD87: 0 | KE87: 0 | KF87: 0 | KG87: 0 | KH87: 0 | KI87: 0 | KJ87: 0 | KK87: 0 | KL87: 0 | KM87: 0 | KN87: 0 | KO87: 0 | KP87: 0 | KQ87: 0 | KR87: 0 | KS87: 0 | KT87: 0 | KU87: 0 | KV87: 0 | KW87: 0 | KX87: 0 | KY87: 0 | KZ87: 0 | LA87: 0 | LB87: 0 | LC87: 0 | LD87: 0 | LE87: 0 | LF87: 0 | LG87: 0 | LH87: 0 | LI87: 0 | LJ87: 0 | LK87: 0 | LL87: 0 | LM87: 0 | LN87: 0 | LO87: 0 | LP87: 0 | LQ87: =(LQ84+LQ86+LQ85)*LQ81 -> 0 | LR87: 0 | LS87: 0 | LT87: 0 | LU87: 0 | LV87: 0 | LW87: 0 | LX87: 0 | LY87: 0 | LZ87: 0 | MA87: 0 | MB87: 0 | MC87: 0 | MD87: 0 | ME87: 0 | MF87: 0 | MG87: 0 | MH87: 0 | MI87: 0 | MJ87: 0 | MK87: 0 | ML87: 0 | MM87: 0 | MN87: 0 | MO87: 0 | MP87: 0 | MQ87: 0 | MR87: 0 | MS87: 0 | MT87: 0 | MU87: 0 | MV87: 0 | MW87: 0 | MX87: 0 | MY87: 0 | MZ87: 0 | NA87: 0 | NB87: 0 | NC87: 0 | ND87: 0 | NE87: 0 | NF87: 0 | NG87: 0 | NH87: 0 | NI87: 0 | NJ87: 0 | NK87: 0 | NL87: 0 | NM87: 0 | NN87: 0 | NO87: 0 | NP87: 0 | NQ87: 0 | NR87: 0 | NS87: 0 | NT87: 0 | NU87: 0 | NV87: 0 | NW87: 0 | NX87: 0 | NY87: 0 | NZ87: 0 | OA87: 0 | OB87: 0 | OC87: =(OC84+OC86+OC85)*OC81 -> 0 | OD87: 0 | OE87: 0 | OF87: 0 | OG87: 0 | OH87: 0 | OI87: 0 | OJ87: 0 | OK87: 0 | OL87: 0 | OM87: 0 | ON87: 0 | OO87: 0 | OP87: 0 | OQ87: 0 | OR87: 0 | OS87: 0 | OT87: 0 | OU87: 0 | OV87: 0 | OW87: 0 | OX87: 0 | OY87: 0 | OZ87: 0 | PA87: 0 | PB87: 0 | PC87: 0 | PD87: 0 | PE87: 0 | PF87: 0 | PG87: 0 | PH87: 0 | PI87: 0 | PJ87: 0 | PK87: 0 | PL87: 0 | PM87: 0 | PN87: 0 | PO87: 0 | PP87: 0 | PQ87: 0 | PR87: 0 | PS87: 0 | PT87: 0 | PU87: 0 | PV87: 0 | PW87: 0 | PX87: 0 | PY87: 0 | PZ87: 0 | QA87: 0 | QB87: 0 | QC87: 0 | QD87: 0 | QE87: 0 | QF87: 0 | QG87: 0 | QH87: 0 | QI87: 0 | QJ87: 0 | QK87: 0 | QL87: 0 | QM87: 0 | QN87: 0 | QO87: =(QO84+QO86+QO85)*QO81 -> 0 | QP87: 0 | QQ87: 0 | QR87: 0 | QS87: 0 | QT87: 0 | QU87: 0 | QV87: 0 | QW87: 0 | QX87: 0 | QY87: 0 | QZ87: 0 | RA87: 0 | RB87: 0 | RC87: 0 | RD87: 0 | RE87: 0 | RF87: 0 | RG87: 0 | RH87: 0 | RI87: 0 | RJ87: 0 | RK87: 0 | RL87: 0 | RM87: 0 | RN87: 0 | RO87: 0 | RP87: 0 | RQ87: 0 | RR87: 0 | RS87: 0 | RT87: 0 | RU87: 0 | RV87: 0 | RW87: 0 | RX87: 0 | RY87: 0 | RZ87: 0 | SA87: 0 | SB87: 0 | SC87: 0 | SD87: 0 | SE87: 0 | SF87: 0 | SG87: 0 | SH87: 0 | SI87: 0 | SJ87: 0 | SK87: 0 | SL87: 0 | SM87: 0 | SN87: 0 | SO87: 0 | SP87: 0 | SQ87: 0 | SR87: 0 | SS87: 0 | ST87: 0 | SU87: 0 | SV87: 0 | SW87: 0 | SX87: 0 | SY87: 0 | SZ87: 0 | TA87: =(TA84+TA86+TA85)*TA81 -> 0 | TB87: 0 | TC87: 0 | TD87: 0 | TE87: 0 | TF87: 0 | TG87: 0 | TH87: 0 | TI87: 0 | TJ87: 0 | TK87: 0 | TL87: 0 | TM87: 0 | TN87: 0 | TO87: 0 | TP87: 0 | TQ87: 0 | TR87: 0 | TS87: 0 | TT87: 0 | TU87: 0 | TV87: 0 | TW87: 0 | TX87: 0 | TY87: 0 | TZ87: 0 | UA87: 0 | UB87: 0 | UC87: 0 | UD87: 0 | UE87: 0 | UF87: 0 | UG87: 0 | UH87: 0 | UI87: 0 | UJ87: 0 | UK87: 0 | UL87: 0 | UM87: 0 | UN87: 0 | UO87: 0 | UP87: 0 | UQ87: 0 | UR87: 0 | US87: 0 | UT87: 0 | UU87: 0 | UV87: 0 | UW87: 0 | UX87: 0 | UY87: 0 | UZ87: 0 | VA87: 0 | VB87: 0 | VC87: 0 | VD87: 0 | VE87: 0 | VF87: 0 | VG87: 0 | VH87: 0 | VI87: 0 | VJ87: 0 | VK87: 0 | VL87: 0 | VM87: =(VM84+VM86+VM85)*VM81 -> 0 | VN87: 0 | VO87: 0 | VP87: 0 | VQ87: 0 | VR87: 0 | VS87: 0 | VT87: 0 | VU87: 0 | VV87: 0 | VW87: 0 | VX87: 0 | VY87: 0 | VZ87: 0 | WA87: 0 | WB87: 0 | WC87: 0 | WD87: 0 | WE87: 0 | WF87: 0 | WG87: 0 | WH87: 0 | WI87: 0 | WJ87: 0 | WK87: 0 | WL87: 0 | WM87: 0 | WN87: 0 | WO87: 0 | WP87: 0 | WQ87: 0 | WR87: 0 | WS87: 0 | WT87: 0 | WU87: 0 | WV87: 0 | WW87: 0 | WX87: 0 | WY87: 0 | WZ87: 0 | XA87: 0 | XB87: 0 | XC87: 0 | XD87: 0 | XE87: 0 | XF87: 0 | XG87: 0 | XH87: 0 | XI87: 0 | XJ87: 0 | XK87: 0 | XL87: 0 | XM87: 0 | XN87: 0 | XO87: 0 | XP87: 0 | XQ87: 0 | XR87: 0 | XS87: 0 | XT87: 0 | XU87: 0 | XV87: 0 | XW87: 0 | XX87: 0 | XY87: =(XY84+XY86+XY85)*XY81 -> 0 | XZ87: 0 | YA87: 0 | YB87: 0 | YC87: 0 | YD87: 0 | YE87: 0 | YF87: 0 | YG87: 0 | YH87: 0 | YI87: 0 | YJ87: 0 | YK87: 0 | YL87: 0 | YM87: 0 | YN87: 0 | YO87: 0 | YP87: 0 | YQ87: 0 | YR87: 0 | YS87: 0 | YT87: 0 | YU87: 0 | YV87: 0 | YW87: 0 | YX87: 0 | YY87: 0 | YZ87: 0 | ZA87: 0 | ZB87: 0 | ZC87: 0 | ZD87: 0 | ZE87: 0 | ZF87: 0 | ZG87: 0 | ZH87: 0 | ZI87: 0 | ZJ87: 0 | ZK87: 0 | ZL87: 0 | ZM87: 0 | ZN87: 0 | ZO87: 0 | ZP87: 0 | ZQ87: 0 | ZR87: 0 | ZS87: 0 | ZT87: 0 | ZU87: 0 | ZV87: 0 | ZW87: 0 | ZX87: 0 | ZY87: 0 | ZZ87: 0 | AAA87: 0 | AAB87: 0 | AAC87: 0 | AAD87: 0 | AAE87: 0 | AAF87: 0 | AAG87: 0 | AAH87: 0 | AAI87: 0 | AAJ87: 0 | AAK87: =(AAK84+AAK86+AAK85)*AAK81 -> 0 | AAL87: 0 | AAM87: 0 | AAN87: 0 | AAO87: 0 | AAP87: 0 | AAQ87: 0 | AAR87: 0 | AAS87: 0 | AAT87: 0 | AAU87: 0 | AAV87: 0 | AAW87: 0 | AAX87: 0 | AAY87: 0 | AAZ87: 0 | ABA87: 0 | ABB87: 0 | ABC87: 0 | ABD87: 0 | ABE87: 0 | ABF87: 0 | ABG87: 0 | ABH87: 0 | ABI87: 0 | ABJ87: 0 | ABK87: 0 | ABL87: 0 | ABM87: 0 | ABN87: 0 | ABO87: 0 | ABP87: 0 | ABQ87: 0 | ABR87: 0 | ABS87: 0 | ABT87: 0 | ABU87: 0 | ABV87: 0 | ABW87: 0 | ABX87: 0 | ABY87: 0 | ABZ87: 0 | ACA87: 0 | ACB87: 0 | ACC87: 0 | ACD87: 0 | ACE87: 0 | ACF87: 0 | ACG87: 0 | ACH87: 0 | ACI87: 0 | ACJ87: 0 | ACK87: 0 | ACL87: 0 | ACM87: 0 | ACN87: 0 | ACO87: 0 | ACP87: 0 | ACQ87: 0 | ACR87: 0 | ACS87: 0 | ACT87: 0 | ACU87: 0 | ACV87: 0 | ACW87: =(ACW84+ACW86+ACW85)*ACW81 -> 0 | ACX87: 0 | ACY87: 0 | ACZ87: 0 | ADA87: 0 | ADB87: 0 | ADC87: 0 | ADD87: 0 | ADE87: 0 | ADF87: 0 | ADG87: 0 | ADH87: 0 | ADI87: 0 | ADJ87: 0 | ADK87: 0 | ADL87: 0 | ADM87: 0 | ADN87: 0 | ADO87: 0 | ADP87: 0 | ADQ87: 0 | ADR87: 0 | ADS87: 0 | ADT87: 0 | ADU87: 0 | ADV87: 0 | ADW87: 0 | ADX87: 0 | ADY87: 0 | ADZ87: 0 | AEA87: 0 | AEB87: 0 | AEC87: 0 | AED87: 0 | AEE87: 0 | AEF87: 0 | AEG87: 0 | AEH87: 0 | AEI87: 0 | AEJ87: 0 | AEK87: 0 | AEL87: 0 | AEM87: 0 | AEN87: 0 | AEO87: 0 | AEP87: 0 | AEQ87: 0 | AER87: 0 | AES87: 0 | AET87: 0 | AEU87: 0 | AEV87: 0 | AEW87: 0 | AEX87: 0 | AEY87: 0 | AEZ87: 0 | AFA87: 0 | AFB87: 0 | AFC87: 0 | AFD87: 0 | AFE87: 0 | AFF87: 0 | AFG87: 0 | AFH87: 0 | AFI87: =(AFI84+AFI86+AFI85)*AFI81 -> 0 | AFJ87: 0 | AFK87: 0 | AFL87: 0 | AFM87: 0 | AFN87: 0 | AFO87: 0 | AFP87: 0 | AFQ87: 0 | AFR87: 0 | AFS87: 0 | AFT87: 0 | AFU87: 0 | AFV87: 0 | AFW87: 0 | AFX87: 0 | AFY87: 0 | AFZ87: 0 | AGA87: 0 | AGB87: 0 | AGC87: 0 | AGD87: 0 | AGE87: 0 | AGF87: 0 | AGG87: 0 | AGH87: 0 | AGI87: 0 | AGJ87: 0 | AGK87: 0
C88: Closing Balance | E88: Currency | I88: =I84+I86+I85-I87 -> 0 | J88: 0 | K88: 0 | L88: 0 | M88: 0 | N88: 0 | O88: 0 | P88: 0 | Q88: 0 | R88: 0 | S88: 0 | T88: 0 | U88: 0 | V88: 0 | W88: 0 | X88: 0 | Y88: 0 | Z88: 0 | AA88: 0 | AB88: 0 | AC88: 0 | AD88: 0 | AE88: 0 | AF88: 0 | AG88: 0 | AH88: 0 | AI88: 0 | AJ88: 0 | AK88: 0 | AL88: 0 | AM88: 0 | AN88: 0 | AO88: 0 | AP88: 0 | AQ88: 0 | AR88: 0 | AS88: 0 | AT88: 0 | AU88: 0 | AV88: 0 | AW88: 0 | AX88: 0 | AY88: 0 | AZ88: 0 | BA88: 0 | BB88: 0 | BC88: 0 | BD88: 0 | BE88: 0 | BF88: 0 | BG88: 0 | BH88: 0 | BI88: 0 | BJ88: 0 | BK88: 0 | BL88: 0 | BM88: 0 | BN88: 0 | BO88: 0 | BP88: 0 | BQ88: 0 | BR88: 0 | BS88: 0 | BT88: 0 | BU88: =BU84+BU86+BU85-BU87 -> 0 | BV88: 0 | BW88: 0 | BX88: 0 | BY88: 0 | BZ88: 0 | CA88: 0 | CB88: 0 | CC88: 0 | CD88: 0 | CE88: 0 | CF88: 0 | CG88: 0 | CH88: 0 | CI88: 0 | CJ88: 0 | CK88: 0 | CL88: 0 | CM88: 0 | CN88: 0 | CO88: 0 | CP88: 0 | CQ88: 0 | CR88: 0 | CS88: 0 | CT88: 0 | CU88: 0 | CV88: 0 | CW88: 0 | CX88: 0 | CY88: 0 | CZ88: 0 | DA88: 0 | DB88: 0 | DC88: 0 | DD88: 0 | DE88: 0 | DF88: 0 | DG88: 0 | DH88: 0 | DI88: 0 | DJ88: 0 | DK88: 0 | DL88: 0 | DM88: 0 | DN88: 0 | DO88: 0 | DP88: 0 | DQ88: 0 | DR88: 0 | DS88: 0 | DT88: 0 | DU88: 0 | DV88: 0 | DW88: 0 | DX88: 0 | DY88: 0 | DZ88: 0 | EA88: 0 | EB88: 0 | EC88: 0 | ED88: 0 | EE88: 0 | EF88: 0 | EG88: =EG84+EG86+EG85-EG87 -> 0 | EH88: 0 | EI88: 0 | EJ88: 0 | EK88: 0 | EL88: 0 | EM88: 0 | EN88: 0 | EO88: 0 | EP88: 0 | EQ88: 0 | ER88: 0 | ES88: 0 | ET88: 0 | EU88: 0 | EV88: 0 | EW88: 0 | EX88: 0 | EY88: 0 | EZ88: 0 | FA88: 0 | FB88: 0 | FC88: 0 | FD88: 0 | FE88: 0 | FF88: 0 | FG88: 0 | FH88: 0 | FI88: 0 | FJ88: 0 | FK88: 0 | FL88: 0 | FM88: 0 | FN88: 0 | FO88: 0 | FP88: 0 | FQ88: 0 | FR88: 0 | FS88: 0 | FT88: 0 | FU88: 0 | FV88: 0 | FW88: 0 | FX88: 0 | FY88: 0 | FZ88: 0 | GA88: 0 | GB88: 0 | GC88: 0 | GD88: 0 | GE88: 0 | GF88: 0 | GG88: 0 | GH88: 0 | GI88: 0 | GJ88: 0 | GK88: 0 | GL88: 0 | GM88: 0 | GN88: 0 | GO88: 0 | GP88: 0 | GQ88: 0 | GR88: 0 | GS88: =GS84+GS86+GS85-GS87 -> 0 | GT88: 0 | GU88: 0 | GV88: 0 | GW88: 0 | GX88: 0 | GY88: 0 | GZ88: 0 | HA88: 0 | HB88: 0 | HC88: 0 | HD88: 0 | HE88: 0 | HF88: 0 | HG88: 0 | HH88: 0 | HI88: 0 | HJ88: 0 | HK88: 0 | HL88: 0 | HM88: 0 | HN88: 0 | HO88: 0 | HP88: 0 | HQ88: 0 | HR88: 0 | HS88: 0 | HT88: 0 | HU88: 0 | HV88: 0 | HW88: 0 | HX88: 0 | HY88: 0 | HZ88: 0 | IA88: 0 | IB88: 0 | IC88: 0 | ID88: 0 | IE88: 0 | IF88: 0 | IG88: 0 | IH88: 0 | II88: 0 | IJ88: 0 | IK88: 0 | IL88: 0 | IM88: 0 | IN88: 0 | IO88: 0 | IP88: 0 | IQ88: 0 | IR88: 0 | IS88: 0 | IT88: 0 | IU88: 0 | IV88: 0 | IW88: 0 | IX88: 0 | IY88: 0 | IZ88: 0 | JA88: 0 | JB88: 0 | JC88: 0 | JD88: 0 | JE88: =JE84+JE86+JE85-JE87 -> 0 | JF88: 0 | JG88: 0 | JH88: 0 | JI88: 0 | JJ88: 0 | JK88: 0 | JL88: 0 | JM88: 0 | JN88: 0 | JO88: 0 | JP88: 0 | JQ88: 0 | JR88: 0 | JS88: 0 | JT88: 0 | JU88: 0 | JV88: 0 | JW88: 0 | JX88: 0 | JY88: 0 | JZ88: 0 | KA88: 0 | KB88: 0 | KC88: 0 | KD88: 0 | KE88: 0 | KF88: 0 | KG88: 0 | KH88: 0 | KI88: 0 | KJ88: 0 | KK88: 0 | KL88: 0 | KM88: 0 | KN88: 0 | KO88: 0 | KP88: 0 | KQ88: 0 | KR88: 0 | KS88: 0 | KT88: 0 | KU88: 0 | KV88: 0 | KW88: 0 | KX88: 0 | KY88: 0 | KZ88: 0 | LA88: 0 | LB88: 0 | LC88: 0 | LD88: 0 | LE88: 0 | LF88: 0 | LG88: 0 | LH88: 0 | LI88: 0 | LJ88: 0 | LK88: 0 | LL88: 0 | LM88: 0 | LN88: 0 | LO88: 0 | LP88: 0 | LQ88: =LQ84+LQ86+LQ85-LQ87 -> 0 | LR88: 0 | LS88: 0 | LT88: 0 | LU88: 0 | LV88: 0 | LW88: 0 | LX88: 0 | LY88: 0 | LZ88: 0 | MA88: 0 | MB88: 0 | MC88: 0 | MD88: 0 | ME88: 0 | MF88: 0 | MG88: 0 | MH88: 0 | MI88: 0 | MJ88: 0 | MK88: 0 | ML88: 0 | MM88: 0 | MN88: 0 | MO88: 0 | MP88: 0 | MQ88: 0 | MR88: 0 | MS88: 0 | MT88: 0 | MU88: 0 | MV88: 0 | MW88: 0 | MX88: 0 | MY88: 0 | MZ88: 0 | NA88: 0 | NB88: 0 | NC88: 0 | ND88: 0 | NE88: 0 | NF88: 0 | NG88: 0 | NH88: 0 | NI88: 0 | NJ88: 0 | NK88: 0 | NL88: 0 | NM88: 0 | NN88: 0 | NO88: 0 | NP88: 0 | NQ88: 0 | NR88: 0 | NS88: 0 | NT88: 0 | NU88: 0 | NV88: 0 | NW88: 0 | NX88: 0 | NY88: 0 | NZ88: 0 | OA88: 0 | OB88: 0 | OC88: =OC84+OC86+OC85-OC87 -> 0 | OD88: 0 | OE88: 0 | OF88: 0 | OG88: 0 | OH88: 0 | OI88: 0 | OJ88: 0 | OK88: 0 | OL88: 0 | OM88: 0 | ON88: 0 | OO88: 0 | OP88: 0 | OQ88: 0 | OR88: 0 | OS88: 0 | OT88: 0 | OU88: 0 | OV88: 0 | OW88: 0 | OX88: 0 | OY88: 0 | OZ88: 0 | PA88: 0 | PB88: 0 | PC88: 0 | PD88: 0 | PE88: 0 | PF88: 0 | PG88: 0 | PH88: 0 | PI88: 0 | PJ88: 0 | PK88: 0 | PL88: 0 | PM88: 0 | PN88: 0 | PO88: 0 | PP88: 0 | PQ88: 0 | PR88: 0 | PS88: 0 | PT88: 0 | PU88: 0 | PV88: 0 | PW88: 0 | PX88: 0 | PY88: 0 | PZ88: 0 | QA88: 0 | QB88: 0 | QC88: 0 | QD88: 0 | QE88: 0 | QF88: 0 | QG88: 0 | QH88: 0 | QI88: 0 | QJ88: 0 | QK88: 0 | QL88: 0 | QM88: 0 | QN88: 0 | QO88: =QO84+QO86+QO85-QO87 -> 0 | QP88: 0 | QQ88: 0 | QR88: 0 | QS88: 0 | QT88: 0 | QU88: 0 | QV88: 0 | QW88: 0 | QX88: 0 | QY88: 0 | QZ88: 0 | RA88: 0 | RB88: 0 | RC88: 0 | RD88: 0 | RE88: 0 | RF88: 0 | RG88: 0 | RH88: 0 | RI88: 0 | RJ88: 0 | RK88: 0 | RL88: 0 | RM88: 0 | RN88: 0 | RO88: 0 | RP88: 0 | RQ88: 0 | RR88: 0 | RS88: 0 | RT88: 0 | RU88: 0 | RV88: 0 | RW88: 0 | RX88: 0 | RY88: 0 | RZ88: 0 | SA88: 0 | SB88: 0 | SC88: 0 | SD88: 0 | SE88: 0 | SF88: 0 | SG88: 0 | SH88: 0 | SI88: 0 | SJ88: 0 | SK88: 0 | SL88: 0 | SM88: 0 | SN88: 0 | SO88: 0 | SP88: 0 | SQ88: 0 | SR88: 0 | SS88: 0 | ST88: 0 | SU88: 0 | SV88: 0 | SW88: 0 | SX88: 0 | SY88: 0 | SZ88: 0 | TA88: =TA84+TA86+TA85-TA87 -> 0 | TB88: 0 | TC88: 0 | TD88: 0 | TE88: 0 | TF88: 0 | TG88: 0 | TH88: 0 | TI88: 0 | TJ88: 0 | TK88: 0 | TL88: 0 | TM88: 0 | TN88: 0 | TO88: 0 | TP88: 0 | TQ88: 0 | TR88: 0 | TS88: 0 | TT88: 0 | TU88: 0 | TV88: 0 | TW88: 0 | TX88: 0 | TY88: 0 | TZ88: 0 | UA88: 0 | UB88: 0 | UC88: 0 | UD88: 0 | UE88: 0 | UF88: 0 | UG88: 0 | UH88: 0 | UI88: 0 | UJ88: 0 | UK88: 0 | UL88: 0 | UM88: 0 | UN88: 0 | UO88: 0 | UP88: 0 | UQ88: 0 | UR88: 0 | US88: 0 | UT88: 0 | UU88: 0 | UV88: 0 | UW88: 0 | UX88: 0 | UY88: 0 | UZ88: 0 | VA88: 0 | VB88: 0 | VC88: 0 | VD88: 0 | VE88: 0 | VF88: 0 | VG88: 0 | VH88: 0 | VI88: 0 | VJ88: 0 | VK88: 0 | VL88: 0 | VM88: =VM84+VM86+VM85-VM87 -> 0 | VN88: 0 | VO88: 0 | VP88: 0 | VQ88: 0 | VR88: 0 | VS88: 0 | VT88: 0 | VU88: 0 | VV88: 0 | VW88: 0 | VX88: 0 | VY88: 0 | VZ88: 0 | WA88: 0 | WB88: 0 | WC88: 0 | WD88: 0 | WE88: 0 | WF88: 0 | WG88: 0 | WH88: 0 | WI88: 0 | WJ88: 0 | WK88: 0 | WL88: 0 | WM88: 0 | WN88: 0 | WO88: 0 | WP88: 0 | WQ88: 0 | WR88: 0 | WS88: 0 | WT88: 0 | WU88: 0 | WV88: 0 | WW88: 0 | WX88: 0 | WY88: 0 | WZ88: 0 | XA88: 0 | XB88: 0 | XC88: 0 | XD88: 0 | XE88: 0 | XF88: 0 | XG88: 0 | XH88: 0 | XI88: 0 | XJ88: 0 | XK88: 0 | XL88: 0 | XM88: 0 | XN88: 0 | XO88: 0 | XP88: 0 | XQ88: 0 | XR88: 0 | XS88: 0 | XT88: 0 | XU88: 0 | XV88: 0 | XW88: 0 | XX88: 0 | XY88: =XY84+XY86+XY85-XY87 -> 0 | XZ88: 0 | YA88: 0 | YB88: 0 | YC88: 0 | YD88: 0 | YE88: 0 | YF88: 0 | YG88: 0 | YH88: 0 | YI88: 0 | YJ88: 0 | YK88: 0 | YL88: 0 | YM88: 0 | YN88: 0 | YO88: 0 | YP88: 0 | YQ88: 0 | YR88: 0 | YS88: 0 | YT88: 0 | YU88: 0 | YV88: 0 | YW88: 0 | YX88: 0 | YY88: 0 | YZ88: 0 | ZA88: 0 | ZB88: 0 | ZC88: 0 | ZD88: 0 | ZE88: 0 | ZF88: 0 | ZG88: 0 | ZH88: 0 | ZI88: 0 | ZJ88: 0 | ZK88: 0 | ZL88: 0 | ZM88: 0 | ZN88: 0 | ZO88: 0 | ZP88: 0 | ZQ88: 0 | ZR88: 0 | ZS88: 0 | ZT88: 0 | ZU88: 0 | ZV88: 0 | ZW88: 0 | ZX88: 0 | ZY88: 0 | ZZ88: 0 | AAA88: 0 | AAB88: 0 | AAC88: 0 | AAD88: 0 | AAE88: 0 | AAF88: 0 | AAG88: 0 | AAH88: 0 | AAI88: 0 | AAJ88: 0 | AAK88: =AAK84+AAK86+AAK85-AAK87 -> 0 | AAL88: 0 | AAM88: 0 | AAN88: 0 | AAO88: 0 | AAP88: 0 | AAQ88: 0 | AAR88: 0 | AAS88: 0 | AAT88: 0 | AAU88: 0 | AAV88: 0 | AAW88: 0 | AAX88: 0 | AAY88: 0 | AAZ88: 0 | ABA88: 0 | ABB88: 0 | ABC88: 0 | ABD88: 0 | ABE88: 0 | ABF88: 0 | ABG88: 0 | ABH88: 0 | ABI88: 0 | ABJ88: 0 | ABK88: 0 | ABL88: 0 | ABM88: 0 | ABN88: 0 | ABO88: 0 | ABP88: 0 | ABQ88: 0 | ABR88: 0 | ABS88: 0 | ABT88: 0 | ABU88: 0 | ABV88: 0 | ABW88: 0 | ABX88: 0 | ABY88: 0 | ABZ88: 0 | ACA88: 0 | ACB88: 0 | ACC88: 0 | ACD88: 0 | ACE88: 0 | ACF88: 0 | ACG88: 0 | ACH88: 0 | ACI88: 0 | ACJ88: 0 | ACK88: 0 | ACL88: 0 | ACM88: 0 | ACN88: 0 | ACO88: 0 | ACP88: 0 | ACQ88: 0 | ACR88: 0 | ACS88: 0 | ACT88: 0 | ACU88: 0 | ACV88: 0 | ACW88: =ACW84+ACW86+ACW85-ACW87 -> 0 | ACX88: 0 | ACY88: 0 | ACZ88: 0 | ADA88: 0 | ADB88: 0 | ADC88: 0 | ADD88: 0 | ADE88: 0 | ADF88: 0 | ADG88: 0 | ADH88: 0 | ADI88: 0 | ADJ88: 0 | ADK88: 0 | ADL88: 0 | ADM88: 0 | ADN88: 0 | ADO88: 0 | ADP88: 0 | ADQ88: 0 | ADR88: 0 | ADS88: 0 | ADT88: 0 | ADU88: 0 | ADV88: 0 | ADW88: 0 | ADX88: 0 | ADY88: 0 | ADZ88: 0 | AEA88: 0 | AEB88: 0 | AEC88: 0 | AED88: 0 | AEE88: 0 | AEF88: 0 | AEG88: 0 | AEH88: 0 | AEI88: 0 | AEJ88: 0 | AEK88: 0 | AEL88: 0 | AEM88: 0 | AEN88: 0 | AEO88: 0 | AEP88: 0 | AEQ88: 0 | AER88: 0 | AES88: 0 | AET88: 0 | AEU88: 0 | AEV88: 0 | AEW88: 0 | AEX88: 0 | AEY88: 0 | AEZ88: 0 | AFA88: 0 | AFB88: 0 | AFC88: 0 | AFD88: 0 | AFE88: 0 | AFF88: 0 | AFG88: 0 | AFH88: 0 | AFI88: =AFI84+AFI86+AFI85-AFI87 -> 0 | AFJ88: 0 | AFK88: 0 | AFL88: 0 | AFM88: 0 | AFN88: 0 | AFO88: 0 | AFP88: 0 | AFQ88: 0 | AFR88: 0 | AFS88: 0 | AFT88: 0 | AFU88: 0 | AFV88: 0 | AFW88: 0 | AFX88: 0 | AFY88: 0 | AFZ88: 0 | AGA88: 0 | AGB88: 0 | AGC88: 0 | AGD88: 0 | AGE88: 0 | AGF88: 0 | AGG88: 0 | AGH88: 0 | AGI88: 0 | AGJ88: 0 | AGK88: 0
B90: Total Nominal Cost | E90: Currency | F90: =SUM(87:87) -> 1000
B91: PV of Construction Nominal Construction | E91: Currency | F91: =XNPV(G91,I87:AGK87,I8:AGK8) -> 1000 | G91: ='Carrying Charge'!M56 -> 0.03526875
A93: Replacement and Decommissioning -- Costs that are Spread over the Operating Project Life by Moving to Current Values
B94: Replacement Period (Date/Check) | E94: Switch | F94: ='Carrying Charge'!F53 -> 2016-03-01 | G94: =COUNTIF(I94:AGK94,TRUE) -> 1 | I94: =$F$94=I7 -> FALSE | J94: FALSE | K94: FALSE | L94: FALSE | M94: FALSE | N94: FALSE | O94: FALSE | P94: FALSE | Q94: FALSE | R94: FALSE | S94: FALSE | T94: FALSE | U94: FALSE | V94: FALSE | W94: FALSE | X94: FALSE | Y94: TRUE | Z94: FALSE | AA94: FALSE | AB94: FALSE | AC94: FALSE | AD94: FALSE | AE94: FALSE | AF94: FALSE | AG94: FALSE | AH94: FALSE | AI94: FALSE | AJ94: FALSE | AK94: FALSE | AL94: FALSE | AM94: FALSE | AN94: FALSE | AO94: FALSE | AP94: FALSE | AQ94: FALSE | AR94: FALSE | AS94: FALSE | AT94: FALSE | AU94: FALSE | AV94: FALSE | AW94: FALSE | AX94: FALSE | AY94: FALSE | AZ94: FALSE | BA94: FALSE | BB94: FALSE | BC94: FALSE | BD94: FALSE | BE94: FALSE | BF94: FALSE | BG94: FALSE | BH94: FALSE | BI94: FALSE | BJ94: FALSE | BK94: FALSE | BL94: FALSE | BM94: FALSE | BN94: FALSE | BO94: FALSE | BP94: FALSE | BQ94: FALSE | BR94: FALSE | BS94: FALSE | BT94: FALSE | BU94: =$F$94=BU7 -> FALSE | BV94: FALSE | BW94: FALSE | BX94: FALSE | BY94: FALSE | BZ94: FALSE | CA94: FALSE | CB94: FALSE | CC94: FALSE | CD94: FALSE | CE94: FALSE | CF94: FALSE | CG94: FALSE | CH94: FALSE | CI94: FALSE | CJ94: FALSE | CK94: FALSE | CL94: FALSE | CM94: FALSE | CN94: FALSE | CO94: FALSE | CP94: FALSE | CQ94: FALSE | CR94: FALSE | CS94: FALSE | CT94: FALSE | CU94: FALSE | CV94: FALSE | CW94: FALSE | CX94: FALSE | CY94: FALSE | CZ94: FALSE | DA94: FALSE | DB94: FALSE | DC94: FALSE | DD94: FALSE | DE94: FALSE | DF94: FALSE | DG94: FALSE | DH94: FALSE | DI94: FALSE | DJ94: FALSE | DK94: FALSE | DL94: FALSE | DM94: FALSE | DN94: FALSE | DO94: FALSE | DP94: FALSE | DQ94: FALSE | DR94: FALSE | DS94: FALSE | DT94: FALSE | DU94: FALSE | DV94: FALSE | DW94: FALSE | DX94: FALSE | DY94: FALSE | DZ94: FALSE | EA94: FALSE | EB94: FALSE | EC94: FALSE | ED94: FALSE | EE94: FALSE | EF94: FALSE | EG94: =$F$94=EG7 -> FALSE | EH94: FALSE | EI94: FALSE | EJ94: FALSE | EK94: FALSE | EL94: FALSE | EM94: FALSE | EN94: FALSE | EO94: FALSE | EP94: FALSE | EQ94: FALSE | ER94: FALSE | ES94: FALSE | ET94: FALSE | EU94: FALSE | EV94: FALSE | EW94: FALSE | EX94: FALSE | EY94: FALSE | EZ94: FALSE | FA94: FALSE | FB94: FALSE | FC94: FALSE | FD94: FALSE | FE94: FALSE | FF94: FALSE | FG94: FALSE | FH94: FALSE | FI94: FALSE | FJ94: FALSE | FK94: FALSE | FL94: FALSE | FM94: FALSE | FN94: FALSE | FO94: FALSE | FP94: FALSE | FQ94: FALSE | FR94: FALSE | FS94: FALSE | FT94: FALSE | FU94: FALSE | FV94: FALSE | FW94: FALSE | FX94: FALSE | FY94: FALSE | FZ94: FALSE | GA94: FALSE | GB94: FALSE | GC94: FALSE | GD94: FALSE | GE94: FALSE | GF94: FALSE | GG94: FALSE | GH94: FALSE | GI94: FALSE | GJ94: FALSE | GK94: FALSE | GL94: FALSE | GM94: FALSE | GN94: FALSE | GO94: FALSE | GP94: FALSE | GQ94: FALSE | GR94: FALSE | GS94: =$F$94=GS7 -> FALSE | GT94: FALSE | GU94: FALSE | GV94: FALSE | GW94: FALSE | GX94: FALSE | GY94: FALSE | GZ94: FALSE | HA94: FALSE | HB94: FALSE | HC94: FALSE | HD94: FALSE | HE94: FALSE | HF94: FALSE | HG94: FALSE | HH94: FALSE | HI94: FALSE | HJ94: FALSE | HK94: FALSE | HL94: FALSE | HM94: FALSE | HN94: FALSE | HO94: FALSE | HP94: FALSE | HQ94: FALSE | HR94: FALSE | HS94: FALSE | HT94: FALSE | HU94: FALSE | HV94: FALSE | HW94: FALSE | HX94: FALSE | HY94: FALSE | HZ94: FALSE | IA94: FALSE | IB94: FALSE | IC94: FALSE | ID94: FALSE | IE94: FALSE | IF94: FALSE | IG94: FALSE | IH94: FALSE | II94: FALSE | IJ94: FALSE | IK94: FALSE | IL94: FALSE | IM94: FALSE | IN94: FALSE | IO94: FALSE | IP94: FALSE | IQ94: FALSE | IR94: FALSE | IS94: FALSE | IT94: FALSE | IU94: FALSE | IV94: FALSE | IW94: FALSE | IX94: FALSE | IY94: FALSE | IZ94: FALSE | JA94: FALSE | JB94: FALSE | JC94: FALSE | JD94: FALSE | JE94: =$F$94=JE7 -> FALSE | JF94: FALSE | JG94: FALSE | JH94: FALSE | JI94: FALSE | JJ94: FALSE | JK94: FALSE | JL94: FALSE | JM94: FALSE | JN94: FALSE | JO94: FALSE | JP94: FALSE | JQ94: FALSE | JR94: FALSE | JS94: FALSE | JT94: FALSE | JU94: FALSE | JV94: FALSE | JW94: FALSE | JX94: FALSE | JY94: FALSE | JZ94: FALSE | KA94: FALSE | KB94: FALSE | KC94: FALSE | KD94: FALSE | KE94: FALSE | KF94: FALSE | KG94: FALSE | KH94: FALSE | KI94: FALSE | KJ94: FALSE | KK94: FALSE | KL94: FALSE | KM94: FALSE | KN94: FALSE | KO94: FALSE | KP94: FALSE | KQ94: FALSE | KR94: FALSE | KS94: FALSE | KT94: FALSE | KU94: FALSE | KV94: FALSE | KW94: FALSE | KX94: FALSE | KY94: FALSE | KZ94: FALSE | LA94: FALSE | LB94: FALSE | LC94: FALSE | LD94: FALSE | LE94: FALSE | LF94: FALSE | LG94: FALSE | LH94: FALSE | LI94: FALSE | LJ94: FALSE | LK94: FALSE | LL94: FALSE | LM94: FALSE | LN94: FALSE | LO94: FALSE | LP94: FALSE | LQ94: =$F$94=LQ7 -> FALSE | LR94: FALSE | LS94: FALSE | LT94: FALSE | LU94: FALSE | LV94: FALSE | LW94: FALSE | LX94: FALSE | LY94: FALSE | LZ94: FALSE | MA94: FALSE | MB94: FALSE | MC94: FALSE | MD94: FALSE | ME94: FALSE | MF94: FALSE | MG94: FALSE | MH94: FALSE | MI94: FALSE | MJ94: FALSE | MK94: FALSE | ML94: FALSE | MM94: FALSE | MN94: FALSE | MO94: FALSE | MP94: FALSE | MQ94: FALSE | MR94: FALSE | MS94: FALSE | MT94: FALSE | MU94: FALSE | MV94: FALSE | MW94: FALSE | MX94: FALSE | MY94: FALSE | MZ94: FALSE | NA94: FALSE | NB94: FALSE | NC94: FALSE | ND94: FALSE | NE94: FALSE | NF94: FALSE | NG94: FALSE | NH94: FALSE | NI94: FALSE | NJ94: FALSE | NK94: FALSE | NL94: FALSE | NM94: FALSE | NN94: FALSE | NO94: FALSE | NP94: FALSE | NQ94: FALSE | NR94: FALSE | NS94: FALSE | NT94: FALSE | NU94: FALSE | NV94: FALSE | NW94: FALSE | NX94: FALSE | NY94: FALSE | NZ94: FALSE | OA94: FALSE | OB94: FALSE | OC94: =$F$94=OC7 -> FALSE | OD94: FALSE | OE94: FALSE | OF94: FALSE | OG94: FALSE | OH94: FALSE | OI94: FALSE | OJ94: FALSE | OK94: FALSE | OL94: FALSE | OM94: FALSE | ON94: FALSE | OO94: FALSE | OP94: FALSE | OQ94: FALSE | OR94: FALSE | OS94: FALSE | OT94: FALSE | OU94: FALSE | OV94: FALSE | OW94: FALSE | OX94: FALSE | OY94: FALSE | OZ94: FALSE | PA94: FALSE | PB94: FALSE | PC94: FALSE | PD94: FALSE | PE94: FALSE | PF94: FALSE | PG94: FALSE | PH94: FALSE | PI94: FALSE | PJ94: FALSE | PK94: FALSE | PL94: FALSE | PM94: FALSE | PN94: FALSE | PO94: FALSE | PP94: FALSE | PQ94: FALSE | PR94: FALSE | PS94: FALSE | PT94: FALSE | PU94: FALSE | PV94: FALSE | PW94: FALSE | PX94: FALSE | PY94: FALSE | PZ94: FALSE | QA94: FALSE | QB94: FALSE | QC94: FALSE | QD94: FALSE | QE94: FALSE | QF94: FALSE | QG94: FALSE | QH94: FALSE | QI94: FALSE | QJ94: FALSE | QK94: FALSE | QL94: FALSE | QM94: FALSE | QN94: FALSE | QO94: =$F$94=QO7 -> FALSE | QP94: FALSE | QQ94: FALSE | QR94: FALSE | QS94: FALSE | QT94: FALSE | QU94: FALSE | QV94: FALSE | QW94: FALSE | QX94: FALSE | QY94: FALSE | QZ94: FALSE | RA94: FALSE | RB94: FALSE | RC94: FALSE | RD94: FALSE | RE94: FALSE | RF94: FALSE | RG94: FALSE | RH94: FALSE | RI94: FALSE | RJ94: FALSE | RK94: FALSE | RL94: FALSE | RM94: FALSE | RN94: FALSE | RO94: FALSE | RP94: FALSE | RQ94: FALSE | RR94: FALSE | RS94: FALSE | RT94: FALSE | RU94: FALSE | RV94: FALSE | RW94: FALSE | RX94: FALSE | RY94: FALSE | RZ94: FALSE | SA94: FALSE | SB94: FALSE | SC94: FALSE | SD94: FALSE | SE94: FALSE | SF94: FALSE | SG94: FALSE | SH94: FALSE | SI94: FALSE | SJ94: FALSE | SK94: FALSE | SL94: FALSE | SM94: FALSE | SN94: FALSE | SO94: FALSE | SP94: FALSE | SQ94: FALSE | SR94: FALSE | SS94: FALSE | ST94: FALSE | SU94: FALSE | SV94: FALSE | SW94: FALSE | SX94: FALSE | SY94: FALSE | SZ94: FALSE | TA94: =$F$94=TA7 -> FALSE | TB94: FALSE | TC94: FALSE | TD94: FALSE | TE94: FALSE | TF94: FALSE | TG94: FALSE | TH94: FALSE | TI94: FALSE | TJ94: FALSE | TK94: FALSE | TL94: FALSE | TM94: FALSE | TN94: FALSE | TO94: FALSE | TP94: FALSE | TQ94: FALSE | TR94: FALSE | TS94: FALSE | TT94: FALSE | TU94: FALSE | TV94: FALSE | TW94: FALSE | TX94: FALSE | TY94: FALSE | TZ94: FALSE | UA94: FALSE | UB94: FALSE | UC94: FALSE | UD94: FALSE | UE94: FALSE | UF94: FALSE | UG94: FALSE | UH94: FALSE | UI94: FALSE | UJ94: FALSE | UK94: FALSE | UL94: FALSE | UM94: FALSE | UN94: FALSE | UO94: FALSE | UP94: FALSE | UQ94: FALSE | UR94: FALSE | US94: FALSE | UT94: FALSE | UU94: FALSE | UV94: FALSE | UW94: FALSE | UX94: FALSE | UY94: FALSE | UZ94: FALSE | VA94: FALSE | VB94: FALSE | VC94: FALSE | VD94: FALSE | VE94: FALSE | VF94: FALSE | VG94: FALSE | VH94: FALSE | VI94: FALSE | VJ94: FALSE | VK94: FALSE | VL94: FALSE | VM94: =$F$94=VM7 -> FALSE | VN94: FALSE | VO94: FALSE | VP94: FALSE | VQ94: FALSE | VR94: FALSE | VS94: FALSE | VT94: FALSE | VU94: FALSE | VV94: FALSE | VW94: FALSE | VX94: FALSE | VY94: FALSE | VZ94: FALSE | WA94: FALSE | WB94: FALSE | WC94: FALSE | WD94: FALSE | WE94: FALSE | WF94: FALSE | WG94: FALSE | WH94: FALSE | WI94: FALSE | WJ94: FALSE | WK94: FALSE | WL94: FALSE | WM94: FALSE | WN94: FALSE | WO94: FALSE | WP94: FALSE | WQ94: FALSE | WR94: FALSE | WS94: FALSE | WT94: FALSE | WU94: FALSE | WV94: FALSE | WW94: FALSE | WX94: FALSE | WY94: FALSE | WZ94: FALSE | XA94: FALSE | XB94: FALSE | XC94: FALSE | XD94: FALSE | XE94: FALSE | XF94: FALSE | XG94: FALSE | XH94: FALSE | XI94: FALSE | XJ94: FALSE | XK94: FALSE | XL94: FALSE | XM94: FALSE | XN94: FALSE | XO94: FALSE | XP94: FALSE | XQ94: FALSE | XR94: FALSE | XS94: FALSE | XT94: FALSE | XU94: FALSE | XV94: FALSE | XW94: FALSE | XX94: FALSE | XY94: =$F$94=XY7 -> FALSE | XZ94: FALSE | YA94: FALSE | YB94: FALSE | YC94: FALSE | YD94: FALSE | YE94: FALSE | YF94: FALSE | YG94: FALSE | YH94: FALSE | YI94: FALSE | YJ94: FALSE | YK94: FALSE | YL94: FALSE | YM94: FALSE | YN94: FALSE | YO94: FALSE | YP94: FALSE | YQ94: FALSE | YR94: FALSE | YS94: FALSE | YT94: FALSE | YU94: FALSE | YV94: FALSE | YW94: FALSE | YX94: FALSE | YY94: FALSE | YZ94: FALSE | ZA94: FALSE | ZB94: FALSE | ZC94: FALSE | ZD94: FALSE | ZE94: FALSE | ZF94: FALSE | ZG94: FALSE | ZH94: FALSE | ZI94: FALSE | ZJ94: FALSE | ZK94: FALSE | ZL94: FALSE | ZM94: FALSE | ZN94: FALSE | ZO94: FALSE | ZP94: FALSE | ZQ94: FALSE | ZR94: FALSE | ZS94: FALSE | ZT94: FALSE | ZU94: FALSE | ZV94: FALSE | ZW94: FALSE | ZX94: FALSE | ZY94: FALSE | ZZ94: FALSE | AAA94: FALSE | AAB94: FALSE | AAC94: FALSE | AAD94: FALSE | AAE94: FALSE | AAF94: FALSE | AAG94: FALSE | AAH94: FALSE | AAI94: FALSE | AAJ94: FALSE | AAK94: =$F$94=AAK7 -> FALSE | AAL94: FALSE | AAM94: FALSE | AAN94: FALSE | AAO94: FALSE | AAP94: FALSE | AAQ94: FALSE | AAR94: FALSE | AAS94: FALSE | AAT94: FALSE | AAU94: FALSE | AAV94: FALSE | AAW94: FALSE | AAX94: FALSE | AAY94: FALSE | AAZ94: FALSE | ABA94: FALSE | ABB94: FALSE | ABC94: FALSE | ABD94: FALSE | ABE94: FALSE | ABF94: FALSE | ABG94: FALSE | ABH94: FALSE | ABI94: FALSE | ABJ94: FALSE | ABK94: FALSE | ABL94: FALSE | ABM94: FALSE | ABN94: FALSE | ABO94: FALSE | ABP94: FALSE | ABQ94: FALSE | ABR94: FALSE | ABS94: FALSE | ABT94: FALSE | ABU94: FALSE | ABV94: FALSE | ABW94: FALSE | ABX94: FALSE | ABY94: FALSE | ABZ94: FALSE | ACA94: FALSE | ACB94: FALSE | ACC94: FALSE | ACD94: FALSE | ACE94: FALSE | ACF94: FALSE | ACG94: FALSE | ACH94: FALSE | ACI94: FALSE | ACJ94: FALSE | ACK94: FALSE | ACL94: FALSE | ACM94: FALSE | ACN94: FALSE | ACO94: FALSE | ACP94: FALSE | ACQ94: FALSE | ACR94: FALSE | ACS94: FALSE | ACT94: FALSE | ACU94: FALSE | ACV94: FALSE | ACW94: =$F$94=ACW7 -> FALSE | ACX94: FALSE | ACY94: FALSE | ACZ94: FALSE | ADA94: FALSE | ADB94: FALSE | ADC94: FALSE | ADD94: FALSE | ADE94: FALSE | ADF94: FALSE | ADG94: FALSE | ADH94: FALSE | ADI94: FALSE | ADJ94: FALSE | ADK94: FALSE | ADL94: FALSE | ADM94: FALSE | ADN94: FALSE | ADO94: FALSE | ADP94: FALSE | ADQ94: FALSE | ADR94: FALSE | ADS94: FALSE | ADT94: FALSE | ADU94: FALSE | ADV94: FALSE | ADW94: FALSE | ADX94: FALSE | ADY94: FALSE | ADZ94: FALSE | AEA94: FALSE | AEB94: FALSE | AEC94: FALSE | AED94: FALSE | AEE94: FALSE | AEF94: FALSE | AEG94: FALSE | AEH94: FALSE | AEI94: FALSE | AEJ94: FALSE | AEK94: FALSE | AEL94: FALSE | AEM94: FALSE | AEN94: FALSE | AEO94: FALSE | AEP94: FALSE | AEQ94: FALSE | AER94: FALSE | AES94: FALSE | AET94: FALSE | AEU94: FALSE | AEV94: FALSE | AEW94: FALSE | AEX94: FALSE | AEY94: FALSE | AEZ94: FALSE | AFA94: FALSE | AFB94: FALSE | AFC94: FALSE | AFD94: FALSE | AFE94: FALSE | AFF94: FALSE | AFG94: FALSE | AFH94: FALSE | AFI94: =$F$94=AFI7 -> FALSE | AFJ94: FALSE | AFK94: FALSE | AFL94: FALSE | AFM94: FALSE | AFN94: FALSE | AFO94: FALSE | AFP94: FALSE | AFQ94: FALSE | AFR94: FALSE | AFS94: FALSE | AFT94: FALSE | AFU94: FALSE | AFV94: FALSE | AFW94: FALSE | AFX94: FALSE | AFY94: FALSE | AFZ94: FALSE | AGA94: FALSE | AGB94: FALSE | AGC94: FALSE | AGD94: FALSE | AGE94: FALSE | AGF94: FALSE | AGG94: FALSE | AGH94: FALSE | AGI94: FALSE | AGJ94: FALSE | AGK94: FALSE
B95: Replacement without Inflation | E95: Currency | F95: ='Carrying Charge'!F49 -> 0 | I95: =I94*$F$95 -> 0 | J95: =J94*$F$95 -> 0 | K95: 0 | L95: 0 | M95: 0 | N95: 0 | O95: 0 | P95: 0 | Q95: 0 | R95: 0 | S95: 0 | T95: 0 | U95: 0 | V95: 0 | W95: 0 | X95: 0 | Y95: 0 | Z95: 0 | AA95: 0 | AB95: 0 | AC95: 0 | AD95: 0 | AE95: 0 | AF95: 0 | AG95: 0 | AH95: 0 | AI95: 0 | AJ95: 0 | AK95: 0 | AL95: 0 | AM95: 0 | AN95: 0 | AO95: 0 | AP95: 0 | AQ95: 0 | AR95: 0 | AS95: 0 | AT95: 0 | AU95: 0 | AV95: 0 | AW95: 0 | AX95: 0 | AY95: 0 | AZ95: 0 | BA95: 0 | BB95: 0 | BC95: 0 | BD95: 0 | BE95: 0 | BF95: 0 | BG95: 0 | BH95: 0 | BI95: 0 | BJ95: 0 | BK95: 0 | BL95: 0 | BM95: 0 | BN95: 0 | BO95: 0 | BP95: 0 | BQ95: 0 | BR95: 0 | BS95: 0 | BT95: 0 | BU95: 0 | BV95: =BV94*$F$95 -> 0 | BW95: 0 | BX95: 0 | BY95: 0 | BZ95: 0 | CA95: 0 | CB95: 0 | CC95: 0 | CD95: 0 | CE95: 0 | CF95: 0 | CG95: 0 | CH95: 0 | CI95: 0 | CJ95: 0 | CK95: 0 | CL95: 0 | CM95: 0 | CN95: 0 | CO95: 0 | CP95: 0 | CQ95: 0 | CR95: 0 | CS95: 0 | CT95: 0 | CU95: 0 | CV95: 0 | CW95: 0 | CX95: 0 | CY95: 0 | CZ95: 0 | DA95: 0 | DB95: 0 | DC95: 0 | DD95: 0 | DE95: 0 | DF95: 0 | DG95: 0 | DH95: 0 | DI95: 0 | DJ95: 0 | DK95: 0 | DL95: 0 | DM95: 0 | DN95: 0 | DO95: 0 | DP95: 0 | DQ95: 0 | DR95: 0 | DS95: 0 | DT95: 0 | DU95: 0 | DV95: 0 | DW95: 0 | DX95: 0 | DY95: 0 | DZ95: 0 | EA95: 0 | EB95: 0 | EC95: 0 | ED95: 0 | EE95: 0 | EF95: 0 | EG95: 0 | EH95: =EH94*$F$95 -> 0 | EI95: 0 | EJ95: 0 | EK95: 0 | EL95: 0 | EM95: 0 | EN95: 0 | EO95: 0 | EP95: 0 | EQ95: 0 | ER95: 0 | ES95: 0 | ET95: 0 | EU95: 0 | EV95: 0 | EW95: 0 | EX95: 0 | EY95: 0 | EZ95: 0 | FA95: 0 | FB95: 0 | FC95: 0 | FD95: 0 | FE95: 0 | FF95: 0 | FG95: 0 | FH95: 0 | FI95: 0 | FJ95: 0 | FK95: 0 | FL95: 0 | FM95: 0 | FN95: 0 | FO95: 0 | FP95: 0 | FQ95: 0 | FR95: 0 | FS95: 0 | FT95: 0 | FU95: 0 | FV95: 0 | FW95: 0 | FX95: 0 | FY95: 0 | FZ95: 0 | GA95: 0 | GB95: 0 | GC95: 0 | GD95: 0 | GE95: 0 | GF95: 0 | GG95: 0 | GH95: 0 | GI95: 0 | GJ95: 0 | GK95: 0 | GL95: 0 | GM95: 0 | GN95: 0 | GO95: 0 | GP95: 0 | GQ95: 0 | GR95: 0 | GS95: 0 | GT95: =GT94*$F$95 -> 0 | GU95: 0 | GV95: 0 | GW95: 0 | GX95: 0 | GY95: 0 | GZ95: 0 | HA95: 0 | HB95: 0 | HC95: 0 | HD95: 0 | HE95: 0 | HF95: 0 | HG95: 0 | HH95: 0 | HI95: 0 | HJ95: 0 | HK95: 0 | HL95: 0 | HM95: 0 | HN95: 0 | HO95: 0 | HP95: 0 | HQ95: 0 | HR95: 0 | HS95: 0 | HT95: 0 | HU95: 0 | HV95: 0 | HW95: 0 | HX95: 0 | HY95: 0 | HZ95: 0 | IA95: 0 | IB95: 0 | IC95: 0 | ID95: 0 | IE95: 0 | IF95: 0 | IG95: 0 | IH95: 0 | II95: 0 | IJ95: 0 | IK95: 0 | IL95: 0 | IM95: 0 | IN95: 0 | IO95: 0 | IP95: 0 | IQ95: 0 | IR95: 0 | IS95: 0 | IT95: 0 | IU95: 0 | IV95: 0 | IW95: 0 | IX95: 0 | IY95: 0 | IZ95: 0 | JA95: 0 | JB95: 0 | JC95: 0 | JD95: 0 | JE95: 0 | JF95: =JF94*$F$95 -> 0 | JG95: 0 | JH95: 0 | JI95: 0 | JJ95: 0 | JK95: 0 | JL95: 0 | JM95: 0 | JN95: 0 | JO95: 0 | JP95: 0 | JQ95: 0 | JR95: 0 | JS95: 0 | JT95: 0 | JU95: 0 | JV95: 0 | JW95: 0 | JX95: 0 | JY95: 0 | JZ95: 0 | KA95: 0 | KB95: 0 | KC95: 0 | KD95: 0 | KE95: 0 | KF95: 0 | KG95: 0 | KH95: 0 | KI95: 0 | KJ95: 0 | KK95: 0 | KL95: 0 | KM95: 0 | KN95: 0 | KO95: 0 | KP95: 0 | KQ95: 0 | KR95: 0 | KS95: 0 | KT95: 0 | KU95: 0 | KV95: 0 | KW95: 0 | KX95: 0 | KY95: 0 | KZ95: 0 | LA95: 0 | LB95: 0 | LC95: 0 | LD95: 0 | LE95: 0 | LF95: 0 | LG95: 0 | LH95: 0 | LI95: 0 | LJ95: 0 | LK95: 0 | LL95: 0 | LM95: 0 | LN95: 0 | LO95: 0 | LP95: 0 | LQ95: 0 | LR95: =LR94*$F$95 -> 0 | LS95: 0 | LT95: 0 | LU95: 0 | LV95: 0 | LW95: 0 | LX95: 0 | LY95: 0 | LZ95: 0 | MA95: 0 | MB95: 0 | MC95: 0 | MD95: 0 | ME95: 0 | MF95: 0 | MG95: 0 | MH95: 0 | MI95: 0 | MJ95: 0 | MK95: 0 | ML95: 0 | MM95: 0 | MN95: 0 | MO95: 0 | MP95: 0 | MQ95: 0 | MR95: 0 | MS95: 0 | MT95: 0 | MU95: 0 | MV95: 0 | MW95: 0 | MX95: 0 | MY95: 0 | MZ95: 0 | NA95: 0 | NB95: 0 | NC95: 0 | ND95: 0 | NE95: 0 | NF95: 0 | NG95: 0 | NH95: 0 | NI95: 0 | NJ95: 0 | NK95: 0 | NL95: 0 | NM95: 0 | NN95: 0 | NO95: 0 | NP95: 0 | NQ95: 0 | NR95: 0 | NS95: 0 | NT95: 0 | NU95: 0 | NV95: 0 | NW95: 0 | NX95: 0 | NY95: 0 | NZ95: 0 | OA95: 0 | OB95: 0 | OC95: 0 | OD95: =OD94*$F$95 -> 0 | OE95: 0 | OF95: 0 | OG95: 0 | OH95: 0 | OI95: 0 | OJ95: 0 | OK95: 0 | OL95: 0 | OM95: 0 | ON95: 0 | OO95: 0 | OP95: 0 | OQ95: 0 | OR95: 0 | OS95: 0 | OT95: 0 | OU95: 0 | OV95: 0 | OW95: 0 | OX95: 0 | OY95: 0 | OZ95: 0 | PA95: 0 | PB95: 0 | PC95: 0 | PD95: 0 | PE95: 0 | PF95: 0 | PG95: 0 | PH95: 0 | PI95: 0 | PJ95: 0 | PK95: 0 | PL95: 0 | PM95: 0 | PN95: 0 | PO95: 0 | PP95: 0 | PQ95: 0 | PR95: 0 | PS95: 0 | PT95: 0 | PU95: 0 | PV95: 0 | PW95: 0 | PX95: 0 | PY95: 0 | PZ95: 0 | QA95: 0 | QB95: 0 | QC95: 0 | QD95: 0 | QE95: 0 | QF95: 0 | QG95: 0 | QH95: 0 | QI95: 0 | QJ95: 0 | QK95: 0 | QL95: 0 | QM95: 0 | QN95: 0 | QO95: 0 | QP95: =QP94*$F$95 -> 0 | QQ95: 0 | QR95: 0 | QS95: 0 | QT95: 0 | QU95: 0 | QV95: 0 | QW95: 0 | QX95: 0 | QY95: 0 | QZ95: 0 | RA95: 0 | RB95: 0 | RC95: 0 | RD95: 0 | RE95: 0 | RF95: 0 | RG95: 0 | RH95: 0 | RI95: 0 | RJ95: 0 | RK95: 0 | RL95: 0 | RM95: 0 | RN95: 0 | RO95: 0 | RP95: 0 | RQ95: 0 | RR95: 0 | RS95: 0 | RT95: 0 | RU95: 0 | RV95: 0 | RW95: 0 | RX95: 0 | RY95: 0 | RZ95: 0 | SA95: 0 | SB95: 0 | SC95: 0 | SD95: 0 | SE95: 0 | SF95: 0 | SG95: 0 | SH95: 0 | SI95: 0 | SJ95: 0 | SK95: 0 | SL95: 0 | SM95: 0 | SN95: 0 | SO95: 0 | SP95: 0 | SQ95: 0 | SR95: 0 | SS95: 0 | ST95: 0 | SU95: 0 | SV95: 0 | SW95: 0 | SX95: 0 | SY95: 0 | SZ95: 0 | TA95: 0 | TB95: =TB94*$F$95 -> 0 | TC95: 0 | TD95: 0 | TE95: 0 | TF95: 0 | TG95: 0 | TH95: 0 | TI95: 0 | TJ95: 0 | TK95: 0 | TL95: 0 | TM95: 0 | TN95: 0 | TO95: 0 | TP95: 0 | TQ95: 0 | TR95: 0 | TS95: 0 | TT95: 0 | TU95: 0 | TV95: 0 | TW95: 0 | TX95: 0 | TY95: 0 | TZ95: 0 | UA95: 0 | UB95: 0 | UC95: 0 | UD95: 0 | UE95: 0 | UF95: 0 | UG95: 0 | UH95: 0 | UI95: 0 | UJ95: 0 | UK95: 0 | UL95: 0 | UM95: 0 | UN95: 0 | UO95: 0 | UP95: 0 | UQ95: 0 | UR95: 0 | US95: 0 | UT95: 0 | UU95: 0 | UV95: 0 | UW95: 0 | UX95: 0 | UY95: 0 | UZ95: 0 | VA95: 0 | VB95: 0 | VC95: 0 | VD95: 0 | VE95: 0 | VF95: 0 | VG95: 0 | VH95: 0 | VI95: 0 | VJ95: 0 | VK95: 0 | VL95: 0 | VM95: 0 | VN95: =VN94*$F$95 -> 0 | VO95: 0 | VP95: 0 | VQ95: 0 | VR95: 0 | VS95: 0 | VT95: 0 | VU95: 0 | VV95: 0 | VW95: 0 | VX95: 0 | VY95: 0 | VZ95: 0 | WA95: 0 | WB95: 0 | WC95: 0 | WD95: 0 | WE95: 0 | WF95: 0 | WG95: 0 | WH95: 0 | WI95: 0 | WJ95: 0 | WK95: 0 | WL95: 0 | WM95: 0 | WN95: 0 | WO95: 0 | WP95: 0 | WQ95: 0 | WR95: 0 | WS95: 0 | WT95: 0 | WU95: 0 | WV95: 0 | WW95: 0 | WX95: 0 | WY95: 0 | WZ95: 0 | XA95: 0 | XB95: 0 | XC95: 0 | XD95: 0 | XE95: 0 | XF95: 0 | XG95: 0 | XH95: 0 | XI95: 0 | XJ95: 0 | XK95: 0 | XL95: 0 | XM95: 0 | XN95: 0 | XO95: 0 | XP95: 0 | XQ95: 0 | XR95: 0 | XS95: 0 | XT95: 0 | XU95: 0 | XV95: 0 | XW95: 0 | XX95: 0 | XY95: 0 | XZ95: =XZ94*$F$95 -> 0 | YA95: 0 | YB95: 0 | YC95: 0 | YD95: 0 | YE95: 0 | YF95: 0 | YG95: 0 | YH95: 0 | YI95: 0 | YJ95: 0 | YK95: 0 | YL95: 0 | YM95: 0 | YN95: 0 | YO95: 0 | YP95: 0 | YQ95: 0 | YR95: 0 | YS95: 0 | YT95: 0 | YU95: 0 | YV95: 0 | YW95: 0 | YX95: 0 | YY95: 0 | YZ95: 0 | ZA95: 0 | ZB95: 0 | ZC95: 0 | ZD95: 0 | ZE95: 0 | ZF95: 0 | ZG95: 0 | ZH95: 0 | ZI95: 0 | ZJ95: 0 | ZK95: 0 | ZL95: 0 | ZM95: 0 | ZN95: 0 | ZO95: 0 | ZP95: 0 | ZQ95: 0 | ZR95: 0 | ZS95: 0 | ZT95: 0 | ZU95: 0 | ZV95: 0 | ZW95: 0 | ZX95: 0 | ZY95: 0 | ZZ95: 0 | AAA95: 0 | AAB95: 0 | AAC95: 0 | AAD95: 0 | AAE95: 0 | AAF95: 0 | AAG95: 0 | AAH95: 0 | AAI95: 0 | AAJ95: 0 | AAK95: 0 | AAL95: =AAL94*$F$95 -> 0 | AAM95: 0 | AAN95: 0 | AAO95: 0 | AAP95: 0 | AAQ95: 0 | AAR95: 0 | AAS95: 0 | AAT95: 0 | AAU95: 0 | AAV95: 0 | AAW95: 0 | AAX95: 0 | AAY95: 0 | AAZ95: 0 | ABA95: 0 | ABB95: 0 | ABC95: 0 | ABD95: 0 | ABE95: 0 | ABF95: 0 | ABG95: 0 | ABH95: 0 | ABI95: 0 | ABJ95: 0 | ABK95: 0 | ABL95: 0 | ABM95: 0 | ABN95: 0 | ABO95: 0 | ABP95: 0 | ABQ95: 0 | ABR95: 0 | ABS95: 0 | ABT95: 0 | ABU95: 0 | ABV95: 0 | ABW95: 0 | ABX95: 0 | ABY95: 0 | ABZ95: 0 | ACA95: 0 | ACB95: 0 | ACC95: 0 | ACD95: 0 | ACE95: 0 | ACF95: 0 | ACG95: 0 | ACH95: 0 | ACI95: 0 | ACJ95: 0 | ACK95: 0 | ACL95: 0 | ACM95: 0 | ACN95: 0 | ACO95: 0 | ACP95: 0 | ACQ95: 0 | ACR95: 0 | ACS95: 0 | ACT95: 0 | ACU95: 0 | ACV95: 0 | ACW95: 0 | ACX95: =ACX94*$F$95 -> 0 | ACY95: 0 | ACZ95: 0 | ADA95: 0 | ADB95: 0 | ADC95: 0 | ADD95: 0 | ADE95: 0 | ADF95: 0 | ADG95: 0 | ADH95: 0 | ADI95: 0 | ADJ95: 0 | ADK95: 0 | ADL95: 0 | ADM95: 0 | ADN95: 0 | ADO95: 0 | ADP95: 0 | ADQ95: 0 | ADR95: 0 | ADS95: 0 | ADT95: 0 | ADU95: 0 | ADV95: 0 | ADW95: 0 | ADX95: 0 | ADY95: 0 | ADZ95: 0 | AEA95: 0 | AEB95: 0 | AEC95: 0 | AED95: 0 | AEE95: 0 | AEF95: 0 | AEG95: 0 | AEH95: 0 | AEI95: 0 | AEJ95: 0 | AEK95: 0 | AEL95: 0 | AEM95: 0 | AEN95: 0 | AEO95: 0 | AEP95: 0 | AEQ95: 0 | AER95: 0 | AES95: 0 | AET95: 0 | AEU95: 0 | AEV95: 0 | AEW95: 0 | AEX95: 0 | AEY95: 0 | AEZ95: 0 | AFA95: 0 | AFB95: 0 | AFC95: 0 | AFD95: 0 | AFE95: 0 | AFF95: 0 | AFG95: 0 | AFH95: 0 | AFI95: 0 | AFJ95: =AFJ94*$F$95 -> 0 | AFK95: 0 | AFL95: 0 | AFM95: 0 | AFN95: 0 | AFO95: 0 | AFP95: 0 | AFQ95: 0 | AFR95: 0 | AFS95: 0 | AFT95: 0 | AFU95: 0 | AFV95: 0 | AFW95: 0 | AFX95: 0 | AFY95: 0 | AFZ95: 0 | AGA95: 0 | AGB95: 0 | AGC95: 0 | AGD95: 0 | AGE95: 0 | AGF95: 0 | AGG95: 0 | AGH95: 0 | AGI95: 0 | AGJ95: 0 | AGK95: 0
B96: Replacement with Inflation | E96: Currency | F96: =SUM(I96:AGK96) -> 0 | I96: =I95*I76 -> 0 | J96: =J95*J76 -> 0 | K96: 0 | L96: 0 | M96: 0 | N96: 0 | O96: 0 | P96: 0 | Q96: 0 | R96: 0 | S96: 0 | T96: 0 | U96: 0 | V96: 0 | W96: 0 | X96: 0 | Y96: 0 | Z96: 0 | AA96: 0 | AB96: 0 | AC96: 0 | AD96: 0 | AE96: 0 | AF96: 0 | AG96: 0 | AH96: 0 | AI96: 0 | AJ96: 0 | AK96: 0 | AL96: 0 | AM96: 0 | AN96: 0 | AO96: 0 | AP96: 0 | AQ96: 0 | AR96: 0 | AS96: 0 | AT96: 0 | AU96: 0 | AV96: 0 | AW96: 0 | AX96: 0 | AY96: 0 | AZ96: 0 | BA96: 0 | BB96: 0 | BC96: 0 | BD96: 0 | BE96: 0 | BF96: 0 | BG96: 0 | BH96: 0 | BI96: 0 | BJ96: 0 | BK96: 0 | BL96: 0 | BM96: 0 | BN96: 0 | BO96: 0 | BP96: 0 | BQ96: 0 | BR96: 0 | BS96: 0 | BT96: 0 | BU96: 0 | BV96: =BV95*BV76 -> 0 | BW96: 0 | BX96: 0 | BY96: 0 | BZ96: 0 | CA96: 0 | CB96: 0 | CC96: 0 | CD96: 0 | CE96: 0 | CF96: 0 | CG96: 0 | CH96: 0 | CI96: 0 | CJ96: 0 | CK96: 0 | CL96: 0 | CM96: 0 | CN96: 0 | CO96: 0 | CP96: 0 | CQ96: 0 | CR96: 0 | CS96: 0 | CT96: 0 | CU96: 0 | CV96: 0 | CW96: 0 | CX96: 0 | CY96: 0 | CZ96: 0 | DA96: 0 | DB96: 0 | DC96: 0 | DD96: 0 | DE96: 0 | DF96: 0 | DG96: 0 | DH96: 0 | DI96: 0 | DJ96: 0 | DK96: 0 | DL96: 0 | DM96: 0 | DN96: 0 | DO96: 0 | DP96: 0 | DQ96: 0 | DR96: 0 | DS96: 0 | DT96: 0 | DU96: 0 | DV96: 0 | DW96: 0 | DX96: 0 | DY96: 0 | DZ96: 0 | EA96: 0 | EB96: 0 | EC96: 0 | ED96: 0 | EE96: 0 | EF96: 0 | EG96: 0 | EH96: =EH95*EH76 -> 0 | EI96: 0 | EJ96: 0 | EK96: 0 | EL96: 0 | EM96: 0 | EN96: 0 | EO96: 0 | EP96: 0 | EQ96: 0 | ER96: 0 | ES96: 0 | ET96: 0 | EU96: 0 | EV96: 0 | EW96: 0 | EX96: 0 | EY96: 0 | EZ96: 0 | FA96: 0 | FB96: 0 | FC96: 0 | FD96: 0 | FE96: 0 | FF96: 0 | FG96: 0 | FH96: 0 | FI96: 0 | FJ96: 0 | FK96: 0 | FL96: 0 | FM96: 0 | FN96: 0 | FO96: 0 | FP96: 0 | FQ96: 0 | FR96: 0 | FS96: 0 | FT96: 0 | FU96: 0 | FV96: 0 | FW96: 0 | FX96: 0 | FY96: 0 | FZ96: 0 | GA96: 0 | GB96: 0 | GC96: 0 | GD96: 0 | GE96: 0 | GF96: 0 | GG96: 0 | GH96: 0 | GI96: 0 | GJ96: 0 | GK96: 0 | GL96: 0 | GM96: 0 | GN96: 0 | GO96: 0 | GP96: 0 | GQ96: 0 | GR96: 0 | GS96: 0 | GT96: =GT95*GT76 -> 0 | GU96: 0 | GV96: 0 | GW96: 0 | GX96: 0 | GY96: 0 | GZ96: 0 | HA96: 0 | HB96: 0 | HC96: 0 | HD96: 0 | HE96: 0 | HF96: 0 | HG96: 0 | HH96: 0 | HI96: 0 | HJ96: 0 | HK96: 0 | HL96: 0 | HM96: 0 | HN96: 0 | HO96: 0 | HP96: 0 | HQ96: 0 | HR96: 0 | HS96: 0 | HT96: 0 | HU96: 0 | HV96: 0 | HW96: 0 | HX96: 0 | HY96: 0 | HZ96: 0 | IA96: 0 | IB96: 0 | IC96: 0 | ID96: 0 | IE96: 0 | IF96: 0 | IG96: 0 | IH96: 0 | II96: 0 | IJ96: 0 | IK96: 0 | IL96: 0 | IM96: 0 | IN96: 0 | IO96: 0 | IP96: 0 | IQ96: 0 | IR96: 0 | IS96: 0 | IT96: 0 | IU96: 0 | IV96: 0 | IW96: 0 | IX96: 0 | IY96: 0 | IZ96: 0 | JA96: 0 | JB96: 0 | JC96: 0 | JD96: 0 | JE96: 0 | JF96: =JF95*JF76 -> 0 | JG96: 0 | JH96: 0 | JI96: 0 | JJ96: 0 | JK96: 0 | JL96: 0 | JM96: 0 | JN96: 0 | JO96: 0 | JP96: 0 | JQ96: 0 | JR96: 0 | JS96: 0 | JT96: 0 | JU96: 0 | JV96: 0 | JW96: 0 | JX96: 0 | JY96: 0 | JZ96: 0 | KA96: 0 | KB96: 0 | KC96: 0 | KD96: 0 | KE96: 0 | KF96: 0 | KG96: 0 | KH96: 0 | KI96: 0 | KJ96: 0 | KK96: 0 | KL96: 0 | KM96: 0 | KN96: 0 | KO96: 0 | KP96: 0 | KQ96: 0 | KR96: 0 | KS96: 0 | KT96: 0 | KU96: 0 | KV96: 0 | KW96: 0 | KX96: 0 | KY96: 0 | KZ96: 0 | LA96: 0 | LB96: 0 | LC96: 0 | LD96: 0 | LE96: 0 | LF96: 0 | LG96: 0 | LH96: 0 | LI96: 0 | LJ96: 0 | LK96: 0 | LL96: 0 | LM96: 0 | LN96: 0 | LO96: 0 | LP96: 0 | LQ96: 0 | LR96: =LR95*LR76 -> 0 | LS96: 0 | LT96: 0 | LU96: 0 | LV96: 0 | LW96: 0 | LX96: 0 | LY96: 0 | LZ96: 0 | MA96: 0 | MB96: 0 | MC96: 0 | MD96: 0 | ME96: 0 | MF96: 0 | MG96: 0 | MH96: 0 | MI96: 0 | MJ96: 0 | MK96: 0 | ML96: 0 | MM96: 0 | MN96: 0 | MO96: 0 | MP96: 0 | MQ96: 0 | MR96: 0 | MS96: 0 | MT96: 0 | MU96: 0 | MV96: 0 | MW96: 0 | MX96: 0 | MY96: 0 | MZ96: 0 | NA96: 0 | NB96: 0 | NC96: 0 | ND96: 0 | NE96: 0 | NF96: 0 | NG96: 0 | NH96: 0 | NI96: 0 | NJ96: 0 | NK96: 0 | NL96: 0 | NM96: 0 | NN96: 0 | NO96: 0 | NP96: 0 | NQ96: 0 | NR96: 0 | NS96: 0 | NT96: 0 | NU96: 0 | NV96: 0 | NW96: 0 | NX96: 0 | NY96: 0 | NZ96: 0 | OA96: 0 | OB96: 0 | OC96: 0 | OD96: =OD95*OD76 -> 0 | OE96: 0 | OF96: 0 | OG96: 0 | OH96: 0 | OI96: 0 | OJ96: 0 | OK96: 0 | OL96: 0 | OM96: 0 | ON96: 0 | OO96: 0 | OP96: 0 | OQ96: 0 | OR96: 0 | OS96: 0 | OT96: 0 | OU96: 0 | OV96: 0 | OW96: 0 | OX96: 0 | OY96: 0 | OZ96: 0 | PA96: 0 | PB96: 0 | PC96: 0 | PD96: 0 | PE96: 0 | PF96: 0 | PG96: 0 | PH96: 0 | PI96: 0 | PJ96: 0 | PK96: 0 | PL96: 0 | PM96: 0 | PN96: 0 | PO96: 0 | PP96: 0 | PQ96: 0 | PR96: 0 | PS96: 0 | PT96: 0 | PU96: 0 | PV96: 0 | PW96: 0 | PX96: 0 | PY96: 0 | PZ96: 0 | QA96: 0 | QB96: 0 | QC96: 0 | QD96: 0 | QE96: 0 | QF96: 0 | QG96: 0 | QH96: 0 | QI96: 0 | QJ96: 0 | QK96: 0 | QL96: 0 | QM96: 0 | QN96: 0 | QO96: 0 | QP96: =QP95*QP76 -> 0 | QQ96: 0 | QR96: 0 | QS96: 0 | QT96: 0 | QU96: 0 | QV96: 0 | QW96: 0 | QX96: 0 | QY96: 0 | QZ96: 0 | RA96: 0 | RB96: 0 | RC96: 0 | RD96: 0 | RE96: 0 | RF96: 0 | RG96: 0 | RH96: 0 | RI96: 0 | RJ96: 0 | RK96: 0 | RL96: 0 | RM96: 0 | RN96: 0 | RO96: 0 | RP96: 0 | RQ96: 0 | RR96: 0 | RS96: 0 | RT96: 0 | RU96: 0 | RV96: 0 | RW96: 0 | RX96: 0 | RY96: 0 | RZ96: 0 | SA96: 0 | SB96: 0 | SC96: 0 | SD96: 0 | SE96: 0 | SF96: 0 | SG96: 0 | SH96: 0 | SI96: 0 | SJ96: 0 | SK96: 0 | SL96: 0 | SM96: 0 | SN96: 0 | SO96: 0 | SP96: 0 | SQ96: 0 | SR96: 0 | SS96: 0 | ST96: 0 | SU96: 0 | SV96: 0 | SW96: 0 | SX96: 0 | SY96: 0 | SZ96: 0 | TA96: 0 | TB96: =TB95*TB76 -> 0 | TC96: 0 | TD96: 0 | TE96: 0 | TF96: 0 | TG96: 0 | TH96: 0 | TI96: 0 | TJ96: 0 | TK96: 0 | TL96: 0 | TM96: 0 | TN96: 0 | TO96: 0 | TP96: 0 | TQ96: 0 | TR96: 0 | TS96: 0 | TT96: 0 | TU96: 0 | TV96: 0 | TW96: 0 | TX96: 0 | TY96: 0 | TZ96: 0 | UA96: 0 | UB96: 0 | UC96: 0 | UD96: 0 | UE96: 0 | UF96: 0 | UG96: 0 | UH96: 0 | UI96: 0 | UJ96: 0 | UK96: 0 | UL96: 0 | UM96: 0 | UN96: 0 | UO96: 0 | UP96: 0 | UQ96: 0 | UR96: 0 | US96: 0 | UT96: 0 | UU96: 0 | UV96: 0 | UW96: 0 | UX96: 0 | UY96: 0 | UZ96: 0 | VA96: 0 | VB96: 0 | VC96: 0 | VD96: 0 | VE96: 0 | VF96: 0 | VG96: 0 | VH96: 0 | VI96: 0 | VJ96: 0 | VK96: 0 | VL96: 0 | VM96: 0 | VN96: =VN95*VN76 -> 0 | VO96: 0 | VP96: 0 | VQ96: 0 | VR96: 0 | VS96: 0 | VT96: 0 | VU96: 0 | VV96: 0 | VW96: 0 | VX96: 0 | VY96: 0 | VZ96: 0 | WA96: 0 | WB96: 0 | WC96: 0 | WD96: 0 | WE96: 0 | WF96: 0 | WG96: 0 | WH96: 0 | WI96: 0 | WJ96: 0 | WK96: 0 | WL96: 0 | WM96: 0 | WN96: 0 | WO96: 0 | WP96: 0 | WQ96: 0 | WR96: 0 | WS96: 0 | WT96: 0 | WU96: 0 | WV96: 0 | WW96: 0 | WX96: 0 | WY96: 0 | WZ96: 0 | XA96: 0 | XB96: 0 | XC96: 0 | XD96: 0 | XE96: 0 | XF96: 0 | XG96: 0 | XH96: 0 | XI96: 0 | XJ96: 0 | XK96: 0 | XL96: 0 | XM96: 0 | XN96: 0 | XO96: 0 | XP96: 0 | XQ96: 0 | XR96: 0 | XS96: 0 | XT96: 0 | XU96: 0 | XV96: 0 | XW96: 0 | XX96: 0 | XY96: 0 | XZ96: =XZ95*XZ76 -> 0 | YA96: 0 | YB96: 0 | YC96: 0 | YD96: 0 | YE96: 0 | YF96: 0 | YG96: 0 | YH96: 0 | YI96: 0 | YJ96: 0 | YK96: 0 | YL96: 0 | YM96: 0 | YN96: 0 | YO96: 0 | YP96: 0 | YQ96: 0 | YR96: 0 | YS96: 0 | YT96: 0 | YU96: 0 | YV96: 0 | YW96: 0 | YX96: 0 | YY96: 0 | YZ96: 0 | ZA96: 0 | ZB96: 0 | ZC96: 0 | ZD96: 0 | ZE96: 0 | ZF96: 0 | ZG96: 0 | ZH96: 0 | ZI96: 0 | ZJ96: 0 | ZK96: 0 | ZL96: 0 | ZM96: 0 | ZN96: 0 | ZO96: 0 | ZP96: 0 | ZQ96: 0 | ZR96: 0 | ZS96: 0 | ZT96: 0 | ZU96: 0 | ZV96: 0 | ZW96: 0 | ZX96: 0 | ZY96: 0 | ZZ96: 0 | AAA96: 0 | AAB96: 0 | AAC96: 0 | AAD96: 0 | AAE96: 0 | AAF96: 0 | AAG96: 0 | AAH96: 0 | AAI96: 0 | AAJ96: 0 | AAK96: 0 | AAL96: =AAL95*AAL76 -> 0 | AAM96: 0 | AAN96: 0 | AAO96: 0 | AAP96: 0 | AAQ96: 0 | AAR96: 0 | AAS96: 0 | AAT96: 0 | AAU96: 0 | AAV96: 0 | AAW96: 0 | AAX96: 0 | AAY96: 0 | AAZ96: 0 | ABA96: 0 | ABB96: 0 | ABC96: 0 | ABD96: 0 | ABE96: 0 | ABF96: 0 | ABG96: 0 | ABH96: 0 | ABI96: 0 | ABJ96: 0 | ABK96: 0 | ABL96: 0 | ABM96: 0 | ABN96: 0 | ABO96: 0 | ABP96: 0 | ABQ96: 0 | ABR96: 0 | ABS96: 0 | ABT96: 0 | ABU96: 0 | ABV96: 0 | ABW96: 0 | ABX96: 0 | ABY96: 0 | ABZ96: 0 | ACA96: 0 | ACB96: 0 | ACC96: 0 | ACD96: 0 | ACE96: 0 | ACF96: 0 | ACG96: 0 | ACH96: 0 | ACI96: 0 | ACJ96: 0 | ACK96: 0 | ACL96: 0 | ACM96: 0 | ACN96: 0 | ACO96: 0 | ACP96: 0 | ACQ96: 0 | ACR96: 0 | ACS96: 0 | ACT96: 0 | ACU96: 0 | ACV96: 0 | ACW96: 0 | ACX96: =ACX95*ACX76 -> 0 | ACY96: 0 | ACZ96: 0 | ADA96: 0 | ADB96: 0 | ADC96: 0 | ADD96: 0 | ADE96: 0 | ADF96: 0 | ADG96: 0 | ADH96: 0 | ADI96: 0 | ADJ96: 0 | ADK96: 0 | ADL96: 0 | ADM96: 0 | ADN96: 0 | ADO96: 0 | ADP96: 0 | ADQ96: 0 | ADR96: 0 | ADS96: 0 | ADT96: 0 | ADU96: 0 | ADV96: 0 | ADW96: 0 | ADX96: 0 | ADY96: 0 | ADZ96: 0 | AEA96: 0 | AEB96: 0 | AEC96: 0 | AED96: 0 | AEE96: 0 | AEF96: 0 | AEG96: 0 | AEH96: 0 | AEI96: 0 | AEJ96: 0 | AEK96: 0 | AEL96: 0 | AEM96: 0 | AEN96: 0 | AEO96: 0 | AEP96: 0 | AEQ96: 0 | AER96: 0 | AES96: 0 | AET96: 0 | AEU96: 0 | AEV96: 0 | AEW96: 0 | AEX96: 0 | AEY96: 0 | AEZ96: 0 | AFA96: 0 | AFB96: 0 | AFC96: 0 | AFD96: 0 | AFE96: 0 | AFF96: 0 | AFG96: 0 | AFH96: 0 | AFI96: 0 | AFJ96: =AFJ95*AFJ76 -> 0 | AFK96: 0 | AFL96: 0 | AFM96: 0 | AFN96: 0 | AFO96: 0 | AFP96: 0 | AFQ96: 0 | AFR96: 0 | AFS96: 0 | AFT96: 0 | AFU96: 0 | AFV96: 0 | AFW96: 0 | AFX96: 0 | AFY96: 0 | AFZ96: 0 | AGA96: 0 | AGB96: 0 | AGC96: 0 | AGD96: 0 | AGE96: 0 | AGF96: 0 | AGG96: 0 | AGH96: 0 | AGI96: 0 | AGJ96: 0 | AGK96: 0
B97: Decomissioning Date | E97: Switch | F97: =EDATE(F46,-F6) -> 2020-03-01 | I97: =$F$97=I7 -> FALSE | J97: FALSE | K97: FALSE | L97: FALSE | M97: FALSE | N97: FALSE | O97: FALSE | P97: FALSE | Q97: FALSE | R97: FALSE | S97: FALSE | T97: FALSE | U97: FALSE | V97: FALSE | W97: FALSE | X97: FALSE | Y97: FALSE | Z97: FALSE | AA97: FALSE | AB97: FALSE | AC97: TRUE | AD97: FALSE | AE97: FALSE | AF97: FALSE | AG97: FALSE | AH97: FALSE | AI97: FALSE | AJ97: FALSE | AK97: FALSE | AL97: FALSE | AM97: FALSE | AN97: FALSE | AO97: FALSE | AP97: FALSE | AQ97: FALSE | AR97: FALSE | AS97: FALSE | AT97: FALSE | AU97: FALSE | AV97: FALSE | AW97: FALSE | AX97: FALSE | AY97: FALSE | AZ97: FALSE | BA97: FALSE | BB97: FALSE | BC97: FALSE | BD97: FALSE | BE97: FALSE | BF97: FALSE | BG97: FALSE | BH97: FALSE | BI97: FALSE | BJ97: FALSE | BK97: FALSE | BL97: FALSE | BM97: FALSE | BN97: FALSE | BO97: FALSE | BP97: FALSE | BQ97: FALSE | BR97: FALSE | BS97: FALSE | BT97: FALSE | BU97: =$F$97=BU7 -> FALSE | BV97: FALSE | BW97: FALSE | BX97: FALSE | BY97: FALSE | BZ97: FALSE | CA97: FALSE | CB97: FALSE | CC97: FALSE | CD97: FALSE | CE97: FALSE | CF97: FALSE | CG97: FALSE | CH97: FALSE | CI97: FALSE | CJ97: FALSE | CK97: FALSE | CL97: FALSE | CM97: FALSE | CN97: FALSE | CO97: FALSE | CP97: FALSE | CQ97: FALSE | CR97: FALSE | CS97: FALSE | CT97: FALSE | CU97: FALSE | CV97: FALSE | CW97: FALSE | CX97: FALSE | CY97: FALSE | CZ97: FALSE | DA97: FALSE | DB97: FALSE | DC97: FALSE | DD97: FALSE | DE97: FALSE | DF97: FALSE | DG97: FALSE | DH97: FALSE | DI97: FALSE | DJ97: FALSE | DK97: FALSE | DL97: FALSE | DM97: FALSE | DN97: FALSE | DO97: FALSE | DP97: FALSE | DQ97: FALSE | DR97: FALSE | DS97: FALSE | DT97: FALSE | DU97: FALSE | DV97: FALSE | DW97: FALSE | DX97: FALSE | DY97: FALSE | DZ97: FALSE | EA97: FALSE | EB97: FALSE | EC97: FALSE | ED97: FALSE | EE97: FALSE | EF97: FALSE | EG97: =$F$97=EG7 -> FALSE | EH97: FALSE | EI97: FALSE | EJ97: FALSE | EK97: FALSE | EL97: FALSE | EM97: FALSE | EN97: FALSE | EO97: FALSE | EP97: FALSE | EQ97: FALSE | ER97: FALSE | ES97: FALSE | ET97: FALSE | EU97: FALSE | EV97: FALSE | EW97: FALSE | EX97: FALSE | EY97: FALSE | EZ97: FALSE | FA97: FALSE | FB97: FALSE | FC97: FALSE | FD97: FALSE | FE97: FALSE | FF97: FALSE | FG97: FALSE | FH97: FALSE | FI97: FALSE | FJ97: FALSE | FK97: FALSE | FL97: FALSE | FM97: FALSE | FN97: FALSE | FO97: FALSE | FP97: FALSE | FQ97: FALSE | FR97: FALSE | FS97: FALSE | FT97: FALSE | FU97: FALSE | FV97: FALSE | FW97: FALSE | FX97: FALSE | FY97: FALSE | FZ97: FALSE | GA97: FALSE | GB97: FALSE | GC97: FALSE | GD97: FALSE | GE97: FALSE | GF97: FALSE | GG97: FALSE | GH97: FALSE | GI97: FALSE | GJ97: FALSE | GK97: FALSE | GL97: FALSE | GM97: FALSE | GN97: FALSE | GO97: FALSE | GP97: FALSE | GQ97: FALSE | GR97: FALSE | GS97: =$F$97=GS7 -> FALSE | GT97: FALSE | GU97: FALSE | GV97: FALSE | GW97: FALSE | GX97: FALSE | GY97: FALSE | GZ97: FALSE | HA97: FALSE | HB97: FALSE | HC97: FALSE | HD97: FALSE | HE97: FALSE | HF97: FALSE | HG97: FALSE | HH97: FALSE | HI97: FALSE | HJ97: FALSE | HK97: FALSE | HL97: FALSE | HM97: FALSE | HN97: FALSE | HO97: FALSE | HP97: FALSE | HQ97: FALSE | HR97: FALSE | HS97: FALSE | HT97: FALSE | HU97: FALSE | HV97: FALSE | HW97: FALSE | HX97: FALSE | HY97: FALSE | HZ97: FALSE | IA97: FALSE | IB97: FALSE | IC97: FALSE | ID97: FALSE | IE97: FALSE | IF97: FALSE | IG97: FALSE | IH97: FALSE | II97: FALSE | IJ97: FALSE | IK97: FALSE | IL97: FALSE | IM97: FALSE | IN97: FALSE | IO97: FALSE | IP97: FALSE | IQ97: FALSE | IR97: FALSE | IS97: FALSE | IT97: FALSE | IU97: FALSE | IV97: FALSE | IW97: FALSE | IX97: FALSE | IY97: FALSE | IZ97: FALSE | JA97: FALSE | JB97: FALSE | JC97: FALSE | JD97: FALSE | JE97: =$F$97=JE7 -> FALSE | JF97: FALSE | JG97: FALSE | JH97: FALSE | JI97: FALSE | JJ97: FALSE | JK97: FALSE | JL97: FALSE | JM97: FALSE | JN97: FALSE | JO97: FALSE | JP97: FALSE | JQ97: FALSE | JR97: FALSE | JS97: FALSE | JT97: FALSE | JU97: FALSE | JV97: FALSE | JW97: FALSE | JX97: FALSE | JY97: FALSE | JZ97: FALSE | KA97: FALSE | KB97: FALSE | KC97: FALSE | KD97: FALSE | KE97: FALSE | KF97: FALSE | KG97: FALSE | KH97: FALSE | KI97: FALSE | KJ97: FALSE | KK97: FALSE | KL97: FALSE | KM97: FALSE | KN97: FALSE | KO97: FALSE | KP97: FALSE | KQ97: FALSE | KR97: FALSE | KS97: FALSE | KT97: FALSE | KU97: FALSE | KV97: FALSE | KW97: FALSE | KX97: FALSE | KY97: FALSE | KZ97: FALSE | LA97: FALSE | LB97: FALSE | LC97: FALSE | LD97: FALSE | LE97: FALSE | LF97: FALSE | LG97: FALSE | LH97: FALSE | LI97: FALSE | LJ97: FALSE | LK97: FALSE | LL97: FALSE | LM97: FALSE | LN97: FALSE | LO97: FALSE | LP97: FALSE | LQ97: =$F$97=LQ7 -> FALSE | LR97: FALSE | LS97: FALSE | LT97: FALSE | LU97: FALSE | LV97: FALSE | LW97: FALSE | LX97: FALSE | LY97: FALSE | LZ97: FALSE | MA97: FALSE | MB97: FALSE | MC97: FALSE | MD97: FALSE | ME97: FALSE | MF97: FALSE | MG97: FALSE | MH97: FALSE | MI97: FALSE | MJ97: FALSE | MK97: FALSE | ML97: FALSE | MM97: FALSE | MN97: FALSE | MO97: FALSE | MP97: FALSE | MQ97: FALSE | MR97: FALSE | MS97: FALSE | MT97: FALSE | MU97: FALSE | MV97: FALSE | MW97: FALSE | MX97: FALSE | MY97: FALSE | MZ97: FALSE | NA97: FALSE | NB97: FALSE | NC97: FALSE | ND97: FALSE | NE97: FALSE | NF97: FALSE | NG97: FALSE | NH97: FALSE | NI97: FALSE | NJ97: FALSE | NK97: FALSE | NL97: FALSE | NM97: FALSE | NN97: FALSE | NO97: FALSE | NP97: FALSE | NQ97: FALSE | NR97: FALSE | NS97: FALSE | NT97: FALSE | NU97: FALSE | NV97: FALSE | NW97: FALSE | NX97: FALSE | NY97: FALSE | NZ97: FALSE | OA97: FALSE | OB97: FALSE | OC97: =$F$97=OC7 -> FALSE | OD97: FALSE | OE97: FALSE | OF97: FALSE | OG97: FALSE | OH97: FALSE | OI97: FALSE | OJ97: FALSE | OK97: FALSE | OL97: FALSE | OM97: FALSE | ON97: FALSE | OO97: FALSE | OP97: FALSE | OQ97: FALSE | OR97: FALSE | OS97: FALSE | OT97: FALSE | OU97: FALSE | OV97: FALSE | OW97: FALSE | OX97: FALSE | OY97: FALSE | OZ97: FALSE | PA97: FALSE | PB97: FALSE | PC97: FALSE | PD97: FALSE | PE97: FALSE | PF97: FALSE | PG97: FALSE | PH97: FALSE | PI97: FALSE | PJ97: FALSE | PK97: FALSE | PL97: FALSE | PM97: FALSE | PN97: FALSE | PO97: FALSE | PP97: FALSE | PQ97: FALSE | PR97: FALSE | PS97: FALSE | PT97: FALSE | PU97: FALSE | PV97: FALSE | PW97: FALSE | PX97: FALSE | PY97: FALSE | PZ97: FALSE | QA97: FALSE | QB97: FALSE | QC97: FALSE | QD97: FALSE | QE97: FALSE | QF97: FALSE | QG97: FALSE | QH97: FALSE | QI97: FALSE | QJ97: FALSE | QK97: FALSE | QL97: FALSE | QM97: FALSE | QN97: FALSE | QO97: =$F$97=QO7 -> FALSE | QP97: FALSE | QQ97: FALSE | QR97: FALSE | QS97: FALSE | QT97: FALSE | QU97: FALSE | QV97: FALSE | QW97: FALSE | QX97: FALSE | QY97: FALSE | QZ97: FALSE | RA97: FALSE | RB97: FALSE | RC97: FALSE | RD97: FALSE | RE97: FALSE | RF97: FALSE | RG97: FALSE | RH97: FALSE | RI97: FALSE | RJ97: FALSE | RK97: FALSE | RL97: FALSE | RM97: FALSE | RN97: FALSE | RO97: FALSE | RP97: FALSE | RQ97: FALSE | RR97: FALSE | RS97: FALSE | RT97: FALSE | RU97: FALSE | RV97: FALSE | RW97: FALSE | RX97: FALSE | RY97: FALSE | RZ97: FALSE | SA97: FALSE | SB97: FALSE | SC97: FALSE | SD97: FALSE | SE97: FALSE | SF97: FALSE | SG97: FALSE | SH97: FALSE | SI97: FALSE | SJ97: FALSE | SK97: FALSE | SL97: FALSE | SM97: FALSE | SN97: FALSE | SO97: FALSE | SP97: FALSE | SQ97: FALSE | SR97: FALSE | SS97: FALSE | ST97: FALSE | SU97: FALSE | SV97: FALSE | SW97: FALSE | SX97: FALSE | SY97: FALSE | SZ97: FALSE | TA97: =$F$97=TA7 -> FALSE | TB97: FALSE | TC97: FALSE | TD97: FALSE | TE97: FALSE | TF97: FALSE | TG97: FALSE | TH97: FALSE | TI97: FALSE | TJ97: FALSE | TK97: FALSE | TL97: FALSE | TM97: FALSE | TN97: FALSE | TO97: FALSE | TP97: FALSE | TQ97: FALSE | TR97: FALSE | TS97: FALSE | TT97: FALSE | TU97: FALSE | TV97: FALSE | TW97: FALSE | TX97: FALSE | TY97: FALSE | TZ97: FALSE | UA97: FALSE | UB97: FALSE | UC97: FALSE | UD97: FALSE | UE97: FALSE | UF97: FALSE | UG97: FALSE | UH97: FALSE | UI97: FALSE | UJ97: FALSE | UK97: FALSE | UL97: FALSE | UM97: FALSE | UN97: FALSE | UO97: FALSE | UP97: FALSE | UQ97: FALSE | UR97: FALSE | US97: FALSE | UT97: FALSE | UU97: FALSE | UV97: FALSE | UW97: FALSE | UX97: FALSE | UY97: FALSE | UZ97: FALSE | VA97: FALSE | VB97: FALSE | VC97: FALSE | VD97: FALSE | VE97: FALSE | VF97: FALSE | VG97: FALSE | VH97: FALSE | VI97: FALSE | VJ97: FALSE | VK97: FALSE | VL97: FALSE | VM97: =$F$97=VM7 -> FALSE | VN97: FALSE | VO97: FALSE | VP97: FALSE | VQ97: FALSE | VR97: FALSE | VS97: FALSE | VT97: FALSE | VU97: FALSE | VV97: FALSE | VW97: FALSE | VX97: FALSE | VY97: FALSE | VZ97: FALSE | WA97: FALSE | WB97: FALSE | WC97: FALSE | WD97: FALSE | WE97: FALSE | WF97: FALSE | WG97: FALSE | WH97: FALSE | WI97: FALSE | WJ97: FALSE | WK97: FALSE | WL97: FALSE | WM97: FALSE | WN97: FALSE | WO97: FALSE | WP97: FALSE | WQ97: FALSE | WR97: FALSE | WS97: FALSE | WT97: FALSE | WU97: FALSE | WV97: FALSE | WW97: FALSE | WX97: FALSE | WY97: FALSE | WZ97: FALSE | XA97: FALSE | XB97: FALSE | XC97: FALSE | XD97: FALSE | XE97: FALSE | XF97: FALSE | XG97: FALSE | XH97: FALSE | XI97: FALSE | XJ97: FALSE | XK97: FALSE | XL97: FALSE | XM97: FALSE | XN97: FALSE | XO97: FALSE | XP97: FALSE | XQ97: FALSE | XR97: FALSE | XS97: FALSE | XT97: FALSE | XU97: FALSE | XV97: FALSE | XW97: FALSE | XX97: FALSE | XY97: =$F$97=XY7 -> FALSE | XZ97: FALSE | YA97: FALSE | YB97: FALSE | YC97: FALSE | YD97: FALSE | YE97: FALSE | YF97: FALSE | YG97: FALSE | YH97: FALSE | YI97: FALSE | YJ97: FALSE | YK97: FALSE | YL97: FALSE | YM97: FALSE | YN97: FALSE | YO97: FALSE | YP97: FALSE | YQ97: FALSE | YR97: FALSE | YS97: FALSE | YT97: FALSE | YU97: FALSE | YV97: FALSE | YW97: FALSE | YX97: FALSE | YY97: FALSE | YZ97: FALSE | ZA97: FALSE | ZB97: FALSE | ZC97: FALSE | ZD97: FALSE | ZE97: FALSE | ZF97: FALSE | ZG97: FALSE | ZH97: FALSE | ZI97: FALSE | ZJ97: FALSE | ZK97: FALSE | ZL97: FALSE | ZM97: FALSE | ZN97: FALSE | ZO97: FALSE | ZP97: FALSE | ZQ97: FALSE | ZR97: FALSE | ZS97: FALSE | ZT97: FALSE | ZU97: FALSE | ZV97: FALSE | ZW97: FALSE | ZX97: FALSE | ZY97: FALSE | ZZ97: FALSE | AAA97: FALSE | AAB97: FALSE | AAC97: FALSE | AAD97: FALSE | AAE97: FALSE | AAF97: FALSE | AAG97: FALSE | AAH97: FALSE | AAI97: FALSE | AAJ97: FALSE | AAK97: =$F$97=AAK7 -> FALSE | AAL97: FALSE | AAM97: FALSE | AAN97: FALSE | AAO97: FALSE | AAP97: FALSE | AAQ97: FALSE | AAR97: FALSE | AAS97: FALSE | AAT97: FALSE | AAU97: FALSE | AAV97: FALSE | AAW97: FALSE | AAX97: FALSE | AAY97: FALSE | AAZ97: FALSE | ABA97: FALSE | ABB97: FALSE | ABC97: FALSE | ABD97: FALSE | ABE97: FALSE | ABF97: FALSE | ABG97: FALSE | ABH97: FALSE | ABI97: FALSE | ABJ97: FALSE | ABK97: FALSE | ABL97: FALSE | ABM97: FALSE | ABN97: FALSE | ABO97: FALSE | ABP97: FALSE | ABQ97: FALSE | ABR97: FALSE | ABS97: FALSE | ABT97: FALSE | ABU97: FALSE | ABV97: FALSE | ABW97: FALSE | ABX97: FALSE | ABY97: FALSE | ABZ97: FALSE | ACA97: FALSE | ACB97: FALSE | ACC97: FALSE | ACD97: FALSE | ACE97: FALSE | ACF97: FALSE | ACG97: FALSE | ACH97: FALSE | ACI97: FALSE | ACJ97: FALSE | ACK97: FALSE | ACL97: FALSE | ACM97: FALSE | ACN97: FALSE | ACO97: FALSE | ACP97: FALSE | ACQ97: FALSE | ACR97: FALSE | ACS97: FALSE | ACT97: FALSE | ACU97: FALSE | ACV97: FALSE | ACW97: =$F$97=ACW7 -> FALSE | ACX97: FALSE | ACY97: FALSE | ACZ97: FALSE | ADA97: FALSE | ADB97: FALSE | ADC97: FALSE | ADD97: FALSE | ADE97: FALSE | ADF97: FALSE | ADG97: FALSE | ADH97: FALSE | ADI97: FALSE | ADJ97: FALSE | ADK97: FALSE | ADL97: FALSE | ADM97: FALSE | ADN97: FALSE | ADO97: FALSE | ADP97: FALSE | ADQ97: FALSE | ADR97: FALSE | ADS97: FALSE | ADT97: FALSE | ADU97: FALSE | ADV97: FALSE | ADW97: FALSE | ADX97: FALSE | ADY97: FALSE | ADZ97: FALSE | AEA97: FALSE | AEB97: FALSE | AEC97: FALSE | AED97: FALSE | AEE97: FALSE | AEF97: FALSE | AEG97: FALSE | AEH97: FALSE | AEI97: FALSE | AEJ97: FALSE | AEK97: FALSE | AEL97: FALSE | AEM97: FALSE | AEN97: FALSE | AEO97: FALSE | AEP97: FALSE | AEQ97: FALSE | AER97: FALSE | AES97: FALSE | AET97: FALSE | AEU97: FALSE | AEV97: FALSE | AEW97: FALSE | AEX97: FALSE | AEY97: FALSE | AEZ97: FALSE | AFA97: FALSE | AFB97: FALSE | AFC97: FALSE | AFD97: FALSE | AFE97: FALSE | AFF97: FALSE | AFG97: FALSE | AFH97: FALSE | AFI97: =$F$97=AFI7 -> FALSE | AFJ97: FALSE | AFK97: FALSE | AFL97: FALSE | AFM97: FALSE | AFN97: FALSE | AFO97: FALSE | AFP97: FALSE | AFQ97: FALSE | AFR97: FALSE | AFS97: FALSE | AFT97: FALSE | AFU97: FALSE | AFV97: FALSE | AFW97: FALSE | AFX97: FALSE | AFY97: FALSE | AFZ97: FALSE | AGA97: FALSE | AGB97: FALSE | AGC97: FALSE | AGD97: FALSE | AGE97: FALSE | AGF97: FALSE | AGG97: FALSE | AGH97: FALSE | AGI97: FALSE | AGJ97: FALSE | AGK97: FALSE
B98: Real Decomissioning | E98: Currency | F98: ='Carrying Charge'!F55 -> 0 | I98: =$F$98*I97 -> 0 | J98: =$F$98*J97 -> 0 | K98: 0 | L98: 0 | M98: 0 | N98: 0 | O98: 0 | P98: 0 | Q98: 0 | R98: 0 | S98: 0 | T98: 0 | U98: 0 | V98: 0 | W98: 0 | X98: 0 | Y98: 0 | Z98: 0 | AA98: 0 | AB98: 0 | AC98: 0 | AD98: 0 | AE98: 0 | AF98: 0 | AG98: 0 | AH98: 0 | AI98: 0 | AJ98: 0 | AK98: 0 | AL98: 0 | AM98: 0 | AN98: 0 | AO98: 0 | AP98: 0 | AQ98: 0 | AR98: 0 | AS98: 0 | AT98: 0 | AU98: 0 | AV98: 0 | AW98: 0 | AX98: 0 | AY98: 0 | AZ98: 0 | BA98: 0 | BB98: 0 | BC98: 0 | BD98: 0 | BE98: 0 | BF98: 0 | BG98: 0 | BH98: 0 | BI98: 0 | BJ98: 0 | BK98: 0 | BL98: 0 | BM98: 0 | BN98: 0 | BO98: 0 | BP98: 0 | BQ98: 0 | BR98: 0 | BS98: 0 | BT98: 0 | BU98: 0 | BV98: =$F$98*BV97 -> 0 | BW98: 0 | BX98: 0 | BY98: 0 | BZ98: 0 | CA98: 0 | CB98: 0 | CC98: 0 | CD98: 0 | CE98: 0 | CF98: 0 | CG98: 0 | CH98: 0 | CI98: 0 | CJ98: 0 | CK98: 0 | CL98: 0 | CM98: 0 | CN98: 0 | CO98: 0 | CP98: 0 | CQ98: 0 | CR98: 0 | CS98: 0 | CT98: 0 | CU98: 0 | CV98: 0 | CW98: 0 | CX98: 0 | CY98: 0 | CZ98: 0 | DA98: 0 | DB98: 0 | DC98: 0 | DD98: 0 | DE98: 0 | DF98: 0 | DG98: 0 | DH98: 0 | DI98: 0 | DJ98: 0 | DK98: 0 | DL98: 0 | DM98: 0 | DN98: 0 | DO98: 0 | DP98: 0 | DQ98: 0 | DR98: 0 | DS98: 0 | DT98: 0 | DU98: 0 | DV98: 0 | DW98: 0 | DX98: 0 | DY98: 0 | DZ98: 0 | EA98: 0 | EB98: 0 | EC98: 0 | ED98: 0 | EE98: 0 | EF98: 0 | EG98: 0 | EH98: =$F$98*EH97 -> 0 | EI98: 0 | EJ98: 0 | EK98: 0 | EL98: 0 | EM98: 0 | EN98: 0 | EO98: 0 | EP98: 0 | EQ98: 0 | ER98: 0 | ES98: 0 | ET98: 0 | EU98: 0 | EV98: 0 | EW98: 0 | EX98: 0 | EY98: 0 | EZ98: 0 | FA98: 0 | FB98: 0 | FC98: 0 | FD98: 0 | FE98: 0 | FF98: 0 | FG98: 0 | FH98: 0 | FI98: 0 | FJ98: 0 | FK98: 0 | FL98: 0 | FM98: 0 | FN98: 0 | FO98: 0 | FP98: 0 | FQ98: 0 | FR98: 0 | FS98: 0 | FT98: 0 | FU98: 0 | FV98: 0 | FW98: 0 | FX98: 0 | FY98: 0 | FZ98: 0 | GA98: 0 | GB98: 0 | GC98: 0 | GD98: 0 | GE98: 0 | GF98: 0 | GG98: 0 | GH98: 0 | GI98: 0 | GJ98: 0 | GK98: 0 | GL98: 0 | GM98: 0 | GN98: 0 | GO98: 0 | GP98: 0 | GQ98: 0 | GR98: 0 | GS98: 0 | GT98: =$F$98*GT97 -> 0 | GU98: 0 | GV98: 0 | GW98: 0 | GX98: 0 | GY98: 0 | GZ98: 0 | HA98: 0 | HB98: 0 | HC98: 0 | HD98: 0 | HE98: 0 | HF98: 0 | HG98: 0 | HH98: 0 | HI98: 0 | HJ98: 0 | HK98: 0 | HL98: 0 | HM98: 0 | HN98: 0 | HO98: 0 | HP98: 0 | HQ98: 0 | HR98: 0 | HS98: 0 | HT98: 0 | HU98: 0 | HV98: 0 | HW98: 0 | HX98: 0 | HY98: 0 | HZ98: 0 | IA98: 0 | IB98: 0 | IC98: 0 | ID98: 0 | IE98: 0 | IF98: 0 | IG98: 0 | IH98: 0 | II98: 0 | IJ98: 0 | IK98: 0 | IL98: 0 | IM98: 0 | IN98: 0 | IO98: 0 | IP98: 0 | IQ98: 0 | IR98: 0 | IS98: 0 | IT98: 0 | IU98: 0 | IV98: 0 | IW98: 0 | IX98: 0 | IY98: 0 | IZ98: 0 | JA98: 0 | JB98: 0 | JC98: 0 | JD98: 0 | JE98: 0 | JF98: =$F$98*JF97 -> 0 | JG98: 0 | JH98: 0 | JI98: 0 | JJ98: 0 | JK98: 0 | JL98: 0 | JM98: 0 | JN98: 0 | JO98: 0 | JP98: 0 | JQ98: 0 | JR98: 0 | JS98: 0 | JT98: 0 | JU98: 0 | JV98: 0 | JW98: 0 | JX98: 0 | JY98: 0 | JZ98: 0 | KA98: 0 | KB98: 0 | KC98: 0 | KD98: 0 | KE98: 0 | KF98: 0 | KG98: 0 | KH98: 0 | KI98: 0 | KJ98: 0 | KK98: 0 | KL98: 0 | KM98: 0 | KN98: 0 | KO98: 0 | KP98: 0 | KQ98: 0 | KR98: 0 | KS98: 0 | KT98: 0 | KU98: 0 | KV98: 0 | KW98: 0 | KX98: 0 | KY98: 0 | KZ98: 0 | LA98: 0 | LB98: 0 | LC98: 0 | LD98: 0 | LE98: 0 | LF98: 0 | LG98: 0 | LH98: 0 | LI98: 0 | LJ98: 0 | LK98: 0 | LL98: 0 | LM98: 0 | LN98: 0 | LO98: 0 | LP98: 0 | LQ98: 0 | LR98: =$F$98*LR97 -> 0 | LS98: 0 | LT98: 0 | LU98: 0 | LV98: 0 | LW98: 0 | LX98: 0 | LY98: 0 | LZ98: 0 | MA98: 0 | MB98: 0 | MC98: 0 | MD98: 0 | ME98: 0 | MF98: 0 | MG98: 0 | MH98: 0 | MI98: 0 | MJ98: 0 | MK98: 0 | ML98: 0 | MM98: 0 | MN98: 0 | MO98: 0 | MP98: 0 | MQ98: 0 | MR98: 0 | MS98: 0 | MT98: 0 | MU98: 0 | MV98: 0 | MW98: 0 | MX98: 0 | MY98: 0 | MZ98: 0 | NA98: 0 | NB98: 0 | NC98: 0 | ND98: 0 | NE98: 0 | NF98: 0 | NG98: 0 | NH98: 0 | NI98: 0 | NJ98: 0 | NK98: 0 | NL98: 0 | NM98: 0 | NN98: 0 | NO98: 0 | NP98: 0 | NQ98: 0 | NR98: 0 | NS98: 0 | NT98: 0 | NU98: 0 | NV98: 0 | NW98: 0 | NX98: 0 | NY98: 0 | NZ98: 0 | OA98: 0 | OB98: 0 | OC98: 0 | OD98: =$F$98*OD97 -> 0 | OE98: 0 | OF98: 0 | OG98: 0 | OH98: 0 | OI98: 0 | OJ98: 0 | OK98: 0 | OL98: 0 | OM98: 0 | ON98: 0 | OO98: 0 | OP98: 0 | OQ98: 0 | OR98: 0 | OS98: 0 | OT98: 0 | OU98: 0 | OV98: 0 | OW98: 0 | OX98: 0 | OY98: 0 | OZ98: 0 | PA98: 0 | PB98: 0 | PC98: 0 | PD98: 0 | PE98: 0 | PF98: 0 | PG98: 0 | PH98: 0 | PI98: 0 | PJ98: 0 | PK98: 0 | PL98: 0 | PM98: 0 | PN98: 0 | PO98: 0 | PP98: 0 | PQ98: 0 | PR98: 0 | PS98: 0 | PT98: 0 | PU98: 0 | PV98: 0 | PW98: 0 | PX98: 0 | PY98: 0 | PZ98: 0 | QA98: 0 | QB98: 0 | QC98: 0 | QD98: 0 | QE98: 0 | QF98: 0 | QG98: 0 | QH98: 0 | QI98: 0 | QJ98: 0 | QK98: 0 | QL98: 0 | QM98: 0 | QN98: 0 | QO98: 0 | QP98: =$F$98*QP97 -> 0 | QQ98: 0 | QR98: 0 | QS98: 0 | QT98: 0 | QU98: 0 | QV98: 0 | QW98: 0 | QX98: 0 | QY98: 0 | QZ98: 0 | RA98: 0 | RB98: 0 | RC98: 0 | RD98: 0 | RE98: 0 | RF98: 0 | RG98: 0 | RH98: 0 | RI98: 0 | RJ98: 0 | RK98: 0 | RL98: 0 | RM98: 0 | RN98: 0 | RO98: 0 | RP98: 0 | RQ98: 0 | RR98: 0 | RS98: 0 | RT98: 0 | RU98: 0 | RV98: 0 | RW98: 0 | RX98: 0 | RY98: 0 | RZ98: 0 | SA98: 0 | SB98: 0 | SC98: 0 | SD98: 0 | SE98: 0 | SF98: 0 | SG98: 0 | SH98: 0 | SI98: 0 | SJ98: 0 | SK98: 0 | SL98: 0 | SM98: 0 | SN98: 0 | SO98: 0 | SP98: 0 | SQ98: 0 | SR98: 0 | SS98: 0 | ST98: 0 | SU98: 0 | SV98: 0 | SW98: 0 | SX98: 0 | SY98: 0 | SZ98: 0 | TA98: 0 | TB98: =$F$98*TB97 -> 0 | TC98: 0 | TD98: 0 | TE98: 0 | TF98: 0 | TG98: 0 | TH98: 0 | TI98: 0 | TJ98: 0 | TK98: 0 | TL98: 0 | TM98: 0 | TN98: 0 | TO98: 0 | TP98: 0 | TQ98: 0 | TR98: 0 | TS98: 0 | TT98: 0 | TU98: 0 | TV98: 0 | TW98: 0 | TX98: 0 | TY98: 0 | TZ98: 0 | UA98: 0 | UB98: 0 | UC98: 0 | UD98: 0 | UE98: 0 | UF98: 0 | UG98: 0 | UH98: 0 | UI98: 0 | UJ98: 0 | UK98: 0 | UL98: 0 | UM98: 0 | UN98: 0 | UO98: 0 | UP98: 0 | UQ98: 0 | UR98: 0 | US98: 0 | UT98: 0 | UU98: 0 | UV98: 0 | UW98: 0 | UX98: 0 | UY98: 0 | UZ98: 0 | VA98: 0 | VB98: 0 | VC98: 0 | VD98: 0 | VE98: 0 | VF98: 0 | VG98: 0 | VH98: 0 | VI98: 0 | VJ98: 0 | VK98: 0 | VL98: 0 | VM98: 0 | VN98: =$F$98*VN97 -> 0 | VO98: 0 | VP98: 0 | VQ98: 0 | VR98: 0 | VS98: 0 | VT98: 0 | VU98: 0 | VV98: 0 | VW98: 0 | VX98: 0 | VY98: 0 | VZ98: 0 | WA98: 0 | WB98: 0 | WC98: 0 | WD98: 0 | WE98: 0 | WF98: 0 | WG98: 0 | WH98: 0 | WI98: 0 | WJ98: 0 | WK98: 0 | WL98: 0 | WM98: 0 | WN98: 0 | WO98: 0 | WP98: 0 | WQ98: 0 | WR98: 0 | WS98: 0 | WT98: 0 | WU98: 0 | WV98: 0 | WW98: 0 | WX98: 0 | WY98: 0 | WZ98: 0 | XA98: 0 | XB98: 0 | XC98: 0 | XD98: 0 | XE98: 0 | XF98: 0 | XG98: 0 | XH98: 0 | XI98: 0 | XJ98: 0 | XK98: 0 | XL98: 0 | XM98: 0 | XN98: 0 | XO98: 0 | XP98: 0 | XQ98: 0 | XR98: 0 | XS98: 0 | XT98: 0 | XU98: 0 | XV98: 0 | XW98: 0 | XX98: 0 | XY98: 0 | XZ98: =$F$98*XZ97 -> 0 | YA98: 0 | YB98: 0 | YC98: 0 | YD98: 0 | YE98: 0 | YF98: 0 | YG98: 0 | YH98: 0 | YI98: 0 | YJ98: 0 | YK98: 0 | YL98: 0 | YM98: 0 | YN98: 0 | YO98: 0 | YP98: 0 | YQ98: 0 | YR98: 0 | YS98: 0 | YT98: 0 | YU98: 0 | YV98: 0 | YW98: 0 | YX98: 0 | YY98: 0 | YZ98: 0 | ZA98: 0 | ZB98: 0 | ZC98: 0 | ZD98: 0 | ZE98: 0 | ZF98: 0 | ZG98: 0 | ZH98: 0 | ZI98: 0 | ZJ98: 0 | ZK98: 0 | ZL98: 0 | ZM98: 0 | ZN98: 0 | ZO98: 0 | ZP98: 0 | ZQ98: 0 | ZR98: 0 | ZS98: 0 | ZT98: 0 | ZU98: 0 | ZV98: 0 | ZW98: 0 | ZX98: 0 | ZY98: 0 | ZZ98: 0 | AAA98: 0 | AAB98: 0 | AAC98: 0 | AAD98: 0 | AAE98: 0 | AAF98: 0 | AAG98: 0 | AAH98: 0 | AAI98: 0 | AAJ98: 0 | AAK98: 0 | AAL98: =$F$98*AAL97 -> 0 | AAM98: 0 | AAN98: 0 | AAO98: 0 | AAP98: 0 | AAQ98: 0 | AAR98: 0 | AAS98: 0 | AAT98: 0 | AAU98: 0 | AAV98: 0 | AAW98: 0 | AAX98: 0 | AAY98: 0 | AAZ98: 0 | ABA98: 0 | ABB98: 0 | ABC98: 0 | ABD98: 0 | ABE98: 0 | ABF98: 0 | ABG98: 0 | ABH98: 0 | ABI98: 0 | ABJ98: 0 | ABK98: 0 | ABL98: 0 | ABM98: 0 | ABN98: 0 | ABO98: 0 | ABP98: 0 | ABQ98: 0 | ABR98: 0 | ABS98: 0 | ABT98: 0 | ABU98: 0 | ABV98: 0 | ABW98: 0 | ABX98: 0 | ABY98: 0 | ABZ98: 0 | ACA98: 0 | ACB98: 0 | ACC98: 0 | ACD98: 0 | ACE98: 0 | ACF98: 0 | ACG98: 0 | ACH98: 0 | ACI98: 0 | ACJ98: 0 | ACK98: 0 | ACL98: 0 | ACM98: 0 | ACN98: 0 | ACO98: 0 | ACP98: 0 | ACQ98: 0 | ACR98: 0 | ACS98: 0 | ACT98: 0 | ACU98: 0 | ACV98: 0 | ACW98: 0 | ACX98: =$F$98*ACX97 -> 0 | ACY98: 0 | ACZ98: 0 | ADA98: 0 | ADB98: 0 | ADC98: 0 | ADD98: 0 | ADE98: 0 | ADF98: 0 | ADG98: 0 | ADH98: 0 | ADI98: 0 | ADJ98: 0 | ADK98: 0 | ADL98: 0 | ADM98: 0 | ADN98: 0 | ADO98: 0 | ADP98: 0 | ADQ98: 0 | ADR98: 0 | ADS98: 0 | ADT98: 0 | ADU98: 0 | ADV98: 0 | ADW98: 0 | ADX98: 0 | ADY98: 0 | ADZ98: 0 | AEA98: 0 | AEB98: 0 | AEC98: 0 | AED98: 0 | AEE98: 0 | AEF98: 0 | AEG98: 0 | AEH98: 0 | AEI98: 0 | AEJ98: 0 | AEK98: 0 | AEL98: 0 | AEM98: 0 | AEN98: 0 | AEO98: 0 | AEP98: 0 | AEQ98: 0 | AER98: 0 | AES98: 0 | AET98: 0 | AEU98: 0 | AEV98: 0 | AEW98: 0 | AEX98: 0 | AEY98: 0 | AEZ98: 0 | AFA98: 0 | AFB98: 0 | AFC98: 0 | AFD98: 0 | AFE98: 0 | AFF98: 0 | AFG98: 0 | AFH98: 0 | AFI98: 0 | AFJ98: =$F$98*AFJ97 -> 0 | AFK98: 0 | AFL98: 0 | AFM98: 0 | AFN98: 0 | AFO98: 0 | AFP98: 0 | AFQ98: 0 | AFR98: 0 | AFS98: 0 | AFT98: 0 | AFU98: 0 | AFV98: 0 | AFW98: 0 | AFX98: 0 | AFY98: 0 | AFZ98: 0 | AGA98: 0 | AGB98: 0 | AGC98: 0 | AGD98: 0 | AGE98: 0 | AGF98: 0 | AGG98: 0 | AGH98: 0 | AGI98: 0 | AGJ98: 0 | AGK98: 0
B99: Nominal Decomissioning | E99: Currency | F99: =SUM(I99:AGK99) -> 0 | I99: =I98*I76 -> 0 | J99: =J98*J76 -> 0 | K99: 0 | L99: 0 | M99: 0 | N99: 0 | O99: 0 | P99: 0 | Q99: 0 | R99: 0 | S99: 0 | T99: 0 | U99: 0 | V99: 0 | W99: 0 | X99: 0 | Y99: 0 | Z99: 0 | AA99: 0 | AB99: 0 | AC99: 0 | AD99: 0 | AE99: 0 | AF99: 0 | AG99: 0 | AH99: 0 | AI99: 0 | AJ99: 0 | AK99: 0 | AL99: 0 | AM99: 0 | AN99: 0 | AO99: 0 | AP99: 0 | AQ99: 0 | AR99: 0 | AS99: 0 | AT99: 0 | AU99: 0 | AV99: 0 | AW99: 0 | AX99: 0 | AY99: 0 | AZ99: 0 | BA99: 0 | BB99: 0 | BC99: 0 | BD99: 0 | BE99: 0 | BF99: 0 | BG99: 0 | BH99: 0 | BI99: 0 | BJ99: 0 | BK99: 0 | BL99: 0 | BM99: 0 | BN99: 0 | BO99: 0 | BP99: 0 | BQ99: 0 | BR99: 0 | BS99: 0 | BT99: 0 | BU99: 0 | BV99: =BV98*BV76 -> 0 | BW99: 0 | BX99: 0 | BY99: 0 | BZ99: 0 | CA99: 0 | CB99: 0 | CC99: 0 | CD99: 0 | CE99: 0 | CF99: 0 | CG99: 0 | CH99: 0 | CI99: 0 | CJ99: 0 | CK99: 0 | CL99: 0 | CM99: 0 | CN99: 0 | CO99: 0 | CP99: 0 | CQ99: 0 | CR99: 0 | CS99: 0 | CT99: 0 | CU99: 0 | CV99: 0 | CW99: 0 | CX99: 0 | CY99: 0 | CZ99: 0 | DA99: 0 | DB99: 0 | DC99: 0 | DD99: 0 | DE99: 0 | DF99: 0 | DG99: 0 | DH99: 0 | DI99: 0 | DJ99: 0 | DK99: 0 | DL99: 0 | DM99: 0 | DN99: 0 | DO99: 0 | DP99: 0 | DQ99: 0 | DR99: 0 | DS99: 0 | DT99: 0 | DU99: 0 | DV99: 0 | DW99: 0 | DX99: 0 | DY99: 0 | DZ99: 0 | EA99: 0 | EB99: 0 | EC99: 0 | ED99: 0 | EE99: 0 | EF99: 0 | EG99: 0 | EH99: =EH98*EH76 -> 0 | EI99: 0 | EJ99: 0 | EK99: 0 | EL99: 0 | EM99: 0 | EN99: 0 | EO99: 0 | EP99: 0 | EQ99: 0 | ER99: 0 | ES99: 0 | ET99: 0 | EU99: 0 | EV99: 0 | EW99: 0 | EX99: 0 | EY99: 0 | EZ99: 0 | FA99: 0 | FB99: 0 | FC99: 0 | FD99: 0 | FE99: 0 | FF99: 0 | FG99: 0 | FH99: 0 | FI99: 0 | FJ99: 0 | FK99: 0 | FL99: 0 | FM99: 0 | FN99: 0 | FO99: 0 | FP99: 0 | FQ99: 0 | FR99: 0 | FS99: 0 | FT99: 0 | FU99: 0 | FV99: 0 | FW99: 0 | FX99: 0 | FY99: 0 | FZ99: 0 | GA99: 0 | GB99: 0 | GC99: 0 | GD99: 0 | GE99: 0 | GF99: 0 | GG99: 0 | GH99: 0 | GI99: 0 | GJ99: 0 | GK99: 0 | GL99: 0 | GM99: 0 | GN99: 0 | GO99: 0 | GP99: 0 | GQ99: 0 | GR99: 0 | GS99: 0 | GT99: =GT98*GT76 -> 0 | GU99: 0 | GV99: 0 | GW99: 0 | GX99: 0 | GY99: 0 | GZ99: 0 | HA99: 0 | HB99: 0 | HC99: 0 | HD99: 0 | HE99: 0 | HF99: 0 | HG99: 0 | HH99: 0 | HI99: 0 | HJ99: 0 | HK99: 0 | HL99: 0 | HM99: 0 | HN99: 0 | HO99: 0 | HP99: 0 | HQ99: 0 | HR99: 0 | HS99: 0 | HT99: 0 | HU99: 0 | HV99: 0 | HW99: 0 | HX99: 0 | HY99: 0 | HZ99: 0 | IA99: 0 | IB99: 0 | IC99: 0 | ID99: 0 | IE99: 0 | IF99: 0 | IG99: 0 | IH99: 0 | II99: 0 | IJ99: 0 | IK99: 0 | IL99: 0 | IM99: 0 | IN99: 0 | IO99: 0 | IP99: 0 | IQ99: 0 | IR99: 0 | IS99: 0 | IT99: 0 | IU99: 0 | IV99: 0 | IW99: 0 | IX99: 0 | IY99: 0 | IZ99: 0 | JA99: 0 | JB99: 0 | JC99: 0 | JD99: 0 | JE99: 0 | JF99: =JF98*JF76 -> 0 | JG99: 0 | JH99: 0 | JI99: 0 | JJ99: 0 | JK99: 0 | JL99: 0 | JM99: 0 | JN99: 0 | JO99: 0 | JP99: 0 | JQ99: 0 | JR99: 0 | JS99: 0 | JT99: 0 | JU99: 0 | JV99: 0 | JW99: 0 | JX99: 0 | JY99: 0 | JZ99: 0 | KA99: 0 | KB99: 0 | KC99: 0 | KD99: 0 | KE99: 0 | KF99: 0 | KG99: 0 | KH99: 0 | KI99: 0 | KJ99: 0 | KK99: 0 | KL99: 0 | KM99: 0 | KN99: 0 | KO99: 0 | KP99: 0 | KQ99: 0 | KR99: 0 | KS99: 0 | KT99: 0 | KU99: 0 | KV99: 0 | KW99: 0 | KX99: 0 | KY99: 0 | KZ99: 0 | LA99: 0 | LB99: 0 | LC99: 0 | LD99: 0 | LE99: 0 | LF99: 0 | LG99: 0 | LH99: 0 | LI99: 0 | LJ99: 0 | LK99: 0 | LL99: 0 | LM99: 0 | LN99: 0 | LO99: 0 | LP99: 0 | LQ99: 0 | LR99: =LR98*LR76 -> 0 | LS99: 0 | LT99: 0 | LU99: 0 | LV99: 0 | LW99: 0 | LX99: 0 | LY99: 0 | LZ99: 0 | MA99: 0 | MB99: 0 | MC99: 0 | MD99: 0 | ME99: 0 | MF99: 0 | MG99: 0 | MH99: 0 | MI99: 0 | MJ99: 0 | MK99: 0 | ML99: 0 | MM99: 0 | MN99: 0 | MO99: 0 | MP99: 0 | MQ99: 0 | MR99: 0 | MS99: 0 | MT99: 0 | MU99: 0 | MV99: 0 | MW99: 0 | MX99: 0 | MY99: 0 | MZ99: 0 | NA99: 0 | NB99: 0 | NC99: 0 | ND99: 0 | NE99: 0 | NF99: 0 | NG99: 0 | NH99: 0 | NI99: 0 | NJ99: 0 | NK99: 0 | NL99: 0 | NM99: 0 | NN99: 0 | NO99: 0 | NP99: 0 | NQ99: 0 | NR99: 0 | NS99: 0 | NT99: 0 | NU99: 0 | NV99: 0 | NW99: 0 | NX99: 0 | NY99: 0 | NZ99: 0 | OA99: 0 | OB99: 0 | OC99: 0 | OD99: =OD98*OD76 -> 0 | OE99: 0 | OF99: 0 | OG99: 0 | OH99: 0 | OI99: 0 | OJ99: 0 | OK99: 0 | OL99: 0 | OM99: 0 | ON99: 0 | OO99: 0 | OP99: 0 | OQ99: 0 | OR99: 0 | OS99: 0 | OT99: 0 | OU99: 0 | OV99: 0 | OW99: 0 | OX99: 0 | OY99: 0 | OZ99: 0 | PA99: 0 | PB99: 0 | PC99: 0 | PD99: 0 | PE99: 0 | PF99: 0 | PG99: 0 | PH99: 0 | PI99: 0 | PJ99: 0 | PK99: 0 | PL99: 0 | PM99: 0 | PN99: 0 | PO99: 0 | PP99: 0 | PQ99: 0 | PR99: 0 | PS99: 0 | PT99: 0 | PU99: 0 | PV99: 0 | PW99: 0 | PX99: 0 | PY99: 0 | PZ99: 0 | QA99: 0 | QB99: 0 | QC99: 0 | QD99: 0 | QE99: 0 | QF99: 0 | QG99: 0 | QH99: 0 | QI99: 0 | QJ99: 0 | QK99: 0 | QL99: 0 | QM99: 0 | QN99: 0 | QO99: 0 | QP99: =QP98*QP76 -> 0 | QQ99: 0 | QR99: 0 | QS99: 0 | QT99: 0 | QU99: 0 | QV99: 0 | QW99: 0 | QX99: 0 | QY99: 0 | QZ99: 0 | RA99: 0 | RB99: 0 | RC99: 0 | RD99: 0 | RE99: 0 | RF99: 0 | RG99: 0 | RH99: 0 | RI99: 0 | RJ99: 0 | RK99: 0 | RL99: 0 | RM99: 0 | RN99: 0 | RO99: 0 | RP99: 0 | RQ99: 0 | RR99: 0 | RS99: 0 | RT99: 0 | RU99: 0 | RV99: 0 | RW99: 0 | RX99: 0 | RY99: 0 | RZ99: 0 | SA99: 0 | SB99: 0 | SC99: 0 | SD99: 0 | SE99: 0 | SF99: 0 | SG99: 0 | SH99: 0 | SI99: 0 | SJ99: 0 | SK99: 0 | SL99: 0 | SM99: 0 | SN99: 0 | SO99: 0 | SP99: 0 | SQ99: 0 | SR99: 0 | SS99: 0 | ST99: 0 | SU99: 0 | SV99: 0 | SW99: 0 | SX99: 0 | SY99: 0 | SZ99: 0 | TA99: 0 | TB99: =TB98*TB76 -> 0 | TC99: 0 | TD99: 0 | TE99: 0 | TF99: 0 | TG99: 0 | TH99: 0 | TI99: 0 | TJ99: 0 | TK99: 0 | TL99: 0 | TM99: 0 | TN99: 0 | TO99: 0 | TP99: 0 | TQ99: 0 | TR99: 0 | TS99: 0 | TT99: 0 | TU99: 0 | TV99: 0 | TW99: 0 | TX99: 0 | TY99: 0 | TZ99: 0 | UA99: 0 | UB99: 0 | UC99: 0 | UD99: 0 | UE99: 0 | UF99: 0 | UG99: 0 | UH99: 0 | UI99: 0 | UJ99: 0 | UK99: 0 | UL99: 0 | UM99: 0 | UN99: 0 | UO99: 0 | UP99: 0 | UQ99: 0 | UR99: 0 | US99: 0 | UT99: 0 | UU99: 0 | UV99: 0 | UW99: 0 | UX99: 0 | UY99: 0 | UZ99: 0 | VA99: 0 | VB99: 0 | VC99: 0 | VD99: 0 | VE99: 0 | VF99: 0 | VG99: 0 | VH99: 0 | VI99: 0 | VJ99: 0 | VK99: 0 | VL99: 0 | VM99: 0 | VN99: =VN98*VN76 -> 0 | VO99: 0 | VP99: 0 | VQ99: 0 | VR99: 0 | VS99: 0 | VT99: 0 | VU99: 0 | VV99: 0 | VW99: 0 | VX99: 0 | VY99: 0 | VZ99: 0 | WA99: 0 | WB99: 0 | WC99: 0 | WD99: 0 | WE99: 0 | WF99: 0 | WG99: 0 | WH99: 0 | WI99: 0 | WJ99: 0 | WK99: 0 | WL99: 0 | WM99: 0 | WN99: 0 | WO99: 0 | WP99: 0 | WQ99: 0 | WR99: 0 | WS99: 0 | WT99: 0 | WU99: 0 | WV99: 0 | WW99: 0 | WX99: 0 | WY99: 0 | WZ99: 0 | XA99: 0 | XB99: 0 | XC99: 0 | XD99: 0 | XE99: 0 | XF99: 0 | XG99: 0 | XH99: 0 | XI99: 0 | XJ99: 0 | XK99: 0 | XL99: 0 | XM99: 0 | XN99: 0 | XO99: 0 | XP99: 0 | XQ99: 0 | XR99: 0 | XS99: 0 | XT99: 0 | XU99: 0 | XV99: 0 | XW99: 0 | XX99: 0 | XY99: 0 | XZ99: =XZ98*XZ76 -> 0 | YA99: 0 | YB99: 0 | YC99: 0 | YD99: 0 | YE99: 0 | YF99: 0 | YG99: 0 | YH99: 0 | YI99: 0 | YJ99: 0 | YK99: 0 | YL99: 0 | YM99: 0 | YN99: 0 | YO99: 0 | YP99: 0 | YQ99: 0 | YR99: 0 | YS99: 0 | YT99: 0 | YU99: 0 | YV99: 0 | YW99: 0 | YX99: 0 | YY99: 0 | YZ99: 0 | ZA99: 0 | ZB99: 0 | ZC99: 0 | ZD99: 0 | ZE99: 0 | ZF99: 0 | ZG99: 0 | ZH99: 0 | ZI99: 0 | ZJ99: 0 | ZK99: 0 | ZL99: 0 | ZM99: 0 | ZN99: 0 | ZO99: 0 | ZP99: 0 | ZQ99: 0 | ZR99: 0 | ZS99: 0 | ZT99: 0 | ZU99: 0 | ZV99: 0 | ZW99: 0 | ZX99: 0 | ZY99: 0 | ZZ99: 0 | AAA99: 0 | AAB99: 0 | AAC99: 0 | AAD99: 0 | AAE99: 0 | AAF99: 0 | AAG99: 0 | AAH99: 0 | AAI99: 0 | AAJ99: 0 | AAK99: 0 | AAL99: =AAL98*AAL76 -> 0 | AAM99: 0 | AAN99: 0 | AAO99: 0 | AAP99: 0 | AAQ99: 0 | AAR99: 0 | AAS99: 0 | AAT99: 0 | AAU99: 0 | AAV99: 0 | AAW99: 0 | AAX99: 0 | AAY99: 0 | AAZ99: 0 | ABA99: 0 | ABB99: 0 | ABC99: 0 | ABD99: 0 | ABE99: 0 | ABF99: 0 | ABG99: 0 | ABH99: 0 | ABI99: 0 | ABJ99: 0 | ABK99: 0 | ABL99: 0 | ABM99: 0 | ABN99: 0 | ABO99: 0 | ABP99: 0 | ABQ99: 0 | ABR99: 0 | ABS99: 0 | ABT99: 0 | ABU99: 0 | ABV99: 0 | ABW99: 0 | ABX99: 0 | ABY99: 0 | ABZ99: 0 | ACA99: 0 | ACB99: 0 | ACC99: 0 | ACD99: 0 | ACE99: 0 | ACF99: 0 | ACG99: 0 | ACH99: 0 | ACI99: 0 | ACJ99: 0 | ACK99: 0 | ACL99: 0 | ACM99: 0 | ACN99: 0 | ACO99: 0 | ACP99: 0 | ACQ99: 0 | ACR99: 0 | ACS99: 0 | ACT99: 0 | ACU99: 0 | ACV99: 0 | ACW99: 0 | ACX99: =ACX98*ACX76 -> 0 | ACY99: 0 | ACZ99: 0 | ADA99: 0 | ADB99: 0 | ADC99: 0 | ADD99: 0 | ADE99: 0 | ADF99: 0 | ADG99: 0 | ADH99: 0 | ADI99: 0 | ADJ99: 0 | ADK99: 0 | ADL99: 0 | ADM99: 0 | ADN99: 0 | ADO99: 0 | ADP99: 0 | ADQ99: 0 | ADR99: 0 | ADS99: 0 | ADT99: 0 | ADU99: 0 | ADV99: 0 | ADW99: 0 | ADX99: 0 | ADY99: 0 | ADZ99: 0 | AEA99: 0 | AEB99: 0 | AEC99: 0 | AED99: 0 | AEE99: 0 | AEF99: 0 | AEG99: 0 | AEH99: 0 | AEI99: 0 | AEJ99: 0 | AEK99: 0 | AEL99: 0 | AEM99: 0 | AEN99: 0 | AEO99: 0 | AEP99: 0 | AEQ99: 0 | AER99: 0 | AES99: 0 | AET99: 0 | AEU99: 0 | AEV99: 0 | AEW99: 0 | AEX99: 0 | AEY99: 0 | AEZ99: 0 | AFA99: 0 | AFB99: 0 | AFC99: 0 | AFD99: 0 | AFE99: 0 | AFF99: 0 | AFG99: 0 | AFH99: 0 | AFI99: 0 | AFJ99: =AFJ98*AFJ76 -> 0 | AFK99: 0 | AFL99: 0 | AFM99: 0 | AFN99: 0 | AFO99: 0 | AFP99: 0 | AFQ99: 0 | AFR99: 0 | AFS99: 0 | AFT99: 0 | AFU99: 0 | AFV99: 0 | AFW99: 0 | AFX99: 0 | AFY99: 0 | AFZ99: 0 | AGA99: 0 | AGB99: 0 | AGC99: 0 | AGD99: 0 | AGE99: 0 | AGF99: 0 | AGG99: 0 | AGH99: 0 | AGI99: 0 | AGJ99: 0 | AGK99: 0
C100: Total Replacement and Decomissioning | E100: Currency | I100: =I99+I96 -> 0 | J100: =J99+J96 -> 0 | K100: 0 | L100: 0 | M100: 0 | N100: 0 | O100: 0 | P100: 0 | Q100: 0 | R100: 0 | S100: 0 | T100: 0 | U100: 0 | V100: 0 | W100: 0 | X100: 0 | Y100: 0 | Z100: 0 | AA100: 0 | AB100: 0 | AC100: 0 | AD100: 0 | AE100: 0 | AF100: 0 | AG100: 0 | AH100: 0 | AI100: 0 | AJ100: 0 | AK100: 0 | AL100: 0 | AM100: 0 | AN100: 0 | AO100: 0 | AP100: 0 | AQ100: 0 | AR100: 0 | AS100: 0 | AT100: 0 | AU100: 0 | AV100: 0 | AW100: 0 | AX100: 0 | AY100: 0 | AZ100: 0 | BA100: 0 | BB100: 0 | BC100: 0 | BD100: 0 | BE100: 0 | BF100: 0 | BG100: 0 | BH100: 0 | BI100: 0 | BJ100: 0 | BK100: 0 | BL100: 0 | BM100: 0 | BN100: 0 | BO100: 0 | BP100: 0 | BQ100: 0 | BR100: 0 | BS100: 0 | BT100: 0 | BU100: 0 | BV100: =BV99+BV96 -> 0 | BW100: 0 | BX100: 0 | BY100: 0 | BZ100: 0 | CA100: 0 | CB100: 0 | CC100: 0 | CD100: 0 | CE100: 0 | CF100: 0 | CG100: 0 | CH100: 0 | CI100: 0 | CJ100: 0 | CK100: 0 | CL100: 0 | CM100: 0 | CN100: 0 | CO100: 0 | CP100: 0 | CQ100: 0 | CR100: 0 | CS100: 0 | CT100: 0 | CU100: 0 | CV100: 0 | CW100: 0 | CX100: 0 | CY100: 0 | CZ100: 0 | DA100: 0 | DB100: 0 | DC100: 0 | DD100: 0 | DE100: 0 | DF100: 0 | DG100: 0 | DH100: 0 | DI100: 0 | DJ100: 0 | DK100: 0 | DL100: 0 | DM100: 0 | DN100: 0 | DO100: 0 | DP100: 0 | DQ100: 0 | DR100: 0 | DS100: 0 | DT100: 0 | DU100: 0 | DV100: 0 | DW100: 0 | DX100: 0 | DY100: 0 | DZ100: 0 | EA100: 0 | EB100: 0 | EC100: 0 | ED100: 0 | EE100: 0 | EF100: 0 | EG100: 0 | EH100: =EH99+EH96 -> 0 | EI100: 0 | EJ100: 0 | EK100: 0 | EL100: 0 | EM100: 0 | EN100: 0 | EO100: 0 | EP100: 0 | EQ100: 0 | ER100: 0 | ES100: 0 | ET100: 0 | EU100: 0 | EV100: 0 | EW100: 0 | EX100: 0 | EY100: 0 | EZ100: 0 | FA100: 0 | FB100: 0 | FC100: 0 | FD100: 0 | FE100: 0 | FF100: 0 | FG100: 0 | FH100: 0 | FI100: 0 | FJ100: 0 | FK100: 0 | FL100: 0 | FM100: 0 | FN100: 0 | FO100: 0 | FP100: 0 | FQ100: 0 | FR100: 0 | FS100: 0 | FT100: 0 | FU100: 0 | FV100: 0 | FW100: 0 | FX100: 0 | FY100: 0 | FZ100: 0 | GA100: 0 | GB100: 0 | GC100: 0 | GD100: 0 | GE100: 0 | GF100: 0 | GG100: 0 | GH100: 0 | GI100: 0 | GJ100: 0 | GK100: 0 | GL100: 0 | GM100: 0 | GN100: 0 | GO100: 0 | GP100: 0 | GQ100: 0 | GR100: 0 | GS100: 0 | GT100: =GT99+GT96 -> 0 | GU100: 0 | GV100: 0 | GW100: 0 | GX100: 0 | GY100: 0 | GZ100: 0 | HA100: 0 | HB100: 0 | HC100: 0 | HD100: 0 | HE100: 0 | HF100: 0 | HG100: 0 | HH100: 0 | HI100: 0 | HJ100: 0 | HK100: 0 | HL100: 0 | HM100: 0 | HN100: 0 | HO100: 0 | HP100: 0 | HQ100: 0 | HR100: 0 | HS100: 0 | HT100: 0 | HU100: 0 | HV100: 0 | HW100: 0 | HX100: 0 | HY100: 0 | HZ100: 0 | IA100: 0 | IB100: 0 | IC100: 0 | ID100: 0 | IE100: 0 | IF100: 0 | IG100: 0 | IH100: 0 | II100: 0 | IJ100: 0 | IK100: 0 | IL100: 0 | IM100: 0 | IN100: 0 | IO100: 0 | IP100: 0 | IQ100: 0 | IR100: 0 | IS100: 0 | IT100: 0 | IU100: 0 | IV100: 0 | IW100: 0 | IX100: 0 | IY100: 0 | IZ100: 0 | JA100: 0 | JB100: 0 | JC100: 0 | JD100: 0 | JE100: 0 | JF100: =JF99+JF96 -> 0 | JG100: 0 | JH100: 0 | JI100: 0 | JJ100: 0 | JK100: 0 | JL100: 0 | JM100: 0 | JN100: 0 | JO100: 0 | JP100: 0 | JQ100: 0 | JR100: 0 | JS100: 0 | JT100: 0 | JU100: 0 | JV100: 0 | JW100: 0 | JX100: 0 | JY100: 0 | JZ100: 0 | KA100: 0 | KB100: 0 | KC100: 0 | KD100: 0 | KE100: 0 | KF100: 0 | KG100: 0 | KH100: 0 | KI100: 0 | KJ100: 0 | KK100: 0 | KL100: 0 | KM100: 0 | KN100: 0 | KO100: 0 | KP100: 0 | KQ100: 0 | KR100: 0 | KS100: 0 | KT100: 0 | KU100: 0 | KV100: 0 | KW100: 0 | KX100: 0 | KY100: 0 | KZ100: 0 | LA100: 0 | LB100: 0 | LC100: 0 | LD100: 0 | LE100: 0 | LF100: 0 | LG100: 0 | LH100: 0 | LI100: 0 | LJ100: 0 | LK100: 0 | LL100: 0 | LM100: 0 | LN100: 0 | LO100: 0 | LP100: 0 | LQ100: 0 | LR100: =LR99+LR96 -> 0 | LS100: 0 | LT100: 0 | LU100: 0 | LV100: 0 | LW100: 0 | LX100: 0 | LY100: 0 | LZ100: 0 | MA100: 0 | MB100: 0 | MC100: 0 | MD100: 0 | ME100: 0 | MF100: 0 | MG100: 0 | MH100: 0 | MI100: 0 | MJ100: 0 | MK100: 0 | ML100: 0 | MM100: 0 | MN100: 0 | MO100: 0 | MP100: 0 | MQ100: 0 | MR100: 0 | MS100: 0 | MT100: 0 | MU100: 0 | MV100: 0 | MW100: 0 | MX100: 0 | MY100: 0 | MZ100: 0 | NA100: 0 | NB100: 0 | NC100: 0 | ND100: 0 | NE100: 0 | NF100: 0 | NG100: 0 | NH100: 0 | NI100: 0 | NJ100: 0 | NK100: 0 | NL100: 0 | NM100: 0 | NN100: 0 | NO100: 0 | NP100: 0 | NQ100: 0 | NR100: 0 | NS100: 0 | NT100: 0 | NU100: 0 | NV100: 0 | NW100: 0 | NX100: 0 | NY100: 0 | NZ100: 0 | OA100: 0 | OB100: 0 | OC100: 0 | OD100: =OD99+OD96 -> 0 | OE100: 0 | OF100: 0 | OG100: 0 | OH100: 0 | OI100: 0 | OJ100: 0 | OK100: 0 | OL100: 0 | OM100: 0 | ON100: 0 | OO100: 0 | OP100: 0 | OQ100: 0 | OR100: 0 | OS100: 0 | OT100: 0 | OU100: 0 | OV100: 0 | OW100: 0 | OX100: 0 | OY100: 0 | OZ100: 0 | PA100: 0 | PB100: 0 | PC100: 0 | PD100: 0 | PE100: 0 | PF100: 0 | PG100: 0 | PH100: 0 | PI100: 0 | PJ100: 0 | PK100: 0 | PL100: 0 | PM100: 0 | PN100: 0 | PO100: 0 | PP100: 0 | PQ100: 0 | PR100: 0 | PS100: 0 | PT100: 0 | PU100: 0 | PV100: 0 | PW100: 0 | PX100: 0 | PY100: 0 | PZ100: 0 | QA100: 0 | QB100: 0 | QC100: 0 | QD100: 0 | QE100: 0 | QF100: 0 | QG100: 0 | QH100: 0 | QI100: 0 | QJ100: 0 | QK100: 0 | QL100: 0 | QM100: 0 | QN100: 0 | QO100: 0 | QP100: =QP99+QP96 -> 0 | QQ100: 0 | QR100: 0 | QS100: 0 | QT100: 0 | QU100: 0 | QV100: 0 | QW100: 0 | QX100: 0 | QY100: 0 | QZ100: 0 | RA100: 0 | RB100: 0 | RC100: 0 | RD100: 0 | RE100: 0 | RF100: 0 | RG100: 0 | RH100: 0 | RI100: 0 | RJ100: 0 | RK100: 0 | RL100: 0 | RM100: 0 | RN100: 0 | RO100: 0 | RP100: 0 | RQ100: 0 | RR100: 0 | RS100: 0 | RT100: 0 | RU100: 0 | RV100: 0 | RW100: 0 | RX100: 0 | RY100: 0 | RZ100: 0 | SA100: 0 | SB100: 0 | SC100: 0 | SD100: 0 | SE100: 0 | SF100: 0 | SG100: 0 | SH100: 0 | SI100: 0 | SJ100: 0 | SK100: 0 | SL100: 0 | SM100: 0 | SN100: 0 | SO100: 0 | SP100: 0 | SQ100: 0 | SR100: 0 | SS100: 0 | ST100: 0 | SU100: 0 | SV100: 0 | SW100: 0 | SX100: 0 | SY100: 0 | SZ100: 0 | TA100: 0 | TB100: =TB99+TB96 -> 0 | TC100: 0 | TD100: 0 | TE100: 0 | TF100: 0 | TG100: 0 | TH100: 0 | TI100: 0 | TJ100: 0 | TK100: 0 | TL100: 0 | TM100: 0 | TN100: 0 | TO100: 0 | TP100: 0 | TQ100: 0 | TR100: 0 | TS100: 0 | TT100: 0 | TU100: 0 | TV100: 0 | TW100: 0 | TX100: 0 | TY100: 0 | TZ100: 0 | UA100: 0 | UB100: 0 | UC100: 0 | UD100: 0 | UE100: 0 | UF100: 0 | UG100: 0 | UH100: 0 | UI100: 0 | UJ100: 0 | UK100: 0 | UL100: 0 | UM100: 0 | UN100: 0 | UO100: 0 | UP100: 0 | UQ100: 0 | UR100: 0 | US100: 0 | UT100: 0 | UU100: 0 | UV100: 0 | UW100: 0 | UX100: 0 | UY100: 0 | UZ100: 0 | VA100: 0 | VB100: 0 | VC100: 0 | VD100: 0 | VE100: 0 | VF100: 0 | VG100: 0 | VH100: 0 | VI100: 0 | VJ100: 0 | VK100: 0 | VL100: 0 | VM100: 0 | VN100: =VN99+VN96 -> 0 | VO100: 0 | VP100: 0 | VQ100: 0 | VR100: 0 | VS100: 0 | VT100: 0 | VU100: 0 | VV100: 0 | VW100: 0 | VX100: 0 | VY100: 0 | VZ100: 0 | WA100: 0 | WB100: 0 | WC100: 0 | WD100: 0 | WE100: 0 | WF100: 0 | WG100: 0 | WH100: 0 | WI100: 0 | WJ100: 0 | WK100: 0 | WL100: 0 | WM100: 0 | WN100: 0 | WO100: 0 | WP100: 0 | WQ100: 0 | WR100: 0 | WS100: 0 | WT100: 0 | WU100: 0 | WV100: 0 | WW100: 0 | WX100: 0 | WY100: 0 | WZ100: 0 | XA100: 0 | XB100: 0 | XC100: 0 | XD100: 0 | XE100: 0 | XF100: 0 | XG100: 0 | XH100: 0 | XI100: 0 | XJ100: 0 | XK100: 0 | XL100: 0 | XM100: 0 | XN100: 0 | XO100: 0 | XP100: 0 | XQ100: 0 | XR100: 0 | XS100: 0 | XT100: 0 | XU100: 0 | XV100: 0 | XW100: 0 | XX100: 0 | XY100: 0 | XZ100: =XZ99+XZ96 -> 0 | YA100: 0 | YB100: 0 | YC100: 0 | YD100: 0 | YE100: 0 | YF100: 0 | YG100: 0 | YH100: 0 | YI100: 0 | YJ100: 0 | YK100: 0 | YL100: 0 | YM100: 0 | YN100: 0 | YO100: 0 | YP100: 0 | YQ100: 0 | YR100: 0 | YS100: 0 | YT100: 0 | YU100: 0 | YV100: 0 | YW100: 0 | YX100: 0 | YY100: 0 | YZ100: 0 | ZA100: 0 | ZB100: 0 | ZC100: 0 | ZD100: 0 | ZE100: 0 | ZF100: 0 | ZG100: 0 | ZH100: 0 | ZI100: 0 | ZJ100: 0 | ZK100: 0 | ZL100: 0 | ZM100: 0 | ZN100: 0 | ZO100: 0 | ZP100: 0 | ZQ100: 0 | ZR100: 0 | ZS100: 0 | ZT100: 0 | ZU100: 0 | ZV100: 0 | ZW100: 0 | ZX100: 0 | ZY100: 0 | ZZ100: 0 | AAA100: 0 | AAB100: 0 | AAC100: 0 | AAD100: 0 | AAE100: 0 | AAF100: 0 | AAG100: 0 | AAH100: 0 | AAI100: 0 | AAJ100: 0 | AAK100: 0 | AAL100: =AAL99+AAL96 -> 0 | AAM100: 0 | AAN100: 0 | AAO100: 0 | AAP100: 0 | AAQ100: 0 | AAR100: 0 | AAS100: 0 | AAT100: 0 | AAU100: 0 | AAV100: 0 | AAW100: 0 | AAX100: 0 | AAY100: 0 | AAZ100: 0 | ABA100: 0 | ABB100: 0 | ABC100: 0 | ABD100: 0 | ABE100: 0 | ABF100: 0 | ABG100: 0 | ABH100: 0 | ABI100: 0 | ABJ100: 0 | ABK100: 0 | ABL100: 0 | ABM100: 0 | ABN100: 0 | ABO100: 0 | ABP100: 0 | ABQ100: 0 | ABR100: 0 | ABS100: 0 | ABT100: 0 | ABU100: 0 | ABV100: 0 | ABW100: 0 | ABX100: 0 | ABY100: 0 | ABZ100: 0 | ACA100: 0 | ACB100: 0 | ACC100: 0 | ACD100: 0 | ACE100: 0 | ACF100: 0 | ACG100: 0 | ACH100: 0 | ACI100: 0 | ACJ100: 0 | ACK100: 0 | ACL100: 0 | ACM100: 0 | ACN100: 0 | ACO100: 0 | ACP100: 0 | ACQ100: 0 | ACR100: 0 | ACS100: 0 | ACT100: 0 | ACU100: 0 | ACV100: 0 | ACW100: 0 | ACX100: =ACX99+ACX96 -> 0 | ACY100: 0 | ACZ100: 0 | ADA100: 0 | ADB100: 0 | ADC100: 0 | ADD100: 0 | ADE100: 0 | ADF100: 0 | ADG100: 0 | ADH100: 0 | ADI100: 0 | ADJ100: 0 | ADK100: 0 | ADL100: 0 | ADM100: 0 | ADN100: 0 | ADO100: 0 | ADP100: 0 | ADQ100: 0 | ADR100: 0 | ADS100: 0 | ADT100: 0 | ADU100: 0 | ADV100: 0 | ADW100: 0 | ADX100: 0 | ADY100: 0 | ADZ100: 0 | AEA100: 0 | AEB100: 0 | AEC100: 0 | AED100: 0 | AEE100: 0 | AEF100: 0 | AEG100: 0 | AEH100: 0 | AEI100: 0 | AEJ100: 0 | AEK100: 0 | AEL100: 0 | AEM100: 0 | AEN100: 0 | AEO100: 0 | AEP100: 0 | AEQ100: 0 | AER100: 0 | AES100: 0 | AET100: 0 | AEU100: 0 | AEV100: 0 | AEW100: 0 | AEX100: 0 | AEY100: 0 | AEZ100: 0 | AFA100: 0 | AFB100: 0 | AFC100: 0 | AFD100: 0 | AFE100: 0 | AFF100: 0 | AFG100: 0 | AFH100: 0 | AFI100: 0 | AFJ100: =AFJ99+AFJ96 -> 0 | AFK100: 0 | AFL100: 0 | AFM100: 0 | AFN100: 0 | AFO100: 0 | AFP100: 0 | AFQ100: 0 | AFR100: 0 | AFS100: 0 | AFT100: 0 | AFU100: 0 | AFV100: 0 | AFW100: 0 | AFX100: 0 | AFY100: 0 | AFZ100: 0 | AGA100: 0 | AGB100: 0 | AGC100: 0 | AGD100: 0 | AGE100: 0 | AGF100: 0 | AGG100: 0 | AGH100: 0 | AGI100: 0 | AGJ100: 0 | AGK100: 0
